Workbook

Sheet Previsão DRP+1
D1: Anual | E1: mensal | F1: 6 meses
C2: Variação de mercado TE | D2: 0 | E2: =(1+D2)^(1/12)-1 -> 0 | F2: =(1+E2)^6-1 -> 0
C3: Variação de mercado TUSD | D3: 0 | E3: =(1+D3)^(1/12)-1 -> 0 | F3: =(1+E3)^6-1 -> 0
C4: Variação mercado GD | D4: =(77/41)^(1/10)-1 -> 0.06505169247 | E4: 0.005265760263 | F4: 0.03201341681
C5: IPCA futuro 12 meses | D5: =VLOOKUP(EDATE(CAPA!C15,12),Índices!$B$10:$F$500,3)/VLOOKUP(EDATE(CAPA!C15,0),Índices!$B$10:$F$500,3)-1 -> 0.0502578867 | E5: 0.004094672055 | F5: 0.02482090469
C6: IGP-M futuro | D6: =VLOOKUP(EDATE(CAPA!C15,12),Índices!$B$10:$F$500,2)/VLOOKUP(EDATE(CAPA!C15,0),Índices!$B$10:$F$500,2)-1 -> 0.0514837496 | E6: 0.004192284939 | F6: 0.02541881668
C7: Dolar futuro | E7: 0 | F7: 0
C8: Selic Atual | D8: =VLOOKUP(EDATE(CAPA!C15,0),Índices!$B$10:$F$500,5)/VLOOKUP(EDATE(CAPA!C15,-12),Índices!$B$10:$F$500,5)-1 -> 0.1127665401 | E8: 0.008943867237 | F8: 0.05487750006
C9: Selic 12 meses
E10: RTA ou RTP?
E11: RTA
D12: 2025 | E12: 2026 | I12: 1
D13: DRP (R$) | E13: DRP + 1 (R$) | F13: ='Votos e NTs'!BN249 -> Variação | G13: ='Votos e NTs'!BO249 -> Participação no Reajuste | H13: ='Votos e NTs'!BP249 -> Participação na Receita | I13: 1 | J13: Descasamento CVA (meses) | K13: Deslta total para estimativa de CVA M2 | L13: Fator de cálculo da CVA M2
C14: ='Votos e NTs'!BK250 -> PARCELA A [Encargos+Transmissão+Energia] | D14: ='Votos e NTs'!BM250 -> 4809101816 | E14: =E15+E27+E36+E37 -> 5053745772 | F14: =IFERROR(E14/D14-1,0) -> 0.05087102859 | G14: =IFERROR((E14-D14)/$D$39,0) -> 0.03100566944 | H14: =E14/$E$39 -> 0.6136534029 | I14: 1
C15: ='Votos e NTs'!BK251 -> Encargos Setoriais | D15: ='Votos e NTs'!BM251 -> 1621604253 | E15: =SUM(E16:E26) -> 1706051318 | F15: =IFERROR(E15/D15-1,0) -> 0.05207624762 | G15: =IFERROR((E15-D15)/$D$39,0) -> 0.01070264647 | H15: =E15/$E$39 -> 0.2071580653 | I15: 1
C16: ='Votos e NTs'!BK252 -> Taxa de Fisc. de Serviços de E.E. – TFSEE | D16: ='Votos e NTs'!BM252 -> 12025135.67 | E16: =D16*E38/D38 -> 12417610.69 | F16: 0.0326378867 | G16: 4.974147245e-05 | H16: 0.001507814085 | I16: =IF(D16<>0,1,IF(E16<>0,1,0)) -> 1 | J16: 0 | K16: =E16-D16 -> 392475.0156 | L16: =IFERROR(VLOOKUP(J16,$Q$132:$U$143,5),0) -> 0
C17: ='Votos e NTs'!BK253 -> Conta de Desenv. Energético – CDE (USO) | D17: ='Votos e NTs'!BM253 -> 931193917 | E17: =D17*(1+D5) -> 977993755.4 | F17: 0.0502578867 | G17: 0.005931314806 | H17: 0.1187533412 | I17: =IF(D17<>0,1,IF(E17<>0,1,0)) -> 1 | J17: =MONTH(LnkTxtDRPData)-1 -> 3 | K17: =E17-D17 -> 46799838.37 | L17: 0.2695354472
C18: ='Votos e NTs'!BK254 -> Conta de Desenv. Energético – CDE Conta-Covid | D18: ='Votos e NTs'!BM254 -> 0 | E18: 0 | F18: 0 | G18: 0 | H18: 0 | I18: 0 | J18: 0 | K18: 0 | L18: 0
C19: ='Votos e NTs'!BK255 -> Conta de Desenv. Energético – CDE Eletrobrás | D19: ='Votos e NTs'!BM255 -> 0 | E19: 0 | F19: 0 | G19: 0 | H19: 0 | I19: 0 | J19: 0 | K19: 0 | L19: 0
C20: ='Votos e NTs'!BK256 -> Conta de Desenv. Energético – CDE Conta-Escassez Hídrica | D20: ='Votos e NTs'!BM256 -> 240063889.6 | E20: =D20*(1+D5) -> 252128993.3 | F20: 0.0502578867 | G20: 0.001529106319 | H20: 0.03061487888 | I20: 1 | J20: 0 | K20: 12065103.76 | L20: 0
C21: ='Votos e NTs'!BK257 -> Conta de Desenv. Energético – CDE GD | D21: ='Votos e NTs'!BM257 -> 54114150.09 | E21: =D21*(1+D5)*(1+D4) -> 60530948.63 | F21: 0.1185789398 | G21: 0.0008132517874 | H21: 0.007349998256 | I21: 1 | J21: 0 | K21: 6416798.543 | L21: 0
C22: ='Votos e NTs'!BK258 -> Compensação Financeira - CFURH | D22: ='Votos e NTs'!BM258 -> 0 | E22: 0 | F22: 0 | G22: 0 | H22: 0 | I22: 0 | J22: 0 | K22: 0 | L22: 0
C23: ='Votos e NTs'!BK259 -> Encargos Serv. Sist. - ESS/Energ. Reserv. - EER/ERCAP | D23: ='Votos e NTs'!BM259 -> 185691593.4 | E23: =D23*(1+D5) -> 195024060.4 | F23: 0.0502578867 | G23: 0.00118277759 | H23: 0.02368088616 | I23: 1 | J23: 0 | K23: 9332467.059 | L23: 0
C24: ='Votos e NTs'!BK260 -> PROINFA | D24: ='Votos e NTs'!BM260 -> 131726974 | E24: =D24*(1+D5) -> 138347293.4 | F24: 0.0502578867 | G24: 0.000839045592 | H24: 0.01679888368 | I24: 1 | J24: =MONTH(LnkTxtDRPData)-1 -> 3 | K24: 6620319.335 | L24: 0.2695354472
C25: ='Votos e NTs'!BK261 -> P&D, Efic.Energ e Ressarc.ICMS Sist.Isol. | D25: ='Votos e NTs'!BM261 -> 66558525.59 | E25: =IFERROR(1%*(E16+E24+E23+E27+E36+E38+E37)+1%*E41,0) -> 69367025.42 | F25: 0.04219594404 | G25: 0.0003559434638 | H25: 0.00842292294 | I25: 1 | J25: 0 | K25: 2808499.822 | L25: 0
C26: ='Votos e NTs'!BK262 -> ONS | D26: ='Votos e NTs'!BM262 -> 230067.84 | E26: =D26*(1+D5) -> 241630.5634 | F26: 0.0502578867 | G26: 1.465435674e-06 | H26: 2.934010221e-05 | I26: 1 | J26: 0 | K26: 11562.72343 | L26: 0
C27: ='Votos e NTs'!BK263 -> Custos de Transmissão | D27: ='Votos e NTs'!BM263 -> 651189563.8 | E27: =SUM(E28:E35) -> 683916975.2 | F27: 0.0502578867 | G27: 0.004147804481 | H27: 0.08304493302 | I27: 1
C28: ='Votos e NTs'!BK264 -> Rede Básica | D28: ='Votos e NTs'!BM264 -> 345121796.6 | E28: =D28*(1+$D$5) -> 362466888.7 | F28: 0.0502578867 | G28: 0.002198281136 | H28: 0.04401270855 | I28: 1 | J28: =MONTH(LnkTxtDRPData)-1+12-7 -> 8 | K28: 17345092.15 | L28: =IFERROR(VLOOKUP(J28,$Q$132:$U$143,5),0) -> 0.7350739566
C29: ='Votos e NTs'!BK265 -> Rede Básica Fronteira | D29: ='Votos e NTs'!BM265 -> 166594208.1 | E29: =D29*(1+$D$5) -> 174966880.9 | F29: 0.0502578867 | G29: 0.001061135253 | H29: 0.02124543392 | I29: 1 | J29: =J28 -> 8 | K29: 8372672.834 | L29: 0.7350739566
C30: ='Votos e NTs'!BK266 -> Rede Básica ONS (A2) | D30: ='Votos e NTs'!BM266 -> 3301282.04 | E30: =D30*(1+$D$5) -> 3467197.499 | F30: 0.0502578867 | G30: 2.102778238e-05 | H30: 0.0004210060497 | I30: 1 | J30: =J29 -> 8 | K30: 165915.4587 | L30: 0.7350739566
C31: ='Votos e NTs'!BK267 -> Rede Básica Export. (A2) | D31: ='Votos e NTs'!BM267 -> 53422550.86 | E31: 56107455.37 | F31: 0.0502578867 | G31: 0.0003402792491 | H31: 0.006812873553 | I31: 1 | J31: =J30 -> 8 | K31: 2684904.508 | L31: 0.7350739566
C32: ='Votos e NTs'!BK268 -> MUST Itaipu | D32: ='Votos e NTs'!BM268 -> 26330917.43 | E32: 27654253.69 | F32: 0.0502578867 | G32: 0.0001677169036 | H32: 0.003357930463 | I32: 1 | J32: 8 | K32: 1323336.265 | L32: 0.7350739566
C33: ='Votos e NTs'!BK269 -> Transporte de Itaipu | D33: ='Votos e NTs'!BM269 -> 42620586.43 | E33: 44762607.04 | F33: 0.0502578867 | G33: 0.000271475265 | H33: 0.005435320131 | I33: 1 | J33: 8 | K33: 2142020.604 | L33: 0.7350739566
C34: ='Votos e NTs'!BK270 -> Conexão | D34: ='Votos e NTs'!BM270 -> 11975370.35 | E34: 12577227.16 | F34: 0.0502578867 | G34: 7.627808792e-05 | H34: 0.001527195588 | I34: 1 | J34: 0 | K34: 601856.8062 | L34: 0
C35: ='Votos e NTs'!BK271 -> Uso do sistema de distribuição e CCD | D35: ='Votos e NTs'!BM271 -> 1822852.049 | E35: 1914464.741 | F35: 0.0502578867 | G35: 1.161080324e-05 | H35: 0.000232464761 | I35: 1 | J35: 0 | K35: 91612.69173 | L35: 0
C36: ='Votos e NTs'!BK272 -> Custos de Aquisição de Energia | D36: ='Votos e NTs'!BM272 -> 2536307999 | E36: =D36*(1+D5) -> 2663777479 | F36: 0.0502578867 | G36: 0.01615521849 | H36: 0.3234504046 | I36: 1 | J36: 6 | K36: 127469480 | L36: 0.5463678376
I37: 0 | J37: 0 | K37: 0 | L37: 0
C38: ='Votos e NTs'!BK273 -> PARCELA B | D38: ='Votos e NTs'!BM273 -> 3081195682 | E38: =IF(E11="RTA",D38*(1+D5-U171),D38*(1+R166)*(1+D5)) -> 3181759398 | F38: 0.0326378867 | G38: 0.0127452375 | H38: 0.3863465971 | I38: 1
C39: ='Votos e NTs'!BK274 -> IRT | D39: ='Votos e NTs'!BM274 -> 7890297498 | E39: =E38+E14 -> 8235505169 | F39: 0.04375090694 | G39: 0.04375090694 | H39: 1 | I39: 1
I40: 1
C41: ='Votos e NTs'!BK276 -> Efeito dos Componentes Financeiros do Processo Atual | D41: =SUM(D42:D92) -> -422096103.1 | E41: =SUM(E42:E92) -> 61459725.52 | F41: -1.145606001 | G41: 0.06128486648 | H41: 0.007462775417 | I41: 1
C42: ='Votos e NTs'!BK277 -> CVA em processamento - Energia | D42: ='Votos e NTs'!BM277 -> 66746749.1 | E42: =D61+SUMPRODUCT(Q152:Q158,R152:R158) -> 220305109.2 | F42: 2.300611823 | G42: 0.01946166924 | H42: 0.02675064914 | I42: 1
C43: ='Votos e NTs'!BK278 -> CVA em processamento - Transporte | D43: ='Votos e NTs'!BM278 -> 78039502 | E43: =SUMPRODUCT(K28:K37,L28:L37)+L43*(D27-D34-D35)*(1+D8) -> 154898835.4 | F43: 0.9848772925 | G43: 0.009740993095 | H43: 0.01880866228 | I43: 1 | J43: Tributos de transmissão na CVA | L43: 0.087
C44: ='Votos e NTs'!BK279 -> CVA em processamento - Encargos Setoriais | D44: ='Votos e NTs'!BM279 -> 5790546.785 | E44: =SUMPRODUCT(K16:K26,L16:L26) -> 14398626.1 | F44: 1.486574521 | G44: 0.001090970184 | H44: 0.001748359791 | I44: 1
C45: ='Votos e NTs'!BK280 -> Saldo a Compensar CVA-Ano Anterior + Ajustes | D45: ='Votos e NTs'!BM280 -> -10101276.61 | E45: 0 | F45: -1 | G45: 0.001280214924 | H45: 0 | I45: 1
C46: ='Votos e NTs'!BK281 -> Neutralidade de Parcela A - Encargos Setoriais | D46: ='Votos e NTs'!BM281 -> -15033546.81 | E46: 0 | F46: -1 | G46: 0.001905320656 | H46: 0 | I46: 1
C47: ='Votos e NTs'!BK282 -> Neutralidade de Parcela A - Receita Irrecuperável | D47: ='Votos e NTs'!BM282 -> 0 | E47: 0 | F47: 0 | G47: 0 | H47: 0 | I47: 0
C48: ='Votos e NTs'!BK283 -> Neutralidade de Fin. Parcela B - Conta Covid | D48: ='Votos e NTs'!BM283 -> 0 | E48: 0 | F48: 0 | G48: 0 | H48: 0 | I48: 0
C49: ='Votos e NTs'!BK284 -> Financeiro CDE Eletrobras | D49: ='Votos e NTs'!BM284 -> -21274301.51 | E49: 0 | F49: -1 | G49: 0.002696261012 | H49: 0 | I49: 1
C50: ='Votos e NTs'!BK285 -> Restituição de encargo do ONS | D50: ='Votos e NTs'!BM285 -> 0 | E50: 0 | F50: 0 | G50: 0 | H50: 0 | I50: 0
C51: ='Votos e NTs'!BK286 -> Financeiros residuais do encargo de ONS | D51: ='Votos e NTs'!BM286 -> 0 | E51: 0 | F51: 0 | G51: 0 | H51: 0 | I51: 0
C52: ='Votos e NTs'!BK287 -> Neutralidade de Fin. Parcela B - Conta Covid | D52: ='Votos e NTs'!BM287 -> 0 | E52: 0 | F52: 0 | G52: 0 | H52: 0 | I52: 0
C53: ='Votos e NTs'!BK288 -> Neutralidade Escassez Hídrica | D53: ='Votos e NTs'!BM288 -> 0 | E53: 0 | F53: 0 | G53: 0 | H53: 0 | I53: 0
C54: ='Votos e NTs'!BK289 -> Neutralidade Crédito de PIS/COFINS | D54: ='Votos e NTs'!BM289 -> -23042053.12 | E54: 0 | F54: -1 | G54: 0.002920302198 | H54: 0 | I54: 1
C55: ='Votos e NTs'!BK290 -> Sobrecontratação | D55: ='Votos e NTs'!BM290 -> 128391150.6 | E55: =T125 -> 246321056.3 | F55: 0.9185205147 | G55: 0.01494619255 | H55: 0.02990964746 | I55: 1
C56: ='Votos e NTs'!BK291 -> Garantias financeiras na contratação regulada de energia (CCEAR) de Energia | D56: ='Votos e NTs'!BM291 -> 677567.4938 | E56: =D56*(1+D5) -> 711620.6041 | F56: 0.0502578867 | G56: 4.315820835e-06 | H56: 8.64088589e-05 | I56: 1
C57: ='Votos e NTs'!BK292 -> Reversão Sobrecontratação | D57: ='Votos e NTs'!BM292 -> 0 | E57: 0 | F57: 0 | G57: 0 | H57: 0 | I57: 0
C58: ='Votos e NTs'!BK293 -> Recálculo Exposição CCEAR entre Submercados | D58: ='Votos e NTs'!BM293 -> 0 | E58: =D58*(1+D5) -> 0 | F58: 0 | G58: 0 | H58: 0 | I58: 0
C59: ='Votos e NTs'!BK294 -> Compensação ref. acordos bilaterais de CCEAR | D59: ='Votos e NTs'!BM294 -> 0 | E59: 0 | F59: 0 | G59: 0 | H59: 0 | I59: 0
C60: ='Votos e NTs'!BK295 -> Reversão de Risco Hidrológico | D60: ='Votos e NTs'!BM295 -> -156627209.9 | E60: =-NPV(-((1+D8)^(1/12)-1),D61/12,D61/12,D61/12,D61/12,D61/12,D61/12,D61/12,D61/12,D61/12,D61/12,D61/12,D61/12) -> -173789802.2 | F60: 0.1095760582 | G60: -0.002175151478 | H60: -0.0211025066 | I60: 1
C61: ='Votos e NTs'!BK296 -> Previsão de Risco Hidrológico | D61: ='Votos e NTs'!BM296 -> 163852885.7 | E61: =D61*0.9*(1+D5) -> 154879006.9 | F61: -0.05476790197 | G61: -0.001137330853 | H61: 0.01880625459 | I61: 1
C62: ='Votos e NTs'!BK297 -> Repasse de ultrapassagem de Supridas/Permissionárias | D62: ='Votos e NTs'!BM297 -> 0 | E62: 0 | F62: 0 | G62: 0 | H62: 0 | I62: 0
C63: ='Votos e NTs'!BK298 -> Ajuste CUSD | D63: ='Votos e NTs'!BM298 -> 18020.33095 | E63: =D63*(1+D5) -> 18925.99471 | F63: 0.0502578867 | G63: 1.147819523e-07 | H63: 2.298097605e-06 | I63: 1
C64: ='Votos e NTs'!BK299 -> Conselho de Consumidores | D64: ='Votos e NTs'!BM299 -> 0 | E64: 0 | F64: 0 | G64: 0 | H64: 0 | I64: 0
C65: ='Votos e NTs'!BK300 -> Ajuste TUSDg | D65: ='Votos e NTs'!BM300 -> 0 | E65: 0 | F65: 0 | G65: 0 | H65: 0 | I65: 0
C66: ='Votos e NTs'!BK301 -> Repasse de compensação DIC/FIC | D66: ='Votos e NTs'!BM301 -> 0 | E66: 0 | F66: 0 | G66: 0 | H66: 0 | I66: 0
C67: ='Votos e NTs'!BK302 -> Acordo REN 824/2018 | D67: ='Votos e NTs'!BM302 -> 0 | E67: 0 | F67: 0 | G67: 0 | H67: 0 | I67: 0
C68: ='Votos e NTs'!BK303 -> 0 | D68: ='Votos e NTs'!BM303 -> 0 | E68: 0 | F68: 0 | G68: 0 | H68: 0 | I68: 0
C69: ='Votos e NTs'!BK304 -> Custo Distribuidora - Conta Covid - Art 4º - REN 952/2021 - Tusd | D69: ='Votos e NTs'!BM304 -> 0 | E69: 0 | F69: 0 | G69: 0 | H69: 0 | I69: 0
C70: ='Votos e NTs'!BK305 -> Custo Distribuidora - Conta Covid - Art 4º - REN 952/2021 - TE | D70: ='Votos e NTs'!BM305 -> 0 | E70: =D70*(1+D5) -> 0 | F70: 0 | G70: 0 | H70: 0 | I70: 0
C71: ='Votos e NTs'!BK306 -> 0 | D71: ='Votos e NTs'!BM306 -> 0 | E71: 0 | F71: 0 | G71: 0 | H71: 0 | I71: 0
C72: ='Votos e NTs'!BK307 -> Empr. Escassez Hídrica | D72: ='Votos e NTs'!BM307 -> 0 | E72: 0 | F72: 0 | G72: 0 | H72: 0 | I72: 0
C73: ='Votos e NTs'!BK308 -> Diferimento Parcela B | D73: ='Votos e NTs'!BM308 -> 0 | E73: 0 | F73: 0 | G73: 0 | H73: 0 | I73: 0
C74: ='Votos e NTs'!BK309 -> Recomposição à conta de comercialização de Itaipu - Reversão Bônus Itaipu | D74: ='Votos e NTs'!BM309 -> 0 | E74: =-'Itens Extraordinários'!J128*12 -> 0 | F74: 0 | G74: 0 | H74: 0 | I74: 0
C75: ='Votos e NTs'!BK310 -> Neutralidade Mitigação Itaipu - Energia de Revenda | D75: ='Votos e NTs'!BM310 -> 31049064.86 | E75: 0 | F75: -1 | G75: -0.003935094319 | H75: 0 | I75: 1
C76: ='Votos e NTs'!BK311 -> Frustração de repasse Decreto 10.665/2021 - Ajuste Bônus Itaipu | D76: ='Votos e NTs'!BM311 -> 0 | E76: 0 | F76: 0 | G76: 0 | H76: 0 | I76: 0
C77: ='Votos e NTs'!BK312 -> Financeiro referente ajuste encargo conexão | D77: ='Votos e NTs'!BM312 -> 0 | E77: 0 | F77: 0 | G77: 0 | H77: 0 | I77: 0
C78: ='Votos e NTs'!BK313 -> Reversão diferimento Rede Básica | D78: ='Votos e NTs'!BM313 -> 0 | E78: 0 | F78: 0 | G78: 0 | H78: 0 | I78: 0
C79: ='Votos e NTs'!BK314 -> Spread sobre a antecipação de créditos de UDER | D79: ='Votos e NTs'!BM314 -> 0 | E79: 0 | F79: =IFERROR(E79/D79-1,0) -> 0 | G79: =IFERROR((E79-D79)/$D$39,0) -> 0 | H79: =E79/$E$39 -> 0 | I79: 0
C80: ='Votos e NTs'!BK315 -> Reversão da antecipação de créditos de UDER | D80: ='Votos e NTs'!BM315 -> 0 | E80: 0 | F80: 0 | G80: 0 | H80: 0 | I80: 0
C81: ='Votos e NTs'!BK316 -> 0 | D81: ='Votos e NTs'!BM316 -> 0 | F81: 0 | G81: 0 | H81: 0 | I81: =IF(D81<>0,1,IF(E81<>0,1,0)) -> 0
C82: ='Votos e NTs'!BK317 -> Ajuste PB, indicador FER do componente XQ - RTA 2024 (DSP 161/2025) | D82: ='Votos e NTs'!BM317 -> 2149808.594 | F82: -1 | G82: -0.0002724622987 | H82: 0 | I82: 1
C83: ='Votos e NTs'!BK318 -> Penalidade por descumprimento de meta de universalização -DSP 1.658/2024-ANEEL | D83: ='Votos e NTs'!BM318 -> -4234087.89 | E83: =D83*(1+D5) -> -4446884.2 | F83: 0.0502578867 | G83: -2.696936453e-05 | H83: -0.0005399649576 | I83: 1
C84: ='Votos e NTs'!BK319 -> Reversão de Créditos de modicidade (REN 1.000/2021) | D84: ='Votos e NTs'!BM319 -> 23280399.29 | E84: =-(SUMIFS('Itens Extraordinários'!U:U,'Itens Extraordinários'!Y:Y,2)+SUMIFS('Itens Extraordinários'!V:V,'Itens Extraordinários'!Y:Y,1)++SUMIFS('Itens Extraordinários'!W:W,'Itens Extraordinários'!Y:Y,1)++SUMIFS('Itens Extraordinários'!X:X,'Itens Extraordinários'!Y:Y,1)) -> -1556432.745 | F84: -1.06685593 | G84: -0.003147768768 | H84: -0.0001889905613 | I84: 1
C85: ='Votos e NTs'!BK320 -> Quitação conta Escassez TE | D85: ='Votos e NTs'!BM320 -> -240063889.6 | E85: =-E20 -> -252128993.3 | F85: 0.0502578867 | G85: -0.001529106319 | H85: -0.03061487888 | I85: 1
C86: ='Votos e NTs'!BK321 -> Reversão de Pgto Conta Escassez | D86: ='Votos e NTs'!BM321 -> -145442756.3 | E86: 0 | F86: -1 | G86: 0.01843311439 | H86: 0 | I86: 1
C87: ='Votos e NTs'!BK322 -> Financeiro de Postergação Transporte | D87: ='Votos e NTs'!BM322 -> 0 | E87: 0 | F87: 0 | G87: 0 | H87: 0 | I87: 0
C88: ='Votos e NTs'!BK323 -> Financeiro de Postergação Parcela B | D88: ='Votos e NTs'!BM323 -> 0 | E88: 0 | F88: 0 | G88: 0 | H88: 0 | I88: 0
C89: ='Votos e NTs'!BK324 -> Créditos de Pis/Cofins | D89: ='Votos e NTs'!BM324 -> -273636457.1 | E89: =-MIN(12*PIS_COFINS!K22,PIS_COFINS!E9-12*PIS_COFINS!K22-PIS_COFINS!C146) -> -267191745.3 | F89: -0.02355209483 | G89: 0.0008167894539 | H89: -0.03244388046 | I89: 1
C90: ='Votos e NTs'!BK325 -> Arrecadação CDE Escassez de migrantes (REN 1.008/2022) | D90: ='Votos e NTs'!BM325 -> -29478090.74 | E90: =D90*(E20/D20) -> -30959597.29 | F90: 0.0502578867 | G90: -0.000187763078 | H90: -0.003759283329 | I90: 1
C91: ='Votos e NTs'!BK326 -> Arrecadação CDE Covid de migrantes (REN 885/2020) | D91: ='Votos e NTs'!BM326 -> -3158128.271 | E91: 0 | F91: -1 | G91: 0.000400254651 | H91: 0 | I91: 1
C92: ='Votos e NTs'!BK327 -> Custo da distribuidora - Conta Escassez Hídrica | D92: ='Votos e NTs'!BM327 -> 0 | E92: 0 | F92: 0 | G92: 0 | H92: 0 | I92: 0
C93: ='Votos e NTs'!BK328 -> Efeito da retirada dos Componentes Financeiros do Processo Anterior | D93: =D41+D38+D14 -> 7468201395 | E93: =E41+E38+E14 -> 8296964895 | F93: =IFERROR(E93/D93-1,0) -> 0.1109723019 | I93: =IF(D93<>0,1,IF(E93<>0,1,0)) -> 1 | Q93: Liquidação de Energia obtida da CVA (guia Resultado MCP)
C94: Efeito médio sem diferimento | D94: =LnkTxtEfeito -> 0.01794776729 | E94: =E93/D93-1 -> 0.1109723019 | I94: =IF(D94<>0,1,IF(E94<>0,1,0)) -> 1
Q95: Mês | R95: =S112 -> MWh | S95: Perfil de liquidação
C96: Valor estimado da base de cálculo do efeito médio | D96: =D93/(1+D94) -> 7336527113 | E96: =D93 -> 7468201395 | Q96: 45292 | R96: 42202.0122 | S96: =R96/$R$108 -> 0.09573128123
Q97: 45323 | R97: 26249.3313 | S97: 0.05954413038
Q98: 45352 | R98: 64932.1626 | S98: 0.1472924819
C99: Critério 3 - NT 198/2024 | D99: 223500000 | E99: =-D99*(1+D8) -> -248703321.7 | H99: % equilavente RI | Q99: 45383 | R99: 45041.4189 | S99: 0.1021722073
C100: Efeito P&D | D100: =0.01*D99 -> 2235000 | E100: =E99*1% -> -2487033.217 | F100: <- considerando que diferimento não seja de CDE | Q100: 45413 | R100: 87239.6932 | S100: 0.1978950095
C101: Efeito RI | D101: =H101*D99 -> 0 | E101: =H101*E99 -> 0 | H101: 0 | Q101: 45444 | R101: 70632.0816 | S101: 0.1602222102
C102: Efeito TFSEE | D102: =Encargos!J15*Encargos!J14*D99 -> 768840 | E102: =0.004*E99 -> -994813.2869 | F102: <- considerar se diferimento for de PB | Q102: 45474 | R102: 91455.482 | S102: 0.2074581284
C103: Receita Requerida com diferimento | D103: =D93+D99+D100+D101+D102 -> 7694705235 | E103: =E93+E99+E100+E101 -> 8045774540 | Q103: 45505 | R103: 32504.3036 | S103: 0.07373294464
Q104: 45536 | R104: -145006.6611 | S104: -0.3289339236
D105: 2025 | E105: 2026 | Q105: 45566 | R105: -88888.55881 | S105: -0.2016353055
C106: Efeito médio com diferimento | D106: =D103/D96-1 -> 0.0488212087 | E106: =E103/D103-1 -> 0.04562478933 | G106: Diferença efeito | H106: =E106-D106 -> -0.003196419378 | Q106: 45597 | R106: 92674.01919 | S106: 0.210222265
Q107: 45627 | R107: 121802.9832 | S107: 0.2762985704
M108: Energia | R108: =SUM(R96:R107) -> 440838.2679
M109: Perdas Regulatórias | N109: DRP | O109: DRP +1
M110: PNT | N110: =Energia!I13 -> 0.0753088 | O110: =5.4742%/5.5718%*N110 -> 0.07398963225
C111: Estimativa Efeito (sem diferimento) | D111: 2025 | E111: 2026 (STR) | M111: PT | N111: =Energia!I14 -> 0.08779 | O111: =N111 -> 0.08779 | R111: PLD CCEE (atualização 03/2025) | S111: Proj. de venda de energia no MCP | T111: Projeção de resultado MCP
C112: Parcela A | D112: =Resultado!D39 -> 4809101816 | E112: =E14 -> 5053745772 | M112: P_RB | N112: =Energia!I15 -> 0.01437178401 | O112: 0.01437178401 | Q112: Competência | R112: proj. PLD RNA | S112: MWh | T112: R$
C113: Parcela B | D113: =Resultado!D44 -> 3081195682 | E113: =E38 -> 3181759398 | M113: P_DIT (MWh) | N113: =SUMIFS(TabPerdaDIT[Valor],TabPerdaDIT[Dados de perda],"Perdas DITs") -> 15330.34469 | O113: =N113 -> 15330.34469 | Q113: =EDATE(Q96,12) -> 45658 | R113: 59 | S113: =IF((Energia!$H$24-Energia!$I$24)>0,(Energia!$H$24-Energia!$I$24)*S96,0) -> 138453.4746 | T113: =($N$148-R113)*S113 -> 32355950.27
C114: Financeiros | D114: =D41 -> -422096103.1 | E114: =E41 -> 61459725.52 | Q114: =EDATE(Q113,1) -> 45689 | R114: 93.76 | S114: =IF((Energia!$H$24-Energia!$I$24)>0,(Energia!$H$24-Energia!$I$24)*S97,0) -> 86117.01043 | T114: 17131728.22
C115: Diferimento | D115: 0 | E115: 0 | M115: Informações de mercado para cálculo de perdas | N115: MWh DRP | O115: MWh DRP +1 | Q115: =EDATE(Q114,1) -> 45717 | R115: 224 | S115: =IF((Energia!$H$24-Energia!$I$24)>0,(Energia!$H$24-Energia!$I$24)*S98,0) -> 213024.9971 | T115: 14633852.98
C116: RA1 + Financeiros | D116: =SUBTOTAL(9,D112:D115) -> 7468201395 | E116: =SUBTOTAL(9,E112:E115) -> 8296964895 | M116: Fornecimento | N116: =Energia!I5 -> 2749801.919 | O116: =N116*(1+$D$2) -> 2749801.919 | Q116: 45748 | R116: 167 | S116: =IF((Energia!$H$24-Energia!$I$24)>0,(Energia!$H$24-Energia!$I$24)*S99,0) -> 147768.8059 | T116: 18573869.98
C117: Efeito médio | D117: =D94 -> 0.01794776729 | E117: =E94 -> 0.1109723019 | M117: Suprimento (Mercado TE) | N117: =Energia!D8 -> 0 | O117: =N117*(1+$D$2) -> 0 | Q117: 45778 | R117: 170 | S117: =IF((Energia!$H$24-Energia!$I$24)>0,(Energia!$H$24-Energia!$I$24)*S100,0) -> 286210.0174 | T117: 35116673.53
M118: Suprimento (Mercado TUSD) | N118: =Energia!I6 -> 0 | O118: =N118*(1+$D$3) -> 0 | Q118: 45809 | R118: 203 | S118: =IF((Energia!$H$24-Energia!$I$24)>0,(Energia!$H$24-Energia!$I$24)*S101,0) -> 231724.9014 | T118: 20784674.69
C119: Estimativa Efeito (com diferimento critério 3) | D119: 2025 | E119: 2026 (STR) | M119: Livre Total + Distribuição | N119: =Energia!I7 -> 0 | O119: =N119*(1+$D$3) -> 0 | Q119: 45839 | R119: 234 | S119: =IF((Energia!$H$24-Energia!$I$24)>0,(Energia!$H$24-Energia!$I$24)*S102,0) -> 300040.8889 | T119: 17611041.96
C120: Parcela A | D120: =D14+D100+D101+D102 -> 4812105656 | E120: =E14+E100+E101+E102 -> 5050263925 | M120: A1 | N120: =Energia!I8 -> 0 | O120: =N120*(1+$D$3) -> 0 | Q120: 45870 | R120: 249 | S120: =IF((Energia!$H$24-Energia!$I$24)>0,(Energia!$H$24-Energia!$I$24)*S103,0) -> 106637.8957 | T120: 4659593.314
C121: Parcela B | D121: =D38 -> 3081195682 | E121: =E38 -> 3181759398 | M121: BT | N121: =Energia!I9 -> 0 | O121: =N121*(1+$D$2) -> 0 | Q121: 45901 | R121: 218 | S121: =IF((Energia!$H$24-Energia!$I$24)>0,(Energia!$H$24-Energia!$I$24)*S104,0) -> -475727.9339 | T121: -35534723.15
C122: Financeiros | D122: =D41 -> -422096103.1 | E122: =E41 -> 61459725.52 | M122: GD | N122: =Energia!J5 -> 7295112.652 | O122: =N122*(1+$D$4) -> 7769672.077 | Q122: 45931 | R122: 151 | S122: =IF((Energia!$H$24-Energia!$I$24)>0,(Energia!$H$24-Energia!$I$24)*S105,0) -> -291619.5029 | T122: -41321163.47
C123: Diferimento | D123: =D99 -> 223500000 | E123: =E99 -> -248703321.7 | Q123: 45962 | R123: 66 | S123: =IF((Energia!$H$24-Energia!$I$24)>0,(Energia!$H$24-Energia!$I$24)*S106,0) -> 304038.5824 | T123: 68924170.31
C124: RA1 + Financeiros | D124: =SUM(D120:D123) -> 7694705235 | E124: =SUM(E120:E123) -> 8044779727 | M124: Calculo de perdas | Q124: 45992 | R124: 59 | S124: =IF((Energia!$H$24-Energia!$I$24)>0,(Energia!$H$24-Energia!$I$24)*S107,0) -> 399602.8948 | T124: 93385387.6
C125: Efeito médio | D125: =D106 -> 0.0488212087 | E125: =E106 -> 0.04562478933 | M125: Descrição | N125: DRP | O125: DRP+1 | Q125: Total | S125: =SUM(S113:S124) -> 1446272.032 | T125: =SUM(T113:T124) -> 246321056.3
M126: % Não Técnica (sobre Baixa Tensão) | N126: =N110 -> 0.0753088 | O126: 0.07398963225
M127: % Técnica (sobre energia injetada) | N127: 0.08779 | O127: 0.08779
M128: % Rede Básica (s/ merc. Injetado) | N128: 0.01437178401 | O128: 0.01437178401 | Q128: Tabela de cálculo de fatores de atualização da CVA M2 devido ao desconcatenação
M129: Perda Não Técnica | N129: =N126*$N$121 -> 0 | O129: =O126*$O$121 -> 0 | Q129: Qtd. de meses de desconcatenação (n) | R129: Atualização SELIC (Delta para Saldo a compensar) | S129: somatório da atualização SELIC de "n" deltas consecutivos | T129: Atualização SELIC de "a compensar" para "em processamento" | U129: Fator de cálculo da CVA M2 devido à desconcatenação
M130: Perda Técnica + Perdas DITs | N130: =SUM(N116,N118:N119,-$N$120,N129)/(1-N127)*N127+N134 -> 279967.9944 | O130: =SUM(O116,O118:O119,-$O$120,O129,O122)/(1-O127)*O127+O134 -> 1027711.948
M131: Perda Rede Básica sobre Dist. | N131: =SUM(N129:N130)*N128 -> 4023.639545 | O131: =SUM(O129:O130)*O128 -> 14770.05413
M132: Perda Rede Básica sobre mercado Cat. | N132: =(SUM(N116,-N122)+N117)*N112 -> -65324.2241 | O132: =(SUM(O116,-O122)+O117)*O112 -> -72144.48966 | Q132: 0 | R132: 0 | S132: =SUM($R$132:R132)/12 -> 0 | T132: =IFERROR(PMT($E$8,12,-1)*12,0)-1 -> 0.05908396472 | U132: =(S132)*(1+T132) -> 0
Q133: =Q132+1 -> 1 | R133: =(1+$E$8)^(Q133) -> 1.008943867 | S133: =SUM($R$132:R133)/12 -> 0.0840786556 | T133: =IFERROR(PMT($E$8,12,-1)*12,0)-1 -> 0.05908396472 | U133: =(S133)*(1+T133) -> 0.08904635592
M134: Perdas DIT (sobre mercado) | N134: =SUMIFS(TabPerdaDIT[Valor],TabPerdaDIT[Dados de perda],"Perdas DITs") -> 15330.34469 | O134: =SUMIFS(TabPerdaDIT[Valor],TabPerdaDIT[Dados de perda],"Perdas DITs") -> 15330.34469 | Q134: =Q133+1 -> 2 | R134: 1.017967727 | S134: =SUM($R$132:R134)/12 -> 0.1689092995 | T134: 0.05908396472 | U134: 0.1788891306
M135: Perdas Técnicas (sem dits) | N135: =SUM(N116,N118:N119,-$N$120,N129,N122)/(1-N127)*N127 -> 966710.5712 | O135: =SUM($O$116:$O$119,-$O$120,O129,O122)/(1-O127)*O127 -> 1012381.603 | Q135: 3 | R135: 1.027072295 | S135: =SUM($R$132:R135)/12 -> 0.2544986575 | T135: 0.05908396472 | U135: 0.2695354472
Q136: 4 | R136: 1.036258294 | S136: =SUM($R$132:R136)/12 -> 0.3408535153 | T136: 0.05908396472 | U136: 0.3609924924
M137: Energia Requerida | N137: =N125 -> DRP | O137: =O125 -> DRP+1 | Q137: 5 | R137: 1.04552645 | S137: =SUM($R$132:R137)/12 -> 0.4279807195 | T137: 0.05908396472 | U137: 0.4532675172
M138: =Energia!B6 -> Fornecimento + Suprimento | N138: =N139+N140 -> -4545310.733 | O138: =O139+O140 -> -5019870.158 | Q138: 6 | R138: 1.0548775 | S138: =SUM($R$132:R138)/12 -> 0.5158871778 | T138: 0.05908396472 | U138: 0.5463678376
M139: =Energia!B7 -> Fornecimento | N139: =N116-N122 -> -4545310.733 | O139: =O116-O122 -> -5019870.158 | Q139: 7 | R139: 1.064312184 | S139: =SUM($R$132:R139)/12 -> 0.6045798599 | T139: 0.05908396472 | U139: 0.640300835
M140: =Energia!B8 -> Suprimento (Mercado TE) | N140: =N117 -> 0 | O140: =O117 -> 0 | Q140: 8 | R140: 1.073831251 | S140: =SUM($R$132:R140)/12 -> 0.6940657975 | T140: 0.05908396472 | U140: 0.7350739566
M141: =Energia!B9 -> Perdas Regulatórias | N141: =SUM(N142:N145) -> 218667.4099 | O141: =SUM(O142:O145) -> 970337.5122 | Q141: 9 | R141: 1.083435455 | S141: =SUM($R$132:R141)/12 -> 0.7843520854 | T141: 0.05908396472 | U141: 0.8306947164
M142: =Energia!B10 -> Perda Não Técnica | N142: =N129 -> 0 | O142: 0 | Q142: 10 | R142: 1.093125558 | S142: =SUM($R$132:R142)/12 -> 0.8754458819 | T142: 0.05908396472 | U142: 0.9271706955
M143: =Energia!B11 -> Perda Técnica | N143: 279967.9944 | O143: 1027711.948 | Q143: 11 | R143: 1.102902328 | S143: =SUM($R$132:R143)/12 -> 0.9673544093 | T143: 0.05908396472 | U143: 1.024509543
M144: =Energia!B12 -> Perda Rede Básica sobre Dist. | N144: 4023.639545 | O144: 14770.05413
M145: =Energia!B13 -> Perda Rede Básica sobre mercado Cat. | N145: -65324.2241 | O145: -72144.48966
M146: Energia Requerida | N146: =N138+N141 -> -4326643.323 | O146: =O138+O141 -> -4049532.646
M148: =Energia!B14 -> Custo Médio | N148: =Energia!D14 -> 292.6954732 | O148: =N148*(1+D5) -> 307.4057292
M151: Energia | N151: DRP | O151: DRP +1 | P151: Descasamento CVA (meses) | Q151: Deslta total para estimativa de CVA M2 | R151: Fator de cálculo da CVA M2
M152: =Energia!B21 -> Geração Própria | N152: =Energia!E21 -> 0 | O152: =Energia!F21 -> 0 | P152: 0 | Q152: =O152-N152 -> 0 | R152: =IFERROR(VLOOKUP(P152,$Q$132:$U$143,5),0) -> 0
M153: =Energia!B22 -> Cota Angra I/Angra II | N153: =Energia!E22 -> 79980538.82 | O153: =N153*(1+D5) -> 84000191.68 | P153: =MONTH(LnkTxtDRPData)-1 -> 3 | Q153: =O153-N153 -> 4019652.858 | R153: 0.2695354472
M154: =Energia!B23 -> Cotas Lei n º 12783/2013 | N154: =Energia!E23 -> 212354149.1 | O154: =N154*(1+D5) -> 223026619.8 | P154: =MONTH(LnkTxtDRPData)-1+12-7 -> 8 | Q154: 10672470.76 | R154: 0.7350739566
M155: =Energia!B24 -> Itaipu (tirando as perdas) | N155: =Energia!E24 -> 304294067 | O155: =N155*(1+D5) -> 319587243.8 | P155: =MONTH(LnkTxtDRPData)-1+12-7 -> 8 | Q155: 15293176.74 | R155: 0.7350739566
M156: =Energia!B25 -> PROINFA | N156: =Energia!E25 -> 0 | O156: =Energia!F25 -> 0 | Q156: 0 | R156: 0
M157: =Energia!B26 -> Bilateral | N157: =Energia!E26 -> 618373791.2 | O157: =N157*(1+D4) -> 658600052.8 | Q157: 40226261.69 | R157: 0
M158: CCEAR | N158: =Energia!E28 -> 1321305453 | O158: =N158*(1+D5) -> 1387711472 | P158: 6 | Q158: 66406019.73 | R158: 0.5463678376
M159: Total | N159: =SUM(N152:N158) -> 2536307999 | O159: =SUM(O152:O158) -> 2672925581
M162: Ciclo tarifário (anos) | N162: =VLOOKUP(CAPA!$N$2,N184:P236,3) -> 5 | P162: IPCA ciclo | Q162: =0*VLOOKUP(EDATE(CAPA!C15,12),Índices!$B$8:$F$500,3)/VLOOKUP(EDATE(CAPA!C15,-12*(N162-1)),Índices!$B$8:$F$500,3)-1*0 -> 0
M164: Dados da última revisão tarifária | N164: Última RTP homologada | O164: Última RTP com crescimento de BRR projetado | R164: Crescimento de PB projetado | T164: Estimativa de limites inferiores e superiores (CP 62)
M165: PARCELA B | N165: =SUM(N166:N172) -> 0 | O165: =SUM(O166:O172) ->  | U165: Valor CP 62 (12/2020) | V165: Valor na data da última RTP
M166: Custos Operacionais | O166: =N166*(1-V171) ->  | R166: =O165/N165-1 ->  | U166: 44166 | V166: =DATE(LOOKUP(CAPA!N2,'Previsão DRP+1'!N184:N236,'Previsão DRP+1'!O184:O236),MONTH(LnkTxtDRPData),1) -> 45017
M167: Anuidades | O167: =N167*(1+U175) -> 0 | T167: Limite inferior de CO | U167: =LOOKUP(CAPA!C8,'Previsão DRP+1'!$M$303:$M$354,'Previsão DRP+1'!AW303:AW354)*1000 -> 773440122.3 | V167: =U167*VLOOKUP(EDATE($V$166,-1),Índices!$B$7:$F$500,3)/VLOOKUP($U$166,Índices!$B$7:$F$500,3) -> 919359991.1
M168: Remuneração | O168: =N168*(1+U176) -> 0 | T168: Limite superior de CO | U168: =LOOKUP(CAPA!C8,'Previsão DRP+1'!$M$302:$M$353,'Previsão DRP+1'!AX302:AX353)*1000 -> 812581071.5 | V168: =U168*VLOOKUP(EDATE($V$166,-1),Índices!$B$7:$F$500,3)/VLOOKUP($U$166,Índices!$B$7:$F$500,3) -> 965885406.2
M169: Depreciação | O169: =N169*(1+U177) -> 0
M170: Outras Receitas | O170: =N170 -> 0 | P170: <- supondo manutenção da participação | U170: Atual | V170: Próxima Revisão
M171: Ultrapassagem de Demanda e Excedente Reativo | O171: =N171 -> 0 | P171: <- supondo manutenção da participação | T171: Fator T | U171: =LnkTxtFatorT -> 0.01762 | V171: =-((V168/N166)^(1/5)-1) -> 
M172: Ajuste Investimentos 2CRTP
O174: variação anual média Brasil | P174: =LnkTxtNomeResumido -> EMT | Q174: Média região | R174: Peso Brasil | S174: Peso região | T174: Expectativa de crescimento anual usada na projeção | U174: crescimento real no ciclo, descontada a inflação e variação de mercado
M175: Estimativa de crescimento real de de AIS projetado para o ciclo | O175: =Q295 -> 0.02088112685 | P175: =Q296 -> 0.02082369792 | Q175: =Q297 -> 0.02633441146 | R175: 0.4 | S175: 0.4 | T175: =O175*(R175)+Q175*S175+P175*(1-R175-S175) -> 0.02305095491 | U175: =((1+T175)^$N$162)/(1+$Q$162)-1 -> 0.1206921384
M176: Estimativa de crescimento real de de BRL projetada para o ciclo | O176: =S295 -> 0.04087612112 | P176: =S296 -> 0.04629815234 | Q176: =S297 -> 0.06254659076 | R176: 0.4 | S176: 0.4 | T176: =O176*(R176)+Q176*S176+P176*(1-R176-S176) -> 0.05062871522 | U176: =((1+T176)^$N$162)/(1+$Q$162)-1 -> 0.2801071775
M177: Estimativa de crescimento real de de BRB projetada para o ciclo | O177: =R295 -> 0.02102286384 | P177: =R296 -> 0.02539380761 | Q177: =R297 -> 0.03242488834 | R177: 0.4 | S177: 0.4 | T177: 0.0264578624 | U177: =((1+T177)^$N$162)/(1+$Q$162)-1 -> 0.1394771698
M180: Dados de crescimento de Base de Remuneração das concessionárias observado nas última revisões tarifárias
Q181: Input da última RTP | U181: Inputs da penúltima RTP (Atualizado para data da última RTP) | Y181: Output (última RTP) | Z181: Output (penúltima RTP)
N182: ID Agente | O182: Última RTP | P182: Ciclo | Q182: AIS | R182: BRB | S182: BRL | T182: Número IPCA | U182: AIS | V182: BRB | W182: BRL | X182: Número IPCA | Y182: MWh | Z182: MWh
Q183: 413 | R183: 417 | S183: 426 | U183: 413 | V183: 417 | W183: 426 | Y183: Energia TUSD (Energia Injetada) | Z183: Energia TUSD (Energia Injetada)
M184: Energisa AC | N184: 26 | O184: 2023 | P184: 5 | Q184: 2594685496 | R184: 1426712835 | S184: 1043042084 | T184: 6735.67449 | U184: 1503406817 | V184: 916245625.7 | W184: 596000790.6 | X184: 5468.573472 | Y184: 1232551.137 | Z184: 1097923.064
M185: CEA | N185: 31 | O185: 2023 | P185: 5 | Q185: 2000430775 | R185: 1505040169 | S185: 940690254.7 | T185: 6735.67449 | U185: 0 | V185: 0 | W185: 0 | X185: 5103.69 | Y185: 1130651.722 | Z185: 1056635.607
M186: Energisa TO | N186: 32 | O186: 2020 | P186: 4 | Q186: 4304184896 | R186: 2004739384 | S186: 1370455804 | T186: 5321.21097 | U186: 2893348044 | V186: 1144224633 | W186: 577082363.8 | X186: 4690.658259 | Y186: 2411250.662 | Z186: 2173682.333
M187: Equatorial MA | N187: 37 | O187: 2021 | P187: 4 | Q187: 1.027670243e+10 | R187: 6421994461 | S187: 4365600367 | T187: 5825.37 | U187: 7807568634 | V187: 4921565389 | W187: 3309956657 | X187: 4843.87 | Y187: 6747227.429 | Z187: 6065935.195
M188: Equatorial PI | N188: 38 | O188: 2023 | P188: 5 | Q188: 8472870626 | R188: 4253089915 | S188: 3102549073 | T188: 6737.279791 | U188: 5971799056 | V188: 2701776382 | W188: 1671301647 | X188: 5458.241044 | Y188: 4076370.609 | Z188: 3759074.012
M189: Enel CE | N189: 39 | O189: 2023 | P189: 4 | Q189: 1.528626106e+10 | R189: 1.119043108e+10 | S189: 7196269954 | T189: 6609.67 | U189: 9483557461 | V189: 7023006640 | W189: 4241297386 | X189: 5177.47 | Y189: 12650692.66 | Z189: 12009534.27
M190: Neoenergia RN | N190: 40 | O190: 2023 | P190: 5 | Q190: 5878331727 | R190: 4595044647 | S190: 3448020099 | T190: 6609.67 | U190: 3685461469 | V190: 2553480179 | W190: 1652645302 | X190: 4950.95 | Y190: 5795898.503 | Z190: 5614984.767
M191: Neoenergia PE | N191: 43 | O191: 2021 | P191: 4 | Q191: 1.115947486e+10 | R191: 9229257396 | S191: 5648102700 | T191: 5674.72 | U191: 7812490850 | V191: 6246987221 | W191: 3514868913 | X191: 4821.69 | Y191: 13900820.45 | Z191: 13595445.26
M192: Equatorial AL | N192: 44 | O192: 2024 | P192: 4 | Q192: 5576686378 | R192: 3945212206 | S192: 2567519828 | T192: 6890.262606 | U192: 3521605270 | V192: 2436881793 | W192: 1354070251 | X192: 5354.908188 | Y192: 4359230.405 | Z192: 3868836.446
M193: SULGIPE | N193: 46 | O193: 2022 | P193: 5 | Q193: 507694939.5 | R193: 203597674.9 | S193: 119358174.4 | T193: 6382.88 | U193: 350547134.4 | V193: 130059967.9 | W193: 65142615.76 | X193: 4828.44 | Y193: 491118.552 | Z193: 378578.001
M194: Neoenergia BA | N194: 47 | O194: 2023 | P194: 5 | Q194: 3.717913712e+10 | R194: 2.341301925e+10 | S194: 1.527856881e+10 | T194: 6609.67 | U194: 2.14498354e+10 | V194: 1.289865022e+10 | W194: 7380489706 | X194: 4950.95 | Y194: 21402755.21 | Z194: 19669734.6
M195: DMED | N195: 51 | O195: 2020 | P195: 5 | Q195: 348153464.5 | R195: 281519479.2 | S195: 164414371.2 | T195: 5438.12 | U195: 230544499.4 | V195: 193772671.4 | W195: 116132551.1 | X195: 4370.12 | Y195: 518765.816 | Z195: 458821.905
M196: CPFL Paulista | N196: 63 | O196: 2023 | P196: 5 | Q196: 2.625614469e+10 | R196: 1.561475787e+10 | S196: 1.065095012e+10 | T196: 6611.932056 | U196: 1.68196528e+10 | V196: 9456641504 | W196: 5193307459 | X196: 4957.3823 | Y196: 32262107.43 | Z196: 30306581.27
M197: COCEL | N197: 82 | O197: 2021 | P197: 5 | Q197: 129552036.3 | R197: 71748320 | S197: 37284766.39 | T197: 5739.56 | U197: 114189464 | V197: 57329492.16 | W197: 26243678.5 | X197: 4675.23 | Y197: 338160.023 | Z197: 306407.039
M198: FORCEL | N198: 83 | O198: 2021 | P198: 5 | Q198: 22066531.29 | R198: 10470301.6 | S198: 5317023.08 | T198: 5825.37 | U198: 16816317.9 | V198: 8609643.922 | W198: 4400765.073 | X198: 4708.948883 | Y198: 69512.471 | Z198: 51774.033
M199: EFLUL | N199: 86 | O199: 2021 | P199: 5 | Q199: 20567123.27 | R199: 16877538.1 | S199: 10594113.36 | T199: 5825.37 | U199: 14675089.46 | V199: 12486100.63 | W199: 8284927.174 | X199: 4715.99 | Y199: 110649.2084 | Z199: 96494.43719
M200: DCELT | N200: 87 | O200: 2021 | P200: 5 | Q200: 105412344.7 | R200: 42058097.29 | S200: 25663048.83 | T200: 5825.37 | U200: 76741940.49 | V200: 36253162.68 | W200: 12797981.52 | X200: 4715.99 | Y200: 296436.916 | Z200: 256372.171
M201: EFLJC | N201: 88 | O201: 2021 | P201: 5 | Q201: 5148111.18 | R201: 3994050.815 | S201: 2594388.83 | T201: 5825.37 | U201: 3744235.018 | V201: 2623526.184 | W201: 1744638.842 | X201: 4715.99 | Y201: 20432.079 | Z201: 34086.99
M202: DMEI | N202: 95 | O202: 2022 | P202: 5 | Q202: 61589998.42 | R202: 51694412.97 | S202: 35267315.83 | T202: 6455.85 | U202: 37597626.21 | V202: 32209691.09 | W202: 23198015.64 | X202: 4832.27 | Y202: 147252.389 | Z202: 131774.352
M203: Chesp | N203: 103 | O203: 2021 | P203: 5 | Q203: 133253987.5 | R203: 80103402.17 | S203: 43469116.27 | T203: 5996.816259 | U203: 95372413.91 | V203: 61416181.02 | W203: 32446447.82 | X203: 4752.86 | Y203: 130286.623 | Z203: 116531.444
M204: Energisa RO | N204: 369 | O204: 2023 | P204: 5 | Q204: 6635685007 | R204: 4001750016 | S204: 3004225981 | T204: 6735.67449 | U204: 3541492426 | V204: 2290322789 | W204: 1566904061 | X204: 5468.573472 | Y204: 3775869.774 | Z204: 3365563.29
M205: RR Energia | N205: 370 | O205: 2024 | P205: 5 | Q205: 1599803189 | R205: 965560334.4 | S205: 624847020.2 | T205: 6773.27 | U205: 0 | V205: 0 | W205: 0 | X205: 5236.727328 | Y205: 1276961.038 | Z205: 920955.894
M206: Equatorial PA | N206: 371 | O206: 2023 | P206: 4 | Q206: 1.815635949e+10 | R206: 1.141363098e+10 | S206: 8544987000 | T206: 6667.668882 | U206: 1.087630346e+10 | V206: 6543681324 | W206: 5046755168 | X206: 5225.741394 | Y206: 9950317.274 | Z206: 8495465.93
M207: EDP ES | N207: 380 | O207: 2022 | P207: 3 | Q207: 8988650515 | R207: 5667557648 | S207: 3787333663 | T207: 6418.812789 | U207: 6560437859 | V207: 4197639462 | W207: 2580553609 | X207: 5224.69854 | Y207: 10300975.91 | Z207: 10207294.06
M208: ELFSM | N208: 381 | O208: 2021 | P208: 5 | Q208: 557812640.7 | R208: 340564648.1 | S208: 185602937.8 | T208: 5876.05 | U208: 388321161.3 | V208: 257944648.2 | W208: 144048843.4 | X208: 4715.99 | Y208: 589841.376 | Z208: 558069.54
M209: Light | N209: 382 | O209: 2022 | P209: 5 | Q209: 2.851998942e+10 | R209: 2.128246222e+10 | S209: 1.013338221e+10 | T209: 6215.24 | U209: 2.006851198e+10 | V209: 1.577552016e+10 | W209: 8466650415 | X209: 4814.94294 | Y209: 24487941.61 | Z209: 28517693.06
... 141 more rows

Sheet CAPA
B1: SPARTA | C1: alteração Itens Extraordinarios/códigos pisCofins_05_03_25 | R1: DF | S1: Sudeste/Centro Oeste
B2: Helenístico LX | C2: 0.94 | M2: =C23 -> 117 | N2: =C22 -> 405
C3: Macro Ver.
C4: 81.03
B6: EMT | C6: =VLOOKUP(B6,TabEmpresas[#Data],5,FALSE) -> NÃO SUPRIDA | L6: CodigoSamp | M6: Empresa | N6: Nome Completo | O6: IdSgtAg | P6: CodigoSamp | Q6: Supridora/suprida | R6: Financeiro 243 (TUSD) | S6: Databse Fin. 243 | T6: Contrato de Concessão | U6: Data Aditivo (Cont Novo) | V6: Cidade Sede | W6: CNPJ | X6: Novo/Antigo
B7: =VLOOKUP(B6,TabEmpresas[#Data],2,FALSE) -> Energisa Mato Grosso - Distribuidora de Energia S.A. | C7: Reajuste | G7: Últ. Atualização | L7: 7019 | M7: Amazonas Energia | N7: Amazonas Energia S.A. | O7: 102 | P7: 7019 | Q7: NÃO SUPRIDA | T7: 1/2019 | U7: 42579 | V7: Manaus - AM | W7: 02.341.467/0001-20 | X7: N
B8: CÓDIGO DA EMPRESA | C8: ="D" & TEXT(C23-100,"00") -> D17 | F8: Info iniciais | G8: 2025-03-19T13:40:16 | L8: 31 | M8: CEA | N8: Companhia de Eletricidade do Amapá | O8: 107 | P8: 31 | Q8: NÃO SUPRIDA | T8: 01/2021 | U8: 42606 | V8: Macapá - AP | W8: 05.965.546/0001-09 | X8: N
B9: Data do Reajuste/Revisão Anterior | C9: 45390 | F9: Energia do ano anterior (CM compra, MWh Mercado, R$ Mercado) | L9: 5707 | M9: CEEE-D | N9: Companhia Estadual de Distribuição de Energia Elétrica | O9: 110 | P9: 5707 | Q9: NÃO SUPRIDA | T9: 81/1999 | U9: 42347 | V9: Porto Alegre - RS | W9: 08.467.115/0001-00 | X9: N
B10: Data de Reajuste/Revisão em Processamento | C10: 45755 | F10: Perda de RB /Perdas Regulatórias /TUSDgONS-RB | L10: 5697 | M10: Celesc-Dis | N10: Celesc Distribuição S.A. | O10: 111 | P10: 5697 | Q10: NÃO SUPRIDA | T10: 56/1999 | U10: 42347 | V10: Florianópolis - SC | W10: 08.336.783/0001-90 | X10: N
F11: Financeiros ano anterior (CVA 5º dia útil, RTE restante) | L11: 4950 | M11: Cemig-D | N11: Cemig Distribuição S.A. | O11: 118 | P11: 4950 | Q11: NÃO SUPRIDA | T11: 3/1997 | U11: 42359 | V11: Belo Horizonte - MG | W11: 06.981.180/0001-16 | X11: N
F12: Encargos ano anterior (não RTE) | L12: 103 | M12: CHESP | N12: Companhia Hidroelétrica São Patrício | O12: 123 | P12: 103 | Q12: SUPRIDA | T12: 44/1999 | U12: 42347 | V12: Ceres - GO | W12: 01.377.555/0001-10 | X12: N
F13: Dados da Revisão, Fator X e DecFec | L13: 82 | M13: Cocel | N13: Companhia Campolarguense de Energia | O13: 128 | P13: 82 | Q13: SUPRIDA | T13: 27/1998 | U13: 42347 | V13: Campo Largo - PR | W13: 75.805.895/0001-30 | X13: N
F14: Previsão de Subsidios dos Processos Anteriores | L14: 2904 | M14: Cooperaliança | N14: Cooperativa Aliança | O14: 131 | P14: 2904 | Q14: SUPRIDA | T14: 145/2002 | U14: 42347 | V14: Iraça - SC | W14: 83.647.990/0001-81 | X14: N
B15: Período de Referencia final | C15: =DATE(YEAR($C$10),MONTH($C$10)-1,1) -> 45717 | F15: Conexão ano anterior | L15: 2866 | M15: Copel-Dis | N15: Copel Distribuição S.A. | O15: 132 | P15: 2866 | Q15: NÃO SUPRIDA | T15: 46/1999 | U15: 42347 | V15: Curitiba - PR | W15: 04.368.898/0001-06 | X15: N
B16: Período de Referencia inicial | C16: =DATE(YEAR($C$10)-1,MONTH($C$10),1) -> 45383 | F16: Energia (CCEAR, Bil., Itaipu) | G16: 2025-03-19T13:42:46 | L16: 63 | M16: CPFL Paulista | N16: Companhia Paulista de Força e Luz | O16: 136 | P16: 63 | Q16: NÃO SUPRIDA | T16: 14/1997 | V16: Campinas - SP | W16: 33.050.196/0001-88 | X16: A
B17: Índice IGPM na data Revisão/Reajuste | C17: =VLOOKUP(C15,Índices!$B$7:$F$500,2,FALSE) -> 1217.355 | F17: CCEAR | L17: 2937 | M17: CPFL Piratininga | N17: Companhia Piratininga de Força e Luz | O17: 135 | P17: 2937 | Q17: NÃO SUPRIDA | T17: 9/2002 | V17: Sorocaba - SP | W17: 04.172.213/0001-51 | X17: A
B18: Índice IPCA na data Revisão/Reajuste | C18: =VLOOKUP(C15,Índices!$B$7:$F$500,3,FALSE) -> 7245.43 | L18: 1000041 | M18: CPFL Santa Cruz | N18: Companhia Jaguari de Energia | O18: 166 | P18: 1000041 | Q18: NÃO SUPRIDA | T18: 15/1999 | U18: 42347 | V18: Jaguariúna - SP | W18: 53.859.112/0001-69 | X18: N
B19: IGPM para o período de Referência | C19: =VLOOKUP(DATE(YEAR($C$10),MONTH($C$10)-1,1),Índices!$B$7:$F$500,2,FALSE)/VLOOKUP(DATE(YEAR($C$9),MONTH($C$9)-1,1),Índices!$B$7:$F$500,2,FALSE)-1 -> 0.09293819473 | F19: Itaipu (Energia, Transporte, MUST) | L19: 87 | M19: DCELT | N19: Distribuidora Catarinense de Energia Elétrica Ltda | O19: 158 | P19: 87 | Q19: NÃO SUPRIDA | T19: 50/1999 | U19: 42353 | V19: Xanxerê - SC | W19: 83.855.973/0001-30 | X19: N
B20: IPCA para o período de Referência | C20: =VLOOKUP(DATE(YEAR(C10),MONTH(C10)-1,1),Índices!$B$7:$F$500,3,FALSE)/VLOOKUP(DATE(YEAR($C$9),MONTH($C$9)-1,1),Índices!$B$7:$F$500,3,FALSE)-1 -> 0.0547797832 | F20: Cotas Lei/Angra | L20: 95 | M20: Demei | N20: Departamento Municipal de Energia de Ijuí | O20: 138 | P20: 95 | Q20: SUPRIDA | T20: 85/2000 | U20: 42347 | V20: Ijuí - RS | W20: 95.289.500/0001-00 | X20: N
B21: Dados Gerenciais | F21: Encargos DRP | G21: 2025-03-19T14:04:25 | L21: 51 | M21: DME-D | N21: DME Distribuição S.A. | O21: 139 | P21: 51 | Q21: NÃO SUPRIDA | T21: 49/1999 | U21: 42347 | V21: Poços de Caldas - MG | W21: 23.664.303/0001-04 | X21: N
B22: IdAgente | C22: =VLOOKUP(B6,TabEmpresas[#Data],4,FALSE) -> 405 | F22: Indicadores Econômicos / Dólar | G22: 2025-03-24T17:12:50 | L22: 26 | M22: EAC | N22: Energisa Acre - Distribuidora de Energia S.A | O22: 146 | P22: 26 | Q22: NÃO SUPRIDA | T22: 3/2018 | U22: 42579 | V22: Rio Branco - AC | W22: 04.065.033/0001-70 | X22: N
B23: ID Concessão | C23: =VLOOKUP(B6,TabEmpresas[#Data],3,FALSE) -> 117 | F23: Tudo de Mercado | G23: 2025-03-19T15:37:01 | L23: 6611 | M23: EBO | N23: Energisa Borborema - Distribuidora de Energia S.A | O23: 140 | P23: 6611 | Q23: NÃO SUPRIDA | T23: 8/2000 | V23: Campina Grande - PB | W23: 08.826.596/0001-95 | X23: A
F24: Rede Básica e Conexão | G24: 2025-03-19T14:06:22 | L24: 380 | M24: EDP ES | N24: EDP Espírito Santo Distribuição de Energia S.A. | O24: 154 | P24: 380 | Q24: NÃO SUPRIDA | T24: 1/1995 | V24: Vitória - ES | W24: 28.152.650/0001-71 | X24: A
B25: Quadro para vínculos | F25: Histórico de Tarifas B1 Residencial | L25: 391 | M25: EDP SP | N25: EDP São Paulo Distribuição de Energia S.A. | O25: 104 | P25: 391 | Q25: NÃO SUPRIDA | T25: 202/1998 | V25: São Paulo - SP | W25: 02.302.100/0001-06 | X25: A
B26: Descrição | C26: valor | F26: CVA | G26: 2025-03-24T16:20:14 | H26: CVA D | L26: 86 | M26: EFLUL | N26: Empresa Força e Luz de Urussanga Ltda | O26: 144 | P26: 86 | Q26: SUPRIDA | T26: 25/1999 | U26: 42347 | V26: Urussanga - SC | W26: 86.531.175/0001-40 | X26: N
B27: Tipo de contrato | C27: =IF(VLOOKUP(B6,TabEmpresas[],12,FALSE)="A", "Antigo","Novo") -> Antigo | F27: CUSD | G27: 2025-03-19T14:13:39 | L27: 398 | M27: Eletrocar | N27: Centrais Elétricas de Carazinho S.A. | O27: 147 | P27: 398 | Q27: SUPRIDA | T27: 84/2000 | U27: 42347 | V27: Carazinho - RS | W27: 88.446.034/0001-55 | X27: N
B28: Contrato de concessão | C28: =VLOOKUP(B6,TabEmpresas[],8,FALSE) -> 3/1997 | F28: Suprimento: Financeiro de Ultrapassagem e Sobrecontratação | G28: 2025-03-06T12:25:15 | L28: 6585 | M28: EMG | N28: Energisa Minas Gerais - Distribuidora de Energia S.A. | O28: 150 | P28: 6585 | Q28: NÃO SUPRIDA | T28: 40/1999 | U28: 42347 | V28: Cataguases - MG | W28: 19.527.639/0001-58 | X28: N
B29: Número do Processo | C29: 48500.903319/2024-68 | F29: Uderor - apenas para revisão | G29: 2025-03-06T08:54:10 | L29: 404 | M29: EMS | N29: Energisa Mato Grosso do Sul - Distribuidora de Energia S.A. | O29: 151 | P29: 404 | Q29: NÃO SUPRIDA | T29: 1/1997 | V29: Campo Grande - MS | W29: 15.413.826/0001-50 | X29: A
B30: Período de Referencia | C30: =TEXT(C16,"mmmm/aaaa")& " a "&TEXT(C15,"mmmm/aaaa") -> abril/2024 a março/2025 | F30: RIT/BMP - apenas para revisão | G30: 2025-03-06T08:54:22 | L30: 405 | M30: EMT | N30: Energisa Mato Grosso - Distribuidora de Energia S.A. | O30: 117 | P30: 405 | Q30: NÃO SUPRIDA | T30: 3/1997 | V30: Cuibá - MT | W30: 03.467.321/0001-99 | X30: A
B31: Início da vigênica por extenso | C31: =DAY(LnkTxtDRPData)&" de "&TEXT(LnkTxtDRPData,"mmmmmm")&" de "&YEAR(LnkTxtDRPData) -> 8 de abril de 2025 | F31: Componente Q do Fator X | G31: 2025-03-24T17:12:55 | H31: Atualizados Indicadores comerciais (sem DEC) | L31: 39 | M31: ENEL CE | N31: Companhia Energética do Ceará | O31: 130 | P31: 39 | Q31: NÃO SUPRIDA | T31: 1/1998 | V31: Fortaleza - CE | W31: 07.047.251/0001-70 | X31: A
B32: CNPJ | C32: =VLOOKUP(B6,TabEmpresas[],11,FALSE) -> 03.467.321/0001-99 | F32: Itens extraordinários ren1000/covid/escassez | G32: 2025-03-19T14:55:25 | L32: 6072 | M32: ENEL GO | N32: Enel Distribuição Goiás | O32: 112 | P32: 6072 | Q32: NÃO SUPRIDA | T32: 63/2000 | U32: 42367 | V32: Goiânia - GO | W32: 01.543.032/0001-04 | X32: N
B33: Período de competência de previsão de subsídios | C33: =TEXT(EDATE(Aj.Subsidio!G19,12),"mmmmmm")&"/"&TEXT(EDATE(Aj.Subsidio!G19,12),"aaaa")&" a "&TEXT(EDATE(Aj.Subsidio!R19,12),"mmmmmm")&"/"&TEXT(EDATE(Aj.Subsidio!R19,12),"aaaa") -> abril/2025 a março/2026 | L33: 383 | M33: ENEL RJ | N33: Ampla Energia e Serviços S.A. | O33: 103 | P33: 383 | Q33: NÃO SUPRIDA | T33: 5/1996 | U33: 42808 | V33: Rio de Janeiro - RJ | W33: 33.050.071/0001-58 | X33: N
B34: Período de competência de ajuste de subsídios | C34: =TEXT(Aj.Subsidio!G19,"mmmmmm")&"/"&TEXT(Aj.Subsidio!G19,"aaaa")&" a "&TEXT(Aj.Subsidio!R19,"mmmmmm")&"/"&TEXT(Aj.Subsidio!R19,"aaaa") -> abril/2024 a março/2025 | L34: 390 | M34: ENEL SP | N34: Eletropaulo Metropolitana Eletricidade de São Paulo S.A. | O34: 148 | P34: 390 | Q34: NÃO SUPRIDA | T34: 162/1998 | V34: São Paulo - SP | W34: 61.695.227/0001-93 | X34: A
B35: Cidade Sede | C35: =VLOOKUP(B6,TabEmpresas[],10,FALSE) -> Cuibá - MT | L35: 6612 | M35: ENF | N35: Energisa Nova Friburgo - Distribuidora de Energia S.A. | O35: 152 | P35: 6612 | Q35: SUPRIDA | T35: 42/1999 | U35: 42347 | V35: Nova Friburgo - RJ | W35: 33.249.046/0001-06 | X35: N
B36: Receita | C36: =IF(Mercado!D24>2000000000,ROUND(Mercado!D24/1000000000,2)&" bilhões",IF(Mercado!D24>1000000000,ROUND(Mercado!D24/1000000000,2)&" bilhão",IF(Mercado!D24>100000000,ROUND(Mercado!D24/1000000,0)&" milhões",IF(Mercado!D24>10000000,ROUND(Mercado!D24/1000000,1)&" milhões",IF(Mercado!D24>2000000,ROUND(Mercado!D24/1000000,2)&" milhões",IF(Mercado!D24>1000000,ROUND(Mercado!D24/1000000,2)&" milhão",ROUND(Mercado!D24/1000,0)&" mil")))))) -> 7,51 bilhões | L36: 6600 | M36: EPB | N36: Energisa Paraíba - Distribuidora de Energia S.A. | O36: 153 | P36: 6600 | Q36: NÃO SUPRIDA | T36: 19/2001 | V36: João Pessoa - PB | W36: 09.095.183/0001-40 | X36: A
B37: Unidades Consumidoras | C37: =IF(Mercado!E38>2000000,ROUND(Mercado!E38/1000000,2)&" milhões",IF(Mercado!E38>1000000,ROUND(Mercado!E38/1000000,2)&" milhão",IF(Mercado!E38>100000,ROUND(Mercado!E38/1000,0)&" mil",IF(Mercado!E38>10000,ROUND(Mercado!E38/1000,1)&" mil",IF(Mercado!E38>1000,ROUND(Mercado!E38/1000,2)&" mil",Mercado!E38))))) -> 1,69 milhão | L37: 44 | M37: Equatorial AL | N37: Equatorial Alagoas Distribuidora de Energia S.A. | O37: 108 | P37: 44 | Q37: NÃO SUPRIDA | T37: 2/2019 | U37: 42579 | V37: Maceió - AL | W37: 12.272.084/0001-00 | X37: N
B38: Data SAMP | C38: =TEXT(_xlfn.MAXIFS(Mercado_Receita!K:K,Mercado_Receita!B:B,"regular"),"mmmmmm")&"/"&YEAR(_xlfn.MAXIFS(Mercado_Receita!K:K,Mercado_Receita!B:B,"regular")) -> fevereiro/2025 | L38: 37 | M38: Equatorial MA | N38: Equatorial Maranhão Distribuidora de Energia S.A. | O38: 116 | P38: 37 | Q38: NÃO SUPRIDA | T38: 60/2000 | V38: São Luís - MA | W38: 06.272.793/0001-84 | X38: A
B39: Classificação mercado próprio | C39: >700 | L39: 371 | M39: Equatorial PA | N39: Equatorial Pará Distribuidora de Energia S.A. | O39: 113 | P39: 371 | Q39: NÃO SUPRIDA | T39: 182/1998 | V39: Belém - PA | W39: 04.895.728/0001-80 | X39: A
B40: Data Reunião Pública - RPO | C40: =IF(MOD(LnkTxtDRPData,7)>0,ROUNDDOWN(LnkTxtDRPData/7,0)*7+3,ROUNDDOWN(LnkTxtDRPData/7,0)*7-4)-7 -> 45748 | L40: 38 | M40: Equatorial PI | N40: Equatorial Piauí Distribuidora de Energia S.A. | O40: 119 | P40: 38 | Q40: NÃO SUPRIDA | T40: 1/2018 | U40: 42579 | V40: Teresina - PI | W40: 06.840.748/0001-89 | X40: N
B41: Data limite Atualização Indicadores Econômicos (RPO-8) | C41: =C40-8 -> 45740 | L41: 369 | M41: ERO | N41: Energisa Rondônia - Distribuidora de Energia S.A. | O41: 120 | P41: 369 | Q41: NÃO SUPRIDA | T41: 2/2018 | U41: 42579 | V41: Porto Velho - RO | W41: 05.914.650/0001-66 | X41: N
L42: 6587 | M42: ESE | N42: Energisa Sergipe - Distribuidora de Energia S.A. | O42: 155 | P42: 6587 | Q42: NÃO SUPRIDA | T42: 7/1997 | V42: Aracajú - SE | W42: 13.017.462/0001-63 | X42: A
L43: 1000040 | M43: ESS | N43: Energisa Sul-Sudeste - Distribuidora de Energia S.A. | O43: 165 | P43: 1000040 | Q43: NÃO SUPRIDA | T43: 13/1999 | U43: 42347 | V43: Presidente Prudente - SP | W43: 07.282.377/0001-20 | X43: N
L44: 32 | M44: ETO | N44: Energisa Tocantins Distribuidora de Energia S.A. | O44: 115 | P44: 32 | Q44: NÃO SUPRIDA | T44: 52/1999 | U44: 43805 | V44: Palmas - TO | W44: 25.086.034/0001-71 | X44: N
L45: 83 | M45: Forcel | N45: Força e Luz Coronel Vivida Ltda. | O45: 156 | P45: 83 | Q45: SUPRIDA | T45: 69/1999 | U45: 42347 | V45: Coronel Vivida - PR | W45: 79.850.574/0001-09 | X45: N
L46: 399 | M46: Hidropan | N46: Hidropan Distribuição de Energia S.A. | O46: 157 | P46: 399 | Q46: SUPRIDA | T46: 86/2000 | U46: 42347 | V46: Panambi - RS | W46: 91.982.348/0001-87 | X46: N
B47: Deslocar mercado | C47: Não | L47: 88 | M47: João Cesa | N47: Empresa Força e Luz João Cesa Ltda. | O47: 143 | P47: 88 | Q47: SUPRIDA | T47: 26/1999 | U47: 42347 | V47: Siderópolis - SC | W47: 86.301.124/0001-22 | X47: N
B48: Data de processamento em simulação | C48: 43811 | L48: 382 | M48: Light | N48: Light Serviços de Eletricidade S.A. | O48: 160 | P48: 382 | Q48: NÃO SUPRIDA | T48: 1/1996 | U48: 42803 | V48: Rio de Janeiro - RJ | W48: 60.444.437/0001-46 | X48: N
L49: 401 | M49: Mux Energia | N49: Muxfeldt Marin E Cia Ltda | O49: 161 | P49: 401 | Q49: SUPRIDA | T49: 87/2000 | U49: 42347 | V49: Tapejara - RS | W49: 97.578.090/0001-34 | X49: N
L50: 5160 | M50: Neoenergia Brasília | N50: Neoenergia Distribuição Brasília S.A. | O50: 109 | P50: 5160 | Q50: NÃO SUPRIDA | T50: 66/1999 | U50: 42347 | V50: Brasília - DF | W50: 07.522.669/0001-92 | X50: N
L51: 47 | M51: Neoenergia Coelba | N51: Companhia de Eletricidade do Estado da Bahia | O51: 129 | P51: 47 | Q51: NÃO SUPRIDA | T51: 10/1997 | V51: Salvador - BA | W51: 15.139.629/0001-94 | X51: A
L52: 40 | M52: Neoenergia Cosern | N52: Companhia Energetica do Rio Grande do Norte | O52: 133 | P52: 40 | Q52: NÃO SUPRIDA | T52: 8/1997 | V52: Natal - RN | W52: 08.324.196/0001-81 | X52: A
L53: 385 | M53: Neoenergia Elektro | N53: Elektro Redes S.A. | O53: 145 | P53: 385 | Q53: NÃO SUPRIDA | T53: 187/1998 | V53: Campinas - SP | W53: 02.328.280/0001-97 | X53: A
L54: 43 | M54: Neoenergia Pernambuco | N54: Companhia Energética de Pernambuco | O54: 114 | P54: 43 | Q54: NÃO SUPRIDA | T54: 26/2000 | V54: Recife - PE | W54: 10.835.932/0001-08 | X54: A
L55: 400 | M55: Nova Palma | N55: Nova Palma Energia Ltda. | O55: 164 | P55: 400 | Q55: SUPRIDA | T55: 107/2001 | U55: 42347 | V55: Faxinal do Soturno - RS | W55: 89.889.604/0001-44 | X55: N
L56: 1000042 | M56: RGE | N56: RGE Sul Distribuidora de Energia S.A. | O56: 167 | P56: 1000042 | Q56: NÃO SUPRIDA | T56: 12/1997 | V56: São Leopoldo - RS | W56: 02.016.440/0001-62 | X56: A
L57: 370 | M57: Roraima Energia | N57: Roraima Energia S.A. | O57: 105 | P57: 370 | Q57: NÃO SUPRIDA | T57: 4/2018 | U57: 42579 | V57: Boa Vista - RR | W57: 02.341.470/0001-44 | X57: N
L58: 381 | M58: Santa Maria | N58: Empresa Luz e Força Santa Maria S/A | O58: 149 | P58: 381 | Q58: SUPRIDA | T58: 20/1999 | U58: 42347 | V58: Colatina - ES | W58: 27.485.069/0001-09 | X58: N
L59: 46 | M59: Sulgipe | N59: Companhia Sul Sergipana de Eletricidade | O59: 163 | P59: 46 | Q59: SUPRIDA | T59: 91/1999 | U59: 42347 | V59: Estância - SE | W59: 13.255.658/0001-96 | X59: N

Sheet BD
B1: Banco de Dados | M1: Anexo II | N1: =Resultado!$D$6 -> 0.05076025677
B2: =CAPA!B6 -> EMT | M2: Anexo I | N2: =Resultado!$D$8 -> -0.005450780875
B5: Informações do ano anterior | G5: Dados de abertura (Neutralidade e CVA saldo a compensar) | L5: Dados de Energia | S5: Dados para Revisão | AA5: BMP_RIT | AK5: Avaliação Parcela B
B7: Encargos | G7: Encargo | H7: Valor | I7: Norma | L7: Cotas | M7: Valor da "Cota" | N7: Ano | O7: Custo Médio da Cota | P7: Energia MWh | S7: item | T7: Descrição | U7: Detalhe | V7: Valor | AA7: IDAGENTE | AB7: ANO | AC7: SIGLA | AD7: ContaPrincipal | AE7: ContaDetalhada | AF7: CONTA | AG7: SALDO | AK7: Ano | AL7: DataRevREa | AM7: item | AN7: valor
B8: CDE Covid TE | C8: 32409646.91 | G8: CDE Eletrobras | H8: 0 | I8: Previsão | L8: Angra | M8: 0.02276617 | N8: 2025 | O8: 308.74 | P8: 303189.3034 | AK8: 2024 | AL8: 23474 | AM8: ANEXO II | AN8: -0.01144531433
B9: CDE Covid TUSD | C9: 57167898.97 | G9: CDE | H9: 931193917 | I9: NT 187/2024 - CP 38/2024 | AK9: 2024 | AL9: 23474 | AM9: CONSUMIDOR DISTRIBUIÇÃO | AN9: 5195.64
B10: TFSEE | C10: 11165549.53 | G10: CFURH | AK10: 2024 | AL10: 23474 | AM10: CONSUMIDOR LIVRE | AN10: 2678659.039
B11: CDE | C11: 771866122.7 | D11: USO | G11: PROINFA | H11: 131726974 | I11: REH 3.422/2024 | L11: Ano | M11: Cota Itaipu | AK11: 2024 | AL11: 23474 | AM11: ENCARGO | AN11: 1486226344
B12: ESS/ERR | C12: 167991310.2 | G12: ONS | H12: 230067.84 | I12: Contribuição 2025 | L12: 2022 | M12: 0.027804 | AK12: 2024 | AL12: 23474 | AM12: ENERGIA | AN12: 2643317154
B13: PROINFA | C13: 104062371.4 | G13: ERCAP | H13: 3854276.34 | I13: DSP 3/2025 | L13: 2023 | M13: 0.028807 | AK13: 2024 | AL13: 23474 | AM13: FATOR X | AN13: 0.02553474905
B14: P&D | C14: 62389285.88 | G14: EER | H14: 178351641.4 | I14: DSP 3/2025 | L14: 2024 | M14: 0.03059811765 | AK14: 2024 | AL14: 23474 | AM14: Fornecimento | AN14: 8022228.488
B15: ONS | C15: 215179.7962 | G15: ESS | H15: 3485675.63 | I15: DSP 3/2025 | L15: 2025 | M15: 0.03059171 | AK15: 2024 | AL15: 23474 | AM15: IGPM | AN15: -0.04256811526
B16: CDE Eletrobras | C16: -15219060.91 | G16: TFSEE Fator de Carga | H16: 0.86 | L16: 2026 | M16: 0.03059171 | AK16: 2024 | AL16: 23474 | AM16: IPCA | AN16: 0.03997978969
B17: CDE GD | C17: 54114150.09 | G17: CDE Covid | H17: 0 | I17: Previsão | AK17: 2024 | AL17: 23474 | AM17: Parcela B | AN17: 2804056410
B18: CDE Conta - Escassez Hídrica TUSD | C18: 38036308.86 | G18: CDE Covid TE% | H18: 0.3618054792 | AK18: 2024 | AL18: 23474 | AM18: Revisão ou Reajuste (1-REVI,0-Reaj) | AN18: 0
B19: CDE Conta - Escassez Hídrica TE | C19: 202027580.7 | G19: CDE Covid TUSD% | H19: 0.6381945208 | AK19: 2024 | AL19: 23474 | AM19: SUPRIMENTO (Mercado TUSD) | AN19: 0
G20: CDE Escassez Hidrica | H20: 240063889.6 | I20: DSP 510/2023 | AK20: 2024 | AL20: 23474 | AM20: SUPRIMENTO (via Rede Básica) | AN20: 0
B21: Pmix | C21: 272.7404371 | G21: CDE Escassez Hidr TE% | H21: 0.8415575582 | AK21: 2024 | AL21: 23474 | AM21: TRANSPORTE TERCEIROS | AN21: 592058538.3
B22: PN2024 | C22: 0.066417 | D22: DSP 541/2024 | G22: CDE Escassez Hidr TUSD% | H22: 0.1584424418 | L22: Mês | M22: Potência | N22: Tarifa | O22: Perdas | P22: Energia
B23: PN2025 | C23: 0.064329 | D23: DSP 541/2025 | G23: CDE GD | H23: 54114150.09 | I23: REH 3.426/2024 | L23: 45748 | M23: 301.4813021 | N23: 17.66 | O23: 0.05253790085 | P23: 130303.5264
B24: PT2023 | C24: 0.08779 | D24: DSP 541/2026 | L24: 45778 | M24: 307.599644 | N24: 17.66 | O24: 0.05253790085 | P24: 134646.9773
B25: Perda RB total | C25: 0.01368171852 | G25: Informações de Postergação | L25: 45809 | M25: 311.5765664 | N25: 17.66 | O25: 0.05253790085 | P25: 130303.5264
L26: 45839 | M26: 311.8213 | N26: 17.66 | O26: 0.05253790085 | P26: 134646.9773
B27: CVA RB | C27: 61950838.12 | G27: Tipo | H27: Valor | I27: Coluna1 | L27: 45870 | M27: 299.6457995 | N27: 17.66 | O27: 0.05253790085 | P27: 134646.9773
B28: CVA CDE Covid TUSD | C28: 0.03324993454 | G28: Data Postergada | H28: DtAniversario | I28: 45755 | L28: 45901 | M28: 293.5274574 | N28: 17.66 | O28: 0.05253790085 | P28: 130303.5264
B29: CVA CCC | C29: 0 | G29: Data Anterior | I29: 45755 | L29: 45931 | M29: 278.2316025 | N29: 17.66 | O29: 0.05253790085 | P29: 134646.9773
B30: CVA CDE | C30: 7902424.519 | G30: Diferença de Dias | I30: 0 | L30: 45962 | M30: 275.1724315 | N30: 17.66 | O30: 0.05253790085 | P30: 130303.5264
B31: CVA CFURH | G31: MesesAdin | I31: 0 | L31: 45992 | M31: 270.2777579 | N31: 17.66 | O31: 0.05253790085 | P31: 134646.9773
B32: CVA ESS\ERR | C32: 62598937.51 | G32: Reversão Subvenção CDE | L32: 46023 | M32: 278.8434367 | N32: 17.66 | O32: 0.05253790085 | P32: 134646.9773
B33: CVA PROINFA | C33: -1613365.864 | G33: Data 4CRT | I33: 45024 | L33: 46054 | M33: 278.8434367 | N33: 17.66 | O33: 0.05253790085 | P33: 121616.6247
B34: CVA TRANS. ITAIPU | C34: 17165070.37 | L34: 46082 | M34: 291.0801207 | N34: 17.66 | O34: 0.05253790085 | P34: 134646.9773
B35: CVA ENERGIA | C35: -164218605.3 | G35: Nome | H35: Valor
B36: CVA CDE Covid TE | C36: 0.01885006546 | G36: TUSDg Export DRP | H36: 53422550.86 | L36: Mês | M36: Potência | N36: Tarifa DRA | O36: Tarifa DRP | P36: Colunas1
G37: TUSDg ONS DRP | H37: 3301282.04 | L37: 45383 | M37: 301.5444495 | N37: 16835.23 | O37: 12001.87
G38: TUSDg ONS DRA | H38: 2880614.91 | L38: 45413 | M38: 313.1717342 | N38: 16835.23 | O38: 12001.87
B39: Transporte | G39: TUSDg Export DRA | H39: 44369388.21 | L39: 45444 | M39: 316.2315459 | N39: 16835.23 | O39: 12001.87
B40: Conexao | C40: 16358553.37 | L40: 45474 | M40: 316.2315459 | N40: 16835.23 | O40: 12001.87
L41: 45505 | M41: 303.8087102 | N41: 16835.23 | O41: 12001.87
G42: Fator X | H42: Valor | L42: 45536 | M42: 300.3205247 | N42: 16835.23 | O42: 12001.87
G43: fatorx_t | H43: 0.01762 | L43: 45566 | M43: 287.1633342 | N43: 16835.23 | O43: 12001.87
B44: Mercado | G44: fatorx_pd | H44: 0.00904 | L44: 45597 | M44: 284.4095036 | N44: 16835.23 | O44: 12001.87
B45: RA0_MWh_Tusd | C45: 10706083.17 | L45: 45627 | M45: 279.5138047 | N45: 16835.23 | O45: 12001.87
B46: RA1_R$ | C46: 7525658447 | G46: DecFec Processo Anterior | H46: Valor | L46: 45658 | M46: 278.8434367 | N46: 16835.23 | O46: 12001.87
B47: Proinfa | L47: 45689 | M47: 278.8434367 | N47: 16835.23 | O47: 12001.87
B48: 2025 | C48: 176242.824 | L48: 45717 | M48: 291.0801207 | N48: 16835.23 | O48: 12001.87
B49: Detalhamento de Encargos ESS e CDE
L50: Dado | M50: Valor | N50: Início | O50: Fim
L51: MUST | M51: 7934 | N51: 45108 | O51: 45473
G52: Dados de dólar | H52: Valor | L52: MUST | M52: 6963 | N52: 45474 | O52: 45838
G53: Dólar médio | H53: 5.764915 | L53: Potência Max | M53: 10335 | N53: 45292 | O53: 45657
G54: Data Inicial | H54: 45701 | L54: Potência Max | M54: 10193 | N54: 45658 | O54: 46022
G55: Data Final | H55: 45730
L56: Dados de perda | M56: Valor | O56: Agente | P56: Ressarcimento P&D
B57: Subsídios Concedidos (sem ajuste) | L57: Perdas RB | M57: 122772.0498
B58: Mês de Início | C58: Carga Fonte | D58: Geração | E58: Distribuição | F58: Água, Esgoto e Saneamento | G58: Rural | H58: Irrigante/Aquicultor | I58: SCEE | J58: Lei 14299/20222 | L58: Perdas DITs | M58: 15330.34469
B59: 2024-04-01 | C59: 19313733.84 | D59: 7177526.56 | H59: 5151817.91 | I59: 4263868.31
B65: Data | C65: Tipo | D65: Valor | E65: Valor IGPM | F65: Valor IPCA | G65: EixoRef
B66: =DATE(YEAR(CAPA!C10),MONTH(CAPA!C10),1) -> 2025-04-01 | C66: =IF(CAPA!C7="Revisão",1,0) -> 0 | D66: =Resultado!L11 -> 852.1386183 | E66: =IFERROR(VLOOKUP(EDATE($B66,-1),Índices!$B$6:$F$500,2,FALSE)/VLOOKUP(EDATE(MIN($B$67:$B$81),-1),Índices!$B$6:$F$500,2,FALSE)*VLOOKUP(MIN($B$67:$B$81),$B$67:$D$81,3,FALSE),0) -> 1082.940412 | F66: =IFERROR(VLOOKUP(EDATE($B66,-1),Índices!$B$6:$F$500,3,FALSE)/VLOOKUP(EDATE(MIN($B$67:$B$81),-1),Índices!$B$6:$F$500,3,FALSE)*VLOOKUP(MIN($B$67:$B$81),$B$67:$D$81,3,FALSE),0) -> 890.7769159 | G66: =IF(B66<>"",150+1,"") -> 151 | O66: Data | P66: Fat Bandeiras
B67: 2024-04-01 | C67: 0 | D67: 847.4334432 | O67: 45383 | P67: -13864.95
B68: 2023-04-01 | C68: 1 | D68: 882.9069063 | O68: 45413 | P68: -8059.14
B69: 2022-04-01 | C69: 0 | D69: 825.1224812 | O69: 45444 | P69: -17922.33
B70: 2021-04-01 | D70: 683.5 | O70: 45474 | P70: 4287503.76
B71: 2020-07-01 | C71: COVID | D71: 636.28 | O71: 45505 | P71: 5998361.24
B72: 2019-04-01 | C72: Reajuste | D72: 626.84 | O72: 45536 | P72: 12082655.59
B73: 2018-04-01 | C73: Revisão | D73: 568.25 | O73: 45566 | P73: 41751254.51
B74: 2017-04-01 | C74: Reajuste | D74: 498.27 | O74: 45597 | P74: 34991931.7
B75: 2016-04-01 | C75: Reajuste | D75: 507.65 | O75: 45627 | P75: 6084687.4
B76: 2015-04-01 | C76: Reajuste | D76: 465.2 | O76: 45658 | P76: 43131.43
B77: 2015-03-01 | C77: RTE | D77: 475.73 | O77: 45689 | P77: 43131.43
B78: 2014-04-01 | C78: Reajuste | D78: 381.07 | O78: 45717 | P78: 43131.43
B79: 2013-04-01 | C79: Revisão | D79: 342.82
B80: 2013-01-01 | C80: RTE | D80: 341.87
B81: 2012-04-01 | C81: Reajuste | D81: 423.59
B84: Tabela de Resumo de Montante DRP ano anterior/ Montante Apurado pelo Mercado
B85: detalhe_grupo | C85: GrupoTarifa | D85: tipoBase | E85: tipofatura | F85: ValorCTAnterior_Sum | G85: ValorAnt_Sum | L85: Prcesso Anterior | N85: RTE
L86: MWh | M86: R$ | N86: MWh | O86: R$ | S86: DthEfetivaPagamento | T86: VlrGarantiaFinanceira | V86: Conta Escassez | W86: Valor | X86: Legislacao
I87: BILATERAL | K87: valor | L87: 2311536.4 | M87: 843375898 | S87: 45352 | T87: 53187.24
I88: CCEAR-DISP | J88: Nova | K88: valor | L88: 3589362.863 | M88: 1078737644 | S88: 45383 | T88: 53187.24
I89: CCEAR-QTD | J89: Belo Monte | K89: valor | L89: 3477.754928 | M89: 603160.004 | S89: 45413 | T89: 53187.24
I90: CCEAR-QTD | J90: Existente | K90: valor | L90: 1210.154 | M90: 566009.8462 | S90: 45444 | T90: 53187.24
I91: CCEAR-QTD | J91: Madeira | K91: valor | L91: 9.338312898 | M91: 1634.030199 | S91: 45474 | T91: 55230.55
I92: CCEAR-QTD | J92: Nova | K92: valor | L92: 1047189.819 | M92: 247832645.9 | S92: 45505 | T92: 55230.55
I93: CCEN | K93: valor | L93: 306183.1832 | M93: 108744019.4 | S93: 45536 | T93: 55230.55
I94: CCGF | K94: valor | L94: 1529845.666 | M94: 273023268.3 | S94: 45566 | T94: 55230.55
I95: ITAIPU | K95: valor | L95: 1530823.017 | M95: 313734950.9 | S95: 45597 | T95: 55230.55
I96: PROINFA | K96: valor | L96: 175929.486 | S96: 45627 | T96: 55230.55
I97: SOBRA/EXPOSIÇÃO | K97: valor | L97: -803872.5935 | M97: -223302076.3 | S97: 45658 | T97: 55230.55
S98: 45689 | T98: 32417.61
V105: Empresa | W105: AT | X105: MT | Y105: BT
V106: 167 | W106: 0.02134 | X106: 0.35825 | Y106: 0.62041
V107: 102 | W107: 0.064 | X107: 0.32003 | Y107: 0.61596
V108: 103 | W108: 0.02996 | X108: 0.27106 | Y108: 0.69898
V109: 104 | W109: 0.07171 | X109: 0.2909 | Y109: 0.63739
V110: 105 | W110: 0.00823 | X110: 0.24677 | Y110: 0.745
I111: Agente | J111: idagente | K111: indexador | L111: database | M111: RAP do ciclo | N111: Colunas1 | O111: RAP atualizada | V111: 165 | W111: 0.00795 | X111: 0.22554 | Y111: 0.76651
O112: =M112*VLOOKUP(CAPA!C15,Índices!$B$6:$F$626,IF(BD!K112="IPCA",3,2),FALSE)/VLOOKUP(L112,Índices!$B$6:$F$626,IF(BD!K112="IPCA",3,2),FALSE) ->  | V112: 108 | W112: 0.06098 | X112: 0.1711 | Y112: 0.76792
O113: =M113*VLOOKUP(CAPA!C16,Índices!$B$6:$F$626,IF(BD!K113="IPCA",3,2),FALSE)/VLOOKUP(L113,Índices!$B$6:$F$626,IF(BD!K113="IPCA",3,2),FALSE) ->  | V113: 109 | W113: 0.01034 | X113: 0.24366 | Y113: 0.746
O114: =M114*VLOOKUP(CAPA!C17,Índices!$B$6:$F$626,IF(BD!K114="IPCA",3,2),FALSE)/VLOOKUP(L114,Índices!$B$6:$F$626,IF(BD!K114="IPCA",3,2),FALSE) ->  | V114: 110 | W114: 0.01165 | X114: 0.24322 | Y114: 0.74513
O115: =M115*VLOOKUP(CAPA!C18,Índices!$B$6:$F$626,IF(BD!K115="IPCA",3,2),FALSE)/VLOOKUP(L115,Índices!$B$6:$F$626,IF(BD!K115="IPCA",3,2),FALSE) ->  | V115: 111 | W115: 0.03791 | X115: 0.37961 | Y115: 0.58248
O116: =M116*VLOOKUP(CAPA!C19,Índices!$B$6:$F$626,IF(BD!K116="IPCA",3,2),FALSE)/VLOOKUP(L116,Índices!$B$6:$F$626,IF(BD!K116="IPCA",3,2),FALSE) ->  | V116: 112 | W116: 0.02273 | X116: 0.26361 | Y116: 0.71367
O117: =M117*VLOOKUP(CAPA!C20,Índices!$B$6:$F$626,IF(BD!K117="IPCA",3,2),FALSE)/VLOOKUP(L117,Índices!$B$6:$F$626,IF(BD!K117="IPCA",3,2),FALSE) ->  | V117: 113 | W117: 0.01263 | X117: 0.23345 | Y117: 0.75392
O118: =M118*VLOOKUP(CAPA!C21,Índices!$B$6:$F$626,IF(BD!K118="IPCA",3,2),FALSE)/VLOOKUP(L118,Índices!$B$6:$F$626,IF(BD!K118="IPCA",3,2),FALSE) ->  | V118: 114 | W118: 0.01726 | X118: 0.23794 | Y118: 0.7448
O119: =M119*VLOOKUP(CAPA!C22,Índices!$B$6:$F$626,IF(BD!K119="IPCA",3,2),FALSE)/VLOOKUP(L119,Índices!$B$6:$F$626,IF(BD!K119="IPCA",3,2),FALSE) ->  | V119: 115 | W119: 0.00993 | X119: 0.23087 | Y119: 0.7592
O120: =M120*VLOOKUP(CAPA!C23,Índices!$B$6:$F$626,IF(BD!K120="IPCA",3,2),FALSE)/VLOOKUP(L120,Índices!$B$6:$F$626,IF(BD!K120="IPCA",3,2),FALSE) ->  | S120: iddet1 | T120: valor | V120: 116 | W120: 0.00806 | X120: 0.16835 | Y120: 0.82359
O121: =M121*VLOOKUP(CAPA!C24,Índices!$B$6:$F$626,IF(BD!K121="IPCA",3,2),FALSE)/VLOOKUP(L121,Índices!$B$6:$F$626,IF(BD!K121="IPCA",3,2),FALSE) ->  | S121: 56-Datalimite_D-25 | T121: 45733 | V121: 117 | W121: 0.03028 | X121: 0.29131 | Y121: 0.67841
O122: =M122*VLOOKUP(CAPA!C25,Índices!$B$6:$F$626,IF(BD!K122="IPCA",3,2),FALSE)/VLOOKUP(L122,Índices!$B$6:$F$626,IF(BD!K122="IPCA",3,2),FALSE) ->  | S122: 57-DthEfetivaPagamento | T122: 45705 | V122: 118 | W122: 0.04215 | X122: 0.2081 | Y122: 0.74975
O123: =M123*VLOOKUP(CAPA!C26,Índices!$B$6:$F$626,IF(BD!K123="IPCA",3,2),FALSE)/VLOOKUP(L123,Índices!$B$6:$F$626,IF(BD!K123="IPCA",3,2),FALSE) ->  | S123: 58-DthCompetenciaPagamento | T123: 45658 | V123: 119 | W123: 0.01807 | X123: 0.11713 | Y123: 0.8648
O124: =M124*VLOOKUP(CAPA!C27,Índices!$B$6:$F$626,IF(BD!K124="IPCA",3,2),FALSE)/VLOOKUP(L124,Índices!$B$6:$F$626,IF(BD!K124="IPCA",3,2),FALSE) ->  | V124: 120 | W124: - | X124: 0.17688 | Y124: 0.82312
O125: =M125*VLOOKUP(CAPA!C28,Índices!$B$6:$F$626,IF(BD!K125="IPCA",3,2),FALSE)/VLOOKUP(L125,Índices!$B$6:$F$626,IF(BD!K125="IPCA",3,2),FALSE) ->  | V125: 123 | W125: - | X125: 0.13612 | Y125: 0.86388
O126: =M126*VLOOKUP(CAPA!C29,Índices!$B$6:$F$626,IF(BD!K126="IPCA",3,2),FALSE)/VLOOKUP(L126,Índices!$B$6:$F$626,IF(BD!K126="IPCA",3,2),FALSE) ->  | V126: 166 | W126: 0.04257 | X126: 0.29652 | Y126: 0.66092
O127: =M127*VLOOKUP(CAPA!C30,Índices!$B$6:$F$626,IF(BD!K127="IPCA",3,2),FALSE)/VLOOKUP(L127,Índices!$B$6:$F$626,IF(BD!K127="IPCA",3,2),FALSE) ->  | V127: 128 | W127: - | X127: 0.40427 | Y127: 0.59573
O128: =M128*VLOOKUP(CAPA!C31,Índices!$B$6:$F$626,IF(BD!K128="IPCA",3,2),FALSE)/VLOOKUP(L128,Índices!$B$6:$F$626,IF(BD!K128="IPCA",3,2),FALSE) ->  | V128: 129 | W128: 0.02905 | X128: 0.24895 | Y128: 0.722
O129: =M129*VLOOKUP(CAPA!C32,Índices!$B$6:$F$626,IF(BD!K129="IPCA",3,2),FALSE)/VLOOKUP(L129,Índices!$B$6:$F$626,IF(BD!K129="IPCA",3,2),FALSE) ->  | V129: 130 | W129: 0.0175 | X129: 0.14397 | Y129: 0.83853
O130: =M130*VLOOKUP(CAPA!C33,Índices!$B$6:$F$626,IF(BD!K130="IPCA",3,2),FALSE)/VLOOKUP(L130,Índices!$B$6:$F$626,IF(BD!K130="IPCA",3,2),FALSE) ->  | S130: Nível | T130: Mercado Faturado A-6 | V130: 131 | W130: - | X130: 0.30099 | Y130: 0.69901
O131: =M131*VLOOKUP(CAPA!C34,Índices!$B$6:$F$626,IF(BD!K131="IPCA",3,2),FALSE)/VLOOKUP(L131,Índices!$B$6:$F$626,IF(BD!K131="IPCA",3,2),FALSE) ->  | S131: AT | T131: 617901.165 | V131: 132 | W131: 0.02757 | X131: 0.26424 | Y131: 0.70819
O132: =M132*VLOOKUP(CAPA!C35,Índices!$B$6:$F$626,IF(BD!K132="IPCA",3,2),FALSE)/VLOOKUP(L132,Índices!$B$6:$F$626,IF(BD!K132="IPCA",3,2),FALSE) ->  | S132: BT | T132: 5691720.732 | V132: 133 | W132: 0.01856 | X132: 0.19536 | Y132: 0.78608
S133: MT | T133: 3113569.258 | V133: 135 | W133: 0.04788 | X133: 0.27054 | Y133: 0.68158
V134: 136 | W134: 0.06732 | X134: 0.35547 | Y134: 0.57721
V135: 138 | W135: - | X135: 0.07651 | Y135: 0.92349
V136: 139 | W136: - | X136: 0.35483 | Y136: 0.64517
V137: 140 | W137: 0.01004 | X137: 0.21058 | Y137: 0.77938
V138: 143 | W138: - | X138: 0.20409 | Y138: 0.79591
V139: 144 | W139: - | X139: 0.48131 | Y139: 0.51869
A140: NumBar | B140: Nome Conexão | C140: Tensão | D140: Posto Tarifário | E140: Tarifas RB- DRA | F140: Tarifas RB - DRP | G140: Tarifas FR- DRA | H140: Tarifas FR - DRP | I140: M01 | J140: M02 | K140: M03 | L140: M04 | M140: M05 | N140: M06 | O140: M07 | P140: M08 | Q140: M09 | R140: M10 | S140: M11 | T140: M12 | V140: 145 | W140: 0.03725 | X140: 0.29306 | Y140: 0.66969
A141: 4506 | B141: BARRA PEIXE - 13,8 kV (A) | C141: 13.8 | D141: Ponta | E141: 6130 | F141: 6165 | G141: 5518 | H141: 9086 | I141: 4.1 | J141: 4.1 | K141: 4.1 | L141: 4 | M141: 4 | N141: 4 | O141: 4 | P141: 4 | Q141: 4 | R141: 4 | S141: 4 | T141: 4 | V141: 146 | W141: - | X141: 0.14124 | Y141: 0.85876
A142: 4586 | B142: SINOP - 13,8 kV (A) | C142: 13.8 | D142: Ponta | E142: 5543 | F142: 5573 | G142: 0 | H142: 1110 | I142: 0 | J142: 0 | K142: 0 | L142: 0 | M142: 0 | N142: 0 | O142: 0 | P142: 0 | Q142: 0 | R142: 0 | S142: 0 | T142: 0 | V142: 147 | W142: - | X142: 0.20977 | Y142: 0.79023
A143: 4503 | B143: BARRA PEIXE - 138 kV (A) | C143: 138.0 | D143: Ponta | E143: 6125 | F143: 6161 | G143: 5518 | H143: 9086 | I143: 120 | J143: 120 | K143: 120 | L143: 120 | M143: 120 | N143: 120 | O143: 120 | P143: 120 | Q143: 120 | R143: 130 | S143: 130 | T143: 130 | V143: 148 | W143: 0.03455 | X143: 0.23757 | Y143: 0.72788
A144: 4871 | B144: BRASNORTE - 138 kV (A) | C144: 138.0 | D144: Ponta | E144: 5222 | F144: 5447 | G144: 1020 | H144: 1176 | I144: 36.13 | J144: 36.13 | K144: 36.13 | L144: 35.25 | M144: 35.25 | N144: 35.25 | O144: 35.25 | P144: 35.25 | Q144: 35.25 | R144: 40 | S144: 40 | T144: 40 | V144: 149 | W144: - | X144: 0.17399 | Y144: 0.82601
A145: 4513 | B145: C. MAGALHAES - 138 kV (A) | C145: 138.0 | D145: Ponta | E145: 6133 | F145: 6376 | G145: 20995 | H145: 16494 | I145: 18.5 | J145: 18.5 | K145: 18.5 | L145: 18.5 | M145: 24 | N145: 24 | O145: 24 | P145: 24 | Q145: 24 | R145: 28 | S145: 28 | T145: 28 | V145: 150 | W145: 0.03635 | X145: 0.17413 | Y145: 0.78952
A146: 4683 | B146: CANARANA CMT138kVA | C146: 138.0 | D146: Ponta | E146: 7338 | F146: 7104 | G146: 2667 | H146: 2599 | I146: 82 | J146: 82 | K146: 82 | L146: 82 | M146: 90 | N146: 90 | O146: 90 | P146: 90 | Q146: 90 | R146: 95 | S146: 95 | T146: 95 | V146: 151 | W146: 0.02735 | X146: 0.28351 | Y146: 0.68915
A147: 4533 | B147: COXIPO - 138 kV (A) | C147: 138.0 | D147: Ponta | E147: 6015 | F147: 6154 | G147: 1213 | H147: 2608 | I147: 487 | J147: 487 | K147: 487 | L147: 487 | M147: 530 | N147: 530 | O147: 530 | P147: 530 | Q147: 530 | R147: 576 | S147: 576 | T147: 576 | V147: 152 | W147: 0.00215 | X147: 0.1412 | Y147: 0.85665
A148: 4643 | B148: JACIARA CMT - 138 kV (A) | C148: 138.0 | D148: Ponta | E148: 5993 | F148: 6108 | G148: 20995 | H148: 16494 | I148: 14.86 | J148: 14.86 | K148: 14.86 | L148: 14.86 | M148: 14.86 | N148: 14.86 | O148: 14.86 | P148: 14.86 | Q148: 14.86 | R148: 16 | S148: 16 | T148: 16 | V148: 153 | W148: 0.03606 | X148: 0.17601 | Y148: 0.78793
A149: 4807 | B149: JAURU - 138 kV (A) | C149: 138.0 | D149: Ponta | E149: 5480 | F149: 5759 | G149: 0 | H149: 0 | I149: 0 | J149: 0 | K149: 0 | L149: 0 | M149: 0 | N149: 0 | O149: 0 | P149: 0 | Q149: 0 | R149: 0 | S149: 0 | T149: 0 | V149: 154 | W149: 0.12913 | X149: 0.26626 | Y149: 0.60462
A150: 4870 | B150: JUBA - 138 kV (A) | C150: 138.0 | D150: Ponta | E150: 5335 | F150: 5602 | G150: 3019 | H150: 3649 | I150: 20.5 | J150: 20.5 | K150: 20.5 | L150: 18.45 | M150: 18.45 | N150: 18.45 | O150: 18.45 | P150: 18.45 | Q150: 18.45 | R150: 30 | S150: 30 | T150: 30 | V150: 155 | W150: 0.04008 | X150: 0.23225 | Y150: 0.72768
A151: 4895 | B151: JUINA - 138 kV (A) | C151: 138.0 | D151: Ponta | E151: 5085 | F151: 5329 | G151: 831 | H151: 785 | I151: 41.71 | J151: 41.71 | K151: 41.71 | L151: 40 | M151: 48 | N151: 48 | O151: 48 | P151: 48 | Q151: 48 | R151: 48 | S151: 48 | T151: 48 | V151: 156 | W151: - | X151: 0.35985 | Y151: 0.64015
A152: 4575 | B152: LUCAS R.VERDE - 138 kV (A) | C152: 138.0 | D152: Ponta | E152: 5801 | F152: 5884 | G152: 3661 | H152: 4262 | I152: 66.63 | J152: 66.63 | K152: 66.63 | L152: 62 | M152: 62 | N152: 62 | O152: 62 | P152: 62 | Q152: 62 | R152: 80 | S152: 80 | T152: 80 | V152: 157 | W152: - | X152: 0.15963 | Y152: 0.84037
A153: 4544 | B153: NOBRES - 138 kV (A) | C153: 138.0 | D153: Ponta | E153: 5846 | F153: 6013 | G153: 661 | H153: 658 | I153: 109 | J153: 109 | K153: 109 | L153: 109 | M153: 109 | N153: 109 | O153: 109 | P153: 109 | Q153: 109 | R153: 115 | S153: 115 | T153: 115 | V153: 158 | W153: - | X153: 0.33049 | Y153: 0.66951
A154: 4978 | B154: PARANAITA - 138 kV (A) | C154: 138.0 | D154: Ponta | E154: 5278 | F154: 5307 | G154: 3768 | H154: 3973 | I154: 83.03 | J154: 83.03 | K154: 83.03 | L154: 81 | M154: 81 | N154: 81 | O154: 81 | P154: 81 | Q154: 81 | R154: 90 | S154: 90 | T154: 90 | V154: 160 | W154: 0.1013 | X154: 0.22818 | Y154: 0.67051
A155: 4874 | B155: PARECIS - 138 kV (A) | C155: 138.0 | D155: Ponta | E155: 4753 | F155: 4932 | G155: 0 | H155: 0 | I155: 0 | J155: 0 | K155: 0 | L155: 0 | M155: 0 | N155: 0 | O155: 0 | P155: 0 | Q155: 0 | R155: 0 | S155: 0 | T155: 0 | V155: 161 | W155: - | X155: 0.28355 | Y155: 0.71645
A156: 4613 | B156: PETROVINA - 138 kV (B) | C156: 138.0 | D156: Ponta | E156: 5984 | F156: 6086 | G156: 20995 | H156: 16494 | I156: 11 | J156: 11 | K156: 11 | L156: 11 | M156: 15 | N156: 15 | O156: 15 | P156: 15 | Q156: 15 | R156: 15 | S156: 15 | T156: 15 | V156: 163 | W156: 0.03507 | X156: 0.1664 | Y156: 0.79853
A157: 4623 | B157: RONDONOPOLIS1 - 138 kV (A) | C157: 138.0 | D157: Ponta | E157: 5981 | F157: 6080 | G157: 1304 | H157: 1299 | I157: 276.75 | J157: 276.75 | K157: 276.75 | L157: 270 | M157: 270 | N157: 270 | O157: 270 | P157: 270 | Q157: 270 | R157: 280 | S157: 280 | T157: 280 | V157: 164 | W157: - | X157: 0.12897 | Y157: 0.87103
A158: 6563 | B158: SANT. ARAGUAIA138kVA | C158: 138.0 | D158: Ponta | E158: 8556 | F158: 7825 | G158: 3894 | H158: 3789 | I158: 89.69 | J158: 89.69 | K158: 89.69 | L158: 89.69 | M158: 92 | N158: 92 | O158: 92 | P158: 92 | Q158: 92 | R158: 105 | S158: 105 | T158: 105
A159: 4583 | B159: SINOP - 138 kV (A) | C159: 138.0 | D159: Ponta | E159: 5545 | F159: 5574 | G159: 985 | H159: 1110 | I159: 230 | J159: 230 | K159: 230 | L159: 230 | M159: 230 | N159: 230 | O159: 230 | P159: 230 | Q159: 230 | R159: 270 | S159: 270 | T159: 270
A160: 4712 | B160: VZ.GRANDE CMT - 138 kV (A) | C160: 138.0 | D160: Ponta | E160: 6005 | F160: 6149 | G160: 2956 | H160: 2863 | I160: 266.5 | J160: 266.5 | K160: 266.5 | L160: 260 | M160: 260 | N160: 260 | O160: 260 | P160: 260 | Q160: 260 | R160: 265 | S160: 265 | T160: 265
A161: 4894 | B161: JUINA - 230 kV (A) | C161: 230.0 | D161: Ponta | E161: 5002 | F161: 5257 | G161: 0 | H161: 0 | I161: 16.4 | J161: 16.4 | K161: 16.4 | L161: 16.4 | M161: 16.4 | N161: 16.4 | O161: 16.4 | P161: 16.4 | Q161: 16.4 | R161: 20.5 | S161: 20.5 | T161: 20.5
A162: 4554 | B162: NOVA MUTUM - 69 kV (A) | C162: 69.0 | D162: Ponta | E162: 5480 | F162: 5650 | G162: 2618 | H162: 2407 | I162: 44.08 | J162: 44.08 | K162: 44.08 | L162: 43 | M162: 43 | N162: 43 | O162: 43 | P162: 50 | Q162: 50 | R162: 68 | S162: 68 | T162: 68
A163: 4564 | B163: SORRISO - 69 kV (A) | C163: 69.0 | D163: Ponta | E163: 5619 | F163: 5670 | G163: 2977 | H163: 2803 | I163: 67.65 | J163: 67.65 | K163: 67.65 | L163: 66.75 | M163: 66.75 | N163: 66.75 | O163: 66.75 | P163: 66.75 | Q163: 66.75 | R163: 75 | S163: 75 | T163: 75 | V163: Tab_EnergiaConsumidaMWh
A164: 4506 | B164: BARRA PEIXE - 13,8 kV (A) | C164: 13.8 | D164: Fora Ponta | E164: 6026 | F164: 6235 | G164: 5518 | H164: 9086 | I164: 4.1 | J164: 4.1 | K164: 4.1 | L164: 4 | M164: 4 | N164: 4 | O164: 4 | P164: 4 | Q164: 4 | R164: 4 | S164: 4 | T164: 4 | V164: Competencia | W164: EnergiaConsumidaMWh | X164: EnergiaFaturadaMWh | Y164: Dif_Consumida_FaturadaMWh
A165: 4586 | B165: SINOP - 13,8 kV (A) | C165: 13.8 | D165: Fora Ponta | E165: 5435 | F165: 5644 | G165: 0 | H165: 1110 | I165: 0 | J165: 0 | K165: 0 | L165: 0 | M165: 0 | N165: 0 | O165: 0 | P165: 0 | Q165: 0 | R165: 0 | S165: 0 | T165: 0 | V165: 45383 | W165: 258881.356 | X165: 94715.721 | Y165: 164165.635
A166: 4503 | B166: BARRA PEIXE - 138 kV (A) | C166: 138.0 | D166: Fora Ponta | E166: 6020 | F166: 6231 | G166: 5518 | H166: 9086 | I166: 120 | J166: 120 | K166: 120 | L166: 120 | M166: 120 | N166: 120 | O166: 120 | P166: 120 | Q166: 120 | R166: 144 | S166: 144 | T166: 144 | V166: 45413 | W166: 259097.548 | X166: 95110.614 | Y166: 163986.934
A167: 4871 | B167: BRASNORTE - 138 kV (A) | C167: 138.0 | D167: Fora Ponta | E167: 5093 | F167: 5552 | G167: 1020 | H167: 1176 | I167: 49.2 | J167: 49.2 | K167: 49.2 | L167: 48 | M167: 48 | N167: 48 | O167: 48 | P167: 48 | Q167: 48 | R167: 60 | S167: 60 | T167: 60 | V167: 45444 | W167: 230144.818 | X167: 81904.796 | Y167: 148240.022
A168: 4513 | B168: C. MAGALHAES - 138 kV (A) | C168: 138.0 | D168: Fora Ponta | E168: 6055 | F168: 6408 | G168: 20995 | H168: 16494 | I168: 18.5 | J168: 18.5 | K168: 18.5 | L168: 18.5 | M168: 24 | N168: 24 | O168: 24 | P168: 24 | Q168: 24 | R168: 28 | S168: 28 | T168: 28 | V168: 45474 | W168: 249930.916 | X168: 91552.13 | Y168: 158378.786
A169: 4683 | B169: CANARANA CMT138kVA | C169: 138.0 | D169: Fora Ponta | E169: 7365 | F169: 7273 | G169: 2667 | H169: 2599 | I169: 95 | J169: 95 | K169: 95 | L169: 95 | M169: 95 | N169: 95 | O169: 95 | P169: 95 | Q169: 95 | R169: 100 | S169: 100 | T169: 100 | V169: 45505 | W169: 279169.346 | X169: 96382.139 | Y169: 182787.207
A170: 4533 | B170: COXIPO - 138 kV (A) | C170: 138.0 | D170: Fora Ponta | E170: 5949 | F170: 6300 | G170: 1213 | H170: 2608 | I170: 580 | J170: 580 | K170: 580 | L170: 580 | M170: 600 | N170: 600 | O170: 600 | P170: 600 | Q170: 600 | R170: 630 | S170: 630 | T170: 630 | V170: 45536 | W170: 307570.425 | X170: 107063.333 | Y170: 200507.092
A171: 4643 | B171: JACIARA CMT - 138 kV (A) | C171: 138.0 | D171: Fora Ponta | E171: 5922 | F171: 6252 | G171: 20995 | H171: 16494 | I171: 17.43 | J171: 17.43 | K171: 17.43 | L171: 17.43 | M171: 17.43 | N171: 17.43 | O171: 17.43 | P171: 17.43 | Q171: 17.43 | R171: 18 | S171: 18 | T171: 18 | V171: 45566 | W171: 351060.07 | X171: 137497.99 | Y171: 213562.08
A172: 4807 | B172: JAURU - 138 kV (A) | C172: 138.0 | D172: Fora Ponta | E172: 5291 | F172: 5784 | G172: 0 | H172: 0 | I172: 0 | J172: 0 | K172: 0 | L172: 0 | M172: 0 | N172: 0 | O172: 0 | P172: 0 | Q172: 0 | R172: 0 | S172: 0 | T172: 0 | V172: 45597 | W172: 316985.151 | X172: 117016.9 | Y172: 199968.251
A173: 4870 | B173: JUBA - 138 kV (A) | C173: 138.0 | D173: Fora Ponta | E173: 5164 | F173: 5653 | G173: 3019 | H173: 3649 | I173: 30.75 | J173: 30.75 | K173: 30.75 | L173: 27.68 | M173: 27.68 | N173: 27.68 | O173: 27.68 | P173: 27.68 | Q173: 27.68 | R173: 50 | S173: 50 | T173: 50 | V173: 45627 | W173: 280329.286 | X173: 93971.319 | Y173: 186357.967
A174: 4895 | B174: JUINA - 138 kV (A) | C174: 138.0 | D174: Fora Ponta | E174: 4945 | F174: 5432 | G174: 831 | H174: 785 | I174: 59 | J174: 59 | K174: 59 | L174: 59 | M174: 59 | N174: 59 | O174: 59 | P174: 59 | Q174: 59 | R174: 59 | S174: 59 | T174: 59 | V174: 45658 | W174: 272054.511 | X174: 86531.576 | Y174: 185522.935
A175: 4575 | B175: LUCAS R.VERDE - 138 kV (A) | C175: 138.0 | D175: Fora Ponta | E175: 5813 | F175: 6103 | G175: 3661 | H175: 4262 | I175: 80.98 | J175: 80.98 | K175: 80.98 | L175: 79 | M175: 79 | N175: 79 | O175: 79 | P175: 79 | Q175: 79 | R175: 95 | S175: 95 | T175: 95 | V175: 45689 | W175: 280814.2 | X175: 83179.94 | Y175: 197634.26
A176: 4544 | B176: NOBRES - 138 kV (A) | C176: 138.0 | D176: Fora Ponta | E176: 5778 | F176: 6163 | G176: 661 | H176: 658 | I176: 137 | J176: 137 | K176: 137 | L176: 137 | M176: 137 | N176: 137 | O176: 137 | P176: 137 | Q176: 137 | R176: 145 | S176: 145 | T176: 145 | V176: 45717 | W176: 280814.2 | X176: 83179.94 | Y176: 197634.26
A177: 4978 | B177: PARANAITA - 138 kV (A) | C177: 138.0 | D177: Fora Ponta | E177: 5096 | F177: 5304 | G177: 3768 | H177: 3973 | I177: 100.45 | J177: 100.45 | K177: 100.45 | L177: 98 | M177: 98 | N177: 98 | O177: 98 | P177: 98 | Q177: 98 | R177: 115 | S177: 115 | T177: 115
A178: 4874 | B178: PARECIS - 138 kV (A) | C178: 138.0 | D178: Fora Ponta | E178: 4564 | F178: 4979 | G178: 0 | H178: 0 | I178: 0 | J178: 0 | K178: 0 | L178: 0 | M178: 0 | N178: 0 | O178: 0 | P178: 0 | Q178: 0 | R178: 0 | S178: 0 | T178: 0
A179: 4613 | B179: PETROVINA - 138 kV (B) | C179: 138.0 | D179: Fora Ponta | E179: 5910 | F179: 6227 | G179: 20995 | H179: 16494 | I179: 12.5 | J179: 12.5 | K179: 12.5 | L179: 12.5 | M179: 18 | N179: 18 | O179: 18 | P179: 18 | Q179: 18 | R179: 20 | S179: 20 | T179: 20
A180: 4623 | B180: RONDONOPOLIS1 - 138 kV (A) | C180: 138.0 | D180: Fora Ponta | E180: 5907 | F180: 6224 | G180: 1304 | H180: 1299 | I180: 320 | J180: 320 | K180: 320 | L180: 320 | M180: 320 | N180: 320 | O180: 320 | P180: 320 | Q180: 320 | R180: 340 | S180: 340 | T180: 340
A181: 6563 | B181: SANT. ARAGUAIA138kVA | C181: 138.0 | D181: Fora Ponta | E181: 8579 | F181: 7882 | G181: 3894 | H181: 3789 | I181: 95.63 | J181: 95.63 | K181: 95.63 | L181: 95.63 | M181: 95.63 | N181: 95.63 | O181: 95.63 | P181: 95.63 | Q181: 95.63 | R181: 105 | S181: 105 | T181: 105
A182: 4583 | B182: SINOP - 138 kV (A) | C182: 138.0 | D182: Fora Ponta | E182: 5437 | F182: 5645 | G182: 985 | H182: 1110 | I182: 280 | J182: 280 | K182: 280 | L182: 280 | M182: 280 | N182: 280 | O182: 280 | P182: 280 | Q182: 280 | R182: 292 | S182: 292 | T182: 292
A183: 4712 | B183: VZ.GRANDE CMT - 138 kV (A) | C183: 138.0 | D183: Fora Ponta | E183: 5937 | F183: 6294 | G183: 2956 | H183: 2863 | I183: 276.75 | J183: 276.75 | K183: 276.75 | L183: 270 | M183: 270 | N183: 270 | O183: 270 | P183: 270 | Q183: 270 | R183: 280 | S183: 280 | T183: 280
A184: 4894 | B184: JUINA - 230 kV (A) | C184: 230.0 | D184: Fora Ponta | E184: 4855 | F184: 5359 | G184: 0 | H184: 0 | I184: 19 | J184: 19 | K184: 19 | L184: 19 | M184: 19 | N184: 19 | O184: 19 | P184: 19 | Q184: 19 | R184: 21 | S184: 21 | T184: 21
A185: 4554 | B185: NOVA MUTUM - 69 kV (A) | C185: 69.0 | D185: Fora Ponta | E185: 5419 | F185: 5818 | G185: 2618 | H185: 2407 | I185: 80 | J185: 80 | K185: 80 | L185: 80 | M185: 80 | N185: 80 | O185: 80 | P185: 90 | Q185: 90 | R185: 92 | S185: 92 | T185: 92
A186: 4564 | B186: SORRISO - 69 kV (A) | C186: 69.0 | D186: Fora Ponta | E186: 5553 | F186: 5795 | G186: 2977 | H186: 2803 | I186: 86 | J186: 86 | K186: 86 | L186: 86 | M186: 86 | N186: 86 | O186: 86 | P186: 86 | Q186: 86 | R186: 86 | S186: 86 | T186: 86
B469: Transmissora | C469: Indice de atualização | D469: ENCARGO DE CONEXÃO repassável | E469: Instalações com Estabelecimento de RAP que entraram em operação | F469: PA para repasse a tarifa | G469: PA Qualidade DIT | H469: ENCARGO DE CONEXÃO ou PA não rapassável a tarifa (REN 67/2004 ou 68/2004) | I469: PA Empreendimento Autorizado sem estabelecimento prévio de RAP | J469: Contrato | K469: Razão Social Transmissora
B470: BRASNORTE | C470: IPCA | D470: 156608.42 | E470: 0 | F470: -12699.91 | G470: 0 | H470: 0 | I470: 0 | J470: 003/2008 | K470: BRASNORTE TRANSMISSORA DE ENERGIA S/A - BRASNORTE (Contrato nº 003/2008 )
B471: ELETRONORTE | C471: IPCA | D471: 943692.91 | E471: 0 | F471: 0 | G471: 0 | H471: 0 | I471: 0 | J471: 004/2011 | K471: CENTRAIS ELÉTRICAS DO NORTE DO BRASIL S/A - ELETRONORTE (Contrato nº 004/2011 )
B472: EBTE | C472: IPCA | D472: 213094.71 | E472: 0 | F472: 0 | G472: 0 | H472: 0 | I472: 0 | J472: 011/2008 | K472: EBTE - EMPRESA BRASILEIRA DE TRANSMISSAO DE ENERGIA S.A. - EBTE (Contrato nº 011/2008 )
B473: ELETRONORTE | C473: IPCA | D473: 423462.51 | E473: 0 | F473: 0 | G473: 0 | H473: 0 | I473: 0 | J473: 013/2011 | K473: CENTRAIS ELÉTRICAS DO NORTE DO BRASIL S/A - ELETRONORTE (Contrato nº 013/2011 )
B474: CANARANA | C474: IPCA | D474: 2753859.39 | E474: 0 | F474: 0 | G474: 0 | H474: 0 | I474: 0 | J474: 016/2016 | K474: CANARANA TRANSMISSORA DE ENERGIA S.A. - CANARANA (Contrato nº 016/2016 )
B475: ETVG | C475: IPCA | D475: 1454271.42 | E475: 0 | F475: -462015.54 | G475: 0 | H475: 0 | I475: 0 | J475: 018/2010 | K475: EMPRESA DE TRANSMISSAO DE VARZEA GRANDE S.A. - ETVG - ETVG (Contrato nº 018/2010 )
B476: PARANAÍTA | C476: IPCA | D476: 1544318.37 | E476: 0 | F476: 0 | G476: 0 | H476: 0 | I476: 0 | J476: 022/2016 | K476: ENERGISA PARANAITA TRANSMISSORA DE ENERGIA S.A. - PARANAITA (Contrato nº 022/2016 )
B477: ENERGISA PARÁ I | C477: IPCA | D477: 1385288.2 | E477: 0 | F477: -51940.91 | G477: 0 | H477: 0 | I477: 0 | J477: 043/2017 | K477: ENERGISA PARA TRANSMISSORA DE ENERGIA I S.A. - PARÁ I (Contrato nº 043/2017 )
B478: ELETRONORTE | C478: IPCA | D478: 4845270.77 | E478: 0 | F478: -1744212.64 | G478: 0 | H478: 0 | I478: 0 | J478: 058/2001 | K478: CENTRAIS ELÉTRICAS DO NORTE DO BRASIL S/A - ELETRONORTE (Contrato nº 058/2001 )
B497: Empresa | C497: idsgtag | D497: dtConv | E497: VlrMontante | F497: VlrTarOutros | G497: VlrTarB4a | H497: VlrTarB4b
B498: EMT - ENERGISA MT | C498: 117 | D498: 20552 | E498: 248358.477 | F498: 0.03542204225 | G498: 0.01948212324 | H498: 0.02125322535
C499: 117 | F499: 1.38 | G499: 0.76 | H499: 0.83
B504: Tabela de Financeiros para o cálculo da Neutralidade | G504: Tabela para o cálculo da Neutralidade de RB | M504: Tabela de Financeiros para o cálculo da Neutralidade CVA processamento
B505: Grupo Tarifa | C505: Detalhe Grupo | D505: Valor | E505: Percentual | G505: Tipo | H505: Detalhe | I505: Posto | J505: Unidade | K505: Valor | M505: Grupo Tarifa | N505: Detalhe Grupo | O505: Valor | P505: Percentual
B506: ENCARGO | C506: CDE | D506: -72349995.3 | G506: CUSTO | H506: CONEXÃO D | I506: Não se aplica | J506: R$ | K506: 0 | M506: ENCARGO | N506: CDE | O506: 8318792.878
B507: ENCARGO | C507: CDE Covid TE | D507: -4301874.936 | G507: CUSTO | H507: CONEXÃO T | I507: Não se aplica | J507: R$ | K507: 16358553.37 | M507: ENCARGO | N507: ESS/ERR | O507: 65897193.24
B508: ENCARGO | C508: CDE Covid TUSD | D508: -25582782.46 | G508: CUSTO | H508: EUSD | I508: Não se aplica | J508: R$ | K508: 1666473.241 | M508: ENCARGO | N508: PROINFA | O508: -1698371.991
B509: ENCARGO | C509: CDE Eletrobras | D509: 3483993.72 | G509: CUSTO | H509: EUST - CI | I509: Não se aplica | J509: R$ | K509: 1e-06 | M509: ENERGIA | N509: ENERGIA REQUERIDA SEM PERDAS | O509: -141109325.1
B510: ENCARGO | C510: CDE GD | D510: -3726096.569 | G510: CUSTO | H510: EUST - FR | I510: Não se aplica | J510: R$ | K510: 129533046.7 | M510: ENERGIA | N510: PERDAS NA RB (sobre as perdas na D) | O510: -402632.347
B511: ENCARGO | C511: ESS/ERR | D511: -3560458.582 | G511: CUSTO | H511: EUST - ITAIPU | I511: Não se aplica | J511: R$ | K511: 29238500.59 | M511: ENERGIA | N511: PERDAS NA RB (sobre o mercado cativo) | O511: -1930618.066
B512: ENCARGO | C512: ONS | D512: -22370.30551 | G512: CUSTO | H512: EUST - RB | I512: Não se aplica | J512: R$ | K512: 309342711.5 | M512: ENERGIA | N512: PERDAS NÃO TÉCNICAS | O512: -7342558.352
B513: ENCARGO | C513: PROINFA | D513: -9897669.36 | G513: CUSTO | H513: TRANSPORTE ITAIPU | I513: Não se aplica | J513: R$ | K513: 58669249.83 | M513: ENERGIA | N513: PERDAS TÉCNICAS | O513: -22085933.87
B514: ENCARGO | C514: TFSEE | D514: -793880.6451 | G514: CUSTO | H514: TUSDg ONS (A2) | I514: Não se aplica | J514: R$ | K514: 2880614.91 | M514: TRANSPORTE TERCEIROS | N514: EUST - RB | O514: 65214946.34
B515: ENERGIA | C515: ENERGIA REQUERIDA SEM PERDAS | D515: 175863379.3 | G515: CUSTO | H515: TUSDg T (A2) | I515: Não se aplica | J515: R$ | K515: 44369388.21 | M515: TRANSPORTE TERCEIROS | N515: TRANSPORTE ITAIPU | O515: 18069475.37
B516: ENERGIA | C516: PERDAS NA RB (sobre as perdas na D) | D516: 603013.9067 | G516: PARÂMETRO | H516: EUST - FR | I516: FORA PONTA | J516: R$ | K516: 68689899.36 | M516: ENCARGO | N516: CDE Covid TE | O516: 0.01982694026
B517: ENERGIA | C517: PERDAS NA RB (sobre o mercado cativo) | D517: 2609451.743 | G517: PARÂMETRO | H517: EUST - FR | I517: PONTA | J517: R$ | K517: 60843147.3 | M517: ENCARGO | N517: CDE Covid TUSD | O517: 0.03497305974
B518: ENERGIA | C518: PERDAS NÃO TÉCNICAS | D518: 9305240.74 | G518: PARÂMETRO | H518: EUST - RB | I518: FORA PONTA | J518: R$ | K518: 164946480.4
B519: ENERGIA | C519: PERDAS TÉCNICAS | D519: 26668787.41 | G519: PARÂMETRO | H519: EUST - RB | I519: PONTA | J519: R$ | K519: 144396231.2
B520: TRANSPORTE TERCEIROS | C520: EUSD | D520: -393996.6877 | G520: PARÂMETRO | H520: Não se aplica | I520: FORA PONTA | J520: MW | K520: 27919.83
... 9 more rows

Sheet BD_Uderor
K1: Número de lançamentos por item e por competência
A2: Dados SAMP Opção:Cativo Classe:Industrial | K2: Descrição | L2: =EDATE(M2,1) -> 1900-06-28 | M2: 1900-05-28 | N2: 1900-04-28 | O2: 1900-03-28 | P2: 1900-02-28 | Q2: =EDATE(R2,1) -> 1900-01-31 | R2: =Entrada!R5 -> 00:00:00 | S2: =EDATE(R2,-1) ->  | AA2: =EDATE(Z2,-1) ->  | BA2: =EDATE(AZ2,-1) ->  | BG2: =EDATE(BF2,-1) -> 
A3: Competencia | B3: COFINS (R$) | C3: ICMS (R$) | D3: PIS/PASEP (R$) | E3: Receita Bandeiras (R$) | F3: Receita Demanda (R$) | G3: Receita Energia (R$) | H3: PIS_Cofins_% | I3: ICMS_% | K3: =Entrada!P8 -> Serviços Cobráveis | L3: =IF(COUNTIFS($C$82:$C$200000,$K3,$H$82:$H$200000,L$2)=0,"",COUNTIFS($C$82:$C$200000,$K3,$H$82:$H$200000,L$2)) ->  | V3: =IF(COUNTIFS($C$82:$C$200000,$K3,$H$82:$H$200000,V$2)=0,"",COUNTIFS($C$82:$C$200000,$K3,$H$82:$H$200000,V$2)) ->  | AF3: =IF(COUNTIFS($C$82:$C$200000,$K3,$H$82:$H$200000,AF$2)=0,"",COUNTIFS($C$82:$C$200000,$K3,$H$82:$H$200000,AF$2)) ->  | AP3: =IF(COUNTIFS($C$82:$C$200000,$K3,$H$82:$H$200000,AP$2)=0,"",COUNTIFS($C$82:$C$200000,$K3,$H$82:$H$200000,AP$2)) ->  | AZ3: =IF(COUNTIFS($C$82:$C$200000,$K3,$H$82:$H$200000,AZ$2)=0,"",COUNTIFS($C$82:$C$200000,$K3,$H$82:$H$200000,AZ$2)) ->  | BJ3: =IF(COUNTIFS($C$82:$C$200000,$K3,$H$82:$H$200000,BJ$2)=0,"",COUNTIFS($C$82:$C$200000,$K3,$H$82:$H$200000,BJ$2)) -> 
K4: =Entrada!P9 -> Arrecadação de convênios ou valores pela fatura
K5: =Entrada!P10 -> Arrecadação de faturas de terceiros por estrutura própria
K6: =Entrada!P11 -> Veiculação de publicidade
K7: =Entrada!P12 -> Aluguel ou cessão onerosa de imóveis e espaços físicos
K8: =Entrada!P13 -> Compartilhamento de infraestrutura
K9: =Entrada!P14 -> Serviços de avaliação técnica e aferição de medidores.
K10: =Entrada!P15 -> Operacionalização de serviço de créditos tributários
K11: =Entrada!P16 -> Elaboração de projeto, construção, operação, manutenção ou reforma de:
K12: =Entrada!P17 -> (1) redes de distribuição de energia elétrica destinadas à regularização fundiária de interesse específico e ao atendimento dos empreendimentos de múltiplas unidades consumidoras; | L12: =IF(COUNTIFS($C$82:$C$200000,$K12,$H$82:$H$200000,L$2)=0,"",COUNTIFS($C$82:$C$200000,$K12,$H$82:$H$200000,L$2)) ->  | V12: =IF(COUNTIFS($C$82:$C$200000,$K12,$H$82:$H$200000,V$2)=0,"",COUNTIFS($C$82:$C$200000,$K12,$H$82:$H$200000,V$2)) ->  | AF12: =IF(COUNTIFS($C$82:$C$200000,$K12,$H$82:$H$200000,AF$2)=0,"",COUNTIFS($C$82:$C$200000,$K12,$H$82:$H$200000,AF$2)) ->  | AP12: =IF(COUNTIFS($C$82:$C$200000,$K12,$H$82:$H$200000,AP$2)=0,"",COUNTIFS($C$82:$C$200000,$K12,$H$82:$H$200000,AP$2)) ->  | AZ12: =IF(COUNTIFS($C$82:$C$200000,$K12,$H$82:$H$200000,AZ$2)=0,"",COUNTIFS($C$82:$C$200000,$K12,$H$82:$H$200000,AZ$2)) ->  | BJ12: =IF(COUNTIFS($C$82:$C$200000,$K12,$H$82:$H$200000,BJ$2)=0,"",COUNTIFS($C$82:$C$200000,$K12,$H$82:$H$200000,BJ$2)) -> 
K13: =Entrada!P18 -> (2) redes de energia elétrica destinadas ao acesso dos sistemas de distribuição ou transmissão;
K14: =Entrada!P19 -> (3) subestações de energia;
K15: =Entrada!P20 -> (4) instalações elétricas internas de unidades consumidoras;
K16: =Entrada!P21 -> (5) banco de capacitores;
K17: =Entrada!P22 -> (6) padrões de entrada de unidades consumidoras atendidas em baixa tensão;
K18: =Entrada!P23 -> (7) sistemas de medição de energia elétrica;
K19: =Entrada!P24 -> (8) geradores, incluindo-se unidades de microgeração e minigeração distribuída;
K20: =Entrada!P25 -> (9) sistemas de iluminação pública.
K21: =Entrada!P26 -> (10) estações de recarga de veículos elétricos, incluindo a prestação de serviços aos usuários
K22: =Entrada!P27 -> Eficientização do consumo de energia elétrica e instalação de cogeração qualificada, desde que não enquadráveis nos projetos de Pesquisa e Desenvolvimento (P&D) ou de Eficiência Energética estabelecidos em lei
K23: =Entrada!P28 -> Serviços de comunicação de dados
K24: =Entrada!P29 -> Serviços de consultoria
K25: =Entrada!P30 -> Receita proveniente da comercialização de resultados de projetos de P&D COM comprovação
K26: =Entrada!P31 -> Receita proveniente da comercialização de resultados de projetos de P&D SEM comprovação
K28: Descrição | L28: =L2 -> 1900-06-28 | M28: =M2 -> 1900-05-28 | N28: 1900-04-28 | O28: 1900-03-28 | P28: 1900-02-28 | Q28: 1900-01-31 | R28: 00:00:00 | AA28: =AA2 ->  | BA28: =BA2 ->  | BG28: =BG2 -> 
K29: =Entrada!P36 -> Ultrapassagem de Demanda | L29: =IF(COUNTIFS($C$82:$C$200000,$K29,$H$82:$H$200000,L$2)=0,"",COUNTIFS($C$82:$C$200000,$K29,$H$82:$H$200000,L$2)) ->  | V29: =IF(COUNTIFS($C$82:$C$200000,$K29,$H$82:$H$200000,V$2)=0,"",COUNTIFS($C$82:$C$200000,$K29,$H$82:$H$200000,V$2)) ->  | AF29: =IF(COUNTIFS($C$82:$C$200000,$K29,$H$82:$H$200000,AF$2)=0,"",COUNTIFS($C$82:$C$200000,$K29,$H$82:$H$200000,AF$2)) ->  | AP29: =IF(COUNTIFS($C$82:$C$200000,$K29,$H$82:$H$200000,AP$2)=0,"",COUNTIFS($C$82:$C$200000,$K29,$H$82:$H$200000,AP$2)) ->  | AZ29: =IF(COUNTIFS($C$82:$C$200000,$K29,$H$82:$H$200000,AZ$2)=0,"",COUNTIFS($C$82:$C$200000,$K29,$H$82:$H$200000,AZ$2)) ->  | BJ29: =IF(COUNTIFS($C$82:$C$200000,$K29,$H$82:$H$200000,BJ$2)=0,"",COUNTIFS($C$82:$C$200000,$K29,$H$82:$H$200000,BJ$2)) -> 
K30: =Entrada!P37 -> Excedente Reativo
K34: Data do último Lançamento por item e competência
K35: Descrição | L35: =L2 -> 1900-06-28 | M35: =M2 -> 1900-05-28 | N35: 1900-04-28 | O35: 1900-03-28 | P35: 1900-02-28 | Q35: 1900-01-31 | R35: 00:00:00 | BG35: =BG2 -> 
K36: =Entrada!P8 -> Serviços Cobráveis | L36: =IF(_xlfn.MAXIFS($G$82:$G$200000,$C$82:$C$200000,$K36,$H$82:$H$200000,L$2)=0,"",_xlfn.MAXIFS($G$82:$G$200000,$C$82:$C$200000,$K36,$H$82:$H$200000,L$2)) ->  | V36: =IF(_xlfn.MAXIFS($G$82:$G$200000,$C$82:$C$200000,$K36,$H$82:$H$200000,V$2)=0,"",_xlfn.MAXIFS($G$82:$G$200000,$C$82:$C$200000,$K36,$H$82:$H$200000,V$2)) ->  | AF36: =IF(_xlfn.MAXIFS($G$82:$G$200000,$C$82:$C$200000,$K36,$H$82:$H$200000,AF$2)=0,"",_xlfn.MAXIFS($G$82:$G$200000,$C$82:$C$200000,$K36,$H$82:$H$200000,AF$2)) ->  | AP36: =IF(_xlfn.MAXIFS($G$82:$G$200000,$C$82:$C$200000,$K36,$H$82:$H$200000,AP$2)=0,"",_xlfn.MAXIFS($G$82:$G$200000,$C$82:$C$200000,$K36,$H$82:$H$200000,AP$2)) ->  | AZ36: =IF(_xlfn.MAXIFS($G$82:$G$200000,$C$82:$C$200000,$K36,$H$82:$H$200000,AZ$2)=0,"",_xlfn.MAXIFS($G$82:$G$200000,$C$82:$C$200000,$K36,$H$82:$H$200000,AZ$2)) ->  | BJ36: =IF(_xlfn.MAXIFS($G$82:$G$200000,$C$82:$C$200000,$K36,$H$82:$H$200000,BJ$2)=0,"",_xlfn.MAXIFS($G$82:$G$200000,$C$82:$C$200000,$K36,$H$82:$H$200000,BJ$2)) -> 
K37: =Entrada!P9 -> Arrecadação de convênios ou valores pela fatura
K38: =Entrada!P10 -> Arrecadação de faturas de terceiros por estrutura própria
K39: =Entrada!P11 -> Veiculação de publicidade
K40: =Entrada!P12 -> Aluguel ou cessão onerosa de imóveis e espaços físicos
K41: =Entrada!P13 -> Compartilhamento de infraestrutura
K42: =Entrada!P14 -> Serviços de avaliação técnica e aferição de medidores.
K43: =Entrada!P15 -> Operacionalização de serviço de créditos tributários
K44: =Entrada!P16 -> Elaboração de projeto, construção, operação, manutenção ou reforma de:
K45: =Entrada!P17 -> (1) redes de distribuição de energia elétrica destinadas à regularização fundiária de interesse específico e ao atendimento dos empreendimentos de múltiplas unidades consumidoras; | L45: =IF(_xlfn.MAXIFS($G$82:$G$200000,$C$82:$C$200000,$K45,$H$82:$H$200000,L$2)=0,"",_xlfn.MAXIFS($G$82:$G$200000,$C$82:$C$200000,$K45,$H$82:$H$200000,L$2)) ->  | V45: =IF(_xlfn.MAXIFS($G$82:$G$200000,$C$82:$C$200000,$K45,$H$82:$H$200000,V$2)=0,"",_xlfn.MAXIFS($G$82:$G$200000,$C$82:$C$200000,$K45,$H$82:$H$200000,V$2)) ->  | AF45: =IF(_xlfn.MAXIFS($G$82:$G$200000,$C$82:$C$200000,$K45,$H$82:$H$200000,AF$2)=0,"",_xlfn.MAXIFS($G$82:$G$200000,$C$82:$C$200000,$K45,$H$82:$H$200000,AF$2)) ->  | AP45: =IF(_xlfn.MAXIFS($G$82:$G$200000,$C$82:$C$200000,$K45,$H$82:$H$200000,AP$2)=0,"",_xlfn.MAXIFS($G$82:$G$200000,$C$82:$C$200000,$K45,$H$82:$H$200000,AP$2)) ->  | AZ45: =IF(_xlfn.MAXIFS($G$82:$G$200000,$C$82:$C$200000,$K45,$H$82:$H$200000,AZ$2)=0,"",_xlfn.MAXIFS($G$82:$G$200000,$C$82:$C$200000,$K45,$H$82:$H$200000,AZ$2)) ->  | BJ45: =IF(_xlfn.MAXIFS($G$82:$G$200000,$C$82:$C$200000,$K45,$H$82:$H$200000,BJ$2)=0,"",_xlfn.MAXIFS($G$82:$G$200000,$C$82:$C$200000,$K45,$H$82:$H$200000,BJ$2)) -> 
K46: =Entrada!P18 -> (2) redes de energia elétrica destinadas ao acesso dos sistemas de distribuição ou transmissão;
K47: =Entrada!P19 -> (3) subestações de energia;
K48: =Entrada!P20 -> (4) instalações elétricas internas de unidades consumidoras;
K49: =Entrada!P21 -> (5) banco de capacitores;
K50: =Entrada!P22 -> (6) padrões de entrada de unidades consumidoras atendidas em baixa tensão;
K51: =Entrada!P23 -> (7) sistemas de medição de energia elétrica;
K52: =Entrada!P24 -> (8) geradores, incluindo-se unidades de microgeração e minigeração distribuída;
K53: =Entrada!P25 -> (9) sistemas de iluminação pública.
K54: =Entrada!P26 -> (10) estações de recarga de veículos elétricos, incluindo a prestação de serviços aos usuários
K55: =Entrada!P27 -> Eficientização do consumo de energia elétrica e instalação de cogeração qualificada, desde que não enquadráveis nos projetos de Pesquisa e Desenvolvimento (P&D) ou de Eficiência Energética estabelecidos em lei
K56: =Entrada!P28 -> Serviços de comunicação de dados
K57: =Entrada!P29 -> Serviços de consultoria
K58: =Entrada!P30 -> Receita proveniente da comercialização de resultados de projetos de P&D COM comprovação
K59: =Entrada!P31 -> Receita proveniente da comercialização de resultados de projetos de P&D SEM comprovação
K61: Descrição | L61: =L35 -> 1900-06-28 | M61: =M35 -> 1900-05-28 | N61: 1900-04-28 | O61: 1900-03-28 | P61: 1900-02-28 | Q61: 1900-01-31 | R61: 00:00:00 | AA61: =AA35 ->  | BA61: =BA35 ->  | BG61: =BG35 -> 
K62: =Entrada!P36 -> Ultrapassagem de Demanda | L62: =IF(COUNTIFS($C$82:$C$200000,$K62,$H$82:$H$200000,L$2)=0,"",COUNTIFS($C$82:$C$200000,$K62,$H$82:$H$200000,L$2)) ->  | V62: =IF(COUNTIFS($C$82:$C$200000,$K62,$H$82:$H$200000,V$2)=0,"",COUNTIFS($C$82:$C$200000,$K62,$H$82:$H$200000,V$2)) ->  | AF62: =IF(COUNTIFS($C$82:$C$200000,$K62,$H$82:$H$200000,AF$2)=0,"",COUNTIFS($C$82:$C$200000,$K62,$H$82:$H$200000,AF$2)) ->  | AP62: =IF(COUNTIFS($C$82:$C$200000,$K62,$H$82:$H$200000,AP$2)=0,"",COUNTIFS($C$82:$C$200000,$K62,$H$82:$H$200000,AP$2)) ->  | AZ62: =IF(COUNTIFS($C$82:$C$200000,$K62,$H$82:$H$200000,AZ$2)=0,"",COUNTIFS($C$82:$C$200000,$K62,$H$82:$H$200000,AZ$2)) ->  | BJ62: =IF(COUNTIFS($C$82:$C$200000,$K62,$H$82:$H$200000,BJ$2)=0,"",COUNTIFS($C$82:$C$200000,$K62,$H$82:$H$200000,BJ$2)) -> 
K63: =Entrada!P37 -> Excedente Reativo
A80: Tab_Uderor
A81: IdeTipoReceita | B81: TipoReceitaArquivo | C81: TipoReceita | D81: CompetenciaArquivo | E81: Data_envio_arquivo | F81: NomeArquivo | G81: Data_Lancamento | H81: Competencia | I81: R$

Sheet Entrada
A1: Entrada de parâmetros para cálculo tarifário
B4: Energia | D4: Últ. Atulização | F4: Parâmetros para Revisão | P4: ="Caso de OR para a empresa é: " &IF(BD!C53=4,"caso 1","caso 3") -> Caso de OR para a empresa é: caso 3
Q5: Competência Final OR | R5: =IF(CAPA!C7="Revisão",(DATE(YEAR('VPB e Fator X'!C10),MONTH('VPB e Fator X'!C10)-1,1)),0) -> 0
D6: 45722 | F6: CAPEX - Ativos de Distribuição | J6: Custo Operacional Real do(s) último(s) ano(s) | P6: Outras Receitas
B7: Montante de Geração Própria | D7: 45722 | F7: (1) Ativo Imobilizado em Serviço (Valor Novo de Reposição) | G7: =G73*VLOOKUP(DATE(YEAR(CAPA!$C$10),MONTH(CAPA!$C$10)-1,1),Índices!$B$135:$D$638,3,0)/VLOOKUP(DATE(YEAR($G$72),MONTH($G$72)-1,1),Índices!$B$135:$D$638,3,0) ->  | J7: Ano do Custo Operacional | L7: =MAX(Tab_RIT_BMP[ANO])-1 -> -1 | M7: =MAX(Tab_RIT_BMP[ANO]) -> 0 | P7: Tipo de Receita | Q7: =$R$5 -> 00:00:00 | R7: =DATE(YEAR(Q7),MONTH(Q7)-1,1) ->  | S7: =DATE(YEAR(R7),MONTH(R7)-1,1) -> 
B8: Custo médio da Geração Própria | C8: 307.29 | D8: 45722 | F8: (2) Índice de Aproveitamento Integral | G8: =G74*VLOOKUP(DATE(YEAR(CAPA!$C$10),MONTH(CAPA!$C$10)-1,1),Índices!$B$135:$D$638,3,0)/VLOOKUP(DATE(YEAR($G$72),MONTH($G$72)-1,1),Índices!$B$135:$D$638,3,0) ->  | J8: CONTA PESSOAL | P8: Serviços Cobráveis | Q8: =SUMIFS(Tab_Uderor[R$],Tab_Uderor[Competencia],Entrada!Q$7,Tab_Uderor[TipoReceita],Entrada!$P8) -> 0 | R8: =SUMIFS(Tab_Uderor[R$],Tab_Uderor[Competencia],Entrada!R$7,Tab_Uderor[TipoReceita],Entrada!$P8) -> 0 | S8: =SUMIFS(Tab_Uderor[R$],Tab_Uderor[Competencia],Entrada!S$7,Tab_Uderor[TipoReceita],Entrada!$P8) -> 0 | T8: =SUMIFS(Tab_Uderor[R$],Tab_Uderor[Competencia],Entrada!T$7,Tab_Uderor[TipoReceita],Entrada!$P8) -> 0 | U8: =SUMIFS(Tab_Uderor[R$],Tab_Uderor[Competencia],Entrada!U$7,Tab_Uderor[TipoReceita],Entrada!$P8) -> 0 | V8: =SUMIFS(Tab_Uderor[R$],Tab_Uderor[Competencia],Entrada!V$7,Tab_Uderor[TipoReceita],Entrada!$P8) -> 0 | W8: =SUMIFS(Tab_Uderor[R$],Tab_Uderor[Competencia],Entrada!W$7,Tab_Uderor[TipoReceita],Entrada!$P8) -> 0 | X8: =SUMIFS(Tab_Uderor[R$],Tab_Uderor[Competencia],Entrada!X$7,Tab_Uderor[TipoReceita],Entrada!$P8) -> 0 | Y8: =SUMIFS(Tab_Uderor[R$],Tab_Uderor[Competencia],Entrada!Y$7,Tab_Uderor[TipoReceita],Entrada!$P8) -> 0 | Z8: =SUMIFS(Tab_Uderor[R$],Tab_Uderor[Competencia],Entrada!Z$7,Tab_Uderor[TipoReceita],Entrada!$P8) -> 0 | AA8: =SUMIFS(Tab_Uderor[R$],Tab_Uderor[Competencia],Entrada!AA$7,Tab_Uderor[TipoReceita],Entrada!$P8) -> 0 | AB8: =SUMIFS(Tab_Uderor[R$],Tab_Uderor[Competencia],Entrada!AB$7,Tab_Uderor[TipoReceita],Entrada!$P8) -> 0 | AC8: =SUMIFS(Tab_Uderor[R$],Tab_Uderor[Competencia],Entrada!AC$7,Tab_Uderor[TipoReceita],Entrada!$P8) -> 0 | AD8: =SUMIFS(Tab_Uderor[R$],Tab_Uderor[Competencia],Entrada!AD$7,Tab_Uderor[TipoReceita],Entrada!$P8) -> 0 | AE8: =SUMIFS(Tab_Uderor[R$],Tab_Uderor[Competencia],Entrada!AE$7,Tab_Uderor[TipoReceita],Entrada!$P8) -> 0 | AF8: =SUMIFS(Tab_Uderor[R$],Tab_Uderor[Competencia],Entrada!AF$7,Tab_Uderor[TipoReceita],Entrada!$P8) -> 0 | AG8: =SUMIFS(Tab_Uderor[R$],Tab_Uderor[Competencia],Entrada!AG$7,Tab_Uderor[TipoReceita],Entrada!$P8) -> 0 | AH8: =SUMIFS(Tab_Uderor[R$],Tab_Uderor[Competencia],Entrada!AH$7,Tab_Uderor[TipoReceita],Entrada!$P8) -> 0 | AI8: =SUMIFS(Tab_Uderor[R$],Tab_Uderor[Competencia],Entrada!AI$7,Tab_Uderor[TipoReceita],Entrada!$P8) -> 0 | AJ8: =SUMIFS(Tab_Uderor[R$],Tab_Uderor[Competencia],Entrada!AJ$7,Tab_Uderor[TipoReceita],Entrada!$P8) -> 0 | AK8: =SUMIFS(Tab_Uderor[R$],Tab_Uderor[Competencia],Entrada!AK$7,Tab_Uderor[TipoReceita],Entrada!$P8) -> 0 | AL8: =SUMIFS(Tab_Uderor[R$],Tab_Uderor[Competencia],Entrada!AL$7,Tab_Uderor[TipoReceita],Entrada!$P8) -> 0 | AM8: =SUMIFS(Tab_Uderor[R$],Tab_Uderor[Competencia],Entrada!AM$7,Tab_Uderor[TipoReceita],Entrada!$P8) -> 0 | AN8: =SUMIFS(Tab_Uderor[R$],Tab_Uderor[Competencia],Entrada!AN$7,Tab_Uderor[TipoReceita],Entrada!$P8) -> 0 | AO8: =SUMIFS(Tab_Uderor[R$],Tab_Uderor[Competencia],Entrada!AO$7,Tab_Uderor[TipoReceita],Entrada!$P8) -> 0 | AP8: =SUMIFS(Tab_Uderor[R$],Tab_Uderor[Competencia],Entrada!AP$7,Tab_Uderor[TipoReceita],Entrada!$P8) -> 0 | AQ8: =SUMIFS(Tab_Uderor[R$],Tab_Uderor[Competencia],Entrada!AQ$7,Tab_Uderor[TipoReceita],Entrada!$P8) -> 0 | AR8: =SUMIFS(Tab_Uderor[R$],Tab_Uderor[Competencia],Entrada!AR$7,Tab_Uderor[TipoReceita],Entrada!$P8) -> 0 | AS8: =SUMIFS(Tab_Uderor[R$],Tab_Uderor[Competencia],Entrada!AS$7,Tab_Uderor[TipoReceita],Entrada!$P8) -> 0 | AT8: =SUMIFS(Tab_Uderor[R$],Tab_Uderor[Competencia],Entrada!AT$7,Tab_Uderor[TipoReceita],Entrada!$P8) -> 0 | AU8: =SUMIFS(Tab_Uderor[R$],Tab_Uderor[Competencia],Entrada!AU$7,Tab_Uderor[TipoReceita],Entrada!$P8) -> 0 | AV8: =SUMIFS(Tab_Uderor[R$],Tab_Uderor[Competencia],Entrada!AV$7,Tab_Uderor[TipoReceita],Entrada!$P8) -> 0 | AW8: =SUMIFS(Tab_Uderor[R$],Tab_Uderor[Competencia],Entrada!AW$7,Tab_Uderor[TipoReceita],Entrada!$P8) -> 0 | AX8: =SUMIFS(Tab_Uderor[R$],Tab_Uderor[Competencia],Entrada!AX$7,Tab_Uderor[TipoReceita],Entrada!$P8) -> 0 | AY8: =SUMIFS(Tab_Uderor[R$],Tab_Uderor[Competencia],Entrada!AY$7,Tab_Uderor[TipoReceita],Entrada!$P8) -> 0 | AZ8: =SUMIFS(Tab_Uderor[R$],Tab_Uderor[Competencia],Entrada!AZ$7,Tab_Uderor[TipoReceita],Entrada!$P8) -> 0
D9: 45722 | F9: (3) Obrigações Especiais Bruta | G9: =G75*VLOOKUP(DATE(YEAR(CAPA!$C$10),MONTH(CAPA!$C$10)-1,1),Índices!$B$135:$D$638,3,0)/VLOOKUP(DATE(YEAR($G$72),MONTH($G$72)-1,1),Índices!$B$135:$D$638,3,0) ->  | J9: BMP - 610530501; 610550501; 610532501; 610552501; 610530511; 610532511 | K9: Remuneração | L9: =SUMIFS(Tab_RIT_BMP[SALDO],Tab_RIT_BMP[CONTA],610530501,Tab_RIT_BMP[ANO],$L$7)+SUMIFS(Tab_RIT_BMP[SALDO],Tab_RIT_BMP[CONTA],610550501,Tab_RIT_BMP[ANO],$L$7)+ SUMIFS(Tab_RIT_BMP[SALDO],Tab_RIT_BMP[CONTA],610532501,Tab_RIT_BMP[ANO],$L$7)+SUMIFS(Tab_RIT_BMP[SALDO],Tab_RIT_BMP[CONTA],610552501,Tab_RIT_BMP[ANO],$L$7)+ SUMIFS(Tab_RIT_BMP[SALDO],Tab_RIT_BMP[CONTA],610530511,Tab_RIT_BMP[ANO],$L$7)+SUMIFS(Tab_RIT_BMP[SALDO],Tab_RIT_BMP[CONTA],610532511,Tab_RIT_BMP[ANO],$L$7) -> 0 | M9: =SUMIFS(Tab_RIT_BMP[SALDO],Tab_RIT_BMP[CONTA],610530501,Tab_RIT_BMP[ANO],$M$7)+SUMIFS(Tab_RIT_BMP[SALDO],Tab_RIT_BMP[CONTA],610550501,Tab_RIT_BMP[ANO],$M$7)+ SUMIFS(Tab_RIT_BMP[SALDO],Tab_RIT_BMP[CONTA],610532501,Tab_RIT_BMP[ANO],$M$7)+SUMIFS(Tab_RIT_BMP[SALDO],Tab_RIT_BMP[CONTA],610552501,Tab_RIT_BMP[ANO],$M$7)+ SUMIFS(Tab_RIT_BMP[SALDO],Tab_RIT_BMP[CONTA],610530511,Tab_RIT_BMP[ANO],$M$7)+SUMIFS(Tab_RIT_BMP[SALDO],Tab_RIT_BMP[CONTA],610532511,Tab_RIT_BMP[ANO],$M$7) -> 0 | P9: Arrecadação de convênios ou valores pela fatura | Q9: =SUMIFS(Tab_Uderor[R$],Tab_Uderor[Competencia],Entrada!Q$7,Tab_Uderor[TipoReceita],Entrada!$P9) -> 0 | R9: =SUMIFS(Tab_Uderor[R$],Tab_Uderor[Competencia],Entrada!R$7,Tab_Uderor[TipoReceita],Entrada!$P9) -> 0 | S9: =SUMIFS(Tab_Uderor[R$],Tab_Uderor[Competencia],Entrada!S$7,Tab_Uderor[TipoReceita],Entrada!$P9) -> 0 | T9: =SUMIFS(Tab_Uderor[R$],Tab_Uderor[Competencia],Entrada!T$7,Tab_Uderor[TipoReceita],Entrada!$P9) -> 0 | U9: =SUMIFS(Tab_Uderor[R$],Tab_Uderor[Competencia],Entrada!U$7,Tab_Uderor[TipoReceita],Entrada!$P9) -> 0 | V9: =SUMIFS(Tab_Uderor[R$],Tab_Uderor[Competencia],Entrada!V$7,Tab_Uderor[TipoReceita],Entrada!$P9) -> 0 | W9: =SUMIFS(Tab_Uderor[R$],Tab_Uderor[Competencia],Entrada!W$7,Tab_Uderor[TipoReceita],Entrada!$P9) -> 0 | X9: =SUMIFS(Tab_Uderor[R$],Tab_Uderor[Competencia],Entrada!X$7,Tab_Uderor[TipoReceita],Entrada!$P9) -> 0 | Y9: =SUMIFS(Tab_Uderor[R$],Tab_Uderor[Competencia],Entrada!Y$7,Tab_Uderor[TipoReceita],Entrada!$P9) -> 0 | Z9: =SUMIFS(Tab_Uderor[R$],Tab_Uderor[Competencia],Entrada!Z$7,Tab_Uderor[TipoReceita],Entrada!$P9) -> 0 | AA9: =SUMIFS(Tab_Uderor[R$],Tab_Uderor[Competencia],Entrada!AA$7,Tab_Uderor[TipoReceita],Entrada!$P9) -> 0 | AB9: =SUMIFS(Tab_Uderor[R$],Tab_Uderor[Competencia],Entrada!AB$7,Tab_Uderor[TipoReceita],Entrada!$P9) -> 0 | AC9: =SUMIFS(Tab_Uderor[R$],Tab_Uderor[Competencia],Entrada!AC$7,Tab_Uderor[TipoReceita],Entrada!$P9) -> 0 | AD9: =SUMIFS(Tab_Uderor[R$],Tab_Uderor[Competencia],Entrada!AD$7,Tab_Uderor[TipoReceita],Entrada!$P9) -> 0 | AE9: =SUMIFS(Tab_Uderor[R$],Tab_Uderor[Competencia],Entrada!AE$7,Tab_Uderor[TipoReceita],Entrada!$P9) -> 0 | AF9: =SUMIFS(Tab_Uderor[R$],Tab_Uderor[Competencia],Entrada!AF$7,Tab_Uderor[TipoReceita],Entrada!$P9) -> 0 | AG9: =SUMIFS(Tab_Uderor[R$],Tab_Uderor[Competencia],Entrada!AG$7,Tab_Uderor[TipoReceita],Entrada!$P9) -> 0 | AH9: =SUMIFS(Tab_Uderor[R$],Tab_Uderor[Competencia],Entrada!AH$7,Tab_Uderor[TipoReceita],Entrada!$P9) -> 0 | AI9: =SUMIFS(Tab_Uderor[R$],Tab_Uderor[Competencia],Entrada!AI$7,Tab_Uderor[TipoReceita],Entrada!$P9) -> 0 | AJ9: =SUMIFS(Tab_Uderor[R$],Tab_Uderor[Competencia],Entrada!AJ$7,Tab_Uderor[TipoReceita],Entrada!$P9) -> 0 | AK9: =SUMIFS(Tab_Uderor[R$],Tab_Uderor[Competencia],Entrada!AK$7,Tab_Uderor[TipoReceita],Entrada!$P9) -> 0 | AL9: =SUMIFS(Tab_Uderor[R$],Tab_Uderor[Competencia],Entrada!AL$7,Tab_Uderor[TipoReceita],Entrada!$P9) -> 0 | AM9: =SUMIFS(Tab_Uderor[R$],Tab_Uderor[Competencia],Entrada!AM$7,Tab_Uderor[TipoReceita],Entrada!$P9) -> 0 | AN9: =SUMIFS(Tab_Uderor[R$],Tab_Uderor[Competencia],Entrada!AN$7,Tab_Uderor[TipoReceita],Entrada!$P9) -> 0 | AO9: =SUMIFS(Tab_Uderor[R$],Tab_Uderor[Competencia],Entrada!AO$7,Tab_Uderor[TipoReceita],Entrada!$P9) -> 0 | AP9: =SUMIFS(Tab_Uderor[R$],Tab_Uderor[Competencia],Entrada!AP$7,Tab_Uderor[TipoReceita],Entrada!$P9) -> 0 | AQ9: =SUMIFS(Tab_Uderor[R$],Tab_Uderor[Competencia],Entrada!AQ$7,Tab_Uderor[TipoReceita],Entrada!$P9) -> 0 | AR9: =SUMIFS(Tab_Uderor[R$],Tab_Uderor[Competencia],Entrada!AR$7,Tab_Uderor[TipoReceita],Entrada!$P9) -> 0 | AS9: =SUMIFS(Tab_Uderor[R$],Tab_Uderor[Competencia],Entrada!AS$7,Tab_Uderor[TipoReceita],Entrada!$P9) -> 0 | AT9: =SUMIFS(Tab_Uderor[R$],Tab_Uderor[Competencia],Entrada!AT$7,Tab_Uderor[TipoReceita],Entrada!$P9) -> 0 | AU9: =SUMIFS(Tab_Uderor[R$],Tab_Uderor[Competencia],Entrada!AU$7,Tab_Uderor[TipoReceita],Entrada!$P9) -> 0 | AV9: =SUMIFS(Tab_Uderor[R$],Tab_Uderor[Competencia],Entrada!AV$7,Tab_Uderor[TipoReceita],Entrada!$P9) -> 0 | AW9: =SUMIFS(Tab_Uderor[R$],Tab_Uderor[Competencia],Entrada!AW$7,Tab_Uderor[TipoReceita],Entrada!$P9) -> 0 | AX9: =SUMIFS(Tab_Uderor[R$],Tab_Uderor[Competencia],Entrada!AX$7,Tab_Uderor[TipoReceita],Entrada!$P9) -> 0 | AY9: =SUMIFS(Tab_Uderor[R$],Tab_Uderor[Competencia],Entrada!AY$7,Tab_Uderor[TipoReceita],Entrada!$P9) -> 0 | AZ9: =SUMIFS(Tab_Uderor[R$],Tab_Uderor[Competencia],Entrada!AZ$7,Tab_Uderor[TipoReceita],Entrada!$P9) -> 0
D10: 45722 | F10: (4) Bens Totalmente Depreciados | G10: =G76*VLOOKUP(DATE(YEAR(CAPA!$C$10),MONTH(CAPA!$C$10)-1,1),Índices!$B$135:$D$638,3,0)/VLOOKUP(DATE(YEAR($G$72),MONTH($G$72)-1,1),Índices!$B$135:$D$638,3,0) ->  | J10: BMP - 610530502; 610550502; 610532502; 610552502 | K10: Encargos | L10: =SUMIFS(Tab_RIT_BMP[SALDO],Tab_RIT_BMP[CONTA],610530502,Tab_RIT_BMP[ANO],$L$7)+SUMIFS(Tab_RIT_BMP[SALDO],Tab_RIT_BMP[CONTA],610550502,Tab_RIT_BMP[ANO],$L$7)+ SUMIFS(Tab_RIT_BMP[SALDO],Tab_RIT_BMP[CONTA],610532502,Tab_RIT_BMP[ANO],$L$7)+SUMIFS(Tab_RIT_BMP[SALDO],Tab_RIT_BMP[CONTA],610552502,Tab_RIT_BMP[ANO],$L$7) -> 0 | M10: =SUMIFS(Tab_RIT_BMP[SALDO],Tab_RIT_BMP[CONTA],610530502,Tab_RIT_BMP[ANO],$M$7)+SUMIFS(Tab_RIT_BMP[SALDO],Tab_RIT_BMP[CONTA],610550502,Tab_RIT_BMP[ANO],$M$7)+ SUMIFS(Tab_RIT_BMP[SALDO],Tab_RIT_BMP[CONTA],610532502,Tab_RIT_BMP[ANO],$M$7)+SUMIFS(Tab_RIT_BMP[SALDO],Tab_RIT_BMP[CONTA],610552502,Tab_RIT_BMP[ANO],$M$7) -> 0 | P10: Arrecadação de faturas de terceiros por estrutura própria | Q10: =SUMIFS(Tab_Uderor[R$],Tab_Uderor[Competencia],Entrada!Q$7,Tab_Uderor[TipoReceita],Entrada!$P10) -> 0 | R10: =SUMIFS(Tab_Uderor[R$],Tab_Uderor[Competencia],Entrada!R$7,Tab_Uderor[TipoReceita],Entrada!$P10) -> 0 | S10: =SUMIFS(Tab_Uderor[R$],Tab_Uderor[Competencia],Entrada!S$7,Tab_Uderor[TipoReceita],Entrada!$P10) -> 0 | T10: =SUMIFS(Tab_Uderor[R$],Tab_Uderor[Competencia],Entrada!T$7,Tab_Uderor[TipoReceita],Entrada!$P10) -> 0 | U10: =SUMIFS(Tab_Uderor[R$],Tab_Uderor[Competencia],Entrada!U$7,Tab_Uderor[TipoReceita],Entrada!$P10) -> 0 | V10: =SUMIFS(Tab_Uderor[R$],Tab_Uderor[Competencia],Entrada!V$7,Tab_Uderor[TipoReceita],Entrada!$P10) -> 0 | W10: =SUMIFS(Tab_Uderor[R$],Tab_Uderor[Competencia],Entrada!W$7,Tab_Uderor[TipoReceita],Entrada!$P10) -> 0 | X10: =SUMIFS(Tab_Uderor[R$],Tab_Uderor[Competencia],Entrada!X$7,Tab_Uderor[TipoReceita],Entrada!$P10) -> 0 | Y10: =SUMIFS(Tab_Uderor[R$],Tab_Uderor[Competencia],Entrada!Y$7,Tab_Uderor[TipoReceita],Entrada!$P10) -> 0 | Z10: =SUMIFS(Tab_Uderor[R$],Tab_Uderor[Competencia],Entrada!Z$7,Tab_Uderor[TipoReceita],Entrada!$P10) -> 0 | AA10: =SUMIFS(Tab_Uderor[R$],Tab_Uderor[Competencia],Entrada!AA$7,Tab_Uderor[TipoReceita],Entrada!$P10) -> 0 | AB10: =SUMIFS(Tab_Uderor[R$],Tab_Uderor[Competencia],Entrada!AB$7,Tab_Uderor[TipoReceita],Entrada!$P10) -> 0 | AC10: =SUMIFS(Tab_Uderor[R$],Tab_Uderor[Competencia],Entrada!AC$7,Tab_Uderor[TipoReceita],Entrada!$P10) -> 0 | AD10: =SUMIFS(Tab_Uderor[R$],Tab_Uderor[Competencia],Entrada!AD$7,Tab_Uderor[TipoReceita],Entrada!$P10) -> 0 | AE10: =SUMIFS(Tab_Uderor[R$],Tab_Uderor[Competencia],Entrada!AE$7,Tab_Uderor[TipoReceita],Entrada!$P10) -> 0 | AF10: =SUMIFS(Tab_Uderor[R$],Tab_Uderor[Competencia],Entrada!AF$7,Tab_Uderor[TipoReceita],Entrada!$P10) -> 0 | AG10: =SUMIFS(Tab_Uderor[R$],Tab_Uderor[Competencia],Entrada!AG$7,Tab_Uderor[TipoReceita],Entrada!$P10) -> 0 | AH10: =SUMIFS(Tab_Uderor[R$],Tab_Uderor[Competencia],Entrada!AH$7,Tab_Uderor[TipoReceita],Entrada!$P10) -> 0 | AI10: =SUMIFS(Tab_Uderor[R$],Tab_Uderor[Competencia],Entrada!AI$7,Tab_Uderor[TipoReceita],Entrada!$P10) -> 0 | AJ10: =SUMIFS(Tab_Uderor[R$],Tab_Uderor[Competencia],Entrada!AJ$7,Tab_Uderor[TipoReceita],Entrada!$P10) -> 0 | AK10: =SUMIFS(Tab_Uderor[R$],Tab_Uderor[Competencia],Entrada!AK$7,Tab_Uderor[TipoReceita],Entrada!$P10) -> 0 | AL10: =SUMIFS(Tab_Uderor[R$],Tab_Uderor[Competencia],Entrada!AL$7,Tab_Uderor[TipoReceita],Entrada!$P10) -> 0 | AM10: =SUMIFS(Tab_Uderor[R$],Tab_Uderor[Competencia],Entrada!AM$7,Tab_Uderor[TipoReceita],Entrada!$P10) -> 0 | AN10: =SUMIFS(Tab_Uderor[R$],Tab_Uderor[Competencia],Entrada!AN$7,Tab_Uderor[TipoReceita],Entrada!$P10) -> 0 | AO10: =SUMIFS(Tab_Uderor[R$],Tab_Uderor[Competencia],Entrada!AO$7,Tab_Uderor[TipoReceita],Entrada!$P10) -> 0 | AP10: =SUMIFS(Tab_Uderor[R$],Tab_Uderor[Competencia],Entrada!AP$7,Tab_Uderor[TipoReceita],Entrada!$P10) -> 0 | AQ10: =SUMIFS(Tab_Uderor[R$],Tab_Uderor[Competencia],Entrada!AQ$7,Tab_Uderor[TipoReceita],Entrada!$P10) -> 0 | AR10: =SUMIFS(Tab_Uderor[R$],Tab_Uderor[Competencia],Entrada!AR$7,Tab_Uderor[TipoReceita],Entrada!$P10) -> 0 | AS10: =SUMIFS(Tab_Uderor[R$],Tab_Uderor[Competencia],Entrada!AS$7,Tab_Uderor[TipoReceita],Entrada!$P10) -> 0 | AT10: =SUMIFS(Tab_Uderor[R$],Tab_Uderor[Competencia],Entrada!AT$7,Tab_Uderor[TipoReceita],Entrada!$P10) -> 0 | AU10: =SUMIFS(Tab_Uderor[R$],Tab_Uderor[Competencia],Entrada!AU$7,Tab_Uderor[TipoReceita],Entrada!$P10) -> 0 | AV10: =SUMIFS(Tab_Uderor[R$],Tab_Uderor[Competencia],Entrada!AV$7,Tab_Uderor[TipoReceita],Entrada!$P10) -> 0 | AW10: =SUMIFS(Tab_Uderor[R$],Tab_Uderor[Competencia],Entrada!AW$7,Tab_Uderor[TipoReceita],Entrada!$P10) -> 0 | AX10: =SUMIFS(Tab_Uderor[R$],Tab_Uderor[Competencia],Entrada!AX$7,Tab_Uderor[TipoReceita],Entrada!$P10) -> 0 | AY10: =SUMIFS(Tab_Uderor[R$],Tab_Uderor[Competencia],Entrada!AY$7,Tab_Uderor[TipoReceita],Entrada!$P10) -> 0 | AZ10: =SUMIFS(Tab_Uderor[R$],Tab_Uderor[Competencia],Entrada!AZ$7,Tab_Uderor[TipoReceita],Entrada!$P10) -> 0
F11: (5) Base de Remuneração Bruta = (1)-(2)-(3)-(4) | G11: =G7-G8-G9-G10 ->  | J11: BMP - 610530503; 610550503; 610532503; 610552503 | K11: Previdência Privada - Corrente | L11: =SUMIFS(Tab_RIT_BMP[SALDO],Tab_RIT_BMP[CONTA],610530503,Tab_RIT_BMP[ANO],$L$7)+SUMIFS(Tab_RIT_BMP[SALDO],Tab_RIT_BMP[CONTA],610550503,Tab_RIT_BMP[ANO],$L$7)+ SUMIFS(Tab_RIT_BMP[SALDO],Tab_RIT_BMP[CONTA],610532503,Tab_RIT_BMP[ANO],$L$7)+SUMIFS(Tab_RIT_BMP[SALDO],Tab_RIT_BMP[CONTA],610552503,Tab_RIT_BMP[ANO],$L$7) -> 0 | M11: =SUMIFS(Tab_RIT_BMP[SALDO],Tab_RIT_BMP[CONTA],610530503,Tab_RIT_BMP[ANO],$M$7)+SUMIFS(Tab_RIT_BMP[SALDO],Tab_RIT_BMP[CONTA],610550503,Tab_RIT_BMP[ANO],$M$7)+ SUMIFS(Tab_RIT_BMP[SALDO],Tab_RIT_BMP[CONTA],610532503,Tab_RIT_BMP[ANO],$M$7)+SUMIFS(Tab_RIT_BMP[SALDO],Tab_RIT_BMP[CONTA],610552503,Tab_RIT_BMP[ANO],$M$7) -> 0 | P11: Veiculação de publicidade | Q11: =SUMIFS(Tab_Uderor[R$],Tab_Uderor[Competencia],Entrada!Q$7,Tab_Uderor[TipoReceita],Entrada!$P11) -> 0 | R11: =SUMIFS(Tab_Uderor[R$],Tab_Uderor[Competencia],Entrada!R$7,Tab_Uderor[TipoReceita],Entrada!$P11) -> 0 | S11: =SUMIFS(Tab_Uderor[R$],Tab_Uderor[Competencia],Entrada!S$7,Tab_Uderor[TipoReceita],Entrada!$P11) -> 0 | T11: =SUMIFS(Tab_Uderor[R$],Tab_Uderor[Competencia],Entrada!T$7,Tab_Uderor[TipoReceita],Entrada!$P11) -> 0 | U11: =SUMIFS(Tab_Uderor[R$],Tab_Uderor[Competencia],Entrada!U$7,Tab_Uderor[TipoReceita],Entrada!$P11) -> 0 | V11: =SUMIFS(Tab_Uderor[R$],Tab_Uderor[Competencia],Entrada!V$7,Tab_Uderor[TipoReceita],Entrada!$P11) -> 0 | W11: =SUMIFS(Tab_Uderor[R$],Tab_Uderor[Competencia],Entrada!W$7,Tab_Uderor[TipoReceita],Entrada!$P11) -> 0 | X11: =SUMIFS(Tab_Uderor[R$],Tab_Uderor[Competencia],Entrada!X$7,Tab_Uderor[TipoReceita],Entrada!$P11) -> 0 | Y11: =SUMIFS(Tab_Uderor[R$],Tab_Uderor[Competencia],Entrada!Y$7,Tab_Uderor[TipoReceita],Entrada!$P11) -> 0 | Z11: =SUMIFS(Tab_Uderor[R$],Tab_Uderor[Competencia],Entrada!Z$7,Tab_Uderor[TipoReceita],Entrada!$P11) -> 0 | AA11: =SUMIFS(Tab_Uderor[R$],Tab_Uderor[Competencia],Entrada!AA$7,Tab_Uderor[TipoReceita],Entrada!$P11) -> 0 | AB11: =SUMIFS(Tab_Uderor[R$],Tab_Uderor[Competencia],Entrada!AB$7,Tab_Uderor[TipoReceita],Entrada!$P11) -> 0 | AC11: =SUMIFS(Tab_Uderor[R$],Tab_Uderor[Competencia],Entrada!AC$7,Tab_Uderor[TipoReceita],Entrada!$P11) -> 0 | AD11: =SUMIFS(Tab_Uderor[R$],Tab_Uderor[Competencia],Entrada!AD$7,Tab_Uderor[TipoReceita],Entrada!$P11) -> 0 | AE11: =SUMIFS(Tab_Uderor[R$],Tab_Uderor[Competencia],Entrada!AE$7,Tab_Uderor[TipoReceita],Entrada!$P11) -> 0 | AF11: =SUMIFS(Tab_Uderor[R$],Tab_Uderor[Competencia],Entrada!AF$7,Tab_Uderor[TipoReceita],Entrada!$P11) -> 0 | AG11: =SUMIFS(Tab_Uderor[R$],Tab_Uderor[Competencia],Entrada!AG$7,Tab_Uderor[TipoReceita],Entrada!$P11) -> 0 | AH11: =SUMIFS(Tab_Uderor[R$],Tab_Uderor[Competencia],Entrada!AH$7,Tab_Uderor[TipoReceita],Entrada!$P11) -> 0 | AI11: =SUMIFS(Tab_Uderor[R$],Tab_Uderor[Competencia],Entrada!AI$7,Tab_Uderor[TipoReceita],Entrada!$P11) -> 0 | AJ11: =SUMIFS(Tab_Uderor[R$],Tab_Uderor[Competencia],Entrada!AJ$7,Tab_Uderor[TipoReceita],Entrada!$P11) -> 0 | AK11: =SUMIFS(Tab_Uderor[R$],Tab_Uderor[Competencia],Entrada!AK$7,Tab_Uderor[TipoReceita],Entrada!$P11) -> 0 | AL11: =SUMIFS(Tab_Uderor[R$],Tab_Uderor[Competencia],Entrada!AL$7,Tab_Uderor[TipoReceita],Entrada!$P11) -> 0 | AM11: =SUMIFS(Tab_Uderor[R$],Tab_Uderor[Competencia],Entrada!AM$7,Tab_Uderor[TipoReceita],Entrada!$P11) -> 0 | AN11: =SUMIFS(Tab_Uderor[R$],Tab_Uderor[Competencia],Entrada!AN$7,Tab_Uderor[TipoReceita],Entrada!$P11) -> 0 | AO11: =SUMIFS(Tab_Uderor[R$],Tab_Uderor[Competencia],Entrada!AO$7,Tab_Uderor[TipoReceita],Entrada!$P11) -> 0 | AP11: =SUMIFS(Tab_Uderor[R$],Tab_Uderor[Competencia],Entrada!AP$7,Tab_Uderor[TipoReceita],Entrada!$P11) -> 0 | AQ11: =SUMIFS(Tab_Uderor[R$],Tab_Uderor[Competencia],Entrada!AQ$7,Tab_Uderor[TipoReceita],Entrada!$P11) -> 0 | AR11: =SUMIFS(Tab_Uderor[R$],Tab_Uderor[Competencia],Entrada!AR$7,Tab_Uderor[TipoReceita],Entrada!$P11) -> 0 | AS11: =SUMIFS(Tab_Uderor[R$],Tab_Uderor[Competencia],Entrada!AS$7,Tab_Uderor[TipoReceita],Entrada!$P11) -> 0 | AT11: =SUMIFS(Tab_Uderor[R$],Tab_Uderor[Competencia],Entrada!AT$7,Tab_Uderor[TipoReceita],Entrada!$P11) -> 0 | AU11: =SUMIFS(Tab_Uderor[R$],Tab_Uderor[Competencia],Entrada!AU$7,Tab_Uderor[TipoReceita],Entrada!$P11) -> 0 | AV11: =SUMIFS(Tab_Uderor[R$],Tab_Uderor[Competencia],Entrada!AV$7,Tab_Uderor[TipoReceita],Entrada!$P11) -> 0 | AW11: =SUMIFS(Tab_Uderor[R$],Tab_Uderor[Competencia],Entrada!AW$7,Tab_Uderor[TipoReceita],Entrada!$P11) -> 0 | AX11: =SUMIFS(Tab_Uderor[R$],Tab_Uderor[Competencia],Entrada!AX$7,Tab_Uderor[TipoReceita],Entrada!$P11) -> 0 | AY11: =SUMIFS(Tab_Uderor[R$],Tab_Uderor[Competencia],Entrada!AY$7,Tab_Uderor[TipoReceita],Entrada!$P11) -> 0 | AZ11: =SUMIFS(Tab_Uderor[R$],Tab_Uderor[Competencia],Entrada!AZ$7,Tab_Uderor[TipoReceita],Entrada!$P11) -> 0
F12: (6) Depreciação Acumulada | G12: =G78*VLOOKUP(DATE(YEAR(CAPA!$C$10),MONTH(CAPA!$C$10)-1,1),Índices!$B$135:$D$638,3,0)/VLOOKUP(DATE(YEAR($G$72),MONTH($G$72)-1,1),Índices!$B$135:$D$638,3,0) ->  | J12: BMP - 610530508; 610550508; 610532508; 610552508 | K12: Outros Benefícios | L12: =SUMIFS(Tab_RIT_BMP[SALDO],Tab_RIT_BMP[CONTA],610530508,Tab_RIT_BMP[ANO],$L$7)+SUMIFS(Tab_RIT_BMP[SALDO],Tab_RIT_BMP[CONTA],610550508,Tab_RIT_BMP[ANO],$L$7)+ SUMIFS(Tab_RIT_BMP[SALDO],Tab_RIT_BMP[CONTA],610532508,Tab_RIT_BMP[ANO],$L$7)+SUMIFS(Tab_RIT_BMP[SALDO],Tab_RIT_BMP[CONTA],610552508,Tab_RIT_BMP[ANO],$L$7) -> 0 | M12: =SUMIFS(Tab_RIT_BMP[SALDO],Tab_RIT_BMP[CONTA],610530508,Tab_RIT_BMP[ANO],$M$7)+SUMIFS(Tab_RIT_BMP[SALDO],Tab_RIT_BMP[CONTA],610550508,Tab_RIT_BMP[ANO],$M$7)+ SUMIFS(Tab_RIT_BMP[SALDO],Tab_RIT_BMP[CONTA],610532508,Tab_RIT_BMP[ANO],$M$7)+SUMIFS(Tab_RIT_BMP[SALDO],Tab_RIT_BMP[CONTA],610552508,Tab_RIT_BMP[ANO],$M$7) -> 0 | P12: Aluguel ou cessão onerosa de imóveis e espaços físicos | Q12: =SUMIFS(Tab_Uderor[R$],Tab_Uderor[Competencia],Entrada!Q$7,Tab_Uderor[TipoReceita],Entrada!$P12) -> 0 | R12: =SUMIFS(Tab_Uderor[R$],Tab_Uderor[Competencia],Entrada!R$7,Tab_Uderor[TipoReceita],Entrada!$P12) -> 0 | S12: =SUMIFS(Tab_Uderor[R$],Tab_Uderor[Competencia],Entrada!S$7,Tab_Uderor[TipoReceita],Entrada!$P12) -> 0 | T12: =SUMIFS(Tab_Uderor[R$],Tab_Uderor[Competencia],Entrada!T$7,Tab_Uderor[TipoReceita],Entrada!$P12) -> 0 | U12: =SUMIFS(Tab_Uderor[R$],Tab_Uderor[Competencia],Entrada!U$7,Tab_Uderor[TipoReceita],Entrada!$P12) -> 0 | V12: =SUMIFS(Tab_Uderor[R$],Tab_Uderor[Competencia],Entrada!V$7,Tab_Uderor[TipoReceita],Entrada!$P12) -> 0 | W12: =SUMIFS(Tab_Uderor[R$],Tab_Uderor[Competencia],Entrada!W$7,Tab_Uderor[TipoReceita],Entrada!$P12) -> 0 | X12: =SUMIFS(Tab_Uderor[R$],Tab_Uderor[Competencia],Entrada!X$7,Tab_Uderor[TipoReceita],Entrada!$P12) -> 0 | Y12: =SUMIFS(Tab_Uderor[R$],Tab_Uderor[Competencia],Entrada!Y$7,Tab_Uderor[TipoReceita],Entrada!$P12) -> 0 | Z12: =SUMIFS(Tab_Uderor[R$],Tab_Uderor[Competencia],Entrada!Z$7,Tab_Uderor[TipoReceita],Entrada!$P12) -> 0 | AA12: =SUMIFS(Tab_Uderor[R$],Tab_Uderor[Competencia],Entrada!AA$7,Tab_Uderor[TipoReceita],Entrada!$P12) -> 0 | AB12: =SUMIFS(Tab_Uderor[R$],Tab_Uderor[Competencia],Entrada!AB$7,Tab_Uderor[TipoReceita],Entrada!$P12) -> 0 | AC12: =SUMIFS(Tab_Uderor[R$],Tab_Uderor[Competencia],Entrada!AC$7,Tab_Uderor[TipoReceita],Entrada!$P12) -> 0 | AD12: =SUMIFS(Tab_Uderor[R$],Tab_Uderor[Competencia],Entrada!AD$7,Tab_Uderor[TipoReceita],Entrada!$P12) -> 0 | AE12: =SUMIFS(Tab_Uderor[R$],Tab_Uderor[Competencia],Entrada!AE$7,Tab_Uderor[TipoReceita],Entrada!$P12) -> 0 | AF12: =SUMIFS(Tab_Uderor[R$],Tab_Uderor[Competencia],Entrada!AF$7,Tab_Uderor[TipoReceita],Entrada!$P12) -> 0 | AG12: =SUMIFS(Tab_Uderor[R$],Tab_Uderor[Competencia],Entrada!AG$7,Tab_Uderor[TipoReceita],Entrada!$P12) -> 0 | AH12: =SUMIFS(Tab_Uderor[R$],Tab_Uderor[Competencia],Entrada!AH$7,Tab_Uderor[TipoReceita],Entrada!$P12) -> 0 | AI12: =SUMIFS(Tab_Uderor[R$],Tab_Uderor[Competencia],Entrada!AI$7,Tab_Uderor[TipoReceita],Entrada!$P12) -> 0 | AJ12: =SUMIFS(Tab_Uderor[R$],Tab_Uderor[Competencia],Entrada!AJ$7,Tab_Uderor[TipoReceita],Entrada!$P12) -> 0 | AK12: =SUMIFS(Tab_Uderor[R$],Tab_Uderor[Competencia],Entrada!AK$7,Tab_Uderor[TipoReceita],Entrada!$P12) -> 0 | AL12: =SUMIFS(Tab_Uderor[R$],Tab_Uderor[Competencia],Entrada!AL$7,Tab_Uderor[TipoReceita],Entrada!$P12) -> 0 | AM12: =SUMIFS(Tab_Uderor[R$],Tab_Uderor[Competencia],Entrada!AM$7,Tab_Uderor[TipoReceita],Entrada!$P12) -> 0 | AN12: =SUMIFS(Tab_Uderor[R$],Tab_Uderor[Competencia],Entrada!AN$7,Tab_Uderor[TipoReceita],Entrada!$P12) -> 0 | AO12: =SUMIFS(Tab_Uderor[R$],Tab_Uderor[Competencia],Entrada!AO$7,Tab_Uderor[TipoReceita],Entrada!$P12) -> 0 | AP12: =SUMIFS(Tab_Uderor[R$],Tab_Uderor[Competencia],Entrada!AP$7,Tab_Uderor[TipoReceita],Entrada!$P12) -> 0 | AQ12: =SUMIFS(Tab_Uderor[R$],Tab_Uderor[Competencia],Entrada!AQ$7,Tab_Uderor[TipoReceita],Entrada!$P12) -> 0 | AR12: =SUMIFS(Tab_Uderor[R$],Tab_Uderor[Competencia],Entrada!AR$7,Tab_Uderor[TipoReceita],Entrada!$P12) -> 0 | AS12: =SUMIFS(Tab_Uderor[R$],Tab_Uderor[Competencia],Entrada!AS$7,Tab_Uderor[TipoReceita],Entrada!$P12) -> 0 | AT12: =SUMIFS(Tab_Uderor[R$],Tab_Uderor[Competencia],Entrada!AT$7,Tab_Uderor[TipoReceita],Entrada!$P12) -> 0 | AU12: =SUMIFS(Tab_Uderor[R$],Tab_Uderor[Competencia],Entrada!AU$7,Tab_Uderor[TipoReceita],Entrada!$P12) -> 0 | AV12: =SUMIFS(Tab_Uderor[R$],Tab_Uderor[Competencia],Entrada!AV$7,Tab_Uderor[TipoReceita],Entrada!$P12) -> 0 | AW12: =SUMIFS(Tab_Uderor[R$],Tab_Uderor[Competencia],Entrada!AW$7,Tab_Uderor[TipoReceita],Entrada!$P12) -> 0 | AX12: =SUMIFS(Tab_Uderor[R$],Tab_Uderor[Competencia],Entrada!AX$7,Tab_Uderor[TipoReceita],Entrada!$P12) -> 0 | AY12: =SUMIFS(Tab_Uderor[R$],Tab_Uderor[Competencia],Entrada!AY$7,Tab_Uderor[TipoReceita],Entrada!$P12) -> 0 | AZ12: =SUMIFS(Tab_Uderor[R$],Tab_Uderor[Competencia],Entrada!AZ$7,Tab_Uderor[TipoReceita],Entrada!$P12) -> 0
F13: (7) AIS Líquido (Valor de Mercado em Uso) | G13: =G7-G12 ->  | J13: BMP - 610530506; 610550506; 610532506; 610552506 | K13: Despesas Rescisórias | L13: =SUMIFS(Tab_RIT_BMP[SALDO],Tab_RIT_BMP[CONTA],610530506,Tab_RIT_BMP[ANO],$L$7)+SUMIFS(Tab_RIT_BMP[SALDO],Tab_RIT_BMP[CONTA],610550506,Tab_RIT_BMP[ANO],$L$7)+ SUMIFS(Tab_RIT_BMP[SALDO],Tab_RIT_BMP[CONTA],610532506,Tab_RIT_BMP[ANO],$L$7)+SUMIFS(Tab_RIT_BMP[SALDO],Tab_RIT_BMP[CONTA],610552506,Tab_RIT_BMP[ANO],$L$7) -> 0 | M13: =SUMIFS(Tab_RIT_BMP[SALDO],Tab_RIT_BMP[CONTA],610530506,Tab_RIT_BMP[ANO],$M$7)+SUMIFS(Tab_RIT_BMP[SALDO],Tab_RIT_BMP[CONTA],610550506,Tab_RIT_BMP[ANO],$M$7)+ SUMIFS(Tab_RIT_BMP[SALDO],Tab_RIT_BMP[CONTA],610532506,Tab_RIT_BMP[ANO],$M$7)+SUMIFS(Tab_RIT_BMP[SALDO],Tab_RIT_BMP[CONTA],610552506,Tab_RIT_BMP[ANO],$M$7) -> 0 | P13: Compartilhamento de infraestrutura | Q13: =SUMIFS(Tab_Uderor[R$],Tab_Uderor[Competencia],Entrada!Q$7,Tab_Uderor[TipoReceita],Entrada!$P13) -> 0 | R13: =SUMIFS(Tab_Uderor[R$],Tab_Uderor[Competencia],Entrada!R$7,Tab_Uderor[TipoReceita],Entrada!$P13) -> 0 | S13: =SUMIFS(Tab_Uderor[R$],Tab_Uderor[Competencia],Entrada!S$7,Tab_Uderor[TipoReceita],Entrada!$P13) -> 0 | T13: =SUMIFS(Tab_Uderor[R$],Tab_Uderor[Competencia],Entrada!T$7,Tab_Uderor[TipoReceita],Entrada!$P13) -> 0 | U13: =SUMIFS(Tab_Uderor[R$],Tab_Uderor[Competencia],Entrada!U$7,Tab_Uderor[TipoReceita],Entrada!$P13) -> 0 | V13: =SUMIFS(Tab_Uderor[R$],Tab_Uderor[Competencia],Entrada!V$7,Tab_Uderor[TipoReceita],Entrada!$P13) -> 0 | W13: =SUMIFS(Tab_Uderor[R$],Tab_Uderor[Competencia],Entrada!W$7,Tab_Uderor[TipoReceita],Entrada!$P13) -> 0 | X13: =SUMIFS(Tab_Uderor[R$],Tab_Uderor[Competencia],Entrada!X$7,Tab_Uderor[TipoReceita],Entrada!$P13) -> 0 | Y13: =SUMIFS(Tab_Uderor[R$],Tab_Uderor[Competencia],Entrada!Y$7,Tab_Uderor[TipoReceita],Entrada!$P13) -> 0 | Z13: =SUMIFS(Tab_Uderor[R$],Tab_Uderor[Competencia],Entrada!Z$7,Tab_Uderor[TipoReceita],Entrada!$P13) -> 0 | AA13: =SUMIFS(Tab_Uderor[R$],Tab_Uderor[Competencia],Entrada!AA$7,Tab_Uderor[TipoReceita],Entrada!$P13) -> 0 | AB13: =SUMIFS(Tab_Uderor[R$],Tab_Uderor[Competencia],Entrada!AB$7,Tab_Uderor[TipoReceita],Entrada!$P13) -> 0 | AC13: =SUMIFS(Tab_Uderor[R$],Tab_Uderor[Competencia],Entrada!AC$7,Tab_Uderor[TipoReceita],Entrada!$P13) -> 0 | AD13: =SUMIFS(Tab_Uderor[R$],Tab_Uderor[Competencia],Entrada!AD$7,Tab_Uderor[TipoReceita],Entrada!$P13) -> 0 | AE13: =SUMIFS(Tab_Uderor[R$],Tab_Uderor[Competencia],Entrada!AE$7,Tab_Uderor[TipoReceita],Entrada!$P13) -> 0 | AF13: =SUMIFS(Tab_Uderor[R$],Tab_Uderor[Competencia],Entrada!AF$7,Tab_Uderor[TipoReceita],Entrada!$P13) -> 0 | AG13: =SUMIFS(Tab_Uderor[R$],Tab_Uderor[Competencia],Entrada!AG$7,Tab_Uderor[TipoReceita],Entrada!$P13) -> 0 | AH13: =SUMIFS(Tab_Uderor[R$],Tab_Uderor[Competencia],Entrada!AH$7,Tab_Uderor[TipoReceita],Entrada!$P13) -> 0 | AI13: =SUMIFS(Tab_Uderor[R$],Tab_Uderor[Competencia],Entrada!AI$7,Tab_Uderor[TipoReceita],Entrada!$P13) -> 0 | AJ13: =SUMIFS(Tab_Uderor[R$],Tab_Uderor[Competencia],Entrada!AJ$7,Tab_Uderor[TipoReceita],Entrada!$P13) -> 0 | AK13: =SUMIFS(Tab_Uderor[R$],Tab_Uderor[Competencia],Entrada!AK$7,Tab_Uderor[TipoReceita],Entrada!$P13) -> 0 | AL13: =SUMIFS(Tab_Uderor[R$],Tab_Uderor[Competencia],Entrada!AL$7,Tab_Uderor[TipoReceita],Entrada!$P13) -> 0 | AM13: =SUMIFS(Tab_Uderor[R$],Tab_Uderor[Competencia],Entrada!AM$7,Tab_Uderor[TipoReceita],Entrada!$P13) -> 0 | AN13: =SUMIFS(Tab_Uderor[R$],Tab_Uderor[Competencia],Entrada!AN$7,Tab_Uderor[TipoReceita],Entrada!$P13) -> 0 | AO13: =SUMIFS(Tab_Uderor[R$],Tab_Uderor[Competencia],Entrada!AO$7,Tab_Uderor[TipoReceita],Entrada!$P13) -> 0 | AP13: =SUMIFS(Tab_Uderor[R$],Tab_Uderor[Competencia],Entrada!AP$7,Tab_Uderor[TipoReceita],Entrada!$P13) -> 0 | AQ13: =SUMIFS(Tab_Uderor[R$],Tab_Uderor[Competencia],Entrada!AQ$7,Tab_Uderor[TipoReceita],Entrada!$P13) -> 0 | AR13: =SUMIFS(Tab_Uderor[R$],Tab_Uderor[Competencia],Entrada!AR$7,Tab_Uderor[TipoReceita],Entrada!$P13) -> 0 | AS13: =SUMIFS(Tab_Uderor[R$],Tab_Uderor[Competencia],Entrada!AS$7,Tab_Uderor[TipoReceita],Entrada!$P13) -> 0 | AT13: =SUMIFS(Tab_Uderor[R$],Tab_Uderor[Competencia],Entrada!AT$7,Tab_Uderor[TipoReceita],Entrada!$P13) -> 0 | AU13: =SUMIFS(Tab_Uderor[R$],Tab_Uderor[Competencia],Entrada!AU$7,Tab_Uderor[TipoReceita],Entrada!$P13) -> 0 | AV13: =SUMIFS(Tab_Uderor[R$],Tab_Uderor[Competencia],Entrada!AV$7,Tab_Uderor[TipoReceita],Entrada!$P13) -> 0 | AW13: =SUMIFS(Tab_Uderor[R$],Tab_Uderor[Competencia],Entrada!AW$7,Tab_Uderor[TipoReceita],Entrada!$P13) -> 0 | AX13: =SUMIFS(Tab_Uderor[R$],Tab_Uderor[Competencia],Entrada!AX$7,Tab_Uderor[TipoReceita],Entrada!$P13) -> 0 | AY13: =SUMIFS(Tab_Uderor[R$],Tab_Uderor[Competencia],Entrada!AY$7,Tab_Uderor[TipoReceita],Entrada!$P13) -> 0 | AZ13: =SUMIFS(Tab_Uderor[R$],Tab_Uderor[Competencia],Entrada!AZ$7,Tab_Uderor[TipoReceita],Entrada!$P13) -> 0
F14: (8) Índice de Aproveitamento Depreciado | G14: =G80*VLOOKUP(DATE(YEAR(CAPA!$C$10),MONTH(CAPA!$C$10)-1,1),Índices!$B$135:$D$638,3,0)/VLOOKUP(DATE(YEAR($G$72),MONTH($G$72)-1,1),Índices!$B$135:$D$638,3,0) ->  | J14: BMP - 610530507; 610550507; 610532507; 610552507 | K14: Participação nos Lucros e Resultados - PLR | L14: =SUMIFS(Tab_RIT_BMP[SALDO],Tab_RIT_BMP[CONTA],610530507,Tab_RIT_BMP[ANO],$L$7)+SUMIFS(Tab_RIT_BMP[SALDO],Tab_RIT_BMP[CONTA],610550507,Tab_RIT_BMP[ANO],$L$7)+SUMIFS(Tab_RIT_BMP[SALDO],Tab_RIT_BMP[CONTA],610532507,Tab_RIT_BMP[ANO],$L$7)+SUMIFS(Tab_RIT_BMP[SALDO],Tab_RIT_BMP[CONTA],610552507,Tab_RIT_BMP[ANO],$L$7) -> 0 | M14: =SUMIFS(Tab_RIT_BMP[SALDO],Tab_RIT_BMP[CONTA],610530507,Tab_RIT_BMP[ANO],$M$7)+SUMIFS(Tab_RIT_BMP[SALDO],Tab_RIT_BMP[CONTA],610550507,Tab_RIT_BMP[ANO],$M$7)+ SUMIFS(Tab_RIT_BMP[SALDO],Tab_RIT_BMP[CONTA],610532507,Tab_RIT_BMP[ANO],$M$7)+SUMIFS(Tab_RIT_BMP[SALDO],Tab_RIT_BMP[CONTA],610552507,Tab_RIT_BMP[ANO],$M$7) -> 0 | P14: Serviços de avaliação técnica e aferição de medidores. | Q14: =SUMIFS(Tab_Uderor[R$],Tab_Uderor[Competencia],Entrada!Q$7,Tab_Uderor[TipoReceita],Entrada!$P14) -> 0 | R14: =SUMIFS(Tab_Uderor[R$],Tab_Uderor[Competencia],Entrada!R$7,Tab_Uderor[TipoReceita],Entrada!$P14) -> 0 | S14: =SUMIFS(Tab_Uderor[R$],Tab_Uderor[Competencia],Entrada!S$7,Tab_Uderor[TipoReceita],Entrada!$P14) -> 0 | T14: =SUMIFS(Tab_Uderor[R$],Tab_Uderor[Competencia],Entrada!T$7,Tab_Uderor[TipoReceita],Entrada!$P14) -> 0 | U14: =SUMIFS(Tab_Uderor[R$],Tab_Uderor[Competencia],Entrada!U$7,Tab_Uderor[TipoReceita],Entrada!$P14) -> 0 | V14: =SUMIFS(Tab_Uderor[R$],Tab_Uderor[Competencia],Entrada!V$7,Tab_Uderor[TipoReceita],Entrada!$P14) -> 0 | W14: =SUMIFS(Tab_Uderor[R$],Tab_Uderor[Competencia],Entrada!W$7,Tab_Uderor[TipoReceita],Entrada!$P14) -> 0 | X14: =SUMIFS(Tab_Uderor[R$],Tab_Uderor[Competencia],Entrada!X$7,Tab_Uderor[TipoReceita],Entrada!$P14) -> 0 | Y14: =SUMIFS(Tab_Uderor[R$],Tab_Uderor[Competencia],Entrada!Y$7,Tab_Uderor[TipoReceita],Entrada!$P14) -> 0 | Z14: =SUMIFS(Tab_Uderor[R$],Tab_Uderor[Competencia],Entrada!Z$7,Tab_Uderor[TipoReceita],Entrada!$P14) -> 0 | AA14: =SUMIFS(Tab_Uderor[R$],Tab_Uderor[Competencia],Entrada!AA$7,Tab_Uderor[TipoReceita],Entrada!$P14) -> 0 | AB14: =SUMIFS(Tab_Uderor[R$],Tab_Uderor[Competencia],Entrada!AB$7,Tab_Uderor[TipoReceita],Entrada!$P14) -> 0 | AC14: =SUMIFS(Tab_Uderor[R$],Tab_Uderor[Competencia],Entrada!AC$7,Tab_Uderor[TipoReceita],Entrada!$P14) -> 0 | AD14: =SUMIFS(Tab_Uderor[R$],Tab_Uderor[Competencia],Entrada!AD$7,Tab_Uderor[TipoReceita],Entrada!$P14) -> 0 | AE14: =SUMIFS(Tab_Uderor[R$],Tab_Uderor[Competencia],Entrada!AE$7,Tab_Uderor[TipoReceita],Entrada!$P14) -> 0 | AF14: =SUMIFS(Tab_Uderor[R$],Tab_Uderor[Competencia],Entrada!AF$7,Tab_Uderor[TipoReceita],Entrada!$P14) -> 0 | AG14: =SUMIFS(Tab_Uderor[R$],Tab_Uderor[Competencia],Entrada!AG$7,Tab_Uderor[TipoReceita],Entrada!$P14) -> 0 | AH14: =SUMIFS(Tab_Uderor[R$],Tab_Uderor[Competencia],Entrada!AH$7,Tab_Uderor[TipoReceita],Entrada!$P14) -> 0 | AI14: =SUMIFS(Tab_Uderor[R$],Tab_Uderor[Competencia],Entrada!AI$7,Tab_Uderor[TipoReceita],Entrada!$P14) -> 0 | AJ14: =SUMIFS(Tab_Uderor[R$],Tab_Uderor[Competencia],Entrada!AJ$7,Tab_Uderor[TipoReceita],Entrada!$P14) -> 0 | AK14: =SUMIFS(Tab_Uderor[R$],Tab_Uderor[Competencia],Entrada!AK$7,Tab_Uderor[TipoReceita],Entrada!$P14) -> 0 | AL14: =SUMIFS(Tab_Uderor[R$],Tab_Uderor[Competencia],Entrada!AL$7,Tab_Uderor[TipoReceita],Entrada!$P14) -> 0 | AM14: =SUMIFS(Tab_Uderor[R$],Tab_Uderor[Competencia],Entrada!AM$7,Tab_Uderor[TipoReceita],Entrada!$P14) -> 0 | AN14: =SUMIFS(Tab_Uderor[R$],Tab_Uderor[Competencia],Entrada!AN$7,Tab_Uderor[TipoReceita],Entrada!$P14) -> 0 | AO14: =SUMIFS(Tab_Uderor[R$],Tab_Uderor[Competencia],Entrada!AO$7,Tab_Uderor[TipoReceita],Entrada!$P14) -> 0 | AP14: =SUMIFS(Tab_Uderor[R$],Tab_Uderor[Competencia],Entrada!AP$7,Tab_Uderor[TipoReceita],Entrada!$P14) -> 0 | AQ14: =SUMIFS(Tab_Uderor[R$],Tab_Uderor[Competencia],Entrada!AQ$7,Tab_Uderor[TipoReceita],Entrada!$P14) -> 0 | AR14: =SUMIFS(Tab_Uderor[R$],Tab_Uderor[Competencia],Entrada!AR$7,Tab_Uderor[TipoReceita],Entrada!$P14) -> 0 | AS14: =SUMIFS(Tab_Uderor[R$],Tab_Uderor[Competencia],Entrada!AS$7,Tab_Uderor[TipoReceita],Entrada!$P14) -> 0 | AT14: =SUMIFS(Tab_Uderor[R$],Tab_Uderor[Competencia],Entrada!AT$7,Tab_Uderor[TipoReceita],Entrada!$P14) -> 0 | AU14: =SUMIFS(Tab_Uderor[R$],Tab_Uderor[Competencia],Entrada!AU$7,Tab_Uderor[TipoReceita],Entrada!$P14) -> 0 | AV14: =SUMIFS(Tab_Uderor[R$],Tab_Uderor[Competencia],Entrada!AV$7,Tab_Uderor[TipoReceita],Entrada!$P14) -> 0 | AW14: =SUMIFS(Tab_Uderor[R$],Tab_Uderor[Competencia],Entrada!AW$7,Tab_Uderor[TipoReceita],Entrada!$P14) -> 0 | AX14: =SUMIFS(Tab_Uderor[R$],Tab_Uderor[Competencia],Entrada!AX$7,Tab_Uderor[TipoReceita],Entrada!$P14) -> 0 | AY14: =SUMIFS(Tab_Uderor[R$],Tab_Uderor[Competencia],Entrada!AY$7,Tab_Uderor[TipoReceita],Entrada!$P14) -> 0 | AZ14: =SUMIFS(Tab_Uderor[R$],Tab_Uderor[Competencia],Entrada!AZ$7,Tab_Uderor[TipoReceita],Entrada!$P14) -> 0
F15: (9) Valor da Base de Remuneração (VBR) | G15: =G13-G14 ->  | J15: BMP - 610530599; 610550599; 610532599; 610552599 | K15: Outros | L15: =SUMIFS(Tab_RIT_BMP[SALDO],Tab_RIT_BMP[CONTA],610530599,Tab_RIT_BMP[ANO],$L$7)+SUMIFS(Tab_RIT_BMP[SALDO],Tab_RIT_BMP[CONTA],610550599,Tab_RIT_BMP[ANO],$L$7)+ SUMIFS(Tab_RIT_BMP[SALDO],Tab_RIT_BMP[CONTA],610532599,Tab_RIT_BMP[ANO],$L$7)+SUMIFS(Tab_RIT_BMP[SALDO],Tab_RIT_BMP[CONTA],610552599,Tab_RIT_BMP[ANO],$L$7) -> 0 | M15: =SUMIFS(Tab_RIT_BMP[SALDO],Tab_RIT_BMP[CONTA],610530599,Tab_RIT_BMP[ANO],$M$7)+SUMIFS(Tab_RIT_BMP[SALDO],Tab_RIT_BMP[CONTA],610550599,Tab_RIT_BMP[ANO],$M$7)+ SUMIFS(Tab_RIT_BMP[SALDO],Tab_RIT_BMP[CONTA],610532599,Tab_RIT_BMP[ANO],$M$7)+SUMIFS(Tab_RIT_BMP[SALDO],Tab_RIT_BMP[CONTA],610552599,Tab_RIT_BMP[ANO],$M$7) -> 0 | P15: Operacionalização de serviço de créditos tributários | Q15: =SUMIFS(Tab_Uderor[R$],Tab_Uderor[Competencia],Entrada!Q$7,Tab_Uderor[TipoReceita],Entrada!$P15) -> 0 | R15: =SUMIFS(Tab_Uderor[R$],Tab_Uderor[Competencia],Entrada!R$7,Tab_Uderor[TipoReceita],Entrada!$P15) -> 0 | S15: =SUMIFS(Tab_Uderor[R$],Tab_Uderor[Competencia],Entrada!S$7,Tab_Uderor[TipoReceita],Entrada!$P15) -> 0 | T15: =SUMIFS(Tab_Uderor[R$],Tab_Uderor[Competencia],Entrada!T$7,Tab_Uderor[TipoReceita],Entrada!$P15) -> 0 | U15: =SUMIFS(Tab_Uderor[R$],Tab_Uderor[Competencia],Entrada!U$7,Tab_Uderor[TipoReceita],Entrada!$P15) -> 0 | V15: =SUMIFS(Tab_Uderor[R$],Tab_Uderor[Competencia],Entrada!V$7,Tab_Uderor[TipoReceita],Entrada!$P15) -> 0 | W15: =SUMIFS(Tab_Uderor[R$],Tab_Uderor[Competencia],Entrada!W$7,Tab_Uderor[TipoReceita],Entrada!$P15) -> 0 | X15: =SUMIFS(Tab_Uderor[R$],Tab_Uderor[Competencia],Entrada!X$7,Tab_Uderor[TipoReceita],Entrada!$P15) -> 0 | Y15: =SUMIFS(Tab_Uderor[R$],Tab_Uderor[Competencia],Entrada!Y$7,Tab_Uderor[TipoReceita],Entrada!$P15) -> 0 | Z15: =SUMIFS(Tab_Uderor[R$],Tab_Uderor[Competencia],Entrada!Z$7,Tab_Uderor[TipoReceita],Entrada!$P15) -> 0 | AA15: =SUMIFS(Tab_Uderor[R$],Tab_Uderor[Competencia],Entrada!AA$7,Tab_Uderor[TipoReceita],Entrada!$P15) -> 0 | AB15: =SUMIFS(Tab_Uderor[R$],Tab_Uderor[Competencia],Entrada!AB$7,Tab_Uderor[TipoReceita],Entrada!$P15) -> 0 | AC15: =SUMIFS(Tab_Uderor[R$],Tab_Uderor[Competencia],Entrada!AC$7,Tab_Uderor[TipoReceita],Entrada!$P15) -> 0 | AD15: =SUMIFS(Tab_Uderor[R$],Tab_Uderor[Competencia],Entrada!AD$7,Tab_Uderor[TipoReceita],Entrada!$P15) -> 0 | AE15: =SUMIFS(Tab_Uderor[R$],Tab_Uderor[Competencia],Entrada!AE$7,Tab_Uderor[TipoReceita],Entrada!$P15) -> 0 | AF15: =SUMIFS(Tab_Uderor[R$],Tab_Uderor[Competencia],Entrada!AF$7,Tab_Uderor[TipoReceita],Entrada!$P15) -> 0 | AG15: =SUMIFS(Tab_Uderor[R$],Tab_Uderor[Competencia],Entrada!AG$7,Tab_Uderor[TipoReceita],Entrada!$P15) -> 0 | AH15: =SUMIFS(Tab_Uderor[R$],Tab_Uderor[Competencia],Entrada!AH$7,Tab_Uderor[TipoReceita],Entrada!$P15) -> 0 | AI15: =SUMIFS(Tab_Uderor[R$],Tab_Uderor[Competencia],Entrada!AI$7,Tab_Uderor[TipoReceita],Entrada!$P15) -> 0 | AJ15: =SUMIFS(Tab_Uderor[R$],Tab_Uderor[Competencia],Entrada!AJ$7,Tab_Uderor[TipoReceita],Entrada!$P15) -> 0 | AK15: =SUMIFS(Tab_Uderor[R$],Tab_Uderor[Competencia],Entrada!AK$7,Tab_Uderor[TipoReceita],Entrada!$P15) -> 0 | AL15: =SUMIFS(Tab_Uderor[R$],Tab_Uderor[Competencia],Entrada!AL$7,Tab_Uderor[TipoReceita],Entrada!$P15) -> 0 | AM15: =SUMIFS(Tab_Uderor[R$],Tab_Uderor[Competencia],Entrada!AM$7,Tab_Uderor[TipoReceita],Entrada!$P15) -> 0 | AN15: =SUMIFS(Tab_Uderor[R$],Tab_Uderor[Competencia],Entrada!AN$7,Tab_Uderor[TipoReceita],Entrada!$P15) -> 0 | AO15: =SUMIFS(Tab_Uderor[R$],Tab_Uderor[Competencia],Entrada!AO$7,Tab_Uderor[TipoReceita],Entrada!$P15) -> 0 | AP15: =SUMIFS(Tab_Uderor[R$],Tab_Uderor[Competencia],Entrada!AP$7,Tab_Uderor[TipoReceita],Entrada!$P15) -> 0 | AQ15: =SUMIFS(Tab_Uderor[R$],Tab_Uderor[Competencia],Entrada!AQ$7,Tab_Uderor[TipoReceita],Entrada!$P15) -> 0 | AR15: =SUMIFS(Tab_Uderor[R$],Tab_Uderor[Competencia],Entrada!AR$7,Tab_Uderor[TipoReceita],Entrada!$P15) -> 0 | AS15: =SUMIFS(Tab_Uderor[R$],Tab_Uderor[Competencia],Entrada!AS$7,Tab_Uderor[TipoReceita],Entrada!$P15) -> 0 | AT15: =SUMIFS(Tab_Uderor[R$],Tab_Uderor[Competencia],Entrada!AT$7,Tab_Uderor[TipoReceita],Entrada!$P15) -> 0 | AU15: =SUMIFS(Tab_Uderor[R$],Tab_Uderor[Competencia],Entrada!AU$7,Tab_Uderor[TipoReceita],Entrada!$P15) -> 0 | AV15: =SUMIFS(Tab_Uderor[R$],Tab_Uderor[Competencia],Entrada!AV$7,Tab_Uderor[TipoReceita],Entrada!$P15) -> 0 | AW15: =SUMIFS(Tab_Uderor[R$],Tab_Uderor[Competencia],Entrada!AW$7,Tab_Uderor[TipoReceita],Entrada!$P15) -> 0 | AX15: =SUMIFS(Tab_Uderor[R$],Tab_Uderor[Competencia],Entrada!AX$7,Tab_Uderor[TipoReceita],Entrada!$P15) -> 0 | AY15: =SUMIFS(Tab_Uderor[R$],Tab_Uderor[Competencia],Entrada!AY$7,Tab_Uderor[TipoReceita],Entrada!$P15) -> 0 | AZ15: =SUMIFS(Tab_Uderor[R$],Tab_Uderor[Competencia],Entrada!AZ$7,Tab_Uderor[TipoReceita],Entrada!$P15) -> 0
F16: (10) Almoxarifado em Operação | G16: =G82*VLOOKUP(DATE(YEAR(CAPA!$C$10),MONTH(CAPA!$C$10)-1,1),Índices!$B$135:$D$638,3,0)/VLOOKUP(DATE(YEAR($G$72),MONTH($G$72)-1,1),Índices!$B$135:$D$638,3,0) ->  | J16: BMP - 610530510; 610550510; 610532510; 610552510 | K16: (-) Créditos de Tributos Recuperáveis | L16: =SUMIFS(Tab_RIT_BMP[SALDO],Tab_RIT_BMP[CONTA],610530510,Tab_RIT_BMP[ANO],$L$7)+SUMIFS(Tab_RIT_BMP[SALDO],Tab_RIT_BMP[CONTA],610550510,Tab_RIT_BMP[ANO],$L$7)+ SUMIFS(Tab_RIT_BMP[SALDO],Tab_RIT_BMP[CONTA],610532510,Tab_RIT_BMP[ANO],$L$7)+SUMIFS(Tab_RIT_BMP[SALDO],Tab_RIT_BMP[CONTA],610552510,Tab_RIT_BMP[ANO],$L$7) -> 0 | M16: =SUMIFS(Tab_RIT_BMP[SALDO],Tab_RIT_BMP[CONTA],610530510,Tab_RIT_BMP[ANO],$M$7)+SUMIFS(Tab_RIT_BMP[SALDO],Tab_RIT_BMP[CONTA],610550510,Tab_RIT_BMP[ANO],$M$7)+ SUMIFS(Tab_RIT_BMP[SALDO],Tab_RIT_BMP[CONTA],610532510,Tab_RIT_BMP[ANO],$M$7)+SUMIFS(Tab_RIT_BMP[SALDO],Tab_RIT_BMP[CONTA],610552510,Tab_RIT_BMP[ANO],$M$7) -> 0 | P16: Elaboração de projeto, construção, operação, manutenção ou reforma de:
F17: (11) Ativo Diferido | G17: =G83*VLOOKUP(DATE(YEAR(CAPA!$C$10),MONTH(CAPA!$C$10)-1,1),Índices!$B$135:$D$638,3,0)/VLOOKUP(DATE(YEAR($G$72),MONTH($G$72)-1,1),Índices!$B$135:$D$638,3,0) ->  | J17: BMP - 6105306; 6105506; 6105326; 6105526 | K17: Administradores | L17: =SUMIFS(Tab_RIT_BMP[SALDO],Tab_RIT_BMP[CONTA],6105306,Tab_RIT_BMP[ANO],$L$7)+SUMIFS(Tab_RIT_BMP[SALDO],Tab_RIT_BMP[CONTA],6105506,Tab_RIT_BMP[ANO],$L$7)+ SUMIFS(Tab_RIT_BMP[SALDO],Tab_RIT_BMP[CONTA],6105326,Tab_RIT_BMP[ANO],$L$7)+SUMIFS(Tab_RIT_BMP[SALDO],Tab_RIT_BMP[CONTA],6105526,Tab_RIT_BMP[ANO],$L$7) -> 0 | M17: =SUMIFS(Tab_RIT_BMP[SALDO],Tab_RIT_BMP[CONTA],6105306,Tab_RIT_BMP[ANO],$M$7)+SUMIFS(Tab_RIT_BMP[SALDO],Tab_RIT_BMP[CONTA],6105506,Tab_RIT_BMP[ANO],$M$7)+ SUMIFS(Tab_RIT_BMP[SALDO],Tab_RIT_BMP[CONTA],6105326,Tab_RIT_BMP[ANO],$M$7)+SUMIFS(Tab_RIT_BMP[SALDO],Tab_RIT_BMP[CONTA],6105526,Tab_RIT_BMP[ANO],$M$7) -> 0 | P17: (1) redes de distribuição de energia elétrica destinadas à regularização fundiária de interesse específico e ao atendimento dos empreendimentos de múltiplas unidades consumidoras; | Q17: =SUMIFS(Tab_Uderor[R$],Tab_Uderor[Competencia],Entrada!Q$7,Tab_Uderor[TipoReceita],Entrada!$P17) -> 0 | R17: =SUMIFS(Tab_Uderor[R$],Tab_Uderor[Competencia],Entrada!R$7,Tab_Uderor[TipoReceita],Entrada!$P17) -> 0 | S17: =SUMIFS(Tab_Uderor[R$],Tab_Uderor[Competencia],Entrada!S$7,Tab_Uderor[TipoReceita],Entrada!$P17) -> 0 | T17: =SUMIFS(Tab_Uderor[R$],Tab_Uderor[Competencia],Entrada!T$7,Tab_Uderor[TipoReceita],Entrada!$P17) -> 0 | U17: =SUMIFS(Tab_Uderor[R$],Tab_Uderor[Competencia],Entrada!U$7,Tab_Uderor[TipoReceita],Entrada!$P17) -> 0 | V17: =SUMIFS(Tab_Uderor[R$],Tab_Uderor[Competencia],Entrada!V$7,Tab_Uderor[TipoReceita],Entrada!$P17) -> 0 | W17: =SUMIFS(Tab_Uderor[R$],Tab_Uderor[Competencia],Entrada!W$7,Tab_Uderor[TipoReceita],Entrada!$P17) -> 0 | X17: =SUMIFS(Tab_Uderor[R$],Tab_Uderor[Competencia],Entrada!X$7,Tab_Uderor[TipoReceita],Entrada!$P17) -> 0 | Y17: =SUMIFS(Tab_Uderor[R$],Tab_Uderor[Competencia],Entrada!Y$7,Tab_Uderor[TipoReceita],Entrada!$P17) -> 0 | Z17: =SUMIFS(Tab_Uderor[R$],Tab_Uderor[Competencia],Entrada!Z$7,Tab_Uderor[TipoReceita],Entrada!$P17) -> 0 | AA17: =SUMIFS(Tab_Uderor[R$],Tab_Uderor[Competencia],Entrada!AA$7,Tab_Uderor[TipoReceita],Entrada!$P17) -> 0 | AB17: =SUMIFS(Tab_Uderor[R$],Tab_Uderor[Competencia],Entrada!AB$7,Tab_Uderor[TipoReceita],Entrada!$P17) -> 0 | AC17: =SUMIFS(Tab_Uderor[R$],Tab_Uderor[Competencia],Entrada!AC$7,Tab_Uderor[TipoReceita],Entrada!$P17) -> 0 | AD17: =SUMIFS(Tab_Uderor[R$],Tab_Uderor[Competencia],Entrada!AD$7,Tab_Uderor[TipoReceita],Entrada!$P17) -> 0 | AE17: =SUMIFS(Tab_Uderor[R$],Tab_Uderor[Competencia],Entrada!AE$7,Tab_Uderor[TipoReceita],Entrada!$P17) -> 0 | AF17: =SUMIFS(Tab_Uderor[R$],Tab_Uderor[Competencia],Entrada!AF$7,Tab_Uderor[TipoReceita],Entrada!$P17) -> 0 | AG17: =SUMIFS(Tab_Uderor[R$],Tab_Uderor[Competencia],Entrada!AG$7,Tab_Uderor[TipoReceita],Entrada!$P17) -> 0 | AH17: =SUMIFS(Tab_Uderor[R$],Tab_Uderor[Competencia],Entrada!AH$7,Tab_Uderor[TipoReceita],Entrada!$P17) -> 0 | AI17: =SUMIFS(Tab_Uderor[R$],Tab_Uderor[Competencia],Entrada!AI$7,Tab_Uderor[TipoReceita],Entrada!$P17) -> 0 | AJ17: =SUMIFS(Tab_Uderor[R$],Tab_Uderor[Competencia],Entrada!AJ$7,Tab_Uderor[TipoReceita],Entrada!$P17) -> 0 | AK17: =SUMIFS(Tab_Uderor[R$],Tab_Uderor[Competencia],Entrada!AK$7,Tab_Uderor[TipoReceita],Entrada!$P17) -> 0 | AL17: =SUMIFS(Tab_Uderor[R$],Tab_Uderor[Competencia],Entrada!AL$7,Tab_Uderor[TipoReceita],Entrada!$P17) -> 0 | AM17: =SUMIFS(Tab_Uderor[R$],Tab_Uderor[Competencia],Entrada!AM$7,Tab_Uderor[TipoReceita],Entrada!$P17) -> 0 | AN17: =SUMIFS(Tab_Uderor[R$],Tab_Uderor[Competencia],Entrada!AN$7,Tab_Uderor[TipoReceita],Entrada!$P17) -> 0 | AO17: =SUMIFS(Tab_Uderor[R$],Tab_Uderor[Competencia],Entrada!AO$7,Tab_Uderor[TipoReceita],Entrada!$P17) -> 0 | AP17: =SUMIFS(Tab_Uderor[R$],Tab_Uderor[Competencia],Entrada!AP$7,Tab_Uderor[TipoReceita],Entrada!$P17) -> 0 | AQ17: =SUMIFS(Tab_Uderor[R$],Tab_Uderor[Competencia],Entrada!AQ$7,Tab_Uderor[TipoReceita],Entrada!$P17) -> 0 | AR17: =SUMIFS(Tab_Uderor[R$],Tab_Uderor[Competencia],Entrada!AR$7,Tab_Uderor[TipoReceita],Entrada!$P17) -> 0 | AS17: =SUMIFS(Tab_Uderor[R$],Tab_Uderor[Competencia],Entrada!AS$7,Tab_Uderor[TipoReceita],Entrada!$P17) -> 0 | AT17: =SUMIFS(Tab_Uderor[R$],Tab_Uderor[Competencia],Entrada!AT$7,Tab_Uderor[TipoReceita],Entrada!$P17) -> 0 | AU17: =SUMIFS(Tab_Uderor[R$],Tab_Uderor[Competencia],Entrada!AU$7,Tab_Uderor[TipoReceita],Entrada!$P17) -> 0 | AV17: =SUMIFS(Tab_Uderor[R$],Tab_Uderor[Competencia],Entrada!AV$7,Tab_Uderor[TipoReceita],Entrada!$P17) -> 0 | AW17: =SUMIFS(Tab_Uderor[R$],Tab_Uderor[Competencia],Entrada!AW$7,Tab_Uderor[TipoReceita],Entrada!$P17) -> 0 | AX17: =SUMIFS(Tab_Uderor[R$],Tab_Uderor[Competencia],Entrada!AX$7,Tab_Uderor[TipoReceita],Entrada!$P17) -> 0 | AY17: =SUMIFS(Tab_Uderor[R$],Tab_Uderor[Competencia],Entrada!AY$7,Tab_Uderor[TipoReceita],Entrada!$P17) -> 0 | AZ17: =SUMIFS(Tab_Uderor[R$],Tab_Uderor[Competencia],Entrada!AZ$7,Tab_Uderor[TipoReceita],Entrada!$P17) -> 0
F18: (12) Obrigações Especiais Líquida | G18: =G84*VLOOKUP(DATE(YEAR(CAPA!$C$10),MONTH(CAPA!$C$10)-1,1),Índices!$B$135:$D$638,3,0)/VLOOKUP(DATE(YEAR($G$72),MONTH($G$72)-1,1),Índices!$B$135:$D$638,3,0) ->  | K18: Subtotal | L18: =SUM(L9:L17) -> 0 | M18: =SUM(M9:M17) -> 0 | P18: (2) redes de energia elétrica destinadas ao acesso dos sistemas de distribuição ou transmissão; | Q18: =SUMIFS(Tab_Uderor[R$],Tab_Uderor[Competencia],Entrada!Q$7,Tab_Uderor[TipoReceita],Entrada!$P18) -> 0 | R18: =SUMIFS(Tab_Uderor[R$],Tab_Uderor[Competencia],Entrada!R$7,Tab_Uderor[TipoReceita],Entrada!$P18) -> 0 | S18: =SUMIFS(Tab_Uderor[R$],Tab_Uderor[Competencia],Entrada!S$7,Tab_Uderor[TipoReceita],Entrada!$P18) -> 0 | T18: =SUMIFS(Tab_Uderor[R$],Tab_Uderor[Competencia],Entrada!T$7,Tab_Uderor[TipoReceita],Entrada!$P18) -> 0 | U18: =SUMIFS(Tab_Uderor[R$],Tab_Uderor[Competencia],Entrada!U$7,Tab_Uderor[TipoReceita],Entrada!$P18) -> 0 | V18: =SUMIFS(Tab_Uderor[R$],Tab_Uderor[Competencia],Entrada!V$7,Tab_Uderor[TipoReceita],Entrada!$P18) -> 0 | W18: =SUMIFS(Tab_Uderor[R$],Tab_Uderor[Competencia],Entrada!W$7,Tab_Uderor[TipoReceita],Entrada!$P18) -> 0 | X18: =SUMIFS(Tab_Uderor[R$],Tab_Uderor[Competencia],Entrada!X$7,Tab_Uderor[TipoReceita],Entrada!$P18) -> 0 | Y18: =SUMIFS(Tab_Uderor[R$],Tab_Uderor[Competencia],Entrada!Y$7,Tab_Uderor[TipoReceita],Entrada!$P18) -> 0 | Z18: =SUMIFS(Tab_Uderor[R$],Tab_Uderor[Competencia],Entrada!Z$7,Tab_Uderor[TipoReceita],Entrada!$P18) -> 0 | AA18: =SUMIFS(Tab_Uderor[R$],Tab_Uderor[Competencia],Entrada!AA$7,Tab_Uderor[TipoReceita],Entrada!$P18) -> 0 | AB18: =SUMIFS(Tab_Uderor[R$],Tab_Uderor[Competencia],Entrada!AB$7,Tab_Uderor[TipoReceita],Entrada!$P18) -> 0 | AC18: =SUMIFS(Tab_Uderor[R$],Tab_Uderor[Competencia],Entrada!AC$7,Tab_Uderor[TipoReceita],Entrada!$P18) -> 0 | AD18: =SUMIFS(Tab_Uderor[R$],Tab_Uderor[Competencia],Entrada!AD$7,Tab_Uderor[TipoReceita],Entrada!$P18) -> 0 | AE18: =SUMIFS(Tab_Uderor[R$],Tab_Uderor[Competencia],Entrada!AE$7,Tab_Uderor[TipoReceita],Entrada!$P18) -> 0 | AF18: =SUMIFS(Tab_Uderor[R$],Tab_Uderor[Competencia],Entrada!AF$7,Tab_Uderor[TipoReceita],Entrada!$P18) -> 0 | AG18: =SUMIFS(Tab_Uderor[R$],Tab_Uderor[Competencia],Entrada!AG$7,Tab_Uderor[TipoReceita],Entrada!$P18) -> 0 | AH18: =SUMIFS(Tab_Uderor[R$],Tab_Uderor[Competencia],Entrada!AH$7,Tab_Uderor[TipoReceita],Entrada!$P18) -> 0 | AI18: =SUMIFS(Tab_Uderor[R$],Tab_Uderor[Competencia],Entrada!AI$7,Tab_Uderor[TipoReceita],Entrada!$P18) -> 0 | AJ18: =SUMIFS(Tab_Uderor[R$],Tab_Uderor[Competencia],Entrada!AJ$7,Tab_Uderor[TipoReceita],Entrada!$P18) -> 0 | AK18: =SUMIFS(Tab_Uderor[R$],Tab_Uderor[Competencia],Entrada!AK$7,Tab_Uderor[TipoReceita],Entrada!$P18) -> 0 | AL18: =SUMIFS(Tab_Uderor[R$],Tab_Uderor[Competencia],Entrada!AL$7,Tab_Uderor[TipoReceita],Entrada!$P18) -> 0 | AM18: =SUMIFS(Tab_Uderor[R$],Tab_Uderor[Competencia],Entrada!AM$7,Tab_Uderor[TipoReceita],Entrada!$P18) -> 0 | AN18: =SUMIFS(Tab_Uderor[R$],Tab_Uderor[Competencia],Entrada!AN$7,Tab_Uderor[TipoReceita],Entrada!$P18) -> 0 | AO18: =SUMIFS(Tab_Uderor[R$],Tab_Uderor[Competencia],Entrada!AO$7,Tab_Uderor[TipoReceita],Entrada!$P18) -> 0 | AP18: =SUMIFS(Tab_Uderor[R$],Tab_Uderor[Competencia],Entrada!AP$7,Tab_Uderor[TipoReceita],Entrada!$P18) -> 0 | AQ18: =SUMIFS(Tab_Uderor[R$],Tab_Uderor[Competencia],Entrada!AQ$7,Tab_Uderor[TipoReceita],Entrada!$P18) -> 0 | AR18: =SUMIFS(Tab_Uderor[R$],Tab_Uderor[Competencia],Entrada!AR$7,Tab_Uderor[TipoReceita],Entrada!$P18) -> 0 | AS18: =SUMIFS(Tab_Uderor[R$],Tab_Uderor[Competencia],Entrada!AS$7,Tab_Uderor[TipoReceita],Entrada!$P18) -> 0 | AT18: =SUMIFS(Tab_Uderor[R$],Tab_Uderor[Competencia],Entrada!AT$7,Tab_Uderor[TipoReceita],Entrada!$P18) -> 0 | AU18: =SUMIFS(Tab_Uderor[R$],Tab_Uderor[Competencia],Entrada!AU$7,Tab_Uderor[TipoReceita],Entrada!$P18) -> 0 | AV18: =SUMIFS(Tab_Uderor[R$],Tab_Uderor[Competencia],Entrada!AV$7,Tab_Uderor[TipoReceita],Entrada!$P18) -> 0 | AW18: =SUMIFS(Tab_Uderor[R$],Tab_Uderor[Competencia],Entrada!AW$7,Tab_Uderor[TipoReceita],Entrada!$P18) -> 0 | AX18: =SUMIFS(Tab_Uderor[R$],Tab_Uderor[Competencia],Entrada!AX$7,Tab_Uderor[TipoReceita],Entrada!$P18) -> 0 | AY18: =SUMIFS(Tab_Uderor[R$],Tab_Uderor[Competencia],Entrada!AY$7,Tab_Uderor[TipoReceita],Entrada!$P18) -> 0 | AZ18: =SUMIFS(Tab_Uderor[R$],Tab_Uderor[Competencia],Entrada!AZ$7,Tab_Uderor[TipoReceita],Entrada!$P18) -> 0
F19: (13) Terrenos e Servidões | G19: =G85*VLOOKUP(DATE(YEAR(CAPA!$C$10),MONTH(CAPA!$C$10)-1,1),Índices!$B$135:$D$638,3,0)/VLOOKUP(DATE(YEAR($G$72),MONTH($G$72)-1,1),Índices!$B$135:$D$638,3,0) ->  | J19: CONTA MATERIAIS | P19: (3) subestações de energia; | Q19: =SUMIFS(Tab_Uderor[R$],Tab_Uderor[Competencia],Entrada!Q$7,Tab_Uderor[TipoReceita],Entrada!$P19) -> 0 | R19: =SUMIFS(Tab_Uderor[R$],Tab_Uderor[Competencia],Entrada!R$7,Tab_Uderor[TipoReceita],Entrada!$P19) -> 0 | S19: =SUMIFS(Tab_Uderor[R$],Tab_Uderor[Competencia],Entrada!S$7,Tab_Uderor[TipoReceita],Entrada!$P19) -> 0 | T19: =SUMIFS(Tab_Uderor[R$],Tab_Uderor[Competencia],Entrada!T$7,Tab_Uderor[TipoReceita],Entrada!$P19) -> 0 | U19: =SUMIFS(Tab_Uderor[R$],Tab_Uderor[Competencia],Entrada!U$7,Tab_Uderor[TipoReceita],Entrada!$P19) -> 0 | V19: =SUMIFS(Tab_Uderor[R$],Tab_Uderor[Competencia],Entrada!V$7,Tab_Uderor[TipoReceita],Entrada!$P19) -> 0 | W19: =SUMIFS(Tab_Uderor[R$],Tab_Uderor[Competencia],Entrada!W$7,Tab_Uderor[TipoReceita],Entrada!$P19) -> 0 | X19: =SUMIFS(Tab_Uderor[R$],Tab_Uderor[Competencia],Entrada!X$7,Tab_Uderor[TipoReceita],Entrada!$P19) -> 0 | Y19: =SUMIFS(Tab_Uderor[R$],Tab_Uderor[Competencia],Entrada!Y$7,Tab_Uderor[TipoReceita],Entrada!$P19) -> 0 | Z19: =SUMIFS(Tab_Uderor[R$],Tab_Uderor[Competencia],Entrada!Z$7,Tab_Uderor[TipoReceita],Entrada!$P19) -> 0 | AA19: =SUMIFS(Tab_Uderor[R$],Tab_Uderor[Competencia],Entrada!AA$7,Tab_Uderor[TipoReceita],Entrada!$P19) -> 0 | AB19: =SUMIFS(Tab_Uderor[R$],Tab_Uderor[Competencia],Entrada!AB$7,Tab_Uderor[TipoReceita],Entrada!$P19) -> 0 | AC19: =SUMIFS(Tab_Uderor[R$],Tab_Uderor[Competencia],Entrada!AC$7,Tab_Uderor[TipoReceita],Entrada!$P19) -> 0 | AD19: =SUMIFS(Tab_Uderor[R$],Tab_Uderor[Competencia],Entrada!AD$7,Tab_Uderor[TipoReceita],Entrada!$P19) -> 0 | AE19: =SUMIFS(Tab_Uderor[R$],Tab_Uderor[Competencia],Entrada!AE$7,Tab_Uderor[TipoReceita],Entrada!$P19) -> 0 | AF19: =SUMIFS(Tab_Uderor[R$],Tab_Uderor[Competencia],Entrada!AF$7,Tab_Uderor[TipoReceita],Entrada!$P19) -> 0 | AG19: =SUMIFS(Tab_Uderor[R$],Tab_Uderor[Competencia],Entrada!AG$7,Tab_Uderor[TipoReceita],Entrada!$P19) -> 0 | AH19: =SUMIFS(Tab_Uderor[R$],Tab_Uderor[Competencia],Entrada!AH$7,Tab_Uderor[TipoReceita],Entrada!$P19) -> 0 | AI19: =SUMIFS(Tab_Uderor[R$],Tab_Uderor[Competencia],Entrada!AI$7,Tab_Uderor[TipoReceita],Entrada!$P19) -> 0 | AJ19: =SUMIFS(Tab_Uderor[R$],Tab_Uderor[Competencia],Entrada!AJ$7,Tab_Uderor[TipoReceita],Entrada!$P19) -> 0 | AK19: =SUMIFS(Tab_Uderor[R$],Tab_Uderor[Competencia],Entrada!AK$7,Tab_Uderor[TipoReceita],Entrada!$P19) -> 0 | AL19: =SUMIFS(Tab_Uderor[R$],Tab_Uderor[Competencia],Entrada!AL$7,Tab_Uderor[TipoReceita],Entrada!$P19) -> 0 | AM19: =SUMIFS(Tab_Uderor[R$],Tab_Uderor[Competencia],Entrada!AM$7,Tab_Uderor[TipoReceita],Entrada!$P19) -> 0 | AN19: =SUMIFS(Tab_Uderor[R$],Tab_Uderor[Competencia],Entrada!AN$7,Tab_Uderor[TipoReceita],Entrada!$P19) -> 0 | AO19: =SUMIFS(Tab_Uderor[R$],Tab_Uderor[Competencia],Entrada!AO$7,Tab_Uderor[TipoReceita],Entrada!$P19) -> 0 | AP19: =SUMIFS(Tab_Uderor[R$],Tab_Uderor[Competencia],Entrada!AP$7,Tab_Uderor[TipoReceita],Entrada!$P19) -> 0 | AQ19: =SUMIFS(Tab_Uderor[R$],Tab_Uderor[Competencia],Entrada!AQ$7,Tab_Uderor[TipoReceita],Entrada!$P19) -> 0 | AR19: =SUMIFS(Tab_Uderor[R$],Tab_Uderor[Competencia],Entrada!AR$7,Tab_Uderor[TipoReceita],Entrada!$P19) -> 0 | AS19: =SUMIFS(Tab_Uderor[R$],Tab_Uderor[Competencia],Entrada!AS$7,Tab_Uderor[TipoReceita],Entrada!$P19) -> 0 | AT19: =SUMIFS(Tab_Uderor[R$],Tab_Uderor[Competencia],Entrada!AT$7,Tab_Uderor[TipoReceita],Entrada!$P19) -> 0 | AU19: =SUMIFS(Tab_Uderor[R$],Tab_Uderor[Competencia],Entrada!AU$7,Tab_Uderor[TipoReceita],Entrada!$P19) -> 0 | AV19: =SUMIFS(Tab_Uderor[R$],Tab_Uderor[Competencia],Entrada!AV$7,Tab_Uderor[TipoReceita],Entrada!$P19) -> 0 | AW19: =SUMIFS(Tab_Uderor[R$],Tab_Uderor[Competencia],Entrada!AW$7,Tab_Uderor[TipoReceita],Entrada!$P19) -> 0 | AX19: =SUMIFS(Tab_Uderor[R$],Tab_Uderor[Competencia],Entrada!AX$7,Tab_Uderor[TipoReceita],Entrada!$P19) -> 0 | AY19: =SUMIFS(Tab_Uderor[R$],Tab_Uderor[Competencia],Entrada!AY$7,Tab_Uderor[TipoReceita],Entrada!$P19) -> 0 | AZ19: =SUMIFS(Tab_Uderor[R$],Tab_Uderor[Competencia],Entrada!AZ$7,Tab_Uderor[TipoReceita],Entrada!$P19) -> 0
F20: (14) Base de Rem. Líquida Total = (1)-(6)-(8)+(10)+(11)-(12)+(13) | G20: =G15+G16+G17-G18+G19 ->  | J20: BMP - 610530701; 610550701; 610532701; 610552701 | K20: Materiais | L20: =SUMIFS(Tab_RIT_BMP[SALDO],Tab_RIT_BMP[CONTA],610530701,Tab_RIT_BMP[ANO],$L$7)+SUMIFS(Tab_RIT_BMP[SALDO],Tab_RIT_BMP[CONTA],610550701,Tab_RIT_BMP[ANO],$L$7)+ SUMIFS(Tab_RIT_BMP[SALDO],Tab_RIT_BMP[CONTA],610532701,Tab_RIT_BMP[ANO],$L$7)+SUMIFS(Tab_RIT_BMP[SALDO],Tab_RIT_BMP[CONTA],610552701,Tab_RIT_BMP[ANO],$L$7) -> 0 | M20: =SUMIFS(Tab_RIT_BMP[SALDO],Tab_RIT_BMP[CONTA],610530701,Tab_RIT_BMP[ANO],$M$7)+SUMIFS(Tab_RIT_BMP[SALDO],Tab_RIT_BMP[CONTA],610550701,Tab_RIT_BMP[ANO],$M$7)+ SUMIFS(Tab_RIT_BMP[SALDO],Tab_RIT_BMP[CONTA],610532701,Tab_RIT_BMP[ANO],$M$7)+SUMIFS(Tab_RIT_BMP[SALDO],Tab_RIT_BMP[CONTA],610552701,Tab_RIT_BMP[ANO],$M$7) -> 0 | P20: (4) instalações elétricas internas de unidades consumidoras; | Q20: =SUMIFS(Tab_Uderor[R$],Tab_Uderor[Competencia],Entrada!Q$7,Tab_Uderor[TipoReceita],Entrada!$P20) -> 0 | R20: =SUMIFS(Tab_Uderor[R$],Tab_Uderor[Competencia],Entrada!R$7,Tab_Uderor[TipoReceita],Entrada!$P20) -> 0 | S20: =SUMIFS(Tab_Uderor[R$],Tab_Uderor[Competencia],Entrada!S$7,Tab_Uderor[TipoReceita],Entrada!$P20) -> 0 | T20: =SUMIFS(Tab_Uderor[R$],Tab_Uderor[Competencia],Entrada!T$7,Tab_Uderor[TipoReceita],Entrada!$P20) -> 0 | U20: =SUMIFS(Tab_Uderor[R$],Tab_Uderor[Competencia],Entrada!U$7,Tab_Uderor[TipoReceita],Entrada!$P20) -> 0 | V20: =SUMIFS(Tab_Uderor[R$],Tab_Uderor[Competencia],Entrada!V$7,Tab_Uderor[TipoReceita],Entrada!$P20) -> 0 | W20: =SUMIFS(Tab_Uderor[R$],Tab_Uderor[Competencia],Entrada!W$7,Tab_Uderor[TipoReceita],Entrada!$P20) -> 0 | X20: =SUMIFS(Tab_Uderor[R$],Tab_Uderor[Competencia],Entrada!X$7,Tab_Uderor[TipoReceita],Entrada!$P20) -> 0 | Y20: =SUMIFS(Tab_Uderor[R$],Tab_Uderor[Competencia],Entrada!Y$7,Tab_Uderor[TipoReceita],Entrada!$P20) -> 0 | Z20: =SUMIFS(Tab_Uderor[R$],Tab_Uderor[Competencia],Entrada!Z$7,Tab_Uderor[TipoReceita],Entrada!$P20) -> 0 | AA20: =SUMIFS(Tab_Uderor[R$],Tab_Uderor[Competencia],Entrada!AA$7,Tab_Uderor[TipoReceita],Entrada!$P20) -> 0 | AB20: =SUMIFS(Tab_Uderor[R$],Tab_Uderor[Competencia],Entrada!AB$7,Tab_Uderor[TipoReceita],Entrada!$P20) -> 0 | AC20: =SUMIFS(Tab_Uderor[R$],Tab_Uderor[Competencia],Entrada!AC$7,Tab_Uderor[TipoReceita],Entrada!$P20) -> 0 | AD20: =SUMIFS(Tab_Uderor[R$],Tab_Uderor[Competencia],Entrada!AD$7,Tab_Uderor[TipoReceita],Entrada!$P20) -> 0 | AE20: =SUMIFS(Tab_Uderor[R$],Tab_Uderor[Competencia],Entrada!AE$7,Tab_Uderor[TipoReceita],Entrada!$P20) -> 0 | AF20: =SUMIFS(Tab_Uderor[R$],Tab_Uderor[Competencia],Entrada!AF$7,Tab_Uderor[TipoReceita],Entrada!$P20) -> 0 | AG20: =SUMIFS(Tab_Uderor[R$],Tab_Uderor[Competencia],Entrada!AG$7,Tab_Uderor[TipoReceita],Entrada!$P20) -> 0 | AH20: =SUMIFS(Tab_Uderor[R$],Tab_Uderor[Competencia],Entrada!AH$7,Tab_Uderor[TipoReceita],Entrada!$P20) -> 0 | AI20: =SUMIFS(Tab_Uderor[R$],Tab_Uderor[Competencia],Entrada!AI$7,Tab_Uderor[TipoReceita],Entrada!$P20) -> 0 | AJ20: =SUMIFS(Tab_Uderor[R$],Tab_Uderor[Competencia],Entrada!AJ$7,Tab_Uderor[TipoReceita],Entrada!$P20) -> 0 | AK20: =SUMIFS(Tab_Uderor[R$],Tab_Uderor[Competencia],Entrada!AK$7,Tab_Uderor[TipoReceita],Entrada!$P20) -> 0 | AL20: =SUMIFS(Tab_Uderor[R$],Tab_Uderor[Competencia],Entrada!AL$7,Tab_Uderor[TipoReceita],Entrada!$P20) -> 0 | AM20: =SUMIFS(Tab_Uderor[R$],Tab_Uderor[Competencia],Entrada!AM$7,Tab_Uderor[TipoReceita],Entrada!$P20) -> 0 | AN20: =SUMIFS(Tab_Uderor[R$],Tab_Uderor[Competencia],Entrada!AN$7,Tab_Uderor[TipoReceita],Entrada!$P20) -> 0 | AO20: =SUMIFS(Tab_Uderor[R$],Tab_Uderor[Competencia],Entrada!AO$7,Tab_Uderor[TipoReceita],Entrada!$P20) -> 0 | AP20: =SUMIFS(Tab_Uderor[R$],Tab_Uderor[Competencia],Entrada!AP$7,Tab_Uderor[TipoReceita],Entrada!$P20) -> 0 | AQ20: =SUMIFS(Tab_Uderor[R$],Tab_Uderor[Competencia],Entrada!AQ$7,Tab_Uderor[TipoReceita],Entrada!$P20) -> 0 | AR20: =SUMIFS(Tab_Uderor[R$],Tab_Uderor[Competencia],Entrada!AR$7,Tab_Uderor[TipoReceita],Entrada!$P20) -> 0 | AS20: =SUMIFS(Tab_Uderor[R$],Tab_Uderor[Competencia],Entrada!AS$7,Tab_Uderor[TipoReceita],Entrada!$P20) -> 0 | AT20: =SUMIFS(Tab_Uderor[R$],Tab_Uderor[Competencia],Entrada!AT$7,Tab_Uderor[TipoReceita],Entrada!$P20) -> 0 | AU20: =SUMIFS(Tab_Uderor[R$],Tab_Uderor[Competencia],Entrada!AU$7,Tab_Uderor[TipoReceita],Entrada!$P20) -> 0 | AV20: =SUMIFS(Tab_Uderor[R$],Tab_Uderor[Competencia],Entrada!AV$7,Tab_Uderor[TipoReceita],Entrada!$P20) -> 0 | AW20: =SUMIFS(Tab_Uderor[R$],Tab_Uderor[Competencia],Entrada!AW$7,Tab_Uderor[TipoReceita],Entrada!$P20) -> 0 | AX20: =SUMIFS(Tab_Uderor[R$],Tab_Uderor[Competencia],Entrada!AX$7,Tab_Uderor[TipoReceita],Entrada!$P20) -> 0 | AY20: =SUMIFS(Tab_Uderor[R$],Tab_Uderor[Competencia],Entrada!AY$7,Tab_Uderor[TipoReceita],Entrada!$P20) -> 0 | AZ20: =SUMIFS(Tab_Uderor[R$],Tab_Uderor[Competencia],Entrada!AZ$7,Tab_Uderor[TipoReceita],Entrada!$P20) -> 0
F21: (15) Saldo RGR PLPT | G21: =G87*VLOOKUP(DATE(YEAR(CAPA!$C$10),MONTH(CAPA!$C$10)-1,1),Índices!$B$135:$D$638,3,0)/VLOOKUP(DATE(YEAR($G$72),MONTH($G$72)-1,1),Índices!$B$135:$D$638,3,0) ->  | J21: BMP - 610530799; 610550799; 610532799; 610552799 | K21: Outros | L21: =SUMIFS(Tab_RIT_BMP[SALDO],Tab_RIT_BMP[CONTA],610530799,Tab_RIT_BMP[ANO],$L$7)+SUMIFS(Tab_RIT_BMP[SALDO],Tab_RIT_BMP[CONTA],610550799,Tab_RIT_BMP[ANO],$L$7)+ SUMIFS(Tab_RIT_BMP[SALDO],Tab_RIT_BMP[CONTA],610532799,Tab_RIT_BMP[ANO],$L$7)+SUMIFS(Tab_RIT_BMP[SALDO],Tab_RIT_BMP[CONTA],610552799,Tab_RIT_BMP[ANO],$L$7) -> 0 | M21: =SUMIFS(Tab_RIT_BMP[SALDO],Tab_RIT_BMP[CONTA],610530799,Tab_RIT_BMP[ANO],$M$7)+SUMIFS(Tab_RIT_BMP[SALDO],Tab_RIT_BMP[CONTA],610550799,Tab_RIT_BMP[ANO],$M$7)+ SUMIFS(Tab_RIT_BMP[SALDO],Tab_RIT_BMP[CONTA],610532799,Tab_RIT_BMP[ANO],$M$7)+SUMIFS(Tab_RIT_BMP[SALDO],Tab_RIT_BMP[CONTA],610552799,Tab_RIT_BMP[ANO],$M$7) -> 0 | P21: (5) banco de capacitores; | Q21: =SUMIFS(Tab_Uderor[R$],Tab_Uderor[Competencia],Entrada!Q$7,Tab_Uderor[TipoReceita],Entrada!$P21) -> 0 | R21: =SUMIFS(Tab_Uderor[R$],Tab_Uderor[Competencia],Entrada!R$7,Tab_Uderor[TipoReceita],Entrada!$P21) -> 0 | S21: =SUMIFS(Tab_Uderor[R$],Tab_Uderor[Competencia],Entrada!S$7,Tab_Uderor[TipoReceita],Entrada!$P21) -> 0 | T21: =SUMIFS(Tab_Uderor[R$],Tab_Uderor[Competencia],Entrada!T$7,Tab_Uderor[TipoReceita],Entrada!$P21) -> 0 | U21: =SUMIFS(Tab_Uderor[R$],Tab_Uderor[Competencia],Entrada!U$7,Tab_Uderor[TipoReceita],Entrada!$P21) -> 0 | V21: =SUMIFS(Tab_Uderor[R$],Tab_Uderor[Competencia],Entrada!V$7,Tab_Uderor[TipoReceita],Entrada!$P21) -> 0 | W21: =SUMIFS(Tab_Uderor[R$],Tab_Uderor[Competencia],Entrada!W$7,Tab_Uderor[TipoReceita],Entrada!$P21) -> 0 | X21: =SUMIFS(Tab_Uderor[R$],Tab_Uderor[Competencia],Entrada!X$7,Tab_Uderor[TipoReceita],Entrada!$P21) -> 0 | Y21: =SUMIFS(Tab_Uderor[R$],Tab_Uderor[Competencia],Entrada!Y$7,Tab_Uderor[TipoReceita],Entrada!$P21) -> 0 | Z21: =SUMIFS(Tab_Uderor[R$],Tab_Uderor[Competencia],Entrada!Z$7,Tab_Uderor[TipoReceita],Entrada!$P21) -> 0 | AA21: =SUMIFS(Tab_Uderor[R$],Tab_Uderor[Competencia],Entrada!AA$7,Tab_Uderor[TipoReceita],Entrada!$P21) -> 0 | AB21: =SUMIFS(Tab_Uderor[R$],Tab_Uderor[Competencia],Entrada!AB$7,Tab_Uderor[TipoReceita],Entrada!$P21) -> 0 | AC21: =SUMIFS(Tab_Uderor[R$],Tab_Uderor[Competencia],Entrada!AC$7,Tab_Uderor[TipoReceita],Entrada!$P21) -> 0 | AD21: =SUMIFS(Tab_Uderor[R$],Tab_Uderor[Competencia],Entrada!AD$7,Tab_Uderor[TipoReceita],Entrada!$P21) -> 0 | AE21: =SUMIFS(Tab_Uderor[R$],Tab_Uderor[Competencia],Entrada!AE$7,Tab_Uderor[TipoReceita],Entrada!$P21) -> 0 | AF21: =SUMIFS(Tab_Uderor[R$],Tab_Uderor[Competencia],Entrada!AF$7,Tab_Uderor[TipoReceita],Entrada!$P21) -> 0 | AG21: =SUMIFS(Tab_Uderor[R$],Tab_Uderor[Competencia],Entrada!AG$7,Tab_Uderor[TipoReceita],Entrada!$P21) -> 0 | AH21: =SUMIFS(Tab_Uderor[R$],Tab_Uderor[Competencia],Entrada!AH$7,Tab_Uderor[TipoReceita],Entrada!$P21) -> 0 | AI21: =SUMIFS(Tab_Uderor[R$],Tab_Uderor[Competencia],Entrada!AI$7,Tab_Uderor[TipoReceita],Entrada!$P21) -> 0 | AJ21: =SUMIFS(Tab_Uderor[R$],Tab_Uderor[Competencia],Entrada!AJ$7,Tab_Uderor[TipoReceita],Entrada!$P21) -> 0 | AK21: =SUMIFS(Tab_Uderor[R$],Tab_Uderor[Competencia],Entrada!AK$7,Tab_Uderor[TipoReceita],Entrada!$P21) -> 0 | AL21: =SUMIFS(Tab_Uderor[R$],Tab_Uderor[Competencia],Entrada!AL$7,Tab_Uderor[TipoReceita],Entrada!$P21) -> 0 | AM21: =SUMIFS(Tab_Uderor[R$],Tab_Uderor[Competencia],Entrada!AM$7,Tab_Uderor[TipoReceita],Entrada!$P21) -> 0 | AN21: =SUMIFS(Tab_Uderor[R$],Tab_Uderor[Competencia],Entrada!AN$7,Tab_Uderor[TipoReceita],Entrada!$P21) -> 0 | AO21: =SUMIFS(Tab_Uderor[R$],Tab_Uderor[Competencia],Entrada!AO$7,Tab_Uderor[TipoReceita],Entrada!$P21) -> 0 | AP21: =SUMIFS(Tab_Uderor[R$],Tab_Uderor[Competencia],Entrada!AP$7,Tab_Uderor[TipoReceita],Entrada!$P21) -> 0 | AQ21: =SUMIFS(Tab_Uderor[R$],Tab_Uderor[Competencia],Entrada!AQ$7,Tab_Uderor[TipoReceita],Entrada!$P21) -> 0 | AR21: =SUMIFS(Tab_Uderor[R$],Tab_Uderor[Competencia],Entrada!AR$7,Tab_Uderor[TipoReceita],Entrada!$P21) -> 0 | AS21: =SUMIFS(Tab_Uderor[R$],Tab_Uderor[Competencia],Entrada!AS$7,Tab_Uderor[TipoReceita],Entrada!$P21) -> 0 | AT21: =SUMIFS(Tab_Uderor[R$],Tab_Uderor[Competencia],Entrada!AT$7,Tab_Uderor[TipoReceita],Entrada!$P21) -> 0 | AU21: =SUMIFS(Tab_Uderor[R$],Tab_Uderor[Competencia],Entrada!AU$7,Tab_Uderor[TipoReceita],Entrada!$P21) -> 0 | AV21: =SUMIFS(Tab_Uderor[R$],Tab_Uderor[Competencia],Entrada!AV$7,Tab_Uderor[TipoReceita],Entrada!$P21) -> 0 | AW21: =SUMIFS(Tab_Uderor[R$],Tab_Uderor[Competencia],Entrada!AW$7,Tab_Uderor[TipoReceita],Entrada!$P21) -> 0 | AX21: =SUMIFS(Tab_Uderor[R$],Tab_Uderor[Competencia],Entrada!AX$7,Tab_Uderor[TipoReceita],Entrada!$P21) -> 0 | AY21: =SUMIFS(Tab_Uderor[R$],Tab_Uderor[Competencia],Entrada!AY$7,Tab_Uderor[TipoReceita],Entrada!$P21) -> 0 | AZ21: =SUMIFS(Tab_Uderor[R$],Tab_Uderor[Competencia],Entrada!AZ$7,Tab_Uderor[TipoReceita],Entrada!$P21) -> 0
F22: (16) Saldo RGR Demais Investimentos | G22: =G88*VLOOKUP(DATE(YEAR(CAPA!$C$10),MONTH(CAPA!$C$10)-1,1),Índices!$B$135:$D$638,3,0)/VLOOKUP(DATE(YEAR($G$72),MONTH($G$72)-1,1),Índices!$B$135:$D$638,3,0) ->  | J22: BMP - 610530710; 610550710; 610532710; 610552710 | K22: (-) Créditos de Tributos Recuperáveis | L22: =SUMIFS(Tab_RIT_BMP[SALDO],Tab_RIT_BMP[CONTA],610530710,Tab_RIT_BMP[ANO],$L$7)+SUMIFS(Tab_RIT_BMP[SALDO],Tab_RIT_BMP[CONTA],610550710,Tab_RIT_BMP[ANO],$L$7)+ SUMIFS(Tab_RIT_BMP[SALDO],Tab_RIT_BMP[CONTA],610532710,Tab_RIT_BMP[ANO],$L$7)+SUMIFS(Tab_RIT_BMP[SALDO],Tab_RIT_BMP[CONTA],610552710,Tab_RIT_BMP[ANO],$L$7) -> 0 | M22: =SUMIFS(Tab_RIT_BMP[SALDO],Tab_RIT_BMP[CONTA],610530710,Tab_RIT_BMP[ANO],$M$7)+SUMIFS(Tab_RIT_BMP[SALDO],Tab_RIT_BMP[CONTA],610550710,Tab_RIT_BMP[ANO],$M$7)+ SUMIFS(Tab_RIT_BMP[SALDO],Tab_RIT_BMP[CONTA],610532710,Tab_RIT_BMP[ANO],$M$7)+SUMIFS(Tab_RIT_BMP[SALDO],Tab_RIT_BMP[CONTA],610552710,Tab_RIT_BMP[ANO],$M$7) -> 0 | P22: (6) padrões de entrada de unidades consumidoras atendidas em baixa tensão; | Q22: =SUMIFS(Tab_Uderor[R$],Tab_Uderor[Competencia],Entrada!Q$7,Tab_Uderor[TipoReceita],Entrada!$P22) -> 0 | R22: =SUMIFS(Tab_Uderor[R$],Tab_Uderor[Competencia],Entrada!R$7,Tab_Uderor[TipoReceita],Entrada!$P22) -> 0 | S22: =SUMIFS(Tab_Uderor[R$],Tab_Uderor[Competencia],Entrada!S$7,Tab_Uderor[TipoReceita],Entrada!$P22) -> 0 | T22: =SUMIFS(Tab_Uderor[R$],Tab_Uderor[Competencia],Entrada!T$7,Tab_Uderor[TipoReceita],Entrada!$P22) -> 0 | U22: =SUMIFS(Tab_Uderor[R$],Tab_Uderor[Competencia],Entrada!U$7,Tab_Uderor[TipoReceita],Entrada!$P22) -> 0 | V22: =SUMIFS(Tab_Uderor[R$],Tab_Uderor[Competencia],Entrada!V$7,Tab_Uderor[TipoReceita],Entrada!$P22) -> 0 | W22: =SUMIFS(Tab_Uderor[R$],Tab_Uderor[Competencia],Entrada!W$7,Tab_Uderor[TipoReceita],Entrada!$P22) -> 0 | X22: =SUMIFS(Tab_Uderor[R$],Tab_Uderor[Competencia],Entrada!X$7,Tab_Uderor[TipoReceita],Entrada!$P22) -> 0 | Y22: =SUMIFS(Tab_Uderor[R$],Tab_Uderor[Competencia],Entrada!Y$7,Tab_Uderor[TipoReceita],Entrada!$P22) -> 0 | Z22: =SUMIFS(Tab_Uderor[R$],Tab_Uderor[Competencia],Entrada!Z$7,Tab_Uderor[TipoReceita],Entrada!$P22) -> 0 | AA22: =SUMIFS(Tab_Uderor[R$],Tab_Uderor[Competencia],Entrada!AA$7,Tab_Uderor[TipoReceita],Entrada!$P22) -> 0 | AB22: =SUMIFS(Tab_Uderor[R$],Tab_Uderor[Competencia],Entrada!AB$7,Tab_Uderor[TipoReceita],Entrada!$P22) -> 0 | AC22: =SUMIFS(Tab_Uderor[R$],Tab_Uderor[Competencia],Entrada!AC$7,Tab_Uderor[TipoReceita],Entrada!$P22) -> 0 | AD22: =SUMIFS(Tab_Uderor[R$],Tab_Uderor[Competencia],Entrada!AD$7,Tab_Uderor[TipoReceita],Entrada!$P22) -> 0 | AE22: =SUMIFS(Tab_Uderor[R$],Tab_Uderor[Competencia],Entrada!AE$7,Tab_Uderor[TipoReceita],Entrada!$P22) -> 0 | AF22: =SUMIFS(Tab_Uderor[R$],Tab_Uderor[Competencia],Entrada!AF$7,Tab_Uderor[TipoReceita],Entrada!$P22) -> 0 | AG22: =SUMIFS(Tab_Uderor[R$],Tab_Uderor[Competencia],Entrada!AG$7,Tab_Uderor[TipoReceita],Entrada!$P22) -> 0 | AH22: =SUMIFS(Tab_Uderor[R$],Tab_Uderor[Competencia],Entrada!AH$7,Tab_Uderor[TipoReceita],Entrada!$P22) -> 0 | AI22: =SUMIFS(Tab_Uderor[R$],Tab_Uderor[Competencia],Entrada!AI$7,Tab_Uderor[TipoReceita],Entrada!$P22) -> 0 | AJ22: =SUMIFS(Tab_Uderor[R$],Tab_Uderor[Competencia],Entrada!AJ$7,Tab_Uderor[TipoReceita],Entrada!$P22) -> 0 | AK22: =SUMIFS(Tab_Uderor[R$],Tab_Uderor[Competencia],Entrada!AK$7,Tab_Uderor[TipoReceita],Entrada!$P22) -> 0 | AL22: =SUMIFS(Tab_Uderor[R$],Tab_Uderor[Competencia],Entrada!AL$7,Tab_Uderor[TipoReceita],Entrada!$P22) -> 0 | AM22: =SUMIFS(Tab_Uderor[R$],Tab_Uderor[Competencia],Entrada!AM$7,Tab_Uderor[TipoReceita],Entrada!$P22) -> 0 | AN22: =SUMIFS(Tab_Uderor[R$],Tab_Uderor[Competencia],Entrada!AN$7,Tab_Uderor[TipoReceita],Entrada!$P22) -> 0 | AO22: =SUMIFS(Tab_Uderor[R$],Tab_Uderor[Competencia],Entrada!AO$7,Tab_Uderor[TipoReceita],Entrada!$P22) -> 0 | AP22: =SUMIFS(Tab_Uderor[R$],Tab_Uderor[Competencia],Entrada!AP$7,Tab_Uderor[TipoReceita],Entrada!$P22) -> 0 | AQ22: =SUMIFS(Tab_Uderor[R$],Tab_Uderor[Competencia],Entrada!AQ$7,Tab_Uderor[TipoReceita],Entrada!$P22) -> 0 | AR22: =SUMIFS(Tab_Uderor[R$],Tab_Uderor[Competencia],Entrada!AR$7,Tab_Uderor[TipoReceita],Entrada!$P22) -> 0 | AS22: =SUMIFS(Tab_Uderor[R$],Tab_Uderor[Competencia],Entrada!AS$7,Tab_Uderor[TipoReceita],Entrada!$P22) -> 0 | AT22: =SUMIFS(Tab_Uderor[R$],Tab_Uderor[Competencia],Entrada!AT$7,Tab_Uderor[TipoReceita],Entrada!$P22) -> 0 | AU22: =SUMIFS(Tab_Uderor[R$],Tab_Uderor[Competencia],Entrada!AU$7,Tab_Uderor[TipoReceita],Entrada!$P22) -> 0 | AV22: =SUMIFS(Tab_Uderor[R$],Tab_Uderor[Competencia],Entrada!AV$7,Tab_Uderor[TipoReceita],Entrada!$P22) -> 0 | AW22: =SUMIFS(Tab_Uderor[R$],Tab_Uderor[Competencia],Entrada!AW$7,Tab_Uderor[TipoReceita],Entrada!$P22) -> 0 | AX22: =SUMIFS(Tab_Uderor[R$],Tab_Uderor[Competencia],Entrada!AX$7,Tab_Uderor[TipoReceita],Entrada!$P22) -> 0 | AY22: =SUMIFS(Tab_Uderor[R$],Tab_Uderor[Competencia],Entrada!AY$7,Tab_Uderor[TipoReceita],Entrada!$P22) -> 0 | AZ22: =SUMIFS(Tab_Uderor[R$],Tab_Uderor[Competencia],Entrada!AZ$7,Tab_Uderor[TipoReceita],Entrada!$P22) -> 0
F23: (17) Taxa de Depreciação | G23: =G89 -> 0 | K23: Subtotal | L23: =SUM(L20:L22) -> 0 | M23: =SUM(M20:M22) -> 0 | P23: (7) sistemas de medição de energia elétrica; | Q23: =SUMIFS(Tab_Uderor[R$],Tab_Uderor[Competencia],Entrada!Q$7,Tab_Uderor[TipoReceita],Entrada!$P23) -> 0 | R23: =SUMIFS(Tab_Uderor[R$],Tab_Uderor[Competencia],Entrada!R$7,Tab_Uderor[TipoReceita],Entrada!$P23) -> 0 | S23: =SUMIFS(Tab_Uderor[R$],Tab_Uderor[Competencia],Entrada!S$7,Tab_Uderor[TipoReceita],Entrada!$P23) -> 0 | T23: =SUMIFS(Tab_Uderor[R$],Tab_Uderor[Competencia],Entrada!T$7,Tab_Uderor[TipoReceita],Entrada!$P23) -> 0 | U23: =SUMIFS(Tab_Uderor[R$],Tab_Uderor[Competencia],Entrada!U$7,Tab_Uderor[TipoReceita],Entrada!$P23) -> 0 | V23: =SUMIFS(Tab_Uderor[R$],Tab_Uderor[Competencia],Entrada!V$7,Tab_Uderor[TipoReceita],Entrada!$P23) -> 0 | W23: =SUMIFS(Tab_Uderor[R$],Tab_Uderor[Competencia],Entrada!W$7,Tab_Uderor[TipoReceita],Entrada!$P23) -> 0 | X23: =SUMIFS(Tab_Uderor[R$],Tab_Uderor[Competencia],Entrada!X$7,Tab_Uderor[TipoReceita],Entrada!$P23) -> 0 | Y23: =SUMIFS(Tab_Uderor[R$],Tab_Uderor[Competencia],Entrada!Y$7,Tab_Uderor[TipoReceita],Entrada!$P23) -> 0 | Z23: =SUMIFS(Tab_Uderor[R$],Tab_Uderor[Competencia],Entrada!Z$7,Tab_Uderor[TipoReceita],Entrada!$P23) -> 0 | AA23: =SUMIFS(Tab_Uderor[R$],Tab_Uderor[Competencia],Entrada!AA$7,Tab_Uderor[TipoReceita],Entrada!$P23) -> 0 | AB23: =SUMIFS(Tab_Uderor[R$],Tab_Uderor[Competencia],Entrada!AB$7,Tab_Uderor[TipoReceita],Entrada!$P23) -> 0 | AC23: =SUMIFS(Tab_Uderor[R$],Tab_Uderor[Competencia],Entrada!AC$7,Tab_Uderor[TipoReceita],Entrada!$P23) -> 0 | AD23: =SUMIFS(Tab_Uderor[R$],Tab_Uderor[Competencia],Entrada!AD$7,Tab_Uderor[TipoReceita],Entrada!$P23) -> 0 | AE23: =SUMIFS(Tab_Uderor[R$],Tab_Uderor[Competencia],Entrada!AE$7,Tab_Uderor[TipoReceita],Entrada!$P23) -> 0 | AF23: =SUMIFS(Tab_Uderor[R$],Tab_Uderor[Competencia],Entrada!AF$7,Tab_Uderor[TipoReceita],Entrada!$P23) -> 0 | AG23: =SUMIFS(Tab_Uderor[R$],Tab_Uderor[Competencia],Entrada!AG$7,Tab_Uderor[TipoReceita],Entrada!$P23) -> 0 | AH23: =SUMIFS(Tab_Uderor[R$],Tab_Uderor[Competencia],Entrada!AH$7,Tab_Uderor[TipoReceita],Entrada!$P23) -> 0 | AI23: =SUMIFS(Tab_Uderor[R$],Tab_Uderor[Competencia],Entrada!AI$7,Tab_Uderor[TipoReceita],Entrada!$P23) -> 0 | AJ23: =SUMIFS(Tab_Uderor[R$],Tab_Uderor[Competencia],Entrada!AJ$7,Tab_Uderor[TipoReceita],Entrada!$P23) -> 0 | AK23: =SUMIFS(Tab_Uderor[R$],Tab_Uderor[Competencia],Entrada!AK$7,Tab_Uderor[TipoReceita],Entrada!$P23) -> 0 | AL23: =SUMIFS(Tab_Uderor[R$],Tab_Uderor[Competencia],Entrada!AL$7,Tab_Uderor[TipoReceita],Entrada!$P23) -> 0 | AM23: =SUMIFS(Tab_Uderor[R$],Tab_Uderor[Competencia],Entrada!AM$7,Tab_Uderor[TipoReceita],Entrada!$P23) -> 0 | AN23: =SUMIFS(Tab_Uderor[R$],Tab_Uderor[Competencia],Entrada!AN$7,Tab_Uderor[TipoReceita],Entrada!$P23) -> 0 | AO23: =SUMIFS(Tab_Uderor[R$],Tab_Uderor[Competencia],Entrada!AO$7,Tab_Uderor[TipoReceita],Entrada!$P23) -> 0 | AP23: =SUMIFS(Tab_Uderor[R$],Tab_Uderor[Competencia],Entrada!AP$7,Tab_Uderor[TipoReceita],Entrada!$P23) -> 0 | AQ23: =SUMIFS(Tab_Uderor[R$],Tab_Uderor[Competencia],Entrada!AQ$7,Tab_Uderor[TipoReceita],Entrada!$P23) -> 0 | AR23: =SUMIFS(Tab_Uderor[R$],Tab_Uderor[Competencia],Entrada!AR$7,Tab_Uderor[TipoReceita],Entrada!$P23) -> 0 | AS23: =SUMIFS(Tab_Uderor[R$],Tab_Uderor[Competencia],Entrada!AS$7,Tab_Uderor[TipoReceita],Entrada!$P23) -> 0 | AT23: =SUMIFS(Tab_Uderor[R$],Tab_Uderor[Competencia],Entrada!AT$7,Tab_Uderor[TipoReceita],Entrada!$P23) -> 0 | AU23: =SUMIFS(Tab_Uderor[R$],Tab_Uderor[Competencia],Entrada!AU$7,Tab_Uderor[TipoReceita],Entrada!$P23) -> 0 | AV23: =SUMIFS(Tab_Uderor[R$],Tab_Uderor[Competencia],Entrada!AV$7,Tab_Uderor[TipoReceita],Entrada!$P23) -> 0 | AW23: =SUMIFS(Tab_Uderor[R$],Tab_Uderor[Competencia],Entrada!AW$7,Tab_Uderor[TipoReceita],Entrada!$P23) -> 0 | AX23: =SUMIFS(Tab_Uderor[R$],Tab_Uderor[Competencia],Entrada!AX$7,Tab_Uderor[TipoReceita],Entrada!$P23) -> 0 | AY23: =SUMIFS(Tab_Uderor[R$],Tab_Uderor[Competencia],Entrada!AY$7,Tab_Uderor[TipoReceita],Entrada!$P23) -> 0 | AZ23: =SUMIFS(Tab_Uderor[R$],Tab_Uderor[Competencia],Entrada!AZ$7,Tab_Uderor[TipoReceita],Entrada!$P23) -> 0
F24: (18) Quota de Reintegração Regulatória = (5) * (17) | G24: =G23*G11 ->  | J24: CONTA TERCEIROS | P24: (8) geradores, incluindo-se unidades de microgeração e minigeração distribuída; | Q24: =SUMIFS(Tab_Uderor[R$],Tab_Uderor[Competencia],Entrada!Q$7,Tab_Uderor[TipoReceita],Entrada!$P24) -> 0 | R24: =SUMIFS(Tab_Uderor[R$],Tab_Uderor[Competencia],Entrada!R$7,Tab_Uderor[TipoReceita],Entrada!$P24) -> 0 | S24: =SUMIFS(Tab_Uderor[R$],Tab_Uderor[Competencia],Entrada!S$7,Tab_Uderor[TipoReceita],Entrada!$P24) -> 0 | T24: =SUMIFS(Tab_Uderor[R$],Tab_Uderor[Competencia],Entrada!T$7,Tab_Uderor[TipoReceita],Entrada!$P24) -> 0 | U24: =SUMIFS(Tab_Uderor[R$],Tab_Uderor[Competencia],Entrada!U$7,Tab_Uderor[TipoReceita],Entrada!$P24) -> 0 | V24: =SUMIFS(Tab_Uderor[R$],Tab_Uderor[Competencia],Entrada!V$7,Tab_Uderor[TipoReceita],Entrada!$P24) -> 0 | W24: =SUMIFS(Tab_Uderor[R$],Tab_Uderor[Competencia],Entrada!W$7,Tab_Uderor[TipoReceita],Entrada!$P24) -> 0 | X24: =SUMIFS(Tab_Uderor[R$],Tab_Uderor[Competencia],Entrada!X$7,Tab_Uderor[TipoReceita],Entrada!$P24) -> 0 | Y24: =SUMIFS(Tab_Uderor[R$],Tab_Uderor[Competencia],Entrada!Y$7,Tab_Uderor[TipoReceita],Entrada!$P24) -> 0 | Z24: =SUMIFS(Tab_Uderor[R$],Tab_Uderor[Competencia],Entrada!Z$7,Tab_Uderor[TipoReceita],Entrada!$P24) -> 0 | AA24: =SUMIFS(Tab_Uderor[R$],Tab_Uderor[Competencia],Entrada!AA$7,Tab_Uderor[TipoReceita],Entrada!$P24) -> 0 | AB24: =SUMIFS(Tab_Uderor[R$],Tab_Uderor[Competencia],Entrada!AB$7,Tab_Uderor[TipoReceita],Entrada!$P24) -> 0 | AC24: =SUMIFS(Tab_Uderor[R$],Tab_Uderor[Competencia],Entrada!AC$7,Tab_Uderor[TipoReceita],Entrada!$P24) -> 0 | AD24: =SUMIFS(Tab_Uderor[R$],Tab_Uderor[Competencia],Entrada!AD$7,Tab_Uderor[TipoReceita],Entrada!$P24) -> 0 | AE24: =SUMIFS(Tab_Uderor[R$],Tab_Uderor[Competencia],Entrada!AE$7,Tab_Uderor[TipoReceita],Entrada!$P24) -> 0 | AF24: =SUMIFS(Tab_Uderor[R$],Tab_Uderor[Competencia],Entrada!AF$7,Tab_Uderor[TipoReceita],Entrada!$P24) -> 0 | AG24: =SUMIFS(Tab_Uderor[R$],Tab_Uderor[Competencia],Entrada!AG$7,Tab_Uderor[TipoReceita],Entrada!$P24) -> 0 | AH24: =SUMIFS(Tab_Uderor[R$],Tab_Uderor[Competencia],Entrada!AH$7,Tab_Uderor[TipoReceita],Entrada!$P24) -> 0 | AI24: =SUMIFS(Tab_Uderor[R$],Tab_Uderor[Competencia],Entrada!AI$7,Tab_Uderor[TipoReceita],Entrada!$P24) -> 0 | AJ24: =SUMIFS(Tab_Uderor[R$],Tab_Uderor[Competencia],Entrada!AJ$7,Tab_Uderor[TipoReceita],Entrada!$P24) -> 0 | AK24: =SUMIFS(Tab_Uderor[R$],Tab_Uderor[Competencia],Entrada!AK$7,Tab_Uderor[TipoReceita],Entrada!$P24) -> 0 | AL24: =SUMIFS(Tab_Uderor[R$],Tab_Uderor[Competencia],Entrada!AL$7,Tab_Uderor[TipoReceita],Entrada!$P24) -> 0 | AM24: =SUMIFS(Tab_Uderor[R$],Tab_Uderor[Competencia],Entrada!AM$7,Tab_Uderor[TipoReceita],Entrada!$P24) -> 0 | AN24: =SUMIFS(Tab_Uderor[R$],Tab_Uderor[Competencia],Entrada!AN$7,Tab_Uderor[TipoReceita],Entrada!$P24) -> 0 | AO24: =SUMIFS(Tab_Uderor[R$],Tab_Uderor[Competencia],Entrada!AO$7,Tab_Uderor[TipoReceita],Entrada!$P24) -> 0 | AP24: =SUMIFS(Tab_Uderor[R$],Tab_Uderor[Competencia],Entrada!AP$7,Tab_Uderor[TipoReceita],Entrada!$P24) -> 0 | AQ24: =SUMIFS(Tab_Uderor[R$],Tab_Uderor[Competencia],Entrada!AQ$7,Tab_Uderor[TipoReceita],Entrada!$P24) -> 0 | AR24: =SUMIFS(Tab_Uderor[R$],Tab_Uderor[Competencia],Entrada!AR$7,Tab_Uderor[TipoReceita],Entrada!$P24) -> 0 | AS24: =SUMIFS(Tab_Uderor[R$],Tab_Uderor[Competencia],Entrada!AS$7,Tab_Uderor[TipoReceita],Entrada!$P24) -> 0 | AT24: =SUMIFS(Tab_Uderor[R$],Tab_Uderor[Competencia],Entrada!AT$7,Tab_Uderor[TipoReceita],Entrada!$P24) -> 0 | AU24: =SUMIFS(Tab_Uderor[R$],Tab_Uderor[Competencia],Entrada!AU$7,Tab_Uderor[TipoReceita],Entrada!$P24) -> 0 | AV24: =SUMIFS(Tab_Uderor[R$],Tab_Uderor[Competencia],Entrada!AV$7,Tab_Uderor[TipoReceita],Entrada!$P24) -> 0 | AW24: =SUMIFS(Tab_Uderor[R$],Tab_Uderor[Competencia],Entrada!AW$7,Tab_Uderor[TipoReceita],Entrada!$P24) -> 0 | AX24: =SUMIFS(Tab_Uderor[R$],Tab_Uderor[Competencia],Entrada!AX$7,Tab_Uderor[TipoReceita],Entrada!$P24) -> 0 | AY24: =SUMIFS(Tab_Uderor[R$],Tab_Uderor[Competencia],Entrada!AY$7,Tab_Uderor[TipoReceita],Entrada!$P24) -> 0 | AZ24: =SUMIFS(Tab_Uderor[R$],Tab_Uderor[Competencia],Entrada!AZ$7,Tab_Uderor[TipoReceita],Entrada!$P24) -> 0
J25: RIT - RP 800 - Célula F20 | K25: Manut. e Conserv. Bens e Instalações vinculadas ao Serviço Concedido | L25: =SUMIFS(Tab_RIT_BMP[SALDO],Tab_RIT_BMP[CONTA],1,Tab_RIT_BMP[ANO],$L$7) -> 0 | M25: =SUMIFS(Tab_RIT_BMP[SALDO],Tab_RIT_BMP[CONTA],1,Tab_RIT_BMP[ANO],$M$7) -> 0 | P25: (9) sistemas de iluminação pública. | Q25: =SUMIFS(Tab_Uderor[R$],Tab_Uderor[Competencia],Entrada!Q$7,Tab_Uderor[TipoReceita],Entrada!$P25) -> 0 | R25: =SUMIFS(Tab_Uderor[R$],Tab_Uderor[Competencia],Entrada!R$7,Tab_Uderor[TipoReceita],Entrada!$P25) -> 0 | S25: =SUMIFS(Tab_Uderor[R$],Tab_Uderor[Competencia],Entrada!S$7,Tab_Uderor[TipoReceita],Entrada!$P25) -> 0 | T25: =SUMIFS(Tab_Uderor[R$],Tab_Uderor[Competencia],Entrada!T$7,Tab_Uderor[TipoReceita],Entrada!$P25) -> 0 | U25: =SUMIFS(Tab_Uderor[R$],Tab_Uderor[Competencia],Entrada!U$7,Tab_Uderor[TipoReceita],Entrada!$P25) -> 0 | V25: =SUMIFS(Tab_Uderor[R$],Tab_Uderor[Competencia],Entrada!V$7,Tab_Uderor[TipoReceita],Entrada!$P25) -> 0 | W25: =SUMIFS(Tab_Uderor[R$],Tab_Uderor[Competencia],Entrada!W$7,Tab_Uderor[TipoReceita],Entrada!$P25) -> 0 | X25: =SUMIFS(Tab_Uderor[R$],Tab_Uderor[Competencia],Entrada!X$7,Tab_Uderor[TipoReceita],Entrada!$P25) -> 0 | Y25: =SUMIFS(Tab_Uderor[R$],Tab_Uderor[Competencia],Entrada!Y$7,Tab_Uderor[TipoReceita],Entrada!$P25) -> 0 | Z25: =SUMIFS(Tab_Uderor[R$],Tab_Uderor[Competencia],Entrada!Z$7,Tab_Uderor[TipoReceita],Entrada!$P25) -> 0 | AA25: =SUMIFS(Tab_Uderor[R$],Tab_Uderor[Competencia],Entrada!AA$7,Tab_Uderor[TipoReceita],Entrada!$P25) -> 0 | AB25: =SUMIFS(Tab_Uderor[R$],Tab_Uderor[Competencia],Entrada!AB$7,Tab_Uderor[TipoReceita],Entrada!$P25) -> 0 | AC25: =SUMIFS(Tab_Uderor[R$],Tab_Uderor[Competencia],Entrada!AC$7,Tab_Uderor[TipoReceita],Entrada!$P25) -> 0 | AD25: =SUMIFS(Tab_Uderor[R$],Tab_Uderor[Competencia],Entrada!AD$7,Tab_Uderor[TipoReceita],Entrada!$P25) -> 0 | AE25: =SUMIFS(Tab_Uderor[R$],Tab_Uderor[Competencia],Entrada!AE$7,Tab_Uderor[TipoReceita],Entrada!$P25) -> 0 | AF25: =SUMIFS(Tab_Uderor[R$],Tab_Uderor[Competencia],Entrada!AF$7,Tab_Uderor[TipoReceita],Entrada!$P25) -> 0 | AG25: =SUMIFS(Tab_Uderor[R$],Tab_Uderor[Competencia],Entrada!AG$7,Tab_Uderor[TipoReceita],Entrada!$P25) -> 0 | AH25: =SUMIFS(Tab_Uderor[R$],Tab_Uderor[Competencia],Entrada!AH$7,Tab_Uderor[TipoReceita],Entrada!$P25) -> 0 | AI25: =SUMIFS(Tab_Uderor[R$],Tab_Uderor[Competencia],Entrada!AI$7,Tab_Uderor[TipoReceita],Entrada!$P25) -> 0 | AJ25: =SUMIFS(Tab_Uderor[R$],Tab_Uderor[Competencia],Entrada!AJ$7,Tab_Uderor[TipoReceita],Entrada!$P25) -> 0 | AK25: =SUMIFS(Tab_Uderor[R$],Tab_Uderor[Competencia],Entrada!AK$7,Tab_Uderor[TipoReceita],Entrada!$P25) -> 0 | AL25: =SUMIFS(Tab_Uderor[R$],Tab_Uderor[Competencia],Entrada!AL$7,Tab_Uderor[TipoReceita],Entrada!$P25) -> 0 | AM25: =SUMIFS(Tab_Uderor[R$],Tab_Uderor[Competencia],Entrada!AM$7,Tab_Uderor[TipoReceita],Entrada!$P25) -> 0 | AN25: =SUMIFS(Tab_Uderor[R$],Tab_Uderor[Competencia],Entrada!AN$7,Tab_Uderor[TipoReceita],Entrada!$P25) -> 0 | AO25: =SUMIFS(Tab_Uderor[R$],Tab_Uderor[Competencia],Entrada!AO$7,Tab_Uderor[TipoReceita],Entrada!$P25) -> 0 | AP25: =SUMIFS(Tab_Uderor[R$],Tab_Uderor[Competencia],Entrada!AP$7,Tab_Uderor[TipoReceita],Entrada!$P25) -> 0 | AQ25: =SUMIFS(Tab_Uderor[R$],Tab_Uderor[Competencia],Entrada!AQ$7,Tab_Uderor[TipoReceita],Entrada!$P25) -> 0 | AR25: =SUMIFS(Tab_Uderor[R$],Tab_Uderor[Competencia],Entrada!AR$7,Tab_Uderor[TipoReceita],Entrada!$P25) -> 0 | AS25: =SUMIFS(Tab_Uderor[R$],Tab_Uderor[Competencia],Entrada!AS$7,Tab_Uderor[TipoReceita],Entrada!$P25) -> 0 | AT25: =SUMIFS(Tab_Uderor[R$],Tab_Uderor[Competencia],Entrada!AT$7,Tab_Uderor[TipoReceita],Entrada!$P25) -> 0 | AU25: =SUMIFS(Tab_Uderor[R$],Tab_Uderor[Competencia],Entrada!AU$7,Tab_Uderor[TipoReceita],Entrada!$P25) -> 0 | AV25: =SUMIFS(Tab_Uderor[R$],Tab_Uderor[Competencia],Entrada!AV$7,Tab_Uderor[TipoReceita],Entrada!$P25) -> 0 | AW25: =SUMIFS(Tab_Uderor[R$],Tab_Uderor[Competencia],Entrada!AW$7,Tab_Uderor[TipoReceita],Entrada!$P25) -> 0 | AX25: =SUMIFS(Tab_Uderor[R$],Tab_Uderor[Competencia],Entrada!AX$7,Tab_Uderor[TipoReceita],Entrada!$P25) -> 0 | AY25: =SUMIFS(Tab_Uderor[R$],Tab_Uderor[Competencia],Entrada!AY$7,Tab_Uderor[TipoReceita],Entrada!$P25) -> 0 | AZ25: =SUMIFS(Tab_Uderor[R$],Tab_Uderor[Competencia],Entrada!AZ$7,Tab_Uderor[TipoReceita],Entrada!$P25) -> 0
F26: Gasto do Conselho de Consumidores | J26: RIT - RP 800 - Célula F21 | K26: Auditoria e Consultoria | L26: =SUMIFS(Tab_RIT_BMP[SALDO],Tab_RIT_BMP[CONTA],2,Tab_RIT_BMP[ANO],$L$7) -> 0 | M26: =SUMIFS(Tab_RIT_BMP[SALDO],Tab_RIT_BMP[CONTA],2,Tab_RIT_BMP[ANO],$M$7) -> 0 | P26: (10) estações de recarga de veículos elétricos, incluindo a prestação de serviços aos usuários | Q26: =SUMIFS(Tab_Uderor[R$],Tab_Uderor[Competencia],Entrada!Q$7,Tab_Uderor[TipoReceita],Entrada!$P26) -> 0 | R26: =SUMIFS(Tab_Uderor[R$],Tab_Uderor[Competencia],Entrada!R$7,Tab_Uderor[TipoReceita],Entrada!$P26) -> 0 | S26: =SUMIFS(Tab_Uderor[R$],Tab_Uderor[Competencia],Entrada!S$7,Tab_Uderor[TipoReceita],Entrada!$P26) -> 0 | T26: =SUMIFS(Tab_Uderor[R$],Tab_Uderor[Competencia],Entrada!T$7,Tab_Uderor[TipoReceita],Entrada!$P26) -> 0 | U26: =SUMIFS(Tab_Uderor[R$],Tab_Uderor[Competencia],Entrada!U$7,Tab_Uderor[TipoReceita],Entrada!$P26) -> 0 | V26: =SUMIFS(Tab_Uderor[R$],Tab_Uderor[Competencia],Entrada!V$7,Tab_Uderor[TipoReceita],Entrada!$P26) -> 0 | W26: =SUMIFS(Tab_Uderor[R$],Tab_Uderor[Competencia],Entrada!W$7,Tab_Uderor[TipoReceita],Entrada!$P26) -> 0 | X26: =SUMIFS(Tab_Uderor[R$],Tab_Uderor[Competencia],Entrada!X$7,Tab_Uderor[TipoReceita],Entrada!$P26) -> 0 | Y26: =SUMIFS(Tab_Uderor[R$],Tab_Uderor[Competencia],Entrada!Y$7,Tab_Uderor[TipoReceita],Entrada!$P26) -> 0 | Z26: =SUMIFS(Tab_Uderor[R$],Tab_Uderor[Competencia],Entrada!Z$7,Tab_Uderor[TipoReceita],Entrada!$P26) -> 0 | AA26: =SUMIFS(Tab_Uderor[R$],Tab_Uderor[Competencia],Entrada!AA$7,Tab_Uderor[TipoReceita],Entrada!$P26) -> 0 | AB26: =SUMIFS(Tab_Uderor[R$],Tab_Uderor[Competencia],Entrada!AB$7,Tab_Uderor[TipoReceita],Entrada!$P26) -> 0 | AC26: =SUMIFS(Tab_Uderor[R$],Tab_Uderor[Competencia],Entrada!AC$7,Tab_Uderor[TipoReceita],Entrada!$P26) -> 0 | AD26: =SUMIFS(Tab_Uderor[R$],Tab_Uderor[Competencia],Entrada!AD$7,Tab_Uderor[TipoReceita],Entrada!$P26) -> 0 | AE26: =SUMIFS(Tab_Uderor[R$],Tab_Uderor[Competencia],Entrada!AE$7,Tab_Uderor[TipoReceita],Entrada!$P26) -> 0 | AF26: =SUMIFS(Tab_Uderor[R$],Tab_Uderor[Competencia],Entrada!AF$7,Tab_Uderor[TipoReceita],Entrada!$P26) -> 0 | AG26: =SUMIFS(Tab_Uderor[R$],Tab_Uderor[Competencia],Entrada!AG$7,Tab_Uderor[TipoReceita],Entrada!$P26) -> 0 | AH26: =SUMIFS(Tab_Uderor[R$],Tab_Uderor[Competencia],Entrada!AH$7,Tab_Uderor[TipoReceita],Entrada!$P26) -> 0 | AI26: =SUMIFS(Tab_Uderor[R$],Tab_Uderor[Competencia],Entrada!AI$7,Tab_Uderor[TipoReceita],Entrada!$P26) -> 0 | AJ26: =SUMIFS(Tab_Uderor[R$],Tab_Uderor[Competencia],Entrada!AJ$7,Tab_Uderor[TipoReceita],Entrada!$P26) -> 0 | AK26: =SUMIFS(Tab_Uderor[R$],Tab_Uderor[Competencia],Entrada!AK$7,Tab_Uderor[TipoReceita],Entrada!$P26) -> 0 | AL26: =SUMIFS(Tab_Uderor[R$],Tab_Uderor[Competencia],Entrada!AL$7,Tab_Uderor[TipoReceita],Entrada!$P26) -> 0 | AM26: =SUMIFS(Tab_Uderor[R$],Tab_Uderor[Competencia],Entrada!AM$7,Tab_Uderor[TipoReceita],Entrada!$P26) -> 0 | AN26: =SUMIFS(Tab_Uderor[R$],Tab_Uderor[Competencia],Entrada!AN$7,Tab_Uderor[TipoReceita],Entrada!$P26) -> 0 | AO26: =SUMIFS(Tab_Uderor[R$],Tab_Uderor[Competencia],Entrada!AO$7,Tab_Uderor[TipoReceita],Entrada!$P26) -> 0 | AP26: =SUMIFS(Tab_Uderor[R$],Tab_Uderor[Competencia],Entrada!AP$7,Tab_Uderor[TipoReceita],Entrada!$P26) -> 0 | AQ26: =SUMIFS(Tab_Uderor[R$],Tab_Uderor[Competencia],Entrada!AQ$7,Tab_Uderor[TipoReceita],Entrada!$P26) -> 0 | AR26: =SUMIFS(Tab_Uderor[R$],Tab_Uderor[Competencia],Entrada!AR$7,Tab_Uderor[TipoReceita],Entrada!$P26) -> 0 | AS26: =SUMIFS(Tab_Uderor[R$],Tab_Uderor[Competencia],Entrada!AS$7,Tab_Uderor[TipoReceita],Entrada!$P26) -> 0 | AT26: =SUMIFS(Tab_Uderor[R$],Tab_Uderor[Competencia],Entrada!AT$7,Tab_Uderor[TipoReceita],Entrada!$P26) -> 0 | AU26: =SUMIFS(Tab_Uderor[R$],Tab_Uderor[Competencia],Entrada!AU$7,Tab_Uderor[TipoReceita],Entrada!$P26) -> 0 | AV26: =SUMIFS(Tab_Uderor[R$],Tab_Uderor[Competencia],Entrada!AV$7,Tab_Uderor[TipoReceita],Entrada!$P26) -> 0 | AW26: =SUMIFS(Tab_Uderor[R$],Tab_Uderor[Competencia],Entrada!AW$7,Tab_Uderor[TipoReceita],Entrada!$P26) -> 0 | AX26: =SUMIFS(Tab_Uderor[R$],Tab_Uderor[Competencia],Entrada!AX$7,Tab_Uderor[TipoReceita],Entrada!$P26) -> 0 | AY26: =SUMIFS(Tab_Uderor[R$],Tab_Uderor[Competencia],Entrada!AY$7,Tab_Uderor[TipoReceita],Entrada!$P26) -> 0 | AZ26: =SUMIFS(Tab_Uderor[R$],Tab_Uderor[Competencia],Entrada!AZ$7,Tab_Uderor[TipoReceita],Entrada!$P26) -> 0
F27: =Indexador!D132 -> Despesa 2024 | H27: 45722 | J27: RIT - RP 800 - Célula F22 | K27: Serviços Jurídicos | L27: =SUMIFS(Tab_RIT_BMP[SALDO],Tab_RIT_BMP[CONTA],3,Tab_RIT_BMP[ANO],$L$7) -> 0 | M27: =SUMIFS(Tab_RIT_BMP[SALDO],Tab_RIT_BMP[CONTA],3,Tab_RIT_BMP[ANO],$M$7) -> 0 | P27: Eficientização do consumo de energia elétrica e instalação de cogeração qualificada, desde que não enquadráveis nos projetos de Pesquisa e Desenvolvimento (P&D) ou de Eficiência Energética estabelecidos em lei | Q27: =SUMIFS(Tab_Uderor[R$],Tab_Uderor[Competencia],Entrada!Q$7,Tab_Uderor[TipoReceita],Entrada!$P27) -> 0 | R27: =SUMIFS(Tab_Uderor[R$],Tab_Uderor[Competencia],Entrada!R$7,Tab_Uderor[TipoReceita],Entrada!$P27) -> 0 | S27: =SUMIFS(Tab_Uderor[R$],Tab_Uderor[Competencia],Entrada!S$7,Tab_Uderor[TipoReceita],Entrada!$P27) -> 0 | T27: =SUMIFS(Tab_Uderor[R$],Tab_Uderor[Competencia],Entrada!T$7,Tab_Uderor[TipoReceita],Entrada!$P27) -> 0 | U27: =SUMIFS(Tab_Uderor[R$],Tab_Uderor[Competencia],Entrada!U$7,Tab_Uderor[TipoReceita],Entrada!$P27) -> 0 | V27: =SUMIFS(Tab_Uderor[R$],Tab_Uderor[Competencia],Entrada!V$7,Tab_Uderor[TipoReceita],Entrada!$P27) -> 0 | W27: =SUMIFS(Tab_Uderor[R$],Tab_Uderor[Competencia],Entrada!W$7,Tab_Uderor[TipoReceita],Entrada!$P27) -> 0 | X27: =SUMIFS(Tab_Uderor[R$],Tab_Uderor[Competencia],Entrada!X$7,Tab_Uderor[TipoReceita],Entrada!$P27) -> 0 | Y27: =SUMIFS(Tab_Uderor[R$],Tab_Uderor[Competencia],Entrada!Y$7,Tab_Uderor[TipoReceita],Entrada!$P27) -> 0 | Z27: =SUMIFS(Tab_Uderor[R$],Tab_Uderor[Competencia],Entrada!Z$7,Tab_Uderor[TipoReceita],Entrada!$P27) -> 0 | AA27: =SUMIFS(Tab_Uderor[R$],Tab_Uderor[Competencia],Entrada!AA$7,Tab_Uderor[TipoReceita],Entrada!$P27) -> 0 | AB27: =SUMIFS(Tab_Uderor[R$],Tab_Uderor[Competencia],Entrada!AB$7,Tab_Uderor[TipoReceita],Entrada!$P27) -> 0 | AC27: =SUMIFS(Tab_Uderor[R$],Tab_Uderor[Competencia],Entrada!AC$7,Tab_Uderor[TipoReceita],Entrada!$P27) -> 0 | AD27: =SUMIFS(Tab_Uderor[R$],Tab_Uderor[Competencia],Entrada!AD$7,Tab_Uderor[TipoReceita],Entrada!$P27) -> 0 | AE27: =SUMIFS(Tab_Uderor[R$],Tab_Uderor[Competencia],Entrada!AE$7,Tab_Uderor[TipoReceita],Entrada!$P27) -> 0 | AF27: =SUMIFS(Tab_Uderor[R$],Tab_Uderor[Competencia],Entrada!AF$7,Tab_Uderor[TipoReceita],Entrada!$P27) -> 0 | AG27: =SUMIFS(Tab_Uderor[R$],Tab_Uderor[Competencia],Entrada!AG$7,Tab_Uderor[TipoReceita],Entrada!$P27) -> 0 | AH27: =SUMIFS(Tab_Uderor[R$],Tab_Uderor[Competencia],Entrada!AH$7,Tab_Uderor[TipoReceita],Entrada!$P27) -> 0 | AI27: =SUMIFS(Tab_Uderor[R$],Tab_Uderor[Competencia],Entrada!AI$7,Tab_Uderor[TipoReceita],Entrada!$P27) -> 0 | AJ27: =SUMIFS(Tab_Uderor[R$],Tab_Uderor[Competencia],Entrada!AJ$7,Tab_Uderor[TipoReceita],Entrada!$P27) -> 0 | AK27: =SUMIFS(Tab_Uderor[R$],Tab_Uderor[Competencia],Entrada!AK$7,Tab_Uderor[TipoReceita],Entrada!$P27) -> 0 | AL27: =SUMIFS(Tab_Uderor[R$],Tab_Uderor[Competencia],Entrada!AL$7,Tab_Uderor[TipoReceita],Entrada!$P27) -> 0 | AM27: =SUMIFS(Tab_Uderor[R$],Tab_Uderor[Competencia],Entrada!AM$7,Tab_Uderor[TipoReceita],Entrada!$P27) -> 0 | AN27: =SUMIFS(Tab_Uderor[R$],Tab_Uderor[Competencia],Entrada!AN$7,Tab_Uderor[TipoReceita],Entrada!$P27) -> 0 | AO27: =SUMIFS(Tab_Uderor[R$],Tab_Uderor[Competencia],Entrada!AO$7,Tab_Uderor[TipoReceita],Entrada!$P27) -> 0 | AP27: =SUMIFS(Tab_Uderor[R$],Tab_Uderor[Competencia],Entrada!AP$7,Tab_Uderor[TipoReceita],Entrada!$P27) -> 0 | AQ27: =SUMIFS(Tab_Uderor[R$],Tab_Uderor[Competencia],Entrada!AQ$7,Tab_Uderor[TipoReceita],Entrada!$P27) -> 0 | AR27: =SUMIFS(Tab_Uderor[R$],Tab_Uderor[Competencia],Entrada!AR$7,Tab_Uderor[TipoReceita],Entrada!$P27) -> 0 | AS27: =SUMIFS(Tab_Uderor[R$],Tab_Uderor[Competencia],Entrada!AS$7,Tab_Uderor[TipoReceita],Entrada!$P27) -> 0 | AT27: =SUMIFS(Tab_Uderor[R$],Tab_Uderor[Competencia],Entrada!AT$7,Tab_Uderor[TipoReceita],Entrada!$P27) -> 0 | AU27: =SUMIFS(Tab_Uderor[R$],Tab_Uderor[Competencia],Entrada!AU$7,Tab_Uderor[TipoReceita],Entrada!$P27) -> 0 | AV27: =SUMIFS(Tab_Uderor[R$],Tab_Uderor[Competencia],Entrada!AV$7,Tab_Uderor[TipoReceita],Entrada!$P27) -> 0 | AW27: =SUMIFS(Tab_Uderor[R$],Tab_Uderor[Competencia],Entrada!AW$7,Tab_Uderor[TipoReceita],Entrada!$P27) -> 0 | AX27: =SUMIFS(Tab_Uderor[R$],Tab_Uderor[Competencia],Entrada!AX$7,Tab_Uderor[TipoReceita],Entrada!$P27) -> 0 | AY27: =SUMIFS(Tab_Uderor[R$],Tab_Uderor[Competencia],Entrada!AY$7,Tab_Uderor[TipoReceita],Entrada!$P27) -> 0 | AZ27: =SUMIFS(Tab_Uderor[R$],Tab_Uderor[Competencia],Entrada!AZ$7,Tab_Uderor[TipoReceita],Entrada!$P27) -> 0
F28: =Indexador!E132 -> Despesa 2023 | J28: RIT - RP 800 - Célula F23 | K28: Serviços de Informática | L28: =SUMIFS(Tab_RIT_BMP[SALDO],Tab_RIT_BMP[CONTA],4,Tab_RIT_BMP[ANO],$L$7)+SUMIFS(Tab_RIT_BMP[SALDO],Tab_RIT_BMP[CONTA],5,Tab_RIT_BMP[ANO],$L$7) -> 0 | M28: =SUMIFS(Tab_RIT_BMP[SALDO],Tab_RIT_BMP[CONTA],4,Tab_RIT_BMP[ANO],$M$7)+SUMIFS(Tab_RIT_BMP[SALDO],Tab_RIT_BMP[CONTA],5,Tab_RIT_BMP[ANO],$M$7) -> 0 | P28: Serviços de comunicação de dados | Q28: =SUMIFS(Tab_Uderor[R$],Tab_Uderor[Competencia],Entrada!Q$7,Tab_Uderor[TipoReceita],Entrada!$P28) -> 0 | R28: =SUMIFS(Tab_Uderor[R$],Tab_Uderor[Competencia],Entrada!R$7,Tab_Uderor[TipoReceita],Entrada!$P28) -> 0 | S28: =SUMIFS(Tab_Uderor[R$],Tab_Uderor[Competencia],Entrada!S$7,Tab_Uderor[TipoReceita],Entrada!$P28) -> 0 | T28: =SUMIFS(Tab_Uderor[R$],Tab_Uderor[Competencia],Entrada!T$7,Tab_Uderor[TipoReceita],Entrada!$P28) -> 0 | U28: =SUMIFS(Tab_Uderor[R$],Tab_Uderor[Competencia],Entrada!U$7,Tab_Uderor[TipoReceita],Entrada!$P28) -> 0 | V28: =SUMIFS(Tab_Uderor[R$],Tab_Uderor[Competencia],Entrada!V$7,Tab_Uderor[TipoReceita],Entrada!$P28) -> 0 | W28: =SUMIFS(Tab_Uderor[R$],Tab_Uderor[Competencia],Entrada!W$7,Tab_Uderor[TipoReceita],Entrada!$P28) -> 0 | X28: =SUMIFS(Tab_Uderor[R$],Tab_Uderor[Competencia],Entrada!X$7,Tab_Uderor[TipoReceita],Entrada!$P28) -> 0 | Y28: =SUMIFS(Tab_Uderor[R$],Tab_Uderor[Competencia],Entrada!Y$7,Tab_Uderor[TipoReceita],Entrada!$P28) -> 0 | Z28: =SUMIFS(Tab_Uderor[R$],Tab_Uderor[Competencia],Entrada!Z$7,Tab_Uderor[TipoReceita],Entrada!$P28) -> 0 | AA28: =SUMIFS(Tab_Uderor[R$],Tab_Uderor[Competencia],Entrada!AA$7,Tab_Uderor[TipoReceita],Entrada!$P28) -> 0 | AB28: =SUMIFS(Tab_Uderor[R$],Tab_Uderor[Competencia],Entrada!AB$7,Tab_Uderor[TipoReceita],Entrada!$P28) -> 0 | AC28: =SUMIFS(Tab_Uderor[R$],Tab_Uderor[Competencia],Entrada!AC$7,Tab_Uderor[TipoReceita],Entrada!$P28) -> 0 | AD28: =SUMIFS(Tab_Uderor[R$],Tab_Uderor[Competencia],Entrada!AD$7,Tab_Uderor[TipoReceita],Entrada!$P28) -> 0 | AE28: =SUMIFS(Tab_Uderor[R$],Tab_Uderor[Competencia],Entrada!AE$7,Tab_Uderor[TipoReceita],Entrada!$P28) -> 0 | AF28: =SUMIFS(Tab_Uderor[R$],Tab_Uderor[Competencia],Entrada!AF$7,Tab_Uderor[TipoReceita],Entrada!$P28) -> 0 | AG28: =SUMIFS(Tab_Uderor[R$],Tab_Uderor[Competencia],Entrada!AG$7,Tab_Uderor[TipoReceita],Entrada!$P28) -> 0 | AH28: =SUMIFS(Tab_Uderor[R$],Tab_Uderor[Competencia],Entrada!AH$7,Tab_Uderor[TipoReceita],Entrada!$P28) -> 0 | AI28: =SUMIFS(Tab_Uderor[R$],Tab_Uderor[Competencia],Entrada!AI$7,Tab_Uderor[TipoReceita],Entrada!$P28) -> 0 | AJ28: =SUMIFS(Tab_Uderor[R$],Tab_Uderor[Competencia],Entrada!AJ$7,Tab_Uderor[TipoReceita],Entrada!$P28) -> 0 | AK28: =SUMIFS(Tab_Uderor[R$],Tab_Uderor[Competencia],Entrada!AK$7,Tab_Uderor[TipoReceita],Entrada!$P28) -> 0 | AL28: =SUMIFS(Tab_Uderor[R$],Tab_Uderor[Competencia],Entrada!AL$7,Tab_Uderor[TipoReceita],Entrada!$P28) -> 0 | AM28: =SUMIFS(Tab_Uderor[R$],Tab_Uderor[Competencia],Entrada!AM$7,Tab_Uderor[TipoReceita],Entrada!$P28) -> 0 | AN28: =SUMIFS(Tab_Uderor[R$],Tab_Uderor[Competencia],Entrada!AN$7,Tab_Uderor[TipoReceita],Entrada!$P28) -> 0 | AO28: =SUMIFS(Tab_Uderor[R$],Tab_Uderor[Competencia],Entrada!AO$7,Tab_Uderor[TipoReceita],Entrada!$P28) -> 0 | AP28: =SUMIFS(Tab_Uderor[R$],Tab_Uderor[Competencia],Entrada!AP$7,Tab_Uderor[TipoReceita],Entrada!$P28) -> 0 | AQ28: =SUMIFS(Tab_Uderor[R$],Tab_Uderor[Competencia],Entrada!AQ$7,Tab_Uderor[TipoReceita],Entrada!$P28) -> 0 | AR28: =SUMIFS(Tab_Uderor[R$],Tab_Uderor[Competencia],Entrada!AR$7,Tab_Uderor[TipoReceita],Entrada!$P28) -> 0 | AS28: =SUMIFS(Tab_Uderor[R$],Tab_Uderor[Competencia],Entrada!AS$7,Tab_Uderor[TipoReceita],Entrada!$P28) -> 0 | AT28: =SUMIFS(Tab_Uderor[R$],Tab_Uderor[Competencia],Entrada!AT$7,Tab_Uderor[TipoReceita],Entrada!$P28) -> 0 | AU28: =SUMIFS(Tab_Uderor[R$],Tab_Uderor[Competencia],Entrada!AU$7,Tab_Uderor[TipoReceita],Entrada!$P28) -> 0 | AV28: =SUMIFS(Tab_Uderor[R$],Tab_Uderor[Competencia],Entrada!AV$7,Tab_Uderor[TipoReceita],Entrada!$P28) -> 0 | AW28: =SUMIFS(Tab_Uderor[R$],Tab_Uderor[Competencia],Entrada!AW$7,Tab_Uderor[TipoReceita],Entrada!$P28) -> 0 | AX28: =SUMIFS(Tab_Uderor[R$],Tab_Uderor[Competencia],Entrada!AX$7,Tab_Uderor[TipoReceita],Entrada!$P28) -> 0 | AY28: =SUMIFS(Tab_Uderor[R$],Tab_Uderor[Competencia],Entrada!AY$7,Tab_Uderor[TipoReceita],Entrada!$P28) -> 0 | AZ28: =SUMIFS(Tab_Uderor[R$],Tab_Uderor[Competencia],Entrada!AZ$7,Tab_Uderor[TipoReceita],Entrada!$P28) -> 0
F29: =Indexador!F132 -> Despesa 2022 | J29: RIT - RP 800 - Célula F26 | K29: Viagens (Passagens Aéreas, etc) | L29: =SUMIFS(Tab_RIT_BMP[SALDO],Tab_RIT_BMP[CONTA],6,Tab_RIT_BMP[ANO],$L$7) -> 0 | M29: =SUMIFS(Tab_RIT_BMP[SALDO],Tab_RIT_BMP[CONTA],6,Tab_RIT_BMP[ANO],$M$7) -> 0 | P29: Serviços de consultoria | Q29: =SUMIFS(Tab_Uderor[R$],Tab_Uderor[Competencia],Entrada!Q$7,Tab_Uderor[TipoReceita],Entrada!$P29) -> 0 | R29: =SUMIFS(Tab_Uderor[R$],Tab_Uderor[Competencia],Entrada!R$7,Tab_Uderor[TipoReceita],Entrada!$P29) -> 0 | S29: =SUMIFS(Tab_Uderor[R$],Tab_Uderor[Competencia],Entrada!S$7,Tab_Uderor[TipoReceita],Entrada!$P29) -> 0 | T29: =SUMIFS(Tab_Uderor[R$],Tab_Uderor[Competencia],Entrada!T$7,Tab_Uderor[TipoReceita],Entrada!$P29) -> 0 | U29: =SUMIFS(Tab_Uderor[R$],Tab_Uderor[Competencia],Entrada!U$7,Tab_Uderor[TipoReceita],Entrada!$P29) -> 0 | V29: =SUMIFS(Tab_Uderor[R$],Tab_Uderor[Competencia],Entrada!V$7,Tab_Uderor[TipoReceita],Entrada!$P29) -> 0 | W29: =SUMIFS(Tab_Uderor[R$],Tab_Uderor[Competencia],Entrada!W$7,Tab_Uderor[TipoReceita],Entrada!$P29) -> 0 | X29: =SUMIFS(Tab_Uderor[R$],Tab_Uderor[Competencia],Entrada!X$7,Tab_Uderor[TipoReceita],Entrada!$P29) -> 0 | Y29: =SUMIFS(Tab_Uderor[R$],Tab_Uderor[Competencia],Entrada!Y$7,Tab_Uderor[TipoReceita],Entrada!$P29) -> 0 | Z29: =SUMIFS(Tab_Uderor[R$],Tab_Uderor[Competencia],Entrada!Z$7,Tab_Uderor[TipoReceita],Entrada!$P29) -> 0 | AA29: =SUMIFS(Tab_Uderor[R$],Tab_Uderor[Competencia],Entrada!AA$7,Tab_Uderor[TipoReceita],Entrada!$P29) -> 0 | AB29: =SUMIFS(Tab_Uderor[R$],Tab_Uderor[Competencia],Entrada!AB$7,Tab_Uderor[TipoReceita],Entrada!$P29) -> 0 | AC29: =SUMIFS(Tab_Uderor[R$],Tab_Uderor[Competencia],Entrada!AC$7,Tab_Uderor[TipoReceita],Entrada!$P29) -> 0 | AD29: =SUMIFS(Tab_Uderor[R$],Tab_Uderor[Competencia],Entrada!AD$7,Tab_Uderor[TipoReceita],Entrada!$P29) -> 0 | AE29: =SUMIFS(Tab_Uderor[R$],Tab_Uderor[Competencia],Entrada!AE$7,Tab_Uderor[TipoReceita],Entrada!$P29) -> 0 | AF29: =SUMIFS(Tab_Uderor[R$],Tab_Uderor[Competencia],Entrada!AF$7,Tab_Uderor[TipoReceita],Entrada!$P29) -> 0 | AG29: =SUMIFS(Tab_Uderor[R$],Tab_Uderor[Competencia],Entrada!AG$7,Tab_Uderor[TipoReceita],Entrada!$P29) -> 0 | AH29: =SUMIFS(Tab_Uderor[R$],Tab_Uderor[Competencia],Entrada!AH$7,Tab_Uderor[TipoReceita],Entrada!$P29) -> 0 | AI29: =SUMIFS(Tab_Uderor[R$],Tab_Uderor[Competencia],Entrada!AI$7,Tab_Uderor[TipoReceita],Entrada!$P29) -> 0 | AJ29: =SUMIFS(Tab_Uderor[R$],Tab_Uderor[Competencia],Entrada!AJ$7,Tab_Uderor[TipoReceita],Entrada!$P29) -> 0 | AK29: =SUMIFS(Tab_Uderor[R$],Tab_Uderor[Competencia],Entrada!AK$7,Tab_Uderor[TipoReceita],Entrada!$P29) -> 0 | AL29: =SUMIFS(Tab_Uderor[R$],Tab_Uderor[Competencia],Entrada!AL$7,Tab_Uderor[TipoReceita],Entrada!$P29) -> 0 | AM29: =SUMIFS(Tab_Uderor[R$],Tab_Uderor[Competencia],Entrada!AM$7,Tab_Uderor[TipoReceita],Entrada!$P29) -> 0 | AN29: =SUMIFS(Tab_Uderor[R$],Tab_Uderor[Competencia],Entrada!AN$7,Tab_Uderor[TipoReceita],Entrada!$P29) -> 0 | AO29: =SUMIFS(Tab_Uderor[R$],Tab_Uderor[Competencia],Entrada!AO$7,Tab_Uderor[TipoReceita],Entrada!$P29) -> 0 | AP29: =SUMIFS(Tab_Uderor[R$],Tab_Uderor[Competencia],Entrada!AP$7,Tab_Uderor[TipoReceita],Entrada!$P29) -> 0 | AQ29: =SUMIFS(Tab_Uderor[R$],Tab_Uderor[Competencia],Entrada!AQ$7,Tab_Uderor[TipoReceita],Entrada!$P29) -> 0 | AR29: =SUMIFS(Tab_Uderor[R$],Tab_Uderor[Competencia],Entrada!AR$7,Tab_Uderor[TipoReceita],Entrada!$P29) -> 0 | AS29: =SUMIFS(Tab_Uderor[R$],Tab_Uderor[Competencia],Entrada!AS$7,Tab_Uderor[TipoReceita],Entrada!$P29) -> 0 | AT29: =SUMIFS(Tab_Uderor[R$],Tab_Uderor[Competencia],Entrada!AT$7,Tab_Uderor[TipoReceita],Entrada!$P29) -> 0 | AU29: =SUMIFS(Tab_Uderor[R$],Tab_Uderor[Competencia],Entrada!AU$7,Tab_Uderor[TipoReceita],Entrada!$P29) -> 0 | AV29: =SUMIFS(Tab_Uderor[R$],Tab_Uderor[Competencia],Entrada!AV$7,Tab_Uderor[TipoReceita],Entrada!$P29) -> 0 | AW29: =SUMIFS(Tab_Uderor[R$],Tab_Uderor[Competencia],Entrada!AW$7,Tab_Uderor[TipoReceita],Entrada!$P29) -> 0 | AX29: =SUMIFS(Tab_Uderor[R$],Tab_Uderor[Competencia],Entrada!AX$7,Tab_Uderor[TipoReceita],Entrada!$P29) -> 0 | AY29: =SUMIFS(Tab_Uderor[R$],Tab_Uderor[Competencia],Entrada!AY$7,Tab_Uderor[TipoReceita],Entrada!$P29) -> 0 | AZ29: =SUMIFS(Tab_Uderor[R$],Tab_Uderor[Competencia],Entrada!AZ$7,Tab_Uderor[TipoReceita],Entrada!$P29) -> 0
F30: =Indexador!G132 -> Despesa 2021 | J30: RIT - RP 800 - Célula F27 | K30: Transportes (inclui Fretes) | L30: =SUMIFS(Tab_RIT_BMP[SALDO],Tab_RIT_BMP[CONTA],7,Tab_RIT_BMP[ANO],$L$7) -> 0 | M30: =SUMIFS(Tab_RIT_BMP[SALDO],Tab_RIT_BMP[CONTA],7,Tab_RIT_BMP[ANO],$M$7) -> 0 | P30: Receita proveniente da comercialização de resultados de projetos de P&D COM comprovação | Q30: =SUMIFS(Tab_Uderor[R$],Tab_Uderor[Competencia],Entrada!Q$7,Tab_Uderor[TipoReceita],Entrada!$P30) -> 0 | R30: =SUMIFS(Tab_Uderor[R$],Tab_Uderor[Competencia],Entrada!R$7,Tab_Uderor[TipoReceita],Entrada!$P30) -> 0 | S30: =SUMIFS(Tab_Uderor[R$],Tab_Uderor[Competencia],Entrada!S$7,Tab_Uderor[TipoReceita],Entrada!$P30) -> 0 | T30: =SUMIFS(Tab_Uderor[R$],Tab_Uderor[Competencia],Entrada!T$7,Tab_Uderor[TipoReceita],Entrada!$P30) -> 0 | U30: =SUMIFS(Tab_Uderor[R$],Tab_Uderor[Competencia],Entrada!U$7,Tab_Uderor[TipoReceita],Entrada!$P30) -> 0 | V30: =SUMIFS(Tab_Uderor[R$],Tab_Uderor[Competencia],Entrada!V$7,Tab_Uderor[TipoReceita],Entrada!$P30) -> 0 | W30: =SUMIFS(Tab_Uderor[R$],Tab_Uderor[Competencia],Entrada!W$7,Tab_Uderor[TipoReceita],Entrada!$P30) -> 0 | X30: =SUMIFS(Tab_Uderor[R$],Tab_Uderor[Competencia],Entrada!X$7,Tab_Uderor[TipoReceita],Entrada!$P30) -> 0 | Y30: =SUMIFS(Tab_Uderor[R$],Tab_Uderor[Competencia],Entrada!Y$7,Tab_Uderor[TipoReceita],Entrada!$P30) -> 0 | Z30: =SUMIFS(Tab_Uderor[R$],Tab_Uderor[Competencia],Entrada!Z$7,Tab_Uderor[TipoReceita],Entrada!$P30) -> 0 | AA30: =SUMIFS(Tab_Uderor[R$],Tab_Uderor[Competencia],Entrada!AA$7,Tab_Uderor[TipoReceita],Entrada!$P30) -> 0 | AB30: =SUMIFS(Tab_Uderor[R$],Tab_Uderor[Competencia],Entrada!AB$7,Tab_Uderor[TipoReceita],Entrada!$P30) -> 0 | AC30: =SUMIFS(Tab_Uderor[R$],Tab_Uderor[Competencia],Entrada!AC$7,Tab_Uderor[TipoReceita],Entrada!$P30) -> 0 | AD30: =SUMIFS(Tab_Uderor[R$],Tab_Uderor[Competencia],Entrada!AD$7,Tab_Uderor[TipoReceita],Entrada!$P30) -> 0 | AE30: =SUMIFS(Tab_Uderor[R$],Tab_Uderor[Competencia],Entrada!AE$7,Tab_Uderor[TipoReceita],Entrada!$P30) -> 0 | AF30: =SUMIFS(Tab_Uderor[R$],Tab_Uderor[Competencia],Entrada!AF$7,Tab_Uderor[TipoReceita],Entrada!$P30) -> 0 | AG30: =SUMIFS(Tab_Uderor[R$],Tab_Uderor[Competencia],Entrada!AG$7,Tab_Uderor[TipoReceita],Entrada!$P30) -> 0 | AH30: =SUMIFS(Tab_Uderor[R$],Tab_Uderor[Competencia],Entrada!AH$7,Tab_Uderor[TipoReceita],Entrada!$P30) -> 0 | AI30: =SUMIFS(Tab_Uderor[R$],Tab_Uderor[Competencia],Entrada!AI$7,Tab_Uderor[TipoReceita],Entrada!$P30) -> 0 | AJ30: =SUMIFS(Tab_Uderor[R$],Tab_Uderor[Competencia],Entrada!AJ$7,Tab_Uderor[TipoReceita],Entrada!$P30) -> 0 | AK30: =SUMIFS(Tab_Uderor[R$],Tab_Uderor[Competencia],Entrada!AK$7,Tab_Uderor[TipoReceita],Entrada!$P30) -> 0 | AL30: =SUMIFS(Tab_Uderor[R$],Tab_Uderor[Competencia],Entrada!AL$7,Tab_Uderor[TipoReceita],Entrada!$P30) -> 0 | AM30: =SUMIFS(Tab_Uderor[R$],Tab_Uderor[Competencia],Entrada!AM$7,Tab_Uderor[TipoReceita],Entrada!$P30) -> 0 | AN30: =SUMIFS(Tab_Uderor[R$],Tab_Uderor[Competencia],Entrada!AN$7,Tab_Uderor[TipoReceita],Entrada!$P30) -> 0 | AO30: =SUMIFS(Tab_Uderor[R$],Tab_Uderor[Competencia],Entrada!AO$7,Tab_Uderor[TipoReceita],Entrada!$P30) -> 0 | AP30: =SUMIFS(Tab_Uderor[R$],Tab_Uderor[Competencia],Entrada!AP$7,Tab_Uderor[TipoReceita],Entrada!$P30) -> 0 | AQ30: =SUMIFS(Tab_Uderor[R$],Tab_Uderor[Competencia],Entrada!AQ$7,Tab_Uderor[TipoReceita],Entrada!$P30) -> 0 | AR30: =SUMIFS(Tab_Uderor[R$],Tab_Uderor[Competencia],Entrada!AR$7,Tab_Uderor[TipoReceita],Entrada!$P30) -> 0 | AS30: =SUMIFS(Tab_Uderor[R$],Tab_Uderor[Competencia],Entrada!AS$7,Tab_Uderor[TipoReceita],Entrada!$P30) -> 0 | AT30: =SUMIFS(Tab_Uderor[R$],Tab_Uderor[Competencia],Entrada!AT$7,Tab_Uderor[TipoReceita],Entrada!$P30) -> 0 | AU30: =SUMIFS(Tab_Uderor[R$],Tab_Uderor[Competencia],Entrada!AU$7,Tab_Uderor[TipoReceita],Entrada!$P30) -> 0 | AV30: =SUMIFS(Tab_Uderor[R$],Tab_Uderor[Competencia],Entrada!AV$7,Tab_Uderor[TipoReceita],Entrada!$P30) -> 0 | AW30: =SUMIFS(Tab_Uderor[R$],Tab_Uderor[Competencia],Entrada!AW$7,Tab_Uderor[TipoReceita],Entrada!$P30) -> 0 | AX30: =SUMIFS(Tab_Uderor[R$],Tab_Uderor[Competencia],Entrada!AX$7,Tab_Uderor[TipoReceita],Entrada!$P30) -> 0 | AY30: =SUMIFS(Tab_Uderor[R$],Tab_Uderor[Competencia],Entrada!AY$7,Tab_Uderor[TipoReceita],Entrada!$P30) -> 0 | AZ30: =SUMIFS(Tab_Uderor[R$],Tab_Uderor[Competencia],Entrada!AZ$7,Tab_Uderor[TipoReceita],Entrada!$P30) -> 0
F31: =Indexador!H132 -> Despesa 2020 | J31: RIT - RP 800 - Célula F28 | K31: Propaganda e Publicidade (exceto Publicações Oficiais) | L31: =SUMIFS(Tab_RIT_BMP[SALDO],Tab_RIT_BMP[CONTA],8,Tab_RIT_BMP[ANO],$L$7) -> 0 | M31: =SUMIFS(Tab_RIT_BMP[SALDO],Tab_RIT_BMP[CONTA],8,Tab_RIT_BMP[ANO],$M$7) -> 0 | P31: Receita proveniente da comercialização de resultados de projetos de P&D SEM comprovação | Q31: =SUMIFS(Tab_Uderor[R$],Tab_Uderor[Competencia],Entrada!Q$7,Tab_Uderor[TipoReceita],Entrada!$P31) -> 0 | R31: =SUMIFS(Tab_Uderor[R$],Tab_Uderor[Competencia],Entrada!R$7,Tab_Uderor[TipoReceita],Entrada!$P31) -> 0 | S31: =SUMIFS(Tab_Uderor[R$],Tab_Uderor[Competencia],Entrada!S$7,Tab_Uderor[TipoReceita],Entrada!$P31) -> 0 | T31: =SUMIFS(Tab_Uderor[R$],Tab_Uderor[Competencia],Entrada!T$7,Tab_Uderor[TipoReceita],Entrada!$P31) -> 0 | U31: =SUMIFS(Tab_Uderor[R$],Tab_Uderor[Competencia],Entrada!U$7,Tab_Uderor[TipoReceita],Entrada!$P31) -> 0 | V31: =SUMIFS(Tab_Uderor[R$],Tab_Uderor[Competencia],Entrada!V$7,Tab_Uderor[TipoReceita],Entrada!$P31) -> 0 | W31: =SUMIFS(Tab_Uderor[R$],Tab_Uderor[Competencia],Entrada!W$7,Tab_Uderor[TipoReceita],Entrada!$P31) -> 0 | X31: =SUMIFS(Tab_Uderor[R$],Tab_Uderor[Competencia],Entrada!X$7,Tab_Uderor[TipoReceita],Entrada!$P31) -> 0 | Y31: =SUMIFS(Tab_Uderor[R$],Tab_Uderor[Competencia],Entrada!Y$7,Tab_Uderor[TipoReceita],Entrada!$P31) -> 0 | Z31: =SUMIFS(Tab_Uderor[R$],Tab_Uderor[Competencia],Entrada!Z$7,Tab_Uderor[TipoReceita],Entrada!$P31) -> 0 | AA31: =SUMIFS(Tab_Uderor[R$],Tab_Uderor[Competencia],Entrada!AA$7,Tab_Uderor[TipoReceita],Entrada!$P31) -> 0 | AB31: =SUMIFS(Tab_Uderor[R$],Tab_Uderor[Competencia],Entrada!AB$7,Tab_Uderor[TipoReceita],Entrada!$P31) -> 0 | AC31: =SUMIFS(Tab_Uderor[R$],Tab_Uderor[Competencia],Entrada!AC$7,Tab_Uderor[TipoReceita],Entrada!$P31) -> 0 | AD31: =SUMIFS(Tab_Uderor[R$],Tab_Uderor[Competencia],Entrada!AD$7,Tab_Uderor[TipoReceita],Entrada!$P31) -> 0 | AE31: =SUMIFS(Tab_Uderor[R$],Tab_Uderor[Competencia],Entrada!AE$7,Tab_Uderor[TipoReceita],Entrada!$P31) -> 0 | AF31: =SUMIFS(Tab_Uderor[R$],Tab_Uderor[Competencia],Entrada!AF$7,Tab_Uderor[TipoReceita],Entrada!$P31) -> 0 | AG31: =SUMIFS(Tab_Uderor[R$],Tab_Uderor[Competencia],Entrada!AG$7,Tab_Uderor[TipoReceita],Entrada!$P31) -> 0 | AH31: =SUMIFS(Tab_Uderor[R$],Tab_Uderor[Competencia],Entrada!AH$7,Tab_Uderor[TipoReceita],Entrada!$P31) -> 0 | AI31: =SUMIFS(Tab_Uderor[R$],Tab_Uderor[Competencia],Entrada!AI$7,Tab_Uderor[TipoReceita],Entrada!$P31) -> 0 | AJ31: =SUMIFS(Tab_Uderor[R$],Tab_Uderor[Competencia],Entrada!AJ$7,Tab_Uderor[TipoReceita],Entrada!$P31) -> 0 | AK31: =SUMIFS(Tab_Uderor[R$],Tab_Uderor[Competencia],Entrada!AK$7,Tab_Uderor[TipoReceita],Entrada!$P31) -> 0 | AL31: =SUMIFS(Tab_Uderor[R$],Tab_Uderor[Competencia],Entrada!AL$7,Tab_Uderor[TipoReceita],Entrada!$P31) -> 0 | AM31: =SUMIFS(Tab_Uderor[R$],Tab_Uderor[Competencia],Entrada!AM$7,Tab_Uderor[TipoReceita],Entrada!$P31) -> 0 | AN31: =SUMIFS(Tab_Uderor[R$],Tab_Uderor[Competencia],Entrada!AN$7,Tab_Uderor[TipoReceita],Entrada!$P31) -> 0 | AO31: =SUMIFS(Tab_Uderor[R$],Tab_Uderor[Competencia],Entrada!AO$7,Tab_Uderor[TipoReceita],Entrada!$P31) -> 0 | AP31: =SUMIFS(Tab_Uderor[R$],Tab_Uderor[Competencia],Entrada!AP$7,Tab_Uderor[TipoReceita],Entrada!$P31) -> 0 | AQ31: =SUMIFS(Tab_Uderor[R$],Tab_Uderor[Competencia],Entrada!AQ$7,Tab_Uderor[TipoReceita],Entrada!$P31) -> 0 | AR31: =SUMIFS(Tab_Uderor[R$],Tab_Uderor[Competencia],Entrada!AR$7,Tab_Uderor[TipoReceita],Entrada!$P31) -> 0 | AS31: =SUMIFS(Tab_Uderor[R$],Tab_Uderor[Competencia],Entrada!AS$7,Tab_Uderor[TipoReceita],Entrada!$P31) -> 0 | AT31: =SUMIFS(Tab_Uderor[R$],Tab_Uderor[Competencia],Entrada!AT$7,Tab_Uderor[TipoReceita],Entrada!$P31) -> 0 | AU31: =SUMIFS(Tab_Uderor[R$],Tab_Uderor[Competencia],Entrada!AU$7,Tab_Uderor[TipoReceita],Entrada!$P31) -> 0 | AV31: =SUMIFS(Tab_Uderor[R$],Tab_Uderor[Competencia],Entrada!AV$7,Tab_Uderor[TipoReceita],Entrada!$P31) -> 0 | AW31: =SUMIFS(Tab_Uderor[R$],Tab_Uderor[Competencia],Entrada!AW$7,Tab_Uderor[TipoReceita],Entrada!$P31) -> 0 | AX31: =SUMIFS(Tab_Uderor[R$],Tab_Uderor[Competencia],Entrada!AX$7,Tab_Uderor[TipoReceita],Entrada!$P31) -> 0 | AY31: =SUMIFS(Tab_Uderor[R$],Tab_Uderor[Competencia],Entrada!AY$7,Tab_Uderor[TipoReceita],Entrada!$P31) -> 0 | AZ31: =SUMIFS(Tab_Uderor[R$],Tab_Uderor[Competencia],Entrada!AZ$7,Tab_Uderor[TipoReceita],Entrada!$P31) -> 0
F32: Perdas Regulatórias | J32: RIT - RP 800 - Célula F29 | K32: Publicações Oficiais | L32: =SUMIFS(Tab_RIT_BMP[SALDO],Tab_RIT_BMP[CONTA],9,Tab_RIT_BMP[ANO],$L$7) -> 0 | M32: =SUMIFS(Tab_RIT_BMP[SALDO],Tab_RIT_BMP[CONTA],9,Tab_RIT_BMP[ANO],$M$7) -> 0
F33: Perdas Não Técnicas | H33: 45722 | J33: RIT - RP 800 - Célula F30 | K33: Serviço de Engenharia e Supervisão de Obras | L33: =SUMIFS(Tab_RIT_BMP[SALDO],Tab_RIT_BMP[CONTA],10,Tab_RIT_BMP[ANO],$L$7) -> 0 | M33: =SUMIFS(Tab_RIT_BMP[SALDO],Tab_RIT_BMP[CONTA],10,Tab_RIT_BMP[ANO],$M$7) -> 0 | P33: Ultrapassagem de demanda e Excedente de reativos | Q33: Competência Final UDER | R33: =IF(CAPA!C7="Revisão",(DATE(YEAR('VPB e Fator X'!C10),MONTH('VPB e Fator X'!C10),1)),0) -> 0
F34: Perdas Técnicas | J34: RIT - RP 800 - Célula F31 | K34: Gestão Comercial | L34: =SUMIFS(Tab_RIT_BMP[SALDO],Tab_RIT_BMP[CONTA],11,Tab_RIT_BMP[ANO],$L$7) -> 0 | M34: =SUMIFS(Tab_RIT_BMP[SALDO],Tab_RIT_BMP[CONTA],11,Tab_RIT_BMP[ANO],$M$7) -> 0 | Q34: 60 | R34: =Q34-1 -> 59 | S34: =R34-1 -> 58 | T34: 57 | U34: 56 | V34: 55 | W34: 54 | X34: 53 | Y34: 52 | Z34: 51 | AA34: 50 | AB34: 49 | AC34: 48 | AD34: 47 | AE34: 46 | AF34: 45 | AG34: 44 | AH34: 43 | AI34: 42 | AJ34: 41 | AK34: 40 | AL34: 39 | AM34: 38 | AN34: 37 | AO34: 36 | AP34: 35 | AQ34: 34 | AR34: 33 | AS34: 32 | AT34: 31 | AU34: 30 | AV34: 29 | AW34: 28 | AX34: 27 | AY34: 26 | AZ34: 25 | BA34: 24 | BB34: 23 | BC34: 22 | BD34: 21 | BE34: 20 | BF34: 19 | BG34: 18 | BH34: 17 | BI34: 16 | BJ34: 15 | BK34: 14 | BL34: 13 | BM34: =BL34-1 -> 12 | BN34: 11 | BO34: 10 | BP34: 9 | BQ34: 8 | BR34: 7 | BS34: 6 | BT34: 5 | BU34: 4 | BV34: 3 | BW34: 2 | BX34: 1
J35: RIT - RP 800 - Célula F32 | K35: Outros Serviços Terceirizados | L35: =SUMIFS(Tab_RIT_BMP[SALDO],Tab_RIT_BMP[CONTA],12,Tab_RIT_BMP[ANO],$L$7) -> 0 | M35: =SUMIFS(Tab_RIT_BMP[SALDO],Tab_RIT_BMP[CONTA],12,Tab_RIT_BMP[ANO],$M$7) -> 0 | P35: Tipo de Receita | Q35: =$R$33 -> 00:00:00 | R35: =DATE(YEAR(Q35),MONTH(Q35)-1,1) ->  | S35: =DATE(YEAR(R35),MONTH(R35)-1,1) ->  | BM35: =DATE(YEAR(BL35),MONTH(BL35)-1,1) ->  | BN35: =DATE(YEAR(BM35),MONTH(BM35)-1,1) ->  | BO35: =DATE(YEAR(BN35),MONTH(BN35)-1,1) ->  | BP35: =DATE(YEAR(BO35),MONTH(BO35)-1,1) ->  | BQ35: =DATE(YEAR(BP35),MONTH(BP35)-1,1) ->  | BR35: =DATE(YEAR(BQ35),MONTH(BQ35)-1,1) ->  | BS35: =DATE(YEAR(BR35),MONTH(BR35)-1,1) ->  | BT35: =DATE(YEAR(BS35),MONTH(BS35)-1,1) ->  | BU35: =DATE(YEAR(BT35),MONTH(BT35)-1,1) ->  | BV35: =DATE(YEAR(BU35),MONTH(BU35)-1,1) ->  | BW35: =DATE(YEAR(BV35),MONTH(BV35)-1,1) ->  | BX35: =DATE(YEAR(BW35),MONTH(BW35)-1,1) -> 
F36: Dados da Revisão Anterior - Componente Pd | J36: RIT - RP 800 - Célula F33 - BMP - 610530810,610550810,610532810,610552810 | K36: (-) Créditos de Tributos Recuperáveis | L36: =SUMIFS(Tab_RIT_BMP[SALDO],Tab_RIT_BMP[CONTA],610530810,Tab_RIT_BMP[ANO],$L$7)+SUMIFS(Tab_RIT_BMP[SALDO],Tab_RIT_BMP[CONTA],610550810,Tab_RIT_BMP[ANO],$L$7)+ SUMIFS(Tab_RIT_BMP[SALDO],Tab_RIT_BMP[CONTA],610532810,Tab_RIT_BMP[ANO],$L$7)+SUMIFS(Tab_RIT_BMP[SALDO],Tab_RIT_BMP[CONTA],610552810,Tab_RIT_BMP[ANO],$L$7) -> 0 | M36: =SUMIFS(Tab_RIT_BMP[SALDO],Tab_RIT_BMP[CONTA],610530810,Tab_RIT_BMP[ANO],$M$7)+SUMIFS(Tab_RIT_BMP[SALDO],Tab_RIT_BMP[CONTA],610550810,Tab_RIT_BMP[ANO],$M$7)+ SUMIFS(Tab_RIT_BMP[SALDO],Tab_RIT_BMP[CONTA],610532810,Tab_RIT_BMP[ANO],$M$7)+SUMIFS(Tab_RIT_BMP[SALDO],Tab_RIT_BMP[CONTA],610552810,Tab_RIT_BMP[ANO],$M$7) -> 0 | P36: Ultrapassagem de Demanda | Q36: =SUMIFS(Tab_Uderor[R$],Tab_Uderor[Competencia],Entrada!Q35,Tab_Uderor[TipoReceita],Entrada!$P36) -> 0 | R36: =SUMIFS(Tab_Uderor[R$],Tab_Uderor[Competencia],Entrada!R35,Tab_Uderor[TipoReceita],Entrada!$P36) -> 0 | S36: =SUMIFS(Tab_Uderor[R$],Tab_Uderor[Competencia],Entrada!S35,Tab_Uderor[TipoReceita],Entrada!$P36) -> 0 | T36: =SUMIFS(Tab_Uderor[R$],Tab_Uderor[Competencia],Entrada!T35,Tab_Uderor[TipoReceita],Entrada!$P36) -> 0 | U36: =SUMIFS(Tab_Uderor[R$],Tab_Uderor[Competencia],Entrada!U35,Tab_Uderor[TipoReceita],Entrada!$P36) -> 0 | V36: =SUMIFS(Tab_Uderor[R$],Tab_Uderor[Competencia],Entrada!V35,Tab_Uderor[TipoReceita],Entrada!$P36) -> 0 | W36: =SUMIFS(Tab_Uderor[R$],Tab_Uderor[Competencia],Entrada!W35,Tab_Uderor[TipoReceita],Entrada!$P36) -> 0 | X36: =SUMIFS(Tab_Uderor[R$],Tab_Uderor[Competencia],Entrada!X35,Tab_Uderor[TipoReceita],Entrada!$P36) -> 0 | Y36: =SUMIFS(Tab_Uderor[R$],Tab_Uderor[Competencia],Entrada!Y35,Tab_Uderor[TipoReceita],Entrada!$P36) -> 0 | Z36: =SUMIFS(Tab_Uderor[R$],Tab_Uderor[Competencia],Entrada!Z35,Tab_Uderor[TipoReceita],Entrada!$P36) -> 0 | AA36: =SUMIFS(Tab_Uderor[R$],Tab_Uderor[Competencia],Entrada!AA35,Tab_Uderor[TipoReceita],Entrada!$P36) -> 0 | AB36: =SUMIFS(Tab_Uderor[R$],Tab_Uderor[Competencia],Entrada!AB35,Tab_Uderor[TipoReceita],Entrada!$P36) -> 0 | AC36: =SUMIFS(Tab_Uderor[R$],Tab_Uderor[Competencia],Entrada!AC35,Tab_Uderor[TipoReceita],Entrada!$P36) -> 0 | AD36: =SUMIFS(Tab_Uderor[R$],Tab_Uderor[Competencia],Entrada!AD35,Tab_Uderor[TipoReceita],Entrada!$P36) -> 0 | AE36: =SUMIFS(Tab_Uderor[R$],Tab_Uderor[Competencia],Entrada!AE35,Tab_Uderor[TipoReceita],Entrada!$P36) -> 0 | AF36: =SUMIFS(Tab_Uderor[R$],Tab_Uderor[Competencia],Entrada!AF35,Tab_Uderor[TipoReceita],Entrada!$P36) -> 0 | AG36: =SUMIFS(Tab_Uderor[R$],Tab_Uderor[Competencia],Entrada!AG35,Tab_Uderor[TipoReceita],Entrada!$P36) -> 0 | AH36: =SUMIFS(Tab_Uderor[R$],Tab_Uderor[Competencia],Entrada!AH35,Tab_Uderor[TipoReceita],Entrada!$P36) -> 0 | AI36: =SUMIFS(Tab_Uderor[R$],Tab_Uderor[Competencia],Entrada!AI35,Tab_Uderor[TipoReceita],Entrada!$P36) -> 0 | AJ36: =SUMIFS(Tab_Uderor[R$],Tab_Uderor[Competencia],Entrada!AJ35,Tab_Uderor[TipoReceita],Entrada!$P36) -> 0 | AK36: =SUMIFS(Tab_Uderor[R$],Tab_Uderor[Competencia],Entrada!AK35,Tab_Uderor[TipoReceita],Entrada!$P36) -> 0 | AL36: =SUMIFS(Tab_Uderor[R$],Tab_Uderor[Competencia],Entrada!AL35,Tab_Uderor[TipoReceita],Entrada!$P36) -> 0 | AM36: =SUMIFS(Tab_Uderor[R$],Tab_Uderor[Competencia],Entrada!AM35,Tab_Uderor[TipoReceita],Entrada!$P36) -> 0 | AN36: =SUMIFS(Tab_Uderor[R$],Tab_Uderor[Competencia],Entrada!AN35,Tab_Uderor[TipoReceita],Entrada!$P36) -> 0 | AO36: =SUMIFS(Tab_Uderor[R$],Tab_Uderor[Competencia],Entrada!AO35,Tab_Uderor[TipoReceita],Entrada!$P36) -> 0 | AP36: =SUMIFS(Tab_Uderor[R$],Tab_Uderor[Competencia],Entrada!AP35,Tab_Uderor[TipoReceita],Entrada!$P36) -> 0 | AQ36: =SUMIFS(Tab_Uderor[R$],Tab_Uderor[Competencia],Entrada!AQ35,Tab_Uderor[TipoReceita],Entrada!$P36) -> 0 | AR36: =SUMIFS(Tab_Uderor[R$],Tab_Uderor[Competencia],Entrada!AR35,Tab_Uderor[TipoReceita],Entrada!$P36) -> 0 | AS36: =SUMIFS(Tab_Uderor[R$],Tab_Uderor[Competencia],Entrada!AS35,Tab_Uderor[TipoReceita],Entrada!$P36) -> 0 | AT36: =SUMIFS(Tab_Uderor[R$],Tab_Uderor[Competencia],Entrada!AT35,Tab_Uderor[TipoReceita],Entrada!$P36) -> 0 | AU36: =SUMIFS(Tab_Uderor[R$],Tab_Uderor[Competencia],Entrada!AU35,Tab_Uderor[TipoReceita],Entrada!$P36) -> 0 | AV36: =SUMIFS(Tab_Uderor[R$],Tab_Uderor[Competencia],Entrada!AV35,Tab_Uderor[TipoReceita],Entrada!$P36) -> 0 | AW36: =SUMIFS(Tab_Uderor[R$],Tab_Uderor[Competencia],Entrada!AW35,Tab_Uderor[TipoReceita],Entrada!$P36) -> 0 | AX36: =SUMIFS(Tab_Uderor[R$],Tab_Uderor[Competencia],Entrada!AX35,Tab_Uderor[TipoReceita],Entrada!$P36) -> 0 | AY36: =SUMIFS(Tab_Uderor[R$],Tab_Uderor[Competencia],Entrada!AY35,Tab_Uderor[TipoReceita],Entrada!$P36) -> 0 | AZ36: =SUMIFS(Tab_Uderor[R$],Tab_Uderor[Competencia],Entrada!AZ35,Tab_Uderor[TipoReceita],Entrada!$P36) -> 0 | BA36: =SUMIFS(Tab_Uderor[R$],Tab_Uderor[Competencia],Entrada!BA35,Tab_Uderor[TipoReceita],Entrada!$P36) -> 0 | BB36: =SUMIFS(Tab_Uderor[R$],Tab_Uderor[Competencia],Entrada!BB35,Tab_Uderor[TipoReceita],Entrada!$P36) -> 0 | BC36: =SUMIFS(Tab_Uderor[R$],Tab_Uderor[Competencia],Entrada!BC35,Tab_Uderor[TipoReceita],Entrada!$P36) -> 0 | BD36: =SUMIFS(Tab_Uderor[R$],Tab_Uderor[Competencia],Entrada!BD35,Tab_Uderor[TipoReceita],Entrada!$P36) -> 0 | BE36: =SUMIFS(Tab_Uderor[R$],Tab_Uderor[Competencia],Entrada!BE35,Tab_Uderor[TipoReceita],Entrada!$P36) -> 0 | BF36: =SUMIFS(Tab_Uderor[R$],Tab_Uderor[Competencia],Entrada!BF35,Tab_Uderor[TipoReceita],Entrada!$P36) -> 0 | BG36: =SUMIFS(Tab_Uderor[R$],Tab_Uderor[Competencia],Entrada!BG35,Tab_Uderor[TipoReceita],Entrada!$P36) -> 0 | BH36: =SUMIFS(Tab_Uderor[R$],Tab_Uderor[Competencia],Entrada!BH35,Tab_Uderor[TipoReceita],Entrada!$P36) -> 0 | BI36: =SUMIFS(Tab_Uderor[R$],Tab_Uderor[Competencia],Entrada!BI35,Tab_Uderor[TipoReceita],Entrada!$P36) -> 0 | BJ36: =SUMIFS(Tab_Uderor[R$],Tab_Uderor[Competencia],Entrada!BJ35,Tab_Uderor[TipoReceita],Entrada!$P36) -> 0 | BK36: =SUMIFS(Tab_Uderor[R$],Tab_Uderor[Competencia],Entrada!BK35,Tab_Uderor[TipoReceita],Entrada!$P36) -> 0 | BL36: =SUMIFS(Tab_Uderor[R$],Tab_Uderor[Competencia],Entrada!BL35,Tab_Uderor[TipoReceita],Entrada!$P36) -> 0 | BM36: =SUMIFS(Tab_Uderor[R$],Tab_Uderor[Competencia],Entrada!BM35,Tab_Uderor[TipoReceita],Entrada!$P36) -> 0 | BN36: =SUMIFS(Tab_Uderor[R$],Tab_Uderor[Competencia],Entrada!BN35,Tab_Uderor[TipoReceita],Entrada!$P36) -> 0 | BO36: =SUMIFS(Tab_Uderor[R$],Tab_Uderor[Competencia],Entrada!BO35,Tab_Uderor[TipoReceita],Entrada!$P36) -> 0 | BP36: =SUMIFS(Tab_Uderor[R$],Tab_Uderor[Competencia],Entrada!BP35,Tab_Uderor[TipoReceita],Entrada!$P36) -> 0 | BQ36: =SUMIFS(Tab_Uderor[R$],Tab_Uderor[Competencia],Entrada!BQ35,Tab_Uderor[TipoReceita],Entrada!$P36) -> 0 | BR36: =SUMIFS(Tab_Uderor[R$],Tab_Uderor[Competencia],Entrada!BR35,Tab_Uderor[TipoReceita],Entrada!$P36) -> 0 | BS36: =SUMIFS(Tab_Uderor[R$],Tab_Uderor[Competencia],Entrada!BS35,Tab_Uderor[TipoReceita],Entrada!$P36) -> 0 | BT36: =SUMIFS(Tab_Uderor[R$],Tab_Uderor[Competencia],Entrada!BT35,Tab_Uderor[TipoReceita],Entrada!$P36) -> 0 | BU36: =SUMIFS(Tab_Uderor[R$],Tab_Uderor[Competencia],Entrada!BU35,Tab_Uderor[TipoReceita],Entrada!$P36) -> 0 | BV36: =SUMIFS(Tab_Uderor[R$],Tab_Uderor[Competencia],Entrada!BV35,Tab_Uderor[TipoReceita],Entrada!$P36) -> 0 | BW36: =SUMIFS(Tab_Uderor[R$],Tab_Uderor[Competencia],Entrada!BW35,Tab_Uderor[TipoReceita],Entrada!$P36) -> 0 | BX36: =SUMIFS(Tab_Uderor[R$],Tab_Uderor[Competencia],Entrada!BX35,Tab_Uderor[TipoReceita],Entrada!$P36) -> 0
F37: Data Base Ativos e Consumidores | J37: RIT - RP 800 - Célula F34 - BMP - 610532801,610552801 | K37: Transferências da Administração Central | L37: =SUMIFS(Tab_RIT_BMP[SALDO],Tab_RIT_BMP[CONTA],610532801,Tab_RIT_BMP[ANO],$L$7)+SUMIFS(Tab_RIT_BMP[SALDO],Tab_RIT_BMP[CONTA],610552801,Tab_RIT_BMP[ANO],$M$7) -> 0 | M37: =SUMIFS(Tab_RIT_BMP[SALDO],Tab_RIT_BMP[CONTA],610532801,Tab_RIT_BMP[ANO],$M$7)+SUMIFS(Tab_RIT_BMP[SALDO],Tab_RIT_BMP[CONTA],610552801,Tab_RIT_BMP[ANO],$L$7) -> 0 | P37: Excedente Reativo | Q37: =SUMIFS(Tab_Uderor[R$],Tab_Uderor[Competencia],Entrada!Q35,Tab_Uderor[TipoReceita],Entrada!$P37) -> 0 | R37: =SUMIFS(Tab_Uderor[R$],Tab_Uderor[Competencia],Entrada!R35,Tab_Uderor[TipoReceita],Entrada!$P37) -> 0 | S37: =SUMIFS(Tab_Uderor[R$],Tab_Uderor[Competencia],Entrada!S35,Tab_Uderor[TipoReceita],Entrada!$P37) -> 0 | T37: =SUMIFS(Tab_Uderor[R$],Tab_Uderor[Competencia],Entrada!T35,Tab_Uderor[TipoReceita],Entrada!$P37) -> 0 | U37: =SUMIFS(Tab_Uderor[R$],Tab_Uderor[Competencia],Entrada!U35,Tab_Uderor[TipoReceita],Entrada!$P37) -> 0 | V37: =SUMIFS(Tab_Uderor[R$],Tab_Uderor[Competencia],Entrada!V35,Tab_Uderor[TipoReceita],Entrada!$P37) -> 0 | W37: =SUMIFS(Tab_Uderor[R$],Tab_Uderor[Competencia],Entrada!W35,Tab_Uderor[TipoReceita],Entrada!$P37) -> 0 | X37: =SUMIFS(Tab_Uderor[R$],Tab_Uderor[Competencia],Entrada!X35,Tab_Uderor[TipoReceita],Entrada!$P37) -> 0 | Y37: =SUMIFS(Tab_Uderor[R$],Tab_Uderor[Competencia],Entrada!Y35,Tab_Uderor[TipoReceita],Entrada!$P37) -> 0 | Z37: =SUMIFS(Tab_Uderor[R$],Tab_Uderor[Competencia],Entrada!Z35,Tab_Uderor[TipoReceita],Entrada!$P37) -> 0 | AA37: =SUMIFS(Tab_Uderor[R$],Tab_Uderor[Competencia],Entrada!AA35,Tab_Uderor[TipoReceita],Entrada!$P37) -> 0 | AB37: =SUMIFS(Tab_Uderor[R$],Tab_Uderor[Competencia],Entrada!AB35,Tab_Uderor[TipoReceita],Entrada!$P37) -> 0 | AC37: =SUMIFS(Tab_Uderor[R$],Tab_Uderor[Competencia],Entrada!AC35,Tab_Uderor[TipoReceita],Entrada!$P37) -> 0 | AD37: =SUMIFS(Tab_Uderor[R$],Tab_Uderor[Competencia],Entrada!AD35,Tab_Uderor[TipoReceita],Entrada!$P37) -> 0 | AE37: =SUMIFS(Tab_Uderor[R$],Tab_Uderor[Competencia],Entrada!AE35,Tab_Uderor[TipoReceita],Entrada!$P37) -> 0 | AF37: =SUMIFS(Tab_Uderor[R$],Tab_Uderor[Competencia],Entrada!AF35,Tab_Uderor[TipoReceita],Entrada!$P37) -> 0 | AG37: =SUMIFS(Tab_Uderor[R$],Tab_Uderor[Competencia],Entrada!AG35,Tab_Uderor[TipoReceita],Entrada!$P37) -> 0 | AH37: =SUMIFS(Tab_Uderor[R$],Tab_Uderor[Competencia],Entrada!AH35,Tab_Uderor[TipoReceita],Entrada!$P37) -> 0 | AI37: =SUMIFS(Tab_Uderor[R$],Tab_Uderor[Competencia],Entrada!AI35,Tab_Uderor[TipoReceita],Entrada!$P37) -> 0 | AJ37: =SUMIFS(Tab_Uderor[R$],Tab_Uderor[Competencia],Entrada!AJ35,Tab_Uderor[TipoReceita],Entrada!$P37) -> 0 | AK37: =SUMIFS(Tab_Uderor[R$],Tab_Uderor[Competencia],Entrada!AK35,Tab_Uderor[TipoReceita],Entrada!$P37) -> 0 | AL37: =SUMIFS(Tab_Uderor[R$],Tab_Uderor[Competencia],Entrada!AL35,Tab_Uderor[TipoReceita],Entrada!$P37) -> 0 | AM37: =SUMIFS(Tab_Uderor[R$],Tab_Uderor[Competencia],Entrada!AM35,Tab_Uderor[TipoReceita],Entrada!$P37) -> 0 | AN37: =SUMIFS(Tab_Uderor[R$],Tab_Uderor[Competencia],Entrada!AN35,Tab_Uderor[TipoReceita],Entrada!$P37) -> 0 | AO37: =SUMIFS(Tab_Uderor[R$],Tab_Uderor[Competencia],Entrada!AO35,Tab_Uderor[TipoReceita],Entrada!$P37) -> 0 | AP37: =SUMIFS(Tab_Uderor[R$],Tab_Uderor[Competencia],Entrada!AP35,Tab_Uderor[TipoReceita],Entrada!$P37) -> 0 | AQ37: =SUMIFS(Tab_Uderor[R$],Tab_Uderor[Competencia],Entrada!AQ35,Tab_Uderor[TipoReceita],Entrada!$P37) -> 0 | AR37: =SUMIFS(Tab_Uderor[R$],Tab_Uderor[Competencia],Entrada!AR35,Tab_Uderor[TipoReceita],Entrada!$P37) -> 0 | AS37: =SUMIFS(Tab_Uderor[R$],Tab_Uderor[Competencia],Entrada!AS35,Tab_Uderor[TipoReceita],Entrada!$P37) -> 0 | AT37: =SUMIFS(Tab_Uderor[R$],Tab_Uderor[Competencia],Entrada!AT35,Tab_Uderor[TipoReceita],Entrada!$P37) -> 0 | AU37: =SUMIFS(Tab_Uderor[R$],Tab_Uderor[Competencia],Entrada!AU35,Tab_Uderor[TipoReceita],Entrada!$P37) -> 0 | AV37: =SUMIFS(Tab_Uderor[R$],Tab_Uderor[Competencia],Entrada!AV35,Tab_Uderor[TipoReceita],Entrada!$P37) -> 0 | AW37: =SUMIFS(Tab_Uderor[R$],Tab_Uderor[Competencia],Entrada!AW35,Tab_Uderor[TipoReceita],Entrada!$P37) -> 0 | AX37: =SUMIFS(Tab_Uderor[R$],Tab_Uderor[Competencia],Entrada!AX35,Tab_Uderor[TipoReceita],Entrada!$P37) -> 0 | AY37: =SUMIFS(Tab_Uderor[R$],Tab_Uderor[Competencia],Entrada!AY35,Tab_Uderor[TipoReceita],Entrada!$P37) -> 0 | AZ37: =SUMIFS(Tab_Uderor[R$],Tab_Uderor[Competencia],Entrada!AZ35,Tab_Uderor[TipoReceita],Entrada!$P37) -> 0 | BA37: =SUMIFS(Tab_Uderor[R$],Tab_Uderor[Competencia],Entrada!BA35,Tab_Uderor[TipoReceita],Entrada!$P37) -> 0 | BB37: =SUMIFS(Tab_Uderor[R$],Tab_Uderor[Competencia],Entrada!BB35,Tab_Uderor[TipoReceita],Entrada!$P37) -> 0 | BC37: =SUMIFS(Tab_Uderor[R$],Tab_Uderor[Competencia],Entrada!BC35,Tab_Uderor[TipoReceita],Entrada!$P37) -> 0 | BD37: =SUMIFS(Tab_Uderor[R$],Tab_Uderor[Competencia],Entrada!BD35,Tab_Uderor[TipoReceita],Entrada!$P37) -> 0 | BE37: =SUMIFS(Tab_Uderor[R$],Tab_Uderor[Competencia],Entrada!BE35,Tab_Uderor[TipoReceita],Entrada!$P37) -> 0 | BF37: =SUMIFS(Tab_Uderor[R$],Tab_Uderor[Competencia],Entrada!BF35,Tab_Uderor[TipoReceita],Entrada!$P37) -> 0 | BG37: =SUMIFS(Tab_Uderor[R$],Tab_Uderor[Competencia],Entrada!BG35,Tab_Uderor[TipoReceita],Entrada!$P37) -> 0 | BH37: =SUMIFS(Tab_Uderor[R$],Tab_Uderor[Competencia],Entrada!BH35,Tab_Uderor[TipoReceita],Entrada!$P37) -> 0 | BI37: =SUMIFS(Tab_Uderor[R$],Tab_Uderor[Competencia],Entrada!BI35,Tab_Uderor[TipoReceita],Entrada!$P37) -> 0 | BJ37: =SUMIFS(Tab_Uderor[R$],Tab_Uderor[Competencia],Entrada!BJ35,Tab_Uderor[TipoReceita],Entrada!$P37) -> 0 | BK37: =SUMIFS(Tab_Uderor[R$],Tab_Uderor[Competencia],Entrada!BK35,Tab_Uderor[TipoReceita],Entrada!$P37) -> 0 | BL37: =SUMIFS(Tab_Uderor[R$],Tab_Uderor[Competencia],Entrada!BL35,Tab_Uderor[TipoReceita],Entrada!$P37) -> 0 | BM37: =SUMIFS(Tab_Uderor[R$],Tab_Uderor[Competencia],Entrada!BM35,Tab_Uderor[TipoReceita],Entrada!$P37) -> 0 | BN37: =SUMIFS(Tab_Uderor[R$],Tab_Uderor[Competencia],Entrada!BN35,Tab_Uderor[TipoReceita],Entrada!$P37) -> 0 | BO37: =SUMIFS(Tab_Uderor[R$],Tab_Uderor[Competencia],Entrada!BO35,Tab_Uderor[TipoReceita],Entrada!$P37) -> 0 | BP37: =SUMIFS(Tab_Uderor[R$],Tab_Uderor[Competencia],Entrada!BP35,Tab_Uderor[TipoReceita],Entrada!$P37) -> 0 | BQ37: =SUMIFS(Tab_Uderor[R$],Tab_Uderor[Competencia],Entrada!BQ35,Tab_Uderor[TipoReceita],Entrada!$P37) -> 0 | BR37: =SUMIFS(Tab_Uderor[R$],Tab_Uderor[Competencia],Entrada!BR35,Tab_Uderor[TipoReceita],Entrada!$P37) -> 0 | BS37: =SUMIFS(Tab_Uderor[R$],Tab_Uderor[Competencia],Entrada!BS35,Tab_Uderor[TipoReceita],Entrada!$P37) -> 0 | BT37: =SUMIFS(Tab_Uderor[R$],Tab_Uderor[Competencia],Entrada!BT35,Tab_Uderor[TipoReceita],Entrada!$P37) -> 0 | BU37: =SUMIFS(Tab_Uderor[R$],Tab_Uderor[Competencia],Entrada!BU35,Tab_Uderor[TipoReceita],Entrada!$P37) -> 0 | BV37: =SUMIFS(Tab_Uderor[R$],Tab_Uderor[Competencia],Entrada!BV35,Tab_Uderor[TipoReceita],Entrada!$P37) -> 0 | BW37: =SUMIFS(Tab_Uderor[R$],Tab_Uderor[Competencia],Entrada!BW35,Tab_Uderor[TipoReceita],Entrada!$P37) -> 0 | BX37: =SUMIFS(Tab_Uderor[R$],Tab_Uderor[Competencia],Entrada!BX35,Tab_Uderor[TipoReceita],Entrada!$P37) -> 0
F38: Mercado AT (MWh) | K38: Subtotal | L38: =SUM(L25:L37) -> 0 | M38: =SUM(M25:M37) -> 0
F39: Mercado MT (MWh) | J39: CONTA SEGUROS | P39: Receitas Irrecuperáveis | Q39: Meses
F40: Mercado BT (MWh) | J40: BMP - 610531001; 610551001; 610533001; 610553001 | K40: Seguros | L40: =SUMIFS(Tab_RIT_BMP[SALDO],Tab_RIT_BMP[CONTA],610531001,Tab_RIT_BMP[ANO],$L$7)+SUMIFS(Tab_RIT_BMP[SALDO],Tab_RIT_BMP[CONTA],610551001,Tab_RIT_BMP[ANO],$L$7)+ SUMIFS(Tab_RIT_BMP[SALDO],Tab_RIT_BMP[CONTA],610533001,Tab_RIT_BMP[ANO],$L$7)+SUMIFS(Tab_RIT_BMP[SALDO],Tab_RIT_BMP[CONTA],610553001,Tab_RIT_BMP[ANO],$L$7) -> 0 | M40: =SUMIFS(Tab_RIT_BMP[SALDO],Tab_RIT_BMP[CONTA],610531001,Tab_RIT_BMP[ANO],$M$7)+SUMIFS(Tab_RIT_BMP[SALDO],Tab_RIT_BMP[CONTA],610551001,Tab_RIT_BMP[ANO],$M$7)+ SUMIFS(Tab_RIT_BMP[SALDO],Tab_RIT_BMP[CONTA],610533001,Tab_RIT_BMP[ANO],$M$7)+SUMIFS(Tab_RIT_BMP[SALDO],Tab_RIT_BMP[CONTA],610553001,Tab_RIT_BMP[ANO],$M$7) -> 0 | P40: Faturamento Total | Q40: 49 | R40: 50 | S40: 51 | T40: 52 | U40: 53 | V40: 54 | W40: 55 | X40: 56 | Y40: 57 | Z40: 58 | AA40: 59 | AB40: 60
F41: Número de unidades consumidoras | J41: BMP - 610531099; 610551099; 610533099; 610553099 | K41: Outros | L41: =SUMIFS(Tab_RIT_BMP[SALDO],Tab_RIT_BMP[CONTA],610531099,Tab_RIT_BMP[ANO],$L$7)+SUMIFS(Tab_RIT_BMP[SALDO],Tab_RIT_BMP[CONTA],610551099,Tab_RIT_BMP[ANO],$L$7)+ SUMIFS(Tab_RIT_BMP[SALDO],Tab_RIT_BMP[CONTA],610533099,Tab_RIT_BMP[ANO],$L$7)+SUMIFS(Tab_RIT_BMP[SALDO],Tab_RIT_BMP[CONTA],610553099,Tab_RIT_BMP[ANO],$L$7) -> 0 | M41: =SUMIFS(Tab_RIT_BMP[SALDO],Tab_RIT_BMP[CONTA],610531099,Tab_RIT_BMP[ANO],$M$7)+SUMIFS(Tab_RIT_BMP[SALDO],Tab_RIT_BMP[CONTA],610551099,Tab_RIT_BMP[ANO],$M$7)+ SUMIFS(Tab_RIT_BMP[SALDO],Tab_RIT_BMP[CONTA],610533099,Tab_RIT_BMP[ANO],$M$7)+SUMIFS(Tab_RIT_BMP[SALDO],Tab_RIT_BMP[CONTA],610553099,Tab_RIT_BMP[ANO],$M$7) -> 0 | P41: 1.Residencial
J42: BMP - 610531010; 610551010; 610533010; 610553010 | K42: (-) Créditos de Tributos Recuperáveis | L42: =SUMIFS(Tab_RIT_BMP[SALDO],Tab_RIT_BMP[CONTA],610531010,Tab_RIT_BMP[ANO],$L$7)+SUMIFS(Tab_RIT_BMP[SALDO],Tab_RIT_BMP[CONTA],610551010,Tab_RIT_BMP[ANO],$L$7)+ SUMIFS(Tab_RIT_BMP[SALDO],Tab_RIT_BMP[CONTA],610533010,Tab_RIT_BMP[ANO],$L$7)+SUMIFS(Tab_RIT_BMP[SALDO],Tab_RIT_BMP[CONTA],610553010,Tab_RIT_BMP[ANO],$L$7) -> 0 | M42: =SUMIFS(Tab_RIT_BMP[SALDO],Tab_RIT_BMP[CONTA],610531010,Tab_RIT_BMP[ANO],$M$7)+SUMIFS(Tab_RIT_BMP[SALDO],Tab_RIT_BMP[CONTA],610551010,Tab_RIT_BMP[ANO],$M$7)+ SUMIFS(Tab_RIT_BMP[SALDO],Tab_RIT_BMP[CONTA],610533010,Tab_RIT_BMP[ANO],$M$7)+SUMIFS(Tab_RIT_BMP[SALDO],Tab_RIT_BMP[CONTA],610553010,Tab_RIT_BMP[ANO],$M$7) -> 0 | P42: 2.Industrial
F43: OPEX | K43: Subtotal | L43: =SUM(L40:L42) -> 0 | M43: =SUM(M40:M42) -> 0 | P43: 3.Comercial
F44: Extensão de redes subterrâneas (Km) | H44: 45722 | J44: CONTA TRIBUTOS | P44: 4.Rural
F45: Extensão de rede de distribuição aérea (Km) | J45: BMP - 6105316; 6105516; 6105336; 6105536 | K45: Tributos | L45: =SUMIFS(Tab_RIT_BMP[SALDO],Tab_RIT_BMP[CONTA],6105316,Tab_RIT_BMP[ANO],$L$7)+SUMIFS(Tab_RIT_BMP[SALDO],Tab_RIT_BMP[CONTA],6105516,Tab_RIT_BMP[ANO],$L$7)+ SUMIFS(Tab_RIT_BMP[SALDO],Tab_RIT_BMP[CONTA],6105336,Tab_RIT_BMP[ANO],$L$7)+SUMIFS(Tab_RIT_BMP[SALDO],Tab_RIT_BMP[CONTA],6105536,Tab_RIT_BMP[ANO],$L$7) -> 0 | M45: =SUMIFS(Tab_RIT_BMP[SALDO],Tab_RIT_BMP[CONTA],6105316,Tab_RIT_BMP[ANO],$M$7)+SUMIFS(Tab_RIT_BMP[SALDO],Tab_RIT_BMP[CONTA],6105516,Tab_RIT_BMP[ANO],$M$7)+ SUMIFS(Tab_RIT_BMP[SALDO],Tab_RIT_BMP[CONTA],6105336,Tab_RIT_BMP[ANO],$M$7)+SUMIFS(Tab_RIT_BMP[SALDO],Tab_RIT_BMP[CONTA],6105536,Tab_RIT_BMP[ANO],$M$7) -> 0 | P45: 5.Poder Público
F46: Extensão de rede de alta tensão (Km) | K46: (+) Créditos de Tributos Recuperáveis | L46: =L45 -> 0 | M46: =M45 -> 0 | P46: 6.Iluminação Pública
F47: ="% PNT / BT Real de "&IF(MONTH(LnkTxtDRPData)>6,YEAR(LnkTxtDRPData)-1,YEAR(LnkTxtDRPData)-2) & " (Medido)" -> % PNT / BT Real de 2023 (Medido) | J47: CONTA OUTROS | P47: 7.Serviço Público
F48: ="% PNT / BT Real de "&IF(MONTH(LnkTxtDRPData)>6,YEAR(LnkTxtDRPData)-1,YEAR(LnkTxtDRPData)-2)-1 & " (Medido)" -> % PNT / BT Real de 2022 (Medido) | J48: BMP - 610531901; 610551901; 610533901; 610553901 | K48: Indenização por Perdas e Danos | L48: =SUMIFS(Tab_RIT_BMP[SALDO],Tab_RIT_BMP[CONTA],610531901,Tab_RIT_BMP[ANO],$L$7)+SUMIFS(Tab_RIT_BMP[SALDO],Tab_RIT_BMP[CONTA],610551901,Tab_RIT_BMP[ANO],$L$7)+ SUMIFS(Tab_RIT_BMP[SALDO],Tab_RIT_BMP[CONTA],610533901,Tab_RIT_BMP[ANO],$L$7)+SUMIFS(Tab_RIT_BMP[SALDO],Tab_RIT_BMP[CONTA],610553901,Tab_RIT_BMP[ANO],$L$7) -> 0 | M48: =SUMIFS(Tab_RIT_BMP[SALDO],Tab_RIT_BMP[CONTA],610531901,Tab_RIT_BMP[ANO],$M$7)+SUMIFS(Tab_RIT_BMP[SALDO],Tab_RIT_BMP[CONTA],610551901,Tab_RIT_BMP[ANO],$M$7)+ SUMIFS(Tab_RIT_BMP[SALDO],Tab_RIT_BMP[CONTA],610533901,Tab_RIT_BMP[ANO],$M$7)+SUMIFS(Tab_RIT_BMP[SALDO],Tab_RIT_BMP[CONTA],610553901,Tab_RIT_BMP[ANO],$M$7) -> 0
F49: ="% PNT / BT Real de "&IF(MONTH(LnkTxtDRPData)>6,YEAR(LnkTxtDRPData)-1,YEAR(LnkTxtDRPData)-2)-2 & " (Medido)" -> % PNT / BT Real de 2021 (Medido) | J49: BMP - 610531902; 610551902; 610533902; 610553902 | K49: Consumo Próprio de Energia | L49: =SUMIFS(Tab_RIT_BMP[SALDO],Tab_RIT_BMP[CONTA],610531902,Tab_RIT_BMP[ANO],$L$7)+SUMIFS(Tab_RIT_BMP[SALDO],Tab_RIT_BMP[CONTA],610551902,Tab_RIT_BMP[ANO],$L$7)+ SUMIFS(Tab_RIT_BMP[SALDO],Tab_RIT_BMP[CONTA],610533902,Tab_RIT_BMP[ANO],$L$7)+SUMIFS(Tab_RIT_BMP[SALDO],Tab_RIT_BMP[CONTA],610553902,Tab_RIT_BMP[ANO],$L$7) -> 0 | M49: =SUMIFS(Tab_RIT_BMP[SALDO],Tab_RIT_BMP[CONTA],610531902,Tab_RIT_BMP[ANO],$M$7)+SUMIFS(Tab_RIT_BMP[SALDO],Tab_RIT_BMP[CONTA],610551902,Tab_RIT_BMP[ANO],$M$7)+ SUMIFS(Tab_RIT_BMP[SALDO],Tab_RIT_BMP[CONTA],610533902,Tab_RIT_BMP[ANO],$M$7)+SUMIFS(Tab_RIT_BMP[SALDO],Tab_RIT_BMP[CONTA],610553902,Tab_RIT_BMP[ANO],$M$7) -> 0 | P49: Receitas Irrecuperáveis | Q49: Meses
F50: ="DEC Apurado "&IF(MONTH(LnkTxtDRPData)>3,YEAR(LnkTxtDRPData)-1,YEAR(LnkTxtDRPData)-2) -> DEC Apurado 2024 | J50: BMP - 610531905 | K50: Despesas com Conselho de Consumidores | L50: =SUMIFS(Tab_RIT_BMP[SALDO],Tab_RIT_BMP[CONTA],610531905,Tab_RIT_BMP[ANO],$L$7) -> 0 | M50: =SUMIFS(Tab_RIT_BMP[SALDO],Tab_RIT_BMP[CONTA],610531905,Tab_RIT_BMP[ANO],$M$7) -> 0 | P50: Faturamento não recebido até dez do ano anterior | Q50: 49 | R50: 50 | S50: 51 | T50: 52 | U50: 53 | V50: 54 | W50: 55 | X50: 56 | Y50: 57 | Z50: 58 | AA50: 59 | AB50: 60
F51: ="DEC Apurado "&IF(MONTH(LnkTxtDRPData)>3,YEAR(LnkTxtDRPData)-1,YEAR(LnkTxtDRPData)-2)-1 -> DEC Apurado 2023 | J51: BMP - 610531908; 610533907 | K51: Comunicação e Reprografia | L51: =SUMIFS(Tab_RIT_BMP[SALDO],Tab_RIT_BMP[CONTA],610531908,Tab_RIT_BMP[ANO],$L$7)+SUMIFS(Tab_RIT_BMP[SALDO],Tab_RIT_BMP[CONTA],610533907,Tab_RIT_BMP[ANO],$L$7) -> 0 | M51: =SUMIFS(Tab_RIT_BMP[SALDO],Tab_RIT_BMP[CONTA],610531908,Tab_RIT_BMP[ANO],$M$7)+SUMIFS(Tab_RIT_BMP[SALDO],Tab_RIT_BMP[CONTA],610533907,Tab_RIT_BMP[ANO],$M$7) -> 0 | P51: 1.Residencial
F52: ="DEC Apurado "&IF(MONTH(LnkTxtDRPData)>3,YEAR(LnkTxtDRPData)-1,YEAR(LnkTxtDRPData)-2)-2 -> DEC Apurado 2022 | J52: BMP - 610531903; 610551903; 610533903; 610553903 | K52: Taxa de Arrecadação | L52: =SUMIFS(Tab_RIT_BMP[SALDO],Tab_RIT_BMP[CONTA],610531903,Tab_RIT_BMP[ANO],$L$7)+SUMIFS(Tab_RIT_BMP[SALDO],Tab_RIT_BMP[CONTA],610551903,Tab_RIT_BMP[ANO],$L$7)+ SUMIFS(Tab_RIT_BMP[SALDO],Tab_RIT_BMP[CONTA],610533903,Tab_RIT_BMP[ANO],$L$7)+SUMIFS(Tab_RIT_BMP[SALDO],Tab_RIT_BMP[CONTA],610553903,Tab_RIT_BMP[ANO],$L$7) -> 0 | M52: =SUMIFS(Tab_RIT_BMP[SALDO],Tab_RIT_BMP[CONTA],610531903,Tab_RIT_BMP[ANO],$M$7)+SUMIFS(Tab_RIT_BMP[SALDO],Tab_RIT_BMP[CONTA],610551903,Tab_RIT_BMP[ANO],$M$7)+ SUMIFS(Tab_RIT_BMP[SALDO],Tab_RIT_BMP[CONTA],610533903,Tab_RIT_BMP[ANO],$M$7)+SUMIFS(Tab_RIT_BMP[SALDO],Tab_RIT_BMP[CONTA],610553903,Tab_RIT_BMP[ANO],$M$7) -> 0 | P52: 2.Industrial
F53: Meta de % PNT / BT (Medido) | J53: BMP - 610531904; 610551904; 610533904; 610553904 | K53: Taxas Bancárias | L53: =SUMIFS(Tab_RIT_BMP[SALDO],Tab_RIT_BMP[CONTA],610531904,Tab_RIT_BMP[ANO],$L$7)+SUMIFS(Tab_RIT_BMP[SALDO],Tab_RIT_BMP[CONTA],610551904,Tab_RIT_BMP[ANO],$L$7)+ SUMIFS(Tab_RIT_BMP[SALDO],Tab_RIT_BMP[CONTA],610533904,Tab_RIT_BMP[ANO],$L$7)+SUMIFS(Tab_RIT_BMP[SALDO],Tab_RIT_BMP[CONTA],610553904,Tab_RIT_BMP[ANO],$L$7) -> 0 | M53: =SUMIFS(Tab_RIT_BMP[SALDO],Tab_RIT_BMP[CONTA],610531904,Tab_RIT_BMP[ANO],$M$7)+SUMIFS(Tab_RIT_BMP[SALDO],Tab_RIT_BMP[CONTA],610551904,Tab_RIT_BMP[ANO],$M$7)+ SUMIFS(Tab_RIT_BMP[SALDO],Tab_RIT_BMP[CONTA],610533904,Tab_RIT_BMP[ANO],$M$7)+SUMIFS(Tab_RIT_BMP[SALDO],Tab_RIT_BMP[CONTA],610553904,Tab_RIT_BMP[ANO],$M$7) -> 0 | P53: 3.Comercial
F54: DEC 8 anos (Limite V8) | J54: BMP - 610531910; 610551910; 610533910; 610553910 | K54: (-) Créditos de Tributos Recuperáveis | L54: =SUMIFS(Tab_RIT_BMP[SALDO],Tab_RIT_BMP[CONTA],610531910,Tab_RIT_BMP[ANO],$L$7)+SUMIFS(Tab_RIT_BMP[SALDO],Tab_RIT_BMP[CONTA],610551910,Tab_RIT_BMP[ANO],$L$7)+ SUMIFS(Tab_RIT_BMP[SALDO],Tab_RIT_BMP[CONTA],610533910,Tab_RIT_BMP[ANO],$L$7)+SUMIFS(Tab_RIT_BMP[SALDO],Tab_RIT_BMP[CONTA],610553910,Tab_RIT_BMP[ANO],$L$7) -> 0 | M54: =SUMIFS(Tab_RIT_BMP[SALDO],Tab_RIT_BMP[CONTA],610531910,Tab_RIT_BMP[ANO],$M$7)+SUMIFS(Tab_RIT_BMP[SALDO],Tab_RIT_BMP[CONTA],610551910,Tab_RIT_BMP[ANO],$M$7)+ SUMIFS(Tab_RIT_BMP[SALDO],Tab_RIT_BMP[CONTA],610533910,Tab_RIT_BMP[ANO],$M$7)+SUMIFS(Tab_RIT_BMP[SALDO],Tab_RIT_BMP[CONTA],610553910,Tab_RIT_BMP[ANO],$M$7) -> 0 | P54: 4.Rural
K55: Subtotal | L55: =SUM(L48:L54) -> 0 | M55: =SUM(M48:M54) -> 0 | P55: 5.Poder Público
J56: Demais | P56: 6.Iluminação Pública
F57: Dados da última Revisão Tarifária | J57: BMP - 610531212; 610533212 | K57: Condenações Trabalhistas | P57: 7.Serviço Público
F58: Custos Operacionais (CO3) | J58: BMP - 610533908; 610531909 | K58: Gastos com CCEE
F59: Receitas Irrecuperáveis - Encargos Setoriais (Vi) | J59: BMP - 611511401; 611512203; 611512103; 611512003; 611512303 | K59: Perdas na Alienação e Desativação | L59: =SUMIFS(Tab_RIT_BMP[SALDO],Tab_RIT_BMP[CONTA],611511401,Tab_RIT_BMP[ANO],$L$7)+SUMIFS(Tab_RIT_BMP[SALDO],Tab_RIT_BMP[CONTA],611512203,Tab_RIT_BMP[ANO],$L$7)+ SUMIFS(Tab_RIT_BMP[SALDO],Tab_RIT_BMP[CONTA], 611512103,Tab_RIT_BMP[ANO],$L$7)+SUMIFS(Tab_RIT_BMP[SALDO],Tab_RIT_BMP[CONTA],611512003,Tab_RIT_BMP[ANO],$L$7)+ SUMIFS(Tab_RIT_BMP[SALDO],Tab_RIT_BMP[CONTA],611512303,Tab_RIT_BMP[ANO],$L$7) -> 0 | M59: =SUMIFS(Tab_RIT_BMP[SALDO],Tab_RIT_BMP[CONTA],611511401,Tab_RIT_BMP[ANO],$M$7)+SUMIFS(Tab_RIT_BMP[SALDO],Tab_RIT_BMP[CONTA],611512203,Tab_RIT_BMP[ANO],$M$7)+ SUMIFS(Tab_RIT_BMP[SALDO],Tab_RIT_BMP[CONTA],611512103,Tab_RIT_BMP[ANO],$M$7)+SUMIFS(Tab_RIT_BMP[SALDO],Tab_RIT_BMP[CONTA],611512003,Tab_RIT_BMP[ANO],$M$7)+ SUMIFS(Tab_RIT_BMP[SALDO],Tab_RIT_BMP[CONTA],611512303,Tab_RIT_BMP[ANO],$M$7) -> 0 | P59: Previsão CCEE | Q59: =DATE(YEAR(LnkTxtDRPData),MONTH(LnkTxtDRPData),DAY(1)) -> 2025-04-01 | R59: =DATE(YEAR(Q59),MONTH(Q59)+1,DAY(1)) -> 2025-05-01 | S59: =DATE(YEAR(R59),MONTH(R59)+1,DAY(1)) -> 2025-06-01 | T59: 2025-07-01 | U59: 2025-08-01 | V59: 2025-09-01 | W59: 2025-10-01 | X59: 2025-11-01 | Y59: 2025-12-01 | Z59: 2026-01-01 | AA59: 2026-02-01 | AB59: 2026-03-01
F60: Demais Receitas Irrecuperáveis (Vse) | J60: BMP - 611112103; 611112203; 611112303; 611112403; 611112503 | K60: Ganhos na Alienação de Materiais | L60: =SUMIFS(Tab_RIT_BMP[SALDO],Tab_RIT_BMP[CONTA],611112103,Tab_RIT_BMP[ANO],$L$7)+SUMIFS(Tab_RIT_BMP[SALDO],Tab_RIT_BMP[CONTA],611112203, Tab_RIT_BMP[ANO],$L$7)+ SUMIFS(Tab_RIT_BMP[SALDO],Tab_RIT_BMP[CONTA],611112303,Tab_RIT_BMP[ANO],$L$7)+SUMIFS(Tab_RIT_BMP[SALDO],Tab_RIT_BMP[CONTA], 611112403,Tab_RIT_BMP[ANO],$L$7)+ SUMIFS(Tab_RIT_BMP[SALDO],Tab_RIT_BMP[CONTA],611112503,Tab_RIT_BMP[ANO],$L$7) -> 0 | M60: =-ABS(SUMIFS(Tab_RIT_BMP[SALDO],Tab_RIT_BMP[CONTA],611112103,Tab_RIT_BMP[ANO],$M$7)+SUMIFS(Tab_RIT_BMP[SALDO],Tab_RIT_BMP[CONTA],611112203, Tab_RIT_BMP[ANO],$M$7)+ SUMIFS(Tab_RIT_BMP[SALDO],Tab_RIT_BMP[CONTA],611112303,Tab_RIT_BMP[ANO],$M$7)+SUMIFS(Tab_RIT_BMP[SALDO],Tab_RIT_BMP[CONTA], 611112403,Tab_RIT_BMP[ANO],$M$7)+ SUMIFS(Tab_RIT_BMP[SALDO],Tab_RIT_BMP[CONTA],611112503,Tab_RIT_BMP[ANO],$M$7)) -> 0 | P60: GSF | AC60: PMO abril/21
F61: Remuneração do Capital (RC) | P61: PLD
F62: Quota de Reintegração Regulatória (QRR)
F63: Custo anual das instalações móveis e imóveis (CAIMI)
F64: Índice de Produtividade (Pd) | J64: Custo Médio do Capital - Atual
F65: Mecanismo de Qualidade (Q) | J65: Tipo | K65: Norma | L65: Valor
F66: Outras Receitas (OR) (inserir o valor positivo) | J66: WACC real antes de impostos | K66: Despacho n° 829, 24/03/2023 | L66: 0.112503
F67: Componente T - Última Revisão | J67: Taxa RGR/PLPT real | K67: Despacho n° 829, 24/03/2023 | L67: 0.000797
F68: Ultrapassagem de Demanda | J68: Taxa RGR Demais Investimentos | K68: Despacho n° 829, 24/03/2023 | L68: 0.000797
F69: Excedente de Reativos | J69: Participação do Capital Próprio | K69: Despacho 829/2023 | L69: 0.524453
J70: Prêmio de Risco do negócio e financeiro após impostos | K70: Despacho 829/2023 | L70: 0.089205
F72: Base de Ativos - SFF
F73: (1) Ativo Imobilizado em Serviço (Valor Novo de Reposição) | J73: Custo Médio do Capital - Ultima Revisão
F74: (2) Índice de Aproveitamento Integral | J74: Tipo | K74: Norma | L74: Valor
F75: (3) Obrigações Especiais Bruta | J75: WACC real antes de impostos | L75: 0.1226 | M75: <- Conferir valor na sparta da última revisão!
F76: (4) Bens Totalmente Depreciados | J76: Taxa RGR/PLPT real | L76: 0.0073 | M76: <- Conferir valor na sparta da última revisão!
F77: (5) Base de Remuneração Bruta = (1)-(2)-(3)-(4) | G77: =G73-G74-G75-G76 -> 0 | H77: =G77*(Índices!$D$389/Índices!$D$341)/1000 -> 0 | J77: Taxa RGR Demais Investimentos | L77: 0.0288 | M77: <- Conferir valor na sparta da última revisão!
F78: (6) Depreciação Acumulada | J78: Participação do Capital Próprio | L78: 0.5124 | M78: <- Conferir valor na sparta da última revisão!
F79: (7) AIS Líquido (Valor de Mercado em Uso) | G79: =G73-G78 -> 0 | J79: Prêmio de Risco do negócio e financeiro após impostos | L79: 0.0545 | M79: <- Conferir valor na sparta da última revisão!
F80: (8) Índice de Aproveitamento Depreciado
F81: (9) Valor da Base de Remuneração (VBR) | G81: =G79-G80 -> 0
F82: (10) Almoxarifado em Operação | J82: Parâmetros atuais de Bandeiras Tarifárias | K82: Fonte | L82: Valor
F83: (11) Ativo Diferido | J83: PLD
F84: (12) Obrigações Especiais Líquida | J84: PLDmin | K84: ANEEL | L84: 69.04 | M84: <- Em caso de atualização, verificar se lógica de acionmento foi mantida.
F85: (13) Terrenos e Servidões | J85: PLDmax | K85: ANEEL | L85: 684.73 | M85: <- Em caso de atualização, verificar se lógica de acionmento foi mantida.
F86: (14) Base de Rem. Líquida Total = (9)+(10)+(11)-(12)+(13) | G86: =G81+G82+G83-G84+G85 -> 0 | H86: =G86*(Índices!$D$389/Índices!$D$341)/1000 -> 0 | J86: Adicionais de bandeira
F87: (15) Saldo RGR PLPT | G87: =G108*F114 -> 0 | J87: Adicional AMARELA | K87: REH 3.051/2022 | L87: 29.89 | M87: <- Em caso de atualização, verificar se lógica de acionmento foi mantida.
F88: (16) Saldo RGR Demais Investimentos | J88: Adicional VERMELHA I | K88: REH 3.051/2022 | L88: 65 | M88: <- Em caso de atualização, verificar se lógica de acionmento foi mantida.
F89: (17) Taxa de Depreciação | J89: Adicional VERMELHA II | K89: REH 3.051/2022 | L89: 97.95 | M89: <- Em caso de atualização, verificar se lógica de acionmento foi mantida.
F90: (18) Quota de Reintegração Regulatória = (5) * (17) | G90: =G89*G77 -> 0 | J90: Parâmetros de acionamento
J91: VERDE | K91: Obter com coordenação de encargos | L91: 31.92797 | M91: <- Em caso de atualização, verificar se lógica de acionmento foi mantida.
J92: AMARELA | K92: Obter com coordenação de encargos | L92: 69.05913 | M92: <- Em caso de atualização, verificar se lógica de acionmento foi mantida.
F93: Base de Ativos - Ciclo anterior | J93: VERMELHA I | K93: Obter com coordenação de encargos | L93: 92.46868 | M93: <- Em caso de atualização, verificar se lógica de acionmento foi mantida.
F94: (1) Ativo Imobilizado em Serviço (Valor Novo de Reposição) | H94: =G7/G94-1 ->  | J94: VERMELHA II | K94: Obter com coordenação de encargos | L94: 136.4595 | M94: <- Em caso de atualização, verificar se lógica de acionmento foi mantida.
F95: (2) Índice de Aproveitamento Integral
F96: (3) Obrigações Especiais Bruta
F97: (4) Bens Totalmente Depreciados
F98: (5) Base de Remuneração Bruta = (1)-(2)-(3)-(4) | G98: =G94-G95-G96-G97 -> 0
F99: (6) Depreciação Acumulada
F100: (7) AIS Líquido (Valor de Mercado em Uso) | G100: =G94-G99 -> 0
F101: (8) Índice de Aproveitamento Depreciado
F102: (9) Valor da Base de Remuneração (VBR) | G102: =G100-G101 -> 0
F103: (10) Almoxarifado em Operação
F104: (11) Ativo Diferido
F105: (12) Obrigações Especiais Líquida | H105: =G18/G105-1 -> 
F106: (13) Terrenos e Servidões | H106: =G19/G106-1 -> 
F107: (14) Base de Rem. Líquida Total = (1)-(6)-(8)+(10)+(11)-(12)+(13) | G107: =G102+G103+G104-G105+G106 -> 0 | H107: =G20/G107-1 -> 
F108: (15) Saldo RGR PLPT
F109: (16) Saldo RGR Demais Investimentos
F110: (17) Taxa de Depreciação
F111: (18) Quota de Reintegração Regulatória = (5) * (17) | G111: =G98*G110 -> 0

Sheet Subvenção Permissionária (hidden)
A1: Cooperativa
S2: Outras Receitas
A3: Cálculo PB | D3: Receita Agregada | K3: Subvenção
A4: UC | D4: Subgrupo | E4: Modalidade | F4: Classe | G4: Mercado TUSD | H4: Tarifa Fio B eco | I4: Receita | K4: Subvenção | R4: OUTRAS RECEITAS (R$) | W4: ='VPB e Fator X - Subvenção'!G163 -> 0 | X4: ='VPB e Fator X - Subvenção'!H163 ->  | Y4: ='VPB e Fator X - Subvenção'!I163 ->  | Z4: ='VPB e Fator X - Subvenção'!J163 ->  | AA4: ='VPB e Fator X - Subvenção'!K163 ->  | AB4: ='VPB e Fator X - Subvenção'!L163 ->  | AC4: ='VPB e Fator X - Subvenção'!M163 ->  | AD4: ='VPB e Fator X - Subvenção'!N163 ->  | AE4: ='VPB e Fator X - Subvenção'!O163 ->  | AF4: ='VPB e Fator X - Subvenção'!P163 ->  | AG4: ='VPB e Fator X - Subvenção'!Q163 ->  | AH4: ='VPB e Fator X - Subvenção'!R163 -> 
A5: Data Base | D5: A3 | E5: Azul | F5: Demanda azul P | I5: =G5*H5 -> 0 | K5: PB COM COOPERATIVA | L5: ='VPB e Fator X - Subvenção'!C26 ->  | R5: Tipo de Receita | Y5: 3 meses antes | Z5: 4 meses antes | AA5: 5 meses antes | AB5: 6 meses antes | AC5: 7 meses antes | AD5: 8 meses antes | AE5: 9 meses antes | AF5: 10 meses antes | AG5: 11 meses antes | AH5: 12 meses antes
A6: (1) Ativo Imobilizado em Serviço (Valor Novo de Reposição) | F6: Demanda azul FP | I6: =G6*H6 -> 0 | K6: PB ORIGINAL SUPRIDORA | L6: =Resultado!D44 -> 3081195682 | R6: Serviços Cobráveis | V6: Atividade inerente ao serviço
A7: (2) Obrigações Especiais Bruta | F7: Energia TUSD azul | I7: 0 | K7: Diferença | L7: =L5-L6 ->  | R7: Arrecadação de convênios ou valores pela fatura | V7: Atividades acessórias próprias
A8: (3) Bens Totalmente Depreciados | E8: Geração | F8: Demanda Geração | I8: 0 | K8: Receita Agregada | L8: =I24 -> 0 | R8: Arrecadação de faturas de terceiros por estrutura própria
A9: (4) Base de Remuneração Bruta = (1)-(2)-(3) | K9: Subvenção | L9: =L7-L8 ->  | R9: Veiculação de publicidade
A10: (5) Depreciação Acumulada | D10: A4 | E10: Azul | F10: Demanda azul P | I10: 0 | R10: Aluguel ou cessão onerosa de imóveis e espaços físicos
A11: (6) Valor da Base de Remuneração (VBR) | F11: Demanda azul FP | I11: 0 | K11: subvenção de 2016 | R11: Compartilhamento de infraestrutura
A12: (7) Obrigações Especiais Líquida | F12: Energia TUSD azul E | I12: 0 | L12: =L9/L11-1 ->  | R12: Serviços de avaliação técnica e aferição de medidores.
A13: (8) Terrenos e Servidões | E13: Verde | F13: Demanda verde | I13: 0 | R13: Operacionalização de serviço de créditos tributários
A14: (9) Almoxarifado em Operação | F14: Energia TUSD verde EP | I14: 0 | K14: Item | L14: 2023 | M14: Calculo anterior | N14: variação | R14: Elaboração de projeto, construção, operação, manutenção ou reforma de: | V14: Atividades acessórias complementares
A15: (10) Base de Remuneração Líquida Total = (1)-(5)-(7)+(8)+(9) | F15: Energia TUSD verde EFP | I15: 0 | K15: Densidade Cooperativa | L15: =G24/B21 ->  | N15: =L15/M15-1 ->  | R15: (1) redes de distribuição de energia elétrica destinadas à regularização fundiária de interesse específico e ao atendimento dos empreendimentos de múltiplas unidades consumidoras;
A16: (11) Taxa de Depreciação | E16: Geração | F16: Demanda geração | I16: 0 | K16: Densidade Supridora | L16: =(Mercado!C24-Mercado!C17)/(Entrada!G44+Entrada!G45+Entrada!G46) ->  | N16: =L16/M16-1 ->  | R16: (2) redes de energia elétrica destinadas ao acesso dos sistemas de distribuição ou transmissão;
A17: (12) Quota de Reintegração Regulatória | K17: Mercado | L17: =G24 -> 0 | R17: (3) subestações de energia;
A18: (13) Remuneração de Capital (RC) = BRR líq x WACC | D18: BT | E18: Convencional ( B1, B2, B3) | F18: Energia TUSD B | I18: =G18*H18 -> 0 | K18: Km de rede | L18: =B21 -> 0 | R18: (4) instalações elétricas internas de unidades consumidoras;
E19: Branca | F19: Ponta | I19: 0 | R19: (5) banco de capacitores:
B20: Valores | E20: Branca | F20: Fora Ponta | I20: 0 | R20: (6) padrões de entrada de unidades consumidoras atendidas em baixa tensão;
A21: Total de km de rede (linhas e redes de distribuição) | E21: Branca | F21: Intermediário | I21: 0 | R21: (7) sistemas de medição de energia elétrica;
E22: Iluminação | F22: Energia TUSD B4a | I22: 0 | R22: (8) geradores, incluindo-se unidades de microgeração e minigeração distribuída;
F23: Energia TUSD B4b | I23: =G23*H23 -> 0 | R23: (9) sistemas de iluminação pública.
D24: Total Energia | G24: =G7+G12+G14+G15+G18+G22+G23 -> 0 | H24: Receita total | I24: =SUM(I5:I23) -> 0 | R24: Eficientização do consumo de energia elétrica e instalação de cogeração qualificada, desde que não enquadráveis nos projetos de Pesquisa e Desenvolvimento (P&D) ou de Eficiência Energética estabelecidos em lei
D25: Total demanda | G25: =G5+G6+G8+G10+G11+G13+G16 -> 0 | R25: Serviços de comunicação de dados
R26: Serviços de consultoria

Sheet VPB e Fator X - Subvenção (hidden)
B2: Cálculo da Parcela B de Revisão | E2: Anexo II | F2: =Resultado!$D$6 -> 0.05076025677
E3: Anexo I | F3: =Resultado!$D$8 -> -0.005450780875
B5: Parâmetros | E5: Parcela A
B6: Descrição | C6: Valor | E6: Descrição | F6: Valor
B7: Número de anos no Ciclo | C7: =VLOOKUP(0,Dados_Revisao[],4,FALSE) ->  | E7: Encagos | F7: =Resultado!D19 -> 1621604253
B8: Data da Revisão | C8: =CAPA!C10 -> 45755 | E8: Transporte | F8: =Resultado!D29 -> 651189563.8
B9: Data Base Ativos, Consumidores e Mercado da Revisao Anterior | C9: =Entrada!G37 -> 0 | E9: Energia | F9: =Resultado!D38 -> 2536307999
B10: Data Base Ativos, Consumidores e Mercado da Revisão Atual | C10: =DATE(YEAR(C8),MONTH(C8)-5,0) -> 45596 | E10: VPA | F10: =Resultado!D39 -> 4809101816
B11: Número de anos do próximo Ciclo | C11: =VLOOKUP(401,Dados_Revisao[],4,FALSE) -> 
B12: Formação da Parcela B (resumo)
B13: Descrição | C13: Valor
B14: Custo de Administração, Operação e Manutenção (CAOM) | C14: =SUM(C15:C17) -> 
B15: Custos Operacionais (CO) | C15: ='VPB e Fator X'!C15+'VPB e Fator X - Subvenção'!H158 -> 
B16: Receitas Irrecuperáveis - Encargos Setoriais (Vi) | C16: =C204 -> 0
B17: Demais Receitas Irrecuperáveis (Vse) | C17: =C208 -> 0
B18: Custo Anual dos Ativos (CAA) | C18: =SUM(C19:C21) -> 
B19: Remuneração do Capital (RC) | C19: =C95 -> 
B20: Quota de Reintegração Regulatória (QRR) | C20: =C77 -> 
B21: Custo anual das instalações móveis e imóveis (CAIMI) | C21: =C67 -> 
B22: CAOM + CAA | C22: =C18+C14 -> 
B23: Fator de Ajuste do Mercado | C23: =C33 -> 0.01024926266
B24: Mecanismo de Incentivo à Qualidade | C24: =C40 -> 0.0001721968597
B25: OR + UD + ER | C25: =D189+D196+D197 -> 
B26: VPB | C26: =(1-C23-C24)*C22-C25 -> 
B29: Fator X
B31: Fator X
B32: Descrição | C32: Valor
B33: Componente Pd | C33: =0.663%+0.317*(C34-1.521%) -> 0.01024926266
B34: MWhXT-6 | C34: =(POWER(1 + IFERROR(LN(DSUM(MercadoBase,"TUSD_E",C45:C48)/VLOOKUP("AT",TabMercado6[],2,FALSE))*VLOOKUP(CAPA!$C$23,TaBTodososPesos[],2,FALSE),0) + IFERROR(LN(DSUM(MercadoBase,"TUSD_E",D45:D48)/VLOOKUP("MT",TabMercado6[],2,FALSE))*VLOOKUP(CAPA!$C$23,TaBTodososPesos[],3,FALSE),0) + IFERROR(LN(DSUM(MercadoBase,"TUSD_E",E45:E46)/VLOOKUP("BT",TabMercado6[],2,FALSE))*VLOOKUP(CAPA!$C$23,TaBTodososPesos[],4,FALSE),0),1/5) - 1) -> 0.02662723237
B36: Componente T | C36: =(1-(C39/C38)^(1/(C11-1)))*(C38/C37) -> 
B37: VPB | C37: =C26 ->  | E37: Ajuste de Custos Operacionais para Calculo do Componente T
B38: Custos Operacionais | C38: =C121+G41 ->  | E38: Descrição | G38: Valor
B39: Meta de Custos Operacionais | C39: =C120+G41 ->  | E39: Valor de Ajuste da Parcela B [VPB- (CAOM+CAA)] | G39: =C26-C22 -> 
B40: Componente Q (Fator de Qualidade) | C40: ='VPB1'!F42 -> 0.0001721968597 | E40: Participação dos CO no VPB antes do Ajuste | G40: =C15/C22 -> 
B41: Fator X Revisão | C41: =C33+C36+C40 ->  | E41: Valor de Ajuste dos Custos Operacionais | G41: =G40*G39 -> 
B43: Variação de Mercado e Unidades Consumidoras
B44: Descrição | C44: Mercado AT (MWh) | D44: Mercado MT (MWh) | E44: Mercado BT (MWh) | F44: Total | G44: Unidades Consumidoras
B45: Critérios | C45: Subgrupo | D45: Subgrupo | E45: Subgrupo | F45: - | G45: AnoMes
C46: ="=A1" -> =A1 | D46: ="=A3a" -> =A3a | E46: B | F46: - | G46: =DATE(YEAR(CAPA!C10),MONTH(CAPA!C10)-6,1) -> 45566
C47: ="=A2" -> =A2 | D47: ="=A4" -> =A4 | E47: B | F47: -
C48: ="=A3" -> =A3 | D48: ="=As" -> =As | E48: B | F48: -
B49: Revisão Atual | C49: =DSUM(MercadoBase,"TUSD_E",C45:C48) -> 962627.758 | D49: =DSUM(MercadoBase,"TUSD_E",D45:D48) -> 3776164.02 | E49: =DSUM(MercadoBase,"TUSD_E",E45:E46) -> 6317711.003 | F49: =SUM(C49:E49) -> 11056502.78 | G49: =DSUM(MercadoBase,"UC",G45:G46)+'Subvenção Permissionária'!B4 -> 1677128
B50: Revisão Anterior | C50: =Entrada!G38 -> 0 | D50: =Entrada!G39 -> 0 | E50: =Entrada!G40 -> 0 | F50: =SUM(C50:E50) -> 0 | G50: =Entrada!G41 -> 0
B51: Variação | C51: =IFERROR((C49/C50-1),0) -> 0 | D51: =IFERROR((D49/D50-1),0) -> 0 | E51: =IFERROR((E49/E50-1),0) -> 0 | F51: =IFERROR((F49/F50-1),0) -> 0 | G51: =IFERROR((G49/G50-1),0) -> 0
B52: Peso | C52: =VLOOKUP(201,Dados_Revisao[#Data],4,FALSE) ->  | D52: =VLOOKUP(202,Dados_Revisao[#Data],4,FALSE) ->  | E52: =VLOOKUP(203,Dados_Revisao[#Data],4,FALSE) ->  | F52: 0 | G52: -
B53: Participação na Variação de Mercado | C53: =IFERROR(LN(C49/C50)*C52,0) -> 0 | D53: =IFERROR(LN(D49/D50)*D52,0) -> 0 | E53: =IFERROR(LN(E49/E50)*E52,0) -> 0 | F53: =SUM(C53:E53) -> 0 | G53: -
B56: Custo Anual do Ativos (CAA)
B58: Custo Anual das Instalações Móveis e Imóveis (CAIMI)
B59: Descrição | C59: Valores
B60: (1) Base de Anuidade Regulatória (BAR) | C60: =2.7159*(Entrada!G7-Entrada!G8+'Subvenção Permissionária'!B6)^(-0.167+1)*(VLOOKUP((DATE(YEAR(CAPA!C10),MONTH(CAPA!C10)-1,1)),Índices!B82:D10000,3,FALSE)/VLOOKUP(DATE(2014,12,1),Índices!B82:D10000,3,FALSE))^0.167 -> 
B61: (2) Base de Anuidade - Infraestrutura de imóveis e móveis administrativos (BARA) | C61: =C60*0.45 -> 
B62: (3) Base de Anuidade - Veículos (BARV) | C62: =C60*0.12 -> 
B63: (4) Base de Anuidade - Sistemas de Informática (BARI) | C63: =C60*0.43 -> 
B64: (5) Anuidade - Infraestrutura de imóveis e móveis administrativos (CAL) | C64: =C61*(1/19.5+F81/2) -> 
B65: (6) Anuidade - Veículos (CAV) | C65: =C62*(1/7+F81/2) -> 
B66: (7) Anuidade - Sistemas de Informática (CAI) | C66: =C63*(1/5.3+F81/2) -> 
B67: (8) CAIMI = (5)+(6)+(7) | C67: =SUM(C64:C66) -> 
B69: Base de Remuneração Bruta e Quota de Reintegração Regulatória (QRR)
B70: Descrição | C70: Valor
B71: (1) Ativo Imobilizado em Serviço (Valor Novo de Reposição) | C71: =Entrada!G7+'Subvenção Permissionária'!B6 -> 
B72: (2) Índice de Aproveitamento Integral | C72: =Entrada!G8 -> 
B73: (3) Obrigações Especiais Bruta | C73: =Entrada!G9+'Subvenção Permissionária'!B7 ->  | F73: 0.1136 | G73: 0.1108366985 | H73: 0.1063543545
B74: (4) Bens Totalmente Depreciados | C74: =Entrada!G10+'Subvenção Permissionária'!B7 ->  | F74: 0.0135 | G74: 0.02281926149 | H74: 0.02168624234
B75: (5) Base de Remuneração Bruta | C75: =C71-C72-C73-C74 ->  | F75: 0.0362 | G75: 0.02281926149 | H75: 0.02168624234
B76: (17) Taxa de Depreciação | C76: =Entrada!G23 -> 0
B77: (18) Quota de Reintegração Regulatória | C77: =C75*C76 ->  | G77: 0.5782 | H77: 0.5183503422
G78: 0.0545 | H78: 0.09120246719
B79: Base de Remuneração Líquida e Remuneração do Capital (RC) | E79: Custo Médio do Capital | I79: Cálculo do Beta (Res. Normativa 473)
B80: Descrição | C80: Valor | E80: Tipo | F80: Valor | G80: Norma | I80: Descrição | J80: Valor
B81: (1) Ativo Imobilizado em Serviço (Valor Novo de Reposição) | C81: =C71 ->  | E81: WACC real antes de impostos | F81: ='VPB e Fator X'!F81 -> 0.112503 | G81: ='VPB e Fator X'!G81 -> Despacho n° 829, 24/03/2023 | I81: Depreciação AIS | J81: =SUM(C61/27.9,C62/7,C63/5.3) -> 
B82: (6) Depreciação Acumulada | C82: =Entrada!G12+'Subvenção Permissionária'!B10 ->  | E82: Taxa RGR/PLPT real | F82: ='VPB e Fator X'!F82 -> 0.000797 | G82: ='VPB e Fator X'!G82 -> Despacho n° 829, 24/03/2023 | I82: Remuneração AIS | J82: =SUM(C61,C62,C63)*(F81/2) -> 
B83: (7) AIS Líquido (Valor de Mercado em Uso) | C83: =Entrada!G13+'Subvenção Permissionária'!B6-'Subvenção Permissionária'!B10 ->  | E83: Taxa RGR Demais Investimentos | F83: ='VPB e Fator X'!F83 -> 0.000797 | G83: ='VPB e Fator X'!G83 -> Despacho n° 829, 24/03/2023 | I83: Remuneração de Capital Bruta pós pd | J83: =(C95+J82)*Resultado!G30/Resultado!G27 -> 
B84: (8) Índice de Aproveitamento Depreciado | C84: =Entrada!G14 ->  | I84: Quota de Reintegração Bruta pós pd | J84: =(C77+J81)*(Resultado!G30/Resultado!G27) -> 
B85: (9) Valor da Base de Remuneração (VBR) | C85: =Entrada!G15+'Subvenção Permissionária'!B11 ->  | I85: Custo Operacional pós pd | J85: =Resultado!G19*(Resultado!G30/Resultado!G27) -> 
B86: (10) Almoxarifado em Operação | C86: =Entrada!G16+'Subvenção Permissionária'!B14 ->  | I86: Outras Receitas (OR) proporcional RCB | J86: =C25*(J83/(J85+J84+J83)) -> 
B87: (11) Ativo Diferido | C87: =Entrada!G17 ->  | E87: Remuneração sobre Obrigações Especiais | I87: Remuenração de Capital Bruta - OR proporcional | J87: =J83-J86 -> 
B88: (12) Obrigações Especiais Líquida | C88: =Entrada!G18+'Subvenção Permissionária'!B7 ->  | E88: Descrição | G88: Valor | I88: Beta | J88: =J87/Resultado!G30 -> 
B89: (13) Terrenos e Servidões | C89: =Entrada!G19+'Subvenção Permissionária'!B13 ->  | E89: CAA-RCOE | G89: =C77+C93+C67 -> 
B90: (14) Base de Remuneração Líquida | C90: =C81-C82-C84+C86+C87-C88+C89 ->  | E90: CAOM / (CAOM+CAA-RCOE) | G90: =(C14+H158)/(C14+G89+H158) -> 
B91: (15) Saldo RGR PLPT | C91: =Entrada!G21 ->  | E91: Obrigações Especiais Bruta (OESb) | G91: =C73 -> 
B92: (16) Saldo RGR Demais Investimentos | C92: =Entrada!G22 ->  | E92: Custo de Capital Próprio - Nominal (rp) | G92: ='VPB e Fator X'!G92 -> 0.524453
B93: (19) RC sem Obrigações Especiais | C93: =$F$83*$C$92+$C$91*$F$82+($C$90-$C$91-$C$92)*$F$81 ->  | E93: Prêmio de Risco do negócio e financeiro após impostos | G93: ='VPB e Fator X'!G93 -> 0.089205
B94: (20) Remuneração de Obrigações Especiais | C94: =G95 ->  | E94: Impostos e Contribuições sobre a Renda (t) | G94: ='VPB e Fator X'!G94 -> 0.34
B95: (21) Remuneração do Capital (RC) | C95: =C94+C93 ->  | E95: RC Obrigações Especiais | G95: =(G93)/(1-G94)*0.5*G92*G90*G91 -> 
B98: Custo de Administração, Operação e Manutenção (CAOM)
B100: Receita de Custos Operacionais no Ano Teste
B101: Descrição | C101: Valor
B102: Receita de Parcela B no Ano Teste (Receita Verificada) | C102: =SUM(INDIRECT("DADOS_MercadoBase[DISTRIBUICAO]")) -> 2918059472
B103: Custos Operacionais da Última Revisão com Ajustes | C103: =Entrada!G58*(1-(Entrada!G64+Entrada!G65)) -> 0
B104: VPB da Última Revisão com Ajustes | C104: =SUM(Entrada!G58:G63)*(1-(Entrada!G64+Entrada!G65))-Entrada!G66-Entrada!G68-Entrada!G69 -> 0
B105: Componente T da Última Revisão (TRev) | C105: =Entrada!G67 -> 0
B106: Fator (1-TRev)N-1 | C106: =(1-C105)^(C7-1) -> 
B107: Receita de Custos Operacionais no Ano Teste | C107: =(C103-C104*(1-C106))*C102/(C104*C106) -> 
B109: Meta e Custos Operacionais Regulaórios | E109: Custos Operacionais Reais (Opex) - Valores Atualizados
B110: Descrição | C110: Valor | F110: =Entrada!L7 -> -1 | G110: =IF(Entrada!M7=0,2013,Entrada!M7) -> 2013
B111: Custo Operacional no Ano Teste | C111: =C107 ->  | E111: IPCA junho | F111: =VLOOKUP(DATE($F$110,6,1),Índices!$B:$D,3,FALSE) ->  | G111: =VLOOKUP(DATE($G$110,6,1),Índices!$B:$D,3,FALSE) -> 3715.92
B112: Limite Superior dos Custos Operacionais Eficientes | C112: =C135 ->  | E112: IPCA dezembro | F112: =VLOOKUP(DATE(F110,12,1),Índices!$B:$F,3,FALSE) ->  | G112: =VLOOKUP(DATE(G110,12,1),Índices!$B:$F,3,FALSE) -> 3815.39
B113: Limite Inferior dos Custos Operacionais Eficientes | C113: =C136 ->  | E113: Conta Pessoal | F113: =Entrada!L18*$F$112/$F$111 ->  | G113: =Entrada!M18*$G$112/$G$111 -> 0
B114: Custo Operacional Eficiente | C114: =MIN(MAX(C111,C113),C112) ->  | E114: Conta Materiais | F114: =Entrada!L23*$F$112/$F$111 ->  | G114: =Entrada!M23*$G$112/$G$111 -> 0
B115: Variação Anual dos Custos Operacionais - Sem limite | C115: =((C114/C111)^(1/C11)-1) ->  | E115: Conta Terceiros | F115: =Entrada!L38*$F$112/$F$111 ->  | G115: =Entrada!M38*$G$112/$G$111 -> 0
B116: Variação Anual dos Custos Operacionais - Limitada a ±5% | C116: =MIN(ABS(C115),5%)*SIGN(C115) ->  | E116: Conta Seguros | F116: =Entrada!L43*$F$112/$F$111 ->  | G116: =Entrada!M43*$G$112/$G$111 -> 0
B117: Meta Custos Operacionais sem Compartilhamento | C117: =C111*(1+C116)^C11 ->  | E117: Conta Tributos | F117: =Entrada!L46*$F$112/$F$111 ->  | G117: =Entrada!M46*$G$112/$G$111 -> 0
B118: Média dos Custos Operacionais Reais (Opex medio) | C118: =(F121+G121)/2 ->  | E118: Conta Outros | F118: =Entrada!L55*$F$112/$F$111 ->  | G118: =Entrada!M55*$G$112/$G$111 -> 0
B119: Razão entre CO regulatórios Ajustado e Custos Operacionais Reais Médios | C119: =C117/C118 ->  | E119: Demais Custos | F119: =(Entrada!L57+Entrada!L58+Entrada!L59+Entrada!L60)*$F$112/$F$111 ->  | G119: =(Entrada!M57+Entrada!M58+Entrada!M59+Entrada!M60)*$G$112/$G$111 -> 0
B120: Meta Custos Operacionais Regulatórios | C120: =IF(C119>1.2,(1.2+C119)/2,C119)*C118 ->  | E120: Custo Operacional | F120: =IF(F110=2013,(VLOOKUP(119,Dados_Revisao[#Data],4,FALSE))*1000+F119,SUM(F113:F119)) ->  | G120: =IF(G110=2013,(VLOOKUP(119,Dados_Revisao[#Data],4,FALSE))*1000+G119,SUM(G113:G119)) -> 
B121: Custos Operacionais Regulatórios | C121: =C111+(C120-C111)/C11 ->  | E121: Custo Operacional Atualizado | F121: =F120*C125/F112 ->  | G121: =G120*C125/G112 -> 
B123: Intervalo de Custos Eficientes
B124: Descrição | C124: Valor
B125: Número índice do IPCA no mês anterior à data base da revisão tarifária | C125: =VLOOKUP(DATE(YEAR(C8),MONTH(C8)-1,1),Índices!$B:$F,3,FALSE) -> 7245.43
B126: Número índice do IPCA no mês anterior à data base do cálculo da eficiência | C126: =VLOOKUP(DATE(2016,12,1),Índices!B:D,3,FALSE) -> 4775.7
B127: Custo eficiente estimado na data base do cálculo da eficiência | C127: =(VLOOKUP(106,Dados_Revisao[#Data],4,FALSE)*1000)*C131 -> 
B128: Custo eficiente estimado na data da revisão tarifária | C128: =F157 -> 
B129: Fator de Atualização (α) | C129: =(C128/C127)*(C125/C126) -> 
B130: Referência de eficiência média | C130: =VLOOKUP(104,Dados_Revisao[],4,FALSE) -> 
B131: Eficiência apurada para a empresa | C131: =VLOOKUP(102,Dados_Revisao[#Data],4,FALSE) -> 
B132: Limite superor do intervalo de eficiência | C132: =VLOOKUP(103,Dados_Revisao[#Data],4,FALSE) -> 
B133: Limite inferior do intervalo de eficiência | C133: =VLOOKUP(101,Dados_Revisao[#Data],4,FALSE) -> 
B134: Custo operacional real usado no estudo de eficiência | C134: =VLOOKUP(105,Dados_Revisao[#Data],4,FALSE)*1000 -> 
B135: Limite Superior dos Custos Operacionais Eficientes | C135: =$C$129*(C132/$C$130)*$C$134 -> 
B136: Limite Inferior dos Custos Operacionais Eficientes | C136: =$C$129*(C133/$C$130)*$C$134 -> 
B138: Custo Eficiente Estimado
B139: Parametros | D139: Valor
B140: Indicador médio de perdas não técnicas (% PNT / BT) | D140: =AVERAGE(Entrada!G47:G49) -> 
B141: Meta (% PNT / BT) | D141: =Entrada!G53 -> 0
B142: DEC Global Médio realizado | D142: =AVERAGE(Entrada!G50:G52) -> 
B143: Limite V8 global | D143: =Entrada!G54 -> 0
B144: Peso do Insumo (u) | D144: =VLOOKUP(108,Dados_Revisao[#Data],4,FALSE) -> 
B145: Produto | D145: Valor | E145: Peso | F145: Custo (R$) | H145: Custo Operacional agregado pela Permissionária
B146: "Fator de escala" da empresa | D146: =VLOOKUP(107,Dados_Revisao[#Data],4,FALSE) ->  | E146: 1 | F146: =(E146*D146)*1000/$D$144 ->  | H146: 0
B147: Extensão de redes subterrâneas (Km) | D147: =Entrada!G44 -> 0 | E147: =VLOOKUP(109,Dados_Revisao[#Data],4,FALSE) ->  | H147: 0
B148: Extensão de rede de distribuição aérea (Km) | D148: =Entrada!G45 -> 0 | E148: =VLOOKUP(110,Dados_Revisao[#Data],4,FALSE) ->  | G148: ='Subvenção Permissionária'!B21 -> 0 | H148: =(E148*G148)*1000/$D$144 -> 
B149: Extensão de rede de alta tensão (Km) | D149: =Entrada!G46 -> 0 | E149: =VLOOKUP(111,Dados_Revisao[#Data],4,FALSE) ->  | H149: 0
B150: Número de consumidores | D150: =DSUM(Mercado_Receita!A:AAA,"UC",G45:G46) -> 1677128 | E150: =VLOOKUP(112,Dados_Revisao[#Data],4,FALSE) ->  | G150: ='Subvenção Permissionária'!B4 -> 0 | H150: =(E150*G150)*1000/$D$144 -> 
B151: Perdas Não Técnicas Ajustadas (MWh) | D151: =-MAX((D140-D141)*D156,0) ->  | E151: =VLOOKUP(114,Dados_Revisao[#Data],4,FALSE) ->  | F151: =(E151*D151)*1000/$D$144 ->  | H151: 0
B152: Consumidor Hora Interrompido Ajustado (horas) | D152: =-MAX((D142-D143)*D150,0) ->  | E152: =VLOOKUP(115,Dados_Revisao[#Data],4,FALSE) ->  | F152: =(E152*D152)*1000/$D$144 ->  | H152: 0
B153: Mercado Ponderado (MWh) | D153: =D154*E154+D155*E155+D156*E156 ->  | E153: =VLOOKUP(113,Dados_Revisao[#Data],4,FALSE) ->  | F153: =(E153*D153)*1000/$D$144 ->  | H153: 0
B154: Mercado AT (MWh) | D154: =DSUM(MercadoBase,"TUSD_E",C45:C48) -> 962627.758 | E154: =VLOOKUP(116,Dados_Revisao[#Data],4,FALSE) ->  | H154: 0
B155: Mercado MT (MWh) | D155: =DSUM(MercadoBase,"TUSD_E",D45:D48) -> 3776164.02 | E155: =VLOOKUP(117,Dados_Revisao[#Data],4,FALSE) ->  | H155: 0
B156: Mercado BT (MWh) | D156: =DSUM(MercadoBase,"TUSD_E",E45:E46) -> 6317711.003 | E156: =VLOOKUP(118,Dados_Revisao[#Data],4,FALSE) ->  | H156: 0
B157: Custo Eficiente Estimado | F157: =SUM(F146:F153) ->  | H157: =SUM(H147:H156) -> 
H158: =IFERROR(H157*C125/C126/C130,0) -> 0
B160: Outras Receitas
B162: Outras Receitas (Valor Presente e Média)
D163: Receita Regulatória | E163: Compartilhamento | F163: Média 36 meses | G163: =Entrada!$R$5 -> 00:00:00 | H163: =DATE(YEAR(G163),MONTH(G163)-1,1) -> 
B164: Fator IGP- M | F164: =VLOOKUP(CAPA!C15,Índices!$B$7:$C$626,2,FALSE) -> 1217.355 | G164: =VLOOKUP(EDATE(G163,0),Índices!$B$7:$C$626,2,FALSE) ->  | H164: =VLOOKUP(EDATE(H163,0),Índices!$B$7:$C$626,2,FALSE) ->  | I164: =VLOOKUP(EDATE(I163,0),Índices!$B$7:$C$626,2,FALSE) ->  | J164: =VLOOKUP(EDATE(J163,0),Índices!$B$7:$C$626,2,FALSE) ->  | K164: =VLOOKUP(EDATE(K163,0),Índices!$B$7:$C$626,2,FALSE) ->  | L164: =VLOOKUP(EDATE(L163,0),Índices!$B$7:$C$626,2,FALSE) ->  | M164: =VLOOKUP(EDATE(M163,0),Índices!$B$7:$C$626,2,FALSE) ->  | N164: =VLOOKUP(EDATE(N163,0),Índices!$B$7:$C$626,2,FALSE) ->  | O164: =VLOOKUP(EDATE(O163,0),Índices!$B$7:$C$626,2,FALSE) ->  | P164: =VLOOKUP(EDATE(P163,0),Índices!$B$7:$C$626,2,FALSE) ->  | Q164: =VLOOKUP(EDATE(Q163,0),Índices!$B$7:$C$626,2,FALSE) ->  | R164: =VLOOKUP(EDATE(R163,0),Índices!$B$7:$C$626,2,FALSE) ->  | S164: =VLOOKUP(EDATE(S163,0),Índices!$B$7:$C$626,2,FALSE) ->  | T164: =VLOOKUP(EDATE(T163,0),Índices!$B$7:$C$626,2,FALSE) ->  | U164: =VLOOKUP(EDATE(U163,0),Índices!$B$7:$C$626,2,FALSE) ->  | V164: =VLOOKUP(EDATE(V163,0),Índices!$B$7:$C$626,2,FALSE) ->  | W164: =VLOOKUP(EDATE(W163,0),Índices!$B$7:$C$626,2,FALSE) ->  | X164: =VLOOKUP(EDATE(X163,0),Índices!$B$7:$C$626,2,FALSE) ->  | Y164: =VLOOKUP(EDATE(Y163,0),Índices!$B$7:$C$626,2,FALSE) ->  | Z164: =VLOOKUP(EDATE(Z163,0),Índices!$B$7:$C$626,2,FALSE) ->  | AA164: =VLOOKUP(EDATE(AA163,0),Índices!$B$7:$C$626,2,FALSE) ->  | AB164: =VLOOKUP(EDATE(AB163,0),Índices!$B$7:$C$626,2,FALSE) ->  | AC164: =VLOOKUP(EDATE(AC163,0),Índices!$B$7:$C$626,2,FALSE) ->  | AD164: =VLOOKUP(EDATE(AD163,0),Índices!$B$7:$C$626,2,FALSE) ->  | AE164: =VLOOKUP(EDATE(AE163,0),Índices!$B$7:$C$626,2,FALSE) ->  | AF164: =VLOOKUP(EDATE(AF163,0),Índices!$B$7:$C$626,2,FALSE) ->  | AG164: =VLOOKUP(EDATE(AG163,0),Índices!$B$7:$C$626,2,FALSE) ->  | AH164: =VLOOKUP(EDATE(AH163,0),Índices!$B$7:$C$626,2,FALSE) ->  | AI164: =VLOOKUP(EDATE(AI163,0),Índices!$B$7:$C$626,2,FALSE) ->  | AJ164: =VLOOKUP(EDATE(AJ163,0),Índices!$B$7:$C$626,2,FALSE) ->  | AK164: =VLOOKUP(EDATE(AK163,0),Índices!$B$7:$C$626,2,FALSE) ->  | AL164: =VLOOKUP(EDATE(AL163,0),Índices!$B$7:$C$626,2,FALSE) ->  | AM164: =VLOOKUP(EDATE(AM163,0),Índices!$B$7:$C$626,2,FALSE) ->  | AN164: =VLOOKUP(EDATE(AN163,0),Índices!$B$7:$C$626,2,FALSE) ->  | AO164: =VLOOKUP(EDATE(AO163,0),Índices!$B$7:$C$626,2,FALSE) ->  | AP164: =VLOOKUP(EDATE(AP163,0),Índices!$B$7:$C$626,2,FALSE) -> 
B165: Serviços Cobráveis | D165: =F165*12*E165 ->  | E165: 0.6 | F165: =AVERAGE(G165:AP165) ->  | G165: =(Entrada!Q8+'Subvenção Permissionária'!W6)*$F$164/G$164 ->  | H165: =(Entrada!R8+'Subvenção Permissionária'!X6)*$F$164/H$164 ->  | I165: =(Entrada!S8+'Subvenção Permissionária'!Y6)*$F$164/I$164 ->  | J165: =(Entrada!T8+'Subvenção Permissionária'!Z6)*$F$164/J$164 ->  | K165: =(Entrada!U8+'Subvenção Permissionária'!AA6)*$F$164/K$164 ->  | L165: =(Entrada!V8+'Subvenção Permissionária'!AB6)*$F$164/L$164 ->  | M165: =(Entrada!W8+'Subvenção Permissionária'!AC6)*$F$164/M$164 ->  | N165: =(Entrada!X8+'Subvenção Permissionária'!AD6)*$F$164/N$164 ->  | O165: =(Entrada!Y8+'Subvenção Permissionária'!AE6)*$F$164/O$164 ->  | P165: =(Entrada!Z8+'Subvenção Permissionária'!AF6)*$F$164/P$164 ->  | Q165: =(Entrada!AA8+'Subvenção Permissionária'!AG6)*$F$164/Q$164 ->  | R165: =(Entrada!AB8+'Subvenção Permissionária'!AH6)*$F$164/R$164 ->  | S165: =(Entrada!AC8+'Subvenção Permissionária'!AI6)*$F$164/S$164 ->  | T165: =(Entrada!AD8+'Subvenção Permissionária'!AJ6)*$F$164/T$164 ->  | U165: =(Entrada!AE8+'Subvenção Permissionária'!AK6)*$F$164/U$164 ->  | V165: =(Entrada!AF8+'Subvenção Permissionária'!AL6)*$F$164/V$164 ->  | W165: =(Entrada!AG8+'Subvenção Permissionária'!AM6)*$F$164/W$164 ->  | X165: =(Entrada!AH8+'Subvenção Permissionária'!AN6)*$F$164/X$164 ->  | Y165: =(Entrada!AI8+'Subvenção Permissionária'!AO6)*$F$164/Y$164 ->  | Z165: =(Entrada!AJ8+'Subvenção Permissionária'!AP6)*$F$164/Z$164 ->  | AA165: =(Entrada!AK8+'Subvenção Permissionária'!AQ6)*$F$164/AA$164 ->  | AB165: =(Entrada!AL8+'Subvenção Permissionária'!AR6)*$F$164/AB$164 ->  | AC165: =(Entrada!AM8+'Subvenção Permissionária'!AS6)*$F$164/AC$164 ->  | AD165: =(Entrada!AN8+'Subvenção Permissionária'!AT6)*$F$164/AD$164 ->  | AE165: =(Entrada!AO8+'Subvenção Permissionária'!AU6)*$F$164/AE$164 ->  | AF165: =(Entrada!AP8+'Subvenção Permissionária'!AV6)*$F$164/AF$164 ->  | AG165: =(Entrada!AQ8+'Subvenção Permissionária'!AW6)*$F$164/AG$164 ->  | AH165: =(Entrada!AR8+'Subvenção Permissionária'!AX6)*$F$164/AH$164 ->  | AI165: =(Entrada!AS8+'Subvenção Permissionária'!AY6)*$F$164/AI$164 ->  | AJ165: =(Entrada!AT8+'Subvenção Permissionária'!AZ6)*$F$164/AJ$164 ->  | AK165: =(Entrada!AU8+'Subvenção Permissionária'!BA6)*$F$164/AK$164 ->  | AL165: =(Entrada!AV8+'Subvenção Permissionária'!BB6)*$F$164/AL$164 ->  | AM165: =(Entrada!AW8+'Subvenção Permissionária'!BC6)*$F$164/AM$164 ->  | AN165: =(Entrada!AX8+'Subvenção Permissionária'!BD6)*$F$164/AN$164 ->  | AO165: =(Entrada!AY8+'Subvenção Permissionária'!BE6)*$F$164/AO$164 ->  | AP165: =(Entrada!AZ8+'Subvenção Permissionária'!BF6)*$F$164/AP$164 -> 
B166: Arrecadação de convênios ou valores pela fatura | E166: 0.6 | F166: =AVERAGE(G166:AP166) ->  | G166: =(Entrada!Q9+'Subvenção Permissionária'!W7)*$F$164/G$164 ->  | H166: =(Entrada!R9+'Subvenção Permissionária'!X7)*$F$164/H$164 ->  | I166: =(Entrada!S9+'Subvenção Permissionária'!Y7)*$F$164/I$164 ->  | J166: =(Entrada!T9+'Subvenção Permissionária'!Z7)*$F$164/J$164 ->  | K166: =(Entrada!U9+'Subvenção Permissionária'!AA7)*$F$164/K$164 ->  | L166: =(Entrada!V9+'Subvenção Permissionária'!AB7)*$F$164/L$164 ->  | M166: =(Entrada!W9+'Subvenção Permissionária'!AC7)*$F$164/M$164 ->  | N166: =(Entrada!X9+'Subvenção Permissionária'!AD7)*$F$164/N$164 ->  | O166: =(Entrada!Y9+'Subvenção Permissionária'!AE7)*$F$164/O$164 ->  | P166: =(Entrada!Z9+'Subvenção Permissionária'!AF7)*$F$164/P$164 ->  | Q166: =(Entrada!AA9+'Subvenção Permissionária'!AG7)*$F$164/Q$164 ->  | R166: =(Entrada!AB9+'Subvenção Permissionária'!AH7)*$F$164/R$164 ->  | S166: =(Entrada!AC9+'Subvenção Permissionária'!AI7)*$F$164/S$164 ->  | T166: =(Entrada!AD9+'Subvenção Permissionária'!AJ7)*$F$164/T$164 ->  | U166: =(Entrada!AE9+'Subvenção Permissionária'!AK7)*$F$164/U$164 ->  | V166: =(Entrada!AF9+'Subvenção Permissionária'!AL7)*$F$164/V$164 ->  | W166: =(Entrada!AG9+'Subvenção Permissionária'!AM7)*$F$164/W$164 ->  | X166: =(Entrada!AH9+'Subvenção Permissionária'!AN7)*$F$164/X$164 ->  | Y166: =(Entrada!AI9+'Subvenção Permissionária'!AO7)*$F$164/Y$164 ->  | Z166: =(Entrada!AJ9+'Subvenção Permissionária'!AP7)*$F$164/Z$164 ->  | AA166: =(Entrada!AK9+'Subvenção Permissionária'!AQ7)*$F$164/AA$164 ->  | AB166: =(Entrada!AL9+'Subvenção Permissionária'!AR7)*$F$164/AB$164 ->  | AC166: =(Entrada!AM9+'Subvenção Permissionária'!AS7)*$F$164/AC$164 ->  | AD166: =(Entrada!AN9+'Subvenção Permissionária'!AT7)*$F$164/AD$164 ->  | AE166: =(Entrada!AO9+'Subvenção Permissionária'!AU7)*$F$164/AE$164 ->  | AF166: =(Entrada!AP9+'Subvenção Permissionária'!AV7)*$F$164/AF$164 ->  | AG166: =(Entrada!AQ9+'Subvenção Permissionária'!AW7)*$F$164/AG$164 ->  | AH166: =(Entrada!AR9+'Subvenção Permissionária'!AX7)*$F$164/AH$164 ->  | AI166: =(Entrada!AS9+'Subvenção Permissionária'!AY7)*$F$164/AI$164 ->  | AJ166: =(Entrada!AT9+'Subvenção Permissionária'!AZ7)*$F$164/AJ$164 ->  | AK166: =(Entrada!AU9+'Subvenção Permissionária'!BA7)*$F$164/AK$164 ->  | AL166: =(Entrada!AV9+'Subvenção Permissionária'!BB7)*$F$164/AL$164 ->  | AM166: =(Entrada!AW9+'Subvenção Permissionária'!BC7)*$F$164/AM$164 ->  | AN166: =(Entrada!AX9+'Subvenção Permissionária'!BD7)*$F$164/AN$164 ->  | AO166: =(Entrada!AY9+'Subvenção Permissionária'!BE7)*$F$164/AO$164 ->  | AP166: =(Entrada!AZ9+'Subvenção Permissionária'!BF7)*$F$164/AP$164 -> 
B167: Arrecadação de faturas de terceiros por estrutura própria | E167: 0.6 | G167: =(Entrada!Q10+'Subvenção Permissionária'!W8)*$F$164/G$164 ->  | H167: =(Entrada!R10+'Subvenção Permissionária'!X8)*$F$164/H$164 ->  | I167: =(Entrada!S10+'Subvenção Permissionária'!Y8)*$F$164/I$164 ->  | J167: =(Entrada!T10+'Subvenção Permissionária'!Z8)*$F$164/J$164 ->  | K167: =(Entrada!U10+'Subvenção Permissionária'!AA8)*$F$164/K$164 ->  | L167: =(Entrada!V10+'Subvenção Permissionária'!AB8)*$F$164/L$164 ->  | M167: =(Entrada!W10+'Subvenção Permissionária'!AC8)*$F$164/M$164 ->  | N167: =(Entrada!X10+'Subvenção Permissionária'!AD8)*$F$164/N$164 ->  | O167: =(Entrada!Y10+'Subvenção Permissionária'!AE8)*$F$164/O$164 ->  | P167: =(Entrada!Z10+'Subvenção Permissionária'!AF8)*$F$164/P$164 ->  | Q167: =(Entrada!AA10+'Subvenção Permissionária'!AG8)*$F$164/Q$164 ->  | R167: =(Entrada!AB10+'Subvenção Permissionária'!AH8)*$F$164/R$164 ->  | S167: =(Entrada!AC10+'Subvenção Permissionária'!AI8)*$F$164/S$164 ->  | T167: =(Entrada!AD10+'Subvenção Permissionária'!AJ8)*$F$164/T$164 ->  | U167: =(Entrada!AE10+'Subvenção Permissionária'!AK8)*$F$164/U$164 ->  | V167: =(Entrada!AF10+'Subvenção Permissionária'!AL8)*$F$164/V$164 ->  | W167: =(Entrada!AG10+'Subvenção Permissionária'!AM8)*$F$164/W$164 ->  | X167: =(Entrada!AH10+'Subvenção Permissionária'!AN8)*$F$164/X$164 ->  | Y167: =(Entrada!AI10+'Subvenção Permissionária'!AO8)*$F$164/Y$164 ->  | Z167: =(Entrada!AJ10+'Subvenção Permissionária'!AP8)*$F$164/Z$164 ->  | AA167: =(Entrada!AK10+'Subvenção Permissionária'!AQ8)*$F$164/AA$164 ->  | AB167: =(Entrada!AL10+'Subvenção Permissionária'!AR8)*$F$164/AB$164 ->  | AC167: =(Entrada!AM10+'Subvenção Permissionária'!AS8)*$F$164/AC$164 ->  | AD167: =(Entrada!AN10+'Subvenção Permissionária'!AT8)*$F$164/AD$164 ->  | AE167: =(Entrada!AO10+'Subvenção Permissionária'!AU8)*$F$164/AE$164 ->  | AF167: =(Entrada!AP10+'Subvenção Permissionária'!AV8)*$F$164/AF$164 ->  | AG167: =(Entrada!AQ10+'Subvenção Permissionária'!AW8)*$F$164/AG$164 ->  | AH167: =(Entrada!AR10+'Subvenção Permissionária'!AX8)*$F$164/AH$164 ->  | AI167: =(Entrada!AS10+'Subvenção Permissionária'!AY8)*$F$164/AI$164 ->  | AJ167: =(Entrada!AT10+'Subvenção Permissionária'!AZ8)*$F$164/AJ$164 ->  | AK167: =(Entrada!AU10+'Subvenção Permissionária'!BA8)*$F$164/AK$164 ->  | AL167: =(Entrada!AV10+'Subvenção Permissionária'!BB8)*$F$164/AL$164 ->  | AM167: =(Entrada!AW10+'Subvenção Permissionária'!BC8)*$F$164/AM$164 ->  | AN167: =(Entrada!AX10+'Subvenção Permissionária'!BD8)*$F$164/AN$164 ->  | AO167: =(Entrada!AY10+'Subvenção Permissionária'!BE8)*$F$164/AO$164 ->  | AP167: =(Entrada!AZ10+'Subvenção Permissionária'!BF8)*$F$164/AP$164 -> 
B168: Veiculação de publicidade | E168: 0.6 | G168: =(Entrada!Q11+'Subvenção Permissionária'!W9)*$F$164/G$164 ->  | H168: =(Entrada!R11+'Subvenção Permissionária'!X9)*$F$164/H$164 ->  | I168: =(Entrada!S11+'Subvenção Permissionária'!Y9)*$F$164/I$164 ->  | J168: =(Entrada!T11+'Subvenção Permissionária'!Z9)*$F$164/J$164 ->  | K168: =(Entrada!U11+'Subvenção Permissionária'!AA9)*$F$164/K$164 ->  | L168: =(Entrada!V11+'Subvenção Permissionária'!AB9)*$F$164/L$164 ->  | M168: =(Entrada!W11+'Subvenção Permissionária'!AC9)*$F$164/M$164 ->  | N168: =(Entrada!X11+'Subvenção Permissionária'!AD9)*$F$164/N$164 ->  | O168: =(Entrada!Y11+'Subvenção Permissionária'!AE9)*$F$164/O$164 ->  | P168: =(Entrada!Z11+'Subvenção Permissionária'!AF9)*$F$164/P$164 ->  | Q168: =(Entrada!AA11+'Subvenção Permissionária'!AG9)*$F$164/Q$164 ->  | R168: =(Entrada!AB11+'Subvenção Permissionária'!AH9)*$F$164/R$164 ->  | S168: =(Entrada!AC11+'Subvenção Permissionária'!AI9)*$F$164/S$164 ->  | T168: =(Entrada!AD11+'Subvenção Permissionária'!AJ9)*$F$164/T$164 ->  | U168: =(Entrada!AE11+'Subvenção Permissionária'!AK9)*$F$164/U$164 ->  | V168: =(Entrada!AF11+'Subvenção Permissionária'!AL9)*$F$164/V$164 ->  | W168: =(Entrada!AG11+'Subvenção Permissionária'!AM9)*$F$164/W$164 ->  | X168: =(Entrada!AH11+'Subvenção Permissionária'!AN9)*$F$164/X$164 ->  | Y168: =(Entrada!AI11+'Subvenção Permissionária'!AO9)*$F$164/Y$164 ->  | Z168: =(Entrada!AJ11+'Subvenção Permissionária'!AP9)*$F$164/Z$164 ->  | AA168: =(Entrada!AK11+'Subvenção Permissionária'!AQ9)*$F$164/AA$164 ->  | AB168: =(Entrada!AL11+'Subvenção Permissionária'!AR9)*$F$164/AB$164 ->  | AC168: =(Entrada!AM11+'Subvenção Permissionária'!AS9)*$F$164/AC$164 ->  | AD168: =(Entrada!AN11+'Subvenção Permissionária'!AT9)*$F$164/AD$164 ->  | AE168: =(Entrada!AO11+'Subvenção Permissionária'!AU9)*$F$164/AE$164 ->  | AF168: =(Entrada!AP11+'Subvenção Permissionária'!AV9)*$F$164/AF$164 ->  | AG168: =(Entrada!AQ11+'Subvenção Permissionária'!AW9)*$F$164/AG$164 ->  | AH168: =(Entrada!AR11+'Subvenção Permissionária'!AX9)*$F$164/AH$164 ->  | AI168: =(Entrada!AS11+'Subvenção Permissionária'!AY9)*$F$164/AI$164 ->  | AJ168: =(Entrada!AT11+'Subvenção Permissionária'!AZ9)*$F$164/AJ$164 ->  | AK168: =(Entrada!AU11+'Subvenção Permissionária'!BA9)*$F$164/AK$164 ->  | AL168: =(Entrada!AV11+'Subvenção Permissionária'!BB9)*$F$164/AL$164 ->  | AM168: =(Entrada!AW11+'Subvenção Permissionária'!BC9)*$F$164/AM$164 ->  | AN168: =(Entrada!AX11+'Subvenção Permissionária'!BD9)*$F$164/AN$164 ->  | AO168: =(Entrada!AY11+'Subvenção Permissionária'!BE9)*$F$164/AO$164 ->  | AP168: =(Entrada!AZ11+'Subvenção Permissionária'!BF9)*$F$164/AP$164 -> 
B169: Aluguel ou cessão onerosa de imóveis e espaços físicos | E169: 0.6 | G169: =(Entrada!Q12+'Subvenção Permissionária'!W10)*$F$164/G$164 ->  | H169: =(Entrada!R12+'Subvenção Permissionária'!X10)*$F$164/H$164 ->  | I169: =(Entrada!S12+'Subvenção Permissionária'!Y10)*$F$164/I$164 ->  | J169: =(Entrada!T12+'Subvenção Permissionária'!Z10)*$F$164/J$164 ->  | K169: =(Entrada!U12+'Subvenção Permissionária'!AA10)*$F$164/K$164 ->  | L169: =(Entrada!V12+'Subvenção Permissionária'!AB10)*$F$164/L$164 ->  | M169: =(Entrada!W12+'Subvenção Permissionária'!AC10)*$F$164/M$164 ->  | N169: =(Entrada!X12+'Subvenção Permissionária'!AD10)*$F$164/N$164 ->  | O169: =(Entrada!Y12+'Subvenção Permissionária'!AE10)*$F$164/O$164 ->  | P169: =(Entrada!Z12+'Subvenção Permissionária'!AF10)*$F$164/P$164 ->  | Q169: =(Entrada!AA12+'Subvenção Permissionária'!AG10)*$F$164/Q$164 ->  | R169: =(Entrada!AB12+'Subvenção Permissionária'!AH10)*$F$164/R$164 ->  | S169: =(Entrada!AC12+'Subvenção Permissionária'!AI10)*$F$164/S$164 ->  | T169: =(Entrada!AD12+'Subvenção Permissionária'!AJ10)*$F$164/T$164 ->  | U169: =(Entrada!AE12+'Subvenção Permissionária'!AK10)*$F$164/U$164 ->  | V169: =(Entrada!AF12+'Subvenção Permissionária'!AL10)*$F$164/V$164 ->  | W169: =(Entrada!AG12+'Subvenção Permissionária'!AM10)*$F$164/W$164 ->  | X169: =(Entrada!AH12+'Subvenção Permissionária'!AN10)*$F$164/X$164 ->  | Y169: =(Entrada!AI12+'Subvenção Permissionária'!AO10)*$F$164/Y$164 ->  | Z169: =(Entrada!AJ12+'Subvenção Permissionária'!AP10)*$F$164/Z$164 ->  | AA169: =(Entrada!AK12+'Subvenção Permissionária'!AQ10)*$F$164/AA$164 ->  | AB169: =(Entrada!AL12+'Subvenção Permissionária'!AR10)*$F$164/AB$164 ->  | AC169: =(Entrada!AM12+'Subvenção Permissionária'!AS10)*$F$164/AC$164 ->  | AD169: =(Entrada!AN12+'Subvenção Permissionária'!AT10)*$F$164/AD$164 ->  | AE169: =(Entrada!AO12+'Subvenção Permissionária'!AU10)*$F$164/AE$164 ->  | AF169: =(Entrada!AP12+'Subvenção Permissionária'!AV10)*$F$164/AF$164 ->  | AG169: =(Entrada!AQ12+'Subvenção Permissionária'!AW10)*$F$164/AG$164 ->  | AH169: =(Entrada!AR12+'Subvenção Permissionária'!AX10)*$F$164/AH$164 ->  | AI169: =(Entrada!AS12+'Subvenção Permissionária'!AY10)*$F$164/AI$164 ->  | AJ169: =(Entrada!AT12+'Subvenção Permissionária'!AZ10)*$F$164/AJ$164 ->  | AK169: =(Entrada!AU12+'Subvenção Permissionária'!BA10)*$F$164/AK$164 ->  | AL169: =(Entrada!AV12+'Subvenção Permissionária'!BB10)*$F$164/AL$164 ->  | AM169: =(Entrada!AW12+'Subvenção Permissionária'!BC10)*$F$164/AM$164 ->  | AN169: =(Entrada!AX12+'Subvenção Permissionária'!BD10)*$F$164/AN$164 ->  | AO169: =(Entrada!AY12+'Subvenção Permissionária'!BE10)*$F$164/AO$164 ->  | AP169: =(Entrada!AZ12+'Subvenção Permissionária'!BF10)*$F$164/AP$164 -> 
B170: Compartilhamento de infraestrutura (Média 24 meses) | D170: =F170*12*E170 ->  | E170: 0.6 | G170: =(Entrada!Q13+'Subvenção Permissionária'!W11)*$F$164/G$164 ->  | H170: =(Entrada!R13+'Subvenção Permissionária'!X11)*$F$164/H$164 ->  | I170: =(Entrada!S13+'Subvenção Permissionária'!Y11)*$F$164/I$164 ->  | J170: =(Entrada!T13+'Subvenção Permissionária'!Z11)*$F$164/J$164 ->  | K170: =(Entrada!U13+'Subvenção Permissionária'!AA11)*$F$164/K$164 ->  | L170: =(Entrada!V13+'Subvenção Permissionária'!AB11)*$F$164/L$164 ->  | M170: =(Entrada!W13+'Subvenção Permissionária'!AC11)*$F$164/M$164 ->  | N170: =(Entrada!X13+'Subvenção Permissionária'!AD11)*$F$164/N$164 ->  | O170: =(Entrada!Y13+'Subvenção Permissionária'!AE11)*$F$164/O$164 ->  | P170: =(Entrada!Z13+'Subvenção Permissionária'!AF11)*$F$164/P$164 ->  | Q170: =(Entrada!AA13+'Subvenção Permissionária'!AG11)*$F$164/Q$164 ->  | R170: =(Entrada!AB13+'Subvenção Permissionária'!AH11)*$F$164/R$164 ->  | S170: =(Entrada!AC13+'Subvenção Permissionária'!AI11)*$F$164/S$164 ->  | T170: =(Entrada!AD13+'Subvenção Permissionária'!AJ11)*$F$164/T$164 ->  | U170: =(Entrada!AE13+'Subvenção Permissionária'!AK11)*$F$164/U$164 ->  | V170: =(Entrada!AF13+'Subvenção Permissionária'!AL11)*$F$164/V$164 ->  | W170: =(Entrada!AG13+'Subvenção Permissionária'!AM11)*$F$164/W$164 ->  | X170: =(Entrada!AH13+'Subvenção Permissionária'!AN11)*$F$164/X$164 ->  | Y170: =(Entrada!AI13+'Subvenção Permissionária'!AO11)*$F$164/Y$164 ->  | Z170: =(Entrada!AJ13+'Subvenção Permissionária'!AP11)*$F$164/Z$164 ->  | AA170: =(Entrada!AK13+'Subvenção Permissionária'!AQ11)*$F$164/AA$164 ->  | AB170: =(Entrada!AL13+'Subvenção Permissionária'!AR11)*$F$164/AB$164 ->  | AC170: =(Entrada!AM13+'Subvenção Permissionária'!AS11)*$F$164/AC$164 ->  | AD170: =(Entrada!AN13+'Subvenção Permissionária'!AT11)*$F$164/AD$164 ->  | AE170: =(Entrada!AO13+'Subvenção Permissionária'!AU11)*$F$164/AE$164 ->  | AF170: =(Entrada!AP13+'Subvenção Permissionária'!AV11)*$F$164/AF$164 ->  | AG170: =(Entrada!AQ13+'Subvenção Permissionária'!AW11)*$F$164/AG$164 ->  | AH170: =(Entrada!AR13+'Subvenção Permissionária'!AX11)*$F$164/AH$164 ->  | AI170: =(Entrada!AS13+'Subvenção Permissionária'!AY11)*$F$164/AI$164 ->  | AJ170: =(Entrada!AT13+'Subvenção Permissionária'!AZ11)*$F$164/AJ$164 ->  | AK170: =(Entrada!AU13+'Subvenção Permissionária'!BA11)*$F$164/AK$164 ->  | AL170: =(Entrada!AV13+'Subvenção Permissionária'!BB11)*$F$164/AL$164 ->  | AM170: =(Entrada!AW13+'Subvenção Permissionária'!BC11)*$F$164/AM$164 ->  | AN170: =(Entrada!AX13+'Subvenção Permissionária'!BD11)*$F$164/AN$164 ->  | AO170: =(Entrada!AY13+'Subvenção Permissionária'!BE11)*$F$164/AO$164 ->  | AP170: =(Entrada!AZ13+'Subvenção Permissionária'!BF11)*$F$164/AP$164 -> 
B171: Serviços de avaliação técnica e aferição de medidores. | E171: 0.6 | G171: =(Entrada!Q14+'Subvenção Permissionária'!W12)*$F$164/G$164 ->  | H171: =(Entrada!R14+'Subvenção Permissionária'!X12)*$F$164/H$164 ->  | I171: =(Entrada!S14+'Subvenção Permissionária'!Y12)*$F$164/I$164 ->  | J171: =(Entrada!T14+'Subvenção Permissionária'!Z12)*$F$164/J$164 ->  | K171: =(Entrada!U14+'Subvenção Permissionária'!AA12)*$F$164/K$164 ->  | L171: =(Entrada!V14+'Subvenção Permissionária'!AB12)*$F$164/L$164 ->  | M171: =(Entrada!W14+'Subvenção Permissionária'!AC12)*$F$164/M$164 ->  | N171: =(Entrada!X14+'Subvenção Permissionária'!AD12)*$F$164/N$164 ->  | O171: =(Entrada!Y14+'Subvenção Permissionária'!AE12)*$F$164/O$164 ->  | P171: =(Entrada!Z14+'Subvenção Permissionária'!AF12)*$F$164/P$164 ->  | Q171: =(Entrada!AA14+'Subvenção Permissionária'!AG12)*$F$164/Q$164 ->  | R171: =(Entrada!AB14+'Subvenção Permissionária'!AH12)*$F$164/R$164 ->  | S171: =(Entrada!AC14+'Subvenção Permissionária'!AI12)*$F$164/S$164 ->  | T171: =(Entrada!AD14+'Subvenção Permissionária'!AJ12)*$F$164/T$164 ->  | U171: =(Entrada!AE14+'Subvenção Permissionária'!AK12)*$F$164/U$164 ->  | V171: =(Entrada!AF14+'Subvenção Permissionária'!AL12)*$F$164/V$164 ->  | W171: =(Entrada!AG14+'Subvenção Permissionária'!AM12)*$F$164/W$164 ->  | X171: =(Entrada!AH14+'Subvenção Permissionária'!AN12)*$F$164/X$164 ->  | Y171: =(Entrada!AI14+'Subvenção Permissionária'!AO12)*$F$164/Y$164 ->  | Z171: =(Entrada!AJ14+'Subvenção Permissionária'!AP12)*$F$164/Z$164 ->  | AA171: =(Entrada!AK14+'Subvenção Permissionária'!AQ12)*$F$164/AA$164 ->  | AB171: =(Entrada!AL14+'Subvenção Permissionária'!AR12)*$F$164/AB$164 ->  | AC171: =(Entrada!AM14+'Subvenção Permissionária'!AS12)*$F$164/AC$164 ->  | AD171: =(Entrada!AN14+'Subvenção Permissionária'!AT12)*$F$164/AD$164 ->  | AE171: =(Entrada!AO14+'Subvenção Permissionária'!AU12)*$F$164/AE$164 ->  | AF171: =(Entrada!AP14+'Subvenção Permissionária'!AV12)*$F$164/AF$164 ->  | AG171: =(Entrada!AQ14+'Subvenção Permissionária'!AW12)*$F$164/AG$164 ->  | AH171: =(Entrada!AR14+'Subvenção Permissionária'!AX12)*$F$164/AH$164 ->  | AI171: =(Entrada!AS14+'Subvenção Permissionária'!AY12)*$F$164/AI$164 ->  | AJ171: =(Entrada!AT14+'Subvenção Permissionária'!AZ12)*$F$164/AJ$164 ->  | AK171: =(Entrada!AU14+'Subvenção Permissionária'!BA12)*$F$164/AK$164 ->  | AL171: =(Entrada!AV14+'Subvenção Permissionária'!BB12)*$F$164/AL$164 ->  | AM171: =(Entrada!AW14+'Subvenção Permissionária'!BC12)*$F$164/AM$164 ->  | AN171: =(Entrada!AX14+'Subvenção Permissionária'!BD12)*$F$164/AN$164 ->  | AO171: =(Entrada!AY14+'Subvenção Permissionária'!BE12)*$F$164/AO$164 ->  | AP171: =(Entrada!AZ14+'Subvenção Permissionária'!BF12)*$F$164/AP$164 -> 
B172: Operacionalização de serviço de créditos tributários | E172: 0.6 | G172: =(Entrada!Q15+'Subvenção Permissionária'!W13)*$F$164/G$164 ->  | H172: =(Entrada!R15+'Subvenção Permissionária'!X13)*$F$164/H$164 ->  | I172: =(Entrada!S15+'Subvenção Permissionária'!Y13)*$F$164/I$164 ->  | J172: =(Entrada!T15+'Subvenção Permissionária'!Z13)*$F$164/J$164 ->  | K172: =(Entrada!U15+'Subvenção Permissionária'!AA13)*$F$164/K$164 ->  | L172: =(Entrada!V15+'Subvenção Permissionária'!AB13)*$F$164/L$164 ->  | M172: =(Entrada!W15+'Subvenção Permissionária'!AC13)*$F$164/M$164 ->  | N172: =(Entrada!X15+'Subvenção Permissionária'!AD13)*$F$164/N$164 ->  | O172: =(Entrada!Y15+'Subvenção Permissionária'!AE13)*$F$164/O$164 ->  | P172: =(Entrada!Z15+'Subvenção Permissionária'!AF13)*$F$164/P$164 ->  | Q172: =(Entrada!AA15+'Subvenção Permissionária'!AG13)*$F$164/Q$164 ->  | R172: =(Entrada!AB15+'Subvenção Permissionária'!AH13)*$F$164/R$164 ->  | S172: =(Entrada!AC15+'Subvenção Permissionária'!AI13)*$F$164/S$164 ->  | T172: =(Entrada!AD15+'Subvenção Permissionária'!AJ13)*$F$164/T$164 ->  | U172: =(Entrada!AE15+'Subvenção Permissionária'!AK13)*$F$164/U$164 ->  | V172: =(Entrada!AF15+'Subvenção Permissionária'!AL13)*$F$164/V$164 ->  | W172: =(Entrada!AG15+'Subvenção Permissionária'!AM13)*$F$164/W$164 ->  | X172: =(Entrada!AH15+'Subvenção Permissionária'!AN13)*$F$164/X$164 ->  | Y172: =(Entrada!AI15+'Subvenção Permissionária'!AO13)*$F$164/Y$164 ->  | Z172: =(Entrada!AJ15+'Subvenção Permissionária'!AP13)*$F$164/Z$164 ->  | AA172: =(Entrada!AK15+'Subvenção Permissionária'!AQ13)*$F$164/AA$164 ->  | AB172: =(Entrada!AL15+'Subvenção Permissionária'!AR13)*$F$164/AB$164 ->  | AC172: =(Entrada!AM15+'Subvenção Permissionária'!AS13)*$F$164/AC$164 ->  | AD172: =(Entrada!AN15+'Subvenção Permissionária'!AT13)*$F$164/AD$164 ->  | AE172: =(Entrada!AO15+'Subvenção Permissionária'!AU13)*$F$164/AE$164 ->  | AF172: =(Entrada!AP15+'Subvenção Permissionária'!AV13)*$F$164/AF$164 ->  | AG172: =(Entrada!AQ15+'Subvenção Permissionária'!AW13)*$F$164/AG$164 ->  | AH172: =(Entrada!AR15+'Subvenção Permissionária'!AX13)*$F$164/AH$164 ->  | AI172: =(Entrada!AS15+'Subvenção Permissionária'!AY13)*$F$164/AI$164 ->  | AJ172: =(Entrada!AT15+'Subvenção Permissionária'!AZ13)*$F$164/AJ$164 ->  | AK172: =(Entrada!AU15+'Subvenção Permissionária'!BA13)*$F$164/AK$164 ->  | AL172: =(Entrada!AV15+'Subvenção Permissionária'!BB13)*$F$164/AL$164 ->  | AM172: =(Entrada!AW15+'Subvenção Permissionária'!BC13)*$F$164/AM$164 ->  | AN172: =(Entrada!AX15+'Subvenção Permissionária'!BD13)*$F$164/AN$164 ->  | AO172: =(Entrada!AY15+'Subvenção Permissionária'!BE13)*$F$164/AO$164 ->  | AP172: =(Entrada!AZ15+'Subvenção Permissionária'!BF13)*$F$164/AP$164 -> 
B173: Elaboração de projeto, construção, operação, manutenção ou reforma de: | D173: =SUM(D174:D183) ->  | F173: =SUM(F174:F183) -> 
B174: (1) redes de distribuição de energia elétrica destinadas à regularização fundiária de interesse específico e ao atendimento dos empreendimentos de múltiplas unidades consumidoras; | D174: =F174*12*E174 ->  | E174: 0.6 | G174: =(Entrada!Q17+'Subvenção Permissionária'!W15)*$F$164/G$164 ->  | H174: =(Entrada!R17+'Subvenção Permissionária'!X15)*$F$164/H$164 ->  | I174: =(Entrada!S17+'Subvenção Permissionária'!Y15)*$F$164/I$164 ->  | J174: =(Entrada!T17+'Subvenção Permissionária'!Z15)*$F$164/J$164 ->  | K174: =(Entrada!U17+'Subvenção Permissionária'!AA15)*$F$164/K$164 ->  | L174: =(Entrada!V17+'Subvenção Permissionária'!AB15)*$F$164/L$164 ->  | M174: =(Entrada!W17+'Subvenção Permissionária'!AC15)*$F$164/M$164 ->  | N174: =(Entrada!X17+'Subvenção Permissionária'!AD15)*$F$164/N$164 ->  | O174: =(Entrada!Y17+'Subvenção Permissionária'!AE15)*$F$164/O$164 ->  | P174: =(Entrada!Z17+'Subvenção Permissionária'!AF15)*$F$164/P$164 ->  | Q174: =(Entrada!AA17+'Subvenção Permissionária'!AG15)*$F$164/Q$164 ->  | R174: =(Entrada!AB17+'Subvenção Permissionária'!AH15)*$F$164/R$164 ->  | S174: =(Entrada!AC17+'Subvenção Permissionária'!AI15)*$F$164/S$164 ->  | T174: =(Entrada!AD17+'Subvenção Permissionária'!AJ15)*$F$164/T$164 ->  | U174: =(Entrada!AE17+'Subvenção Permissionária'!AK15)*$F$164/U$164 ->  | V174: =(Entrada!AF17+'Subvenção Permissionária'!AL15)*$F$164/V$164 ->  | W174: =(Entrada!AG17+'Subvenção Permissionária'!AM15)*$F$164/W$164 ->  | X174: =(Entrada!AH17+'Subvenção Permissionária'!AN15)*$F$164/X$164 ->  | Y174: =(Entrada!AI17+'Subvenção Permissionária'!AO15)*$F$164/Y$164 ->  | Z174: =(Entrada!AJ17+'Subvenção Permissionária'!AP15)*$F$164/Z$164 ->  | AA174: =(Entrada!AK17+'Subvenção Permissionária'!AQ15)*$F$164/AA$164 ->  | AB174: =(Entrada!AL17+'Subvenção Permissionária'!AR15)*$F$164/AB$164 ->  | AC174: =(Entrada!AM17+'Subvenção Permissionária'!AS15)*$F$164/AC$164 ->  | AD174: =(Entrada!AN17+'Subvenção Permissionária'!AT15)*$F$164/AD$164 ->  | AE174: =(Entrada!AO17+'Subvenção Permissionária'!AU15)*$F$164/AE$164 ->  | AF174: =(Entrada!AP17+'Subvenção Permissionária'!AV15)*$F$164/AF$164 ->  | AG174: =(Entrada!AQ17+'Subvenção Permissionária'!AW15)*$F$164/AG$164 ->  | AH174: =(Entrada!AR17+'Subvenção Permissionária'!AX15)*$F$164/AH$164 ->  | AI174: =(Entrada!AS17+'Subvenção Permissionária'!AY15)*$F$164/AI$164 ->  | AJ174: =(Entrada!AT17+'Subvenção Permissionária'!AZ15)*$F$164/AJ$164 ->  | AK174: =(Entrada!AU17+'Subvenção Permissionária'!BA15)*$F$164/AK$164 ->  | AL174: =(Entrada!AV17+'Subvenção Permissionária'!BB15)*$F$164/AL$164 ->  | AM174: =(Entrada!AW17+'Subvenção Permissionária'!BC15)*$F$164/AM$164 ->  | AN174: =(Entrada!AX17+'Subvenção Permissionária'!BD15)*$F$164/AN$164 ->  | AO174: =(Entrada!AY17+'Subvenção Permissionária'!BE15)*$F$164/AO$164 ->  | AP174: =(Entrada!AZ17+'Subvenção Permissionária'!BF15)*$F$164/AP$164 -> 
B175: (2) redes de energia elétrica destinadas ao acesso dos sistemas de distribuição ou transmissão; | E175: 0.6 | G175: =(Entrada!Q18+'Subvenção Permissionária'!W16)*$F$164/G$164 ->  | H175: =(Entrada!R18+'Subvenção Permissionária'!X16)*$F$164/H$164 ->  | I175: =(Entrada!S18+'Subvenção Permissionária'!Y16)*$F$164/I$164 ->  | J175: =(Entrada!T18+'Subvenção Permissionária'!Z16)*$F$164/J$164 ->  | K175: =(Entrada!U18+'Subvenção Permissionária'!AA16)*$F$164/K$164 ->  | L175: =(Entrada!V18+'Subvenção Permissionária'!AB16)*$F$164/L$164 ->  | M175: =(Entrada!W18+'Subvenção Permissionária'!AC16)*$F$164/M$164 ->  | N175: =(Entrada!X18+'Subvenção Permissionária'!AD16)*$F$164/N$164 ->  | O175: =(Entrada!Y18+'Subvenção Permissionária'!AE16)*$F$164/O$164 ->  | P175: =(Entrada!Z18+'Subvenção Permissionária'!AF16)*$F$164/P$164 ->  | Q175: =(Entrada!AA18+'Subvenção Permissionária'!AG16)*$F$164/Q$164 ->  | R175: =(Entrada!AB18+'Subvenção Permissionária'!AH16)*$F$164/R$164 ->  | S175: =(Entrada!AC18+'Subvenção Permissionária'!AI16)*$F$164/S$164 ->  | T175: =(Entrada!AD18+'Subvenção Permissionária'!AJ16)*$F$164/T$164 ->  | U175: =(Entrada!AE18+'Subvenção Permissionária'!AK16)*$F$164/U$164 ->  | V175: =(Entrada!AF18+'Subvenção Permissionária'!AL16)*$F$164/V$164 ->  | W175: =(Entrada!AG18+'Subvenção Permissionária'!AM16)*$F$164/W$164 ->  | X175: =(Entrada!AH18+'Subvenção Permissionária'!AN16)*$F$164/X$164 ->  | Y175: =(Entrada!AI18+'Subvenção Permissionária'!AO16)*$F$164/Y$164 ->  | Z175: =(Entrada!AJ18+'Subvenção Permissionária'!AP16)*$F$164/Z$164 ->  | AA175: =(Entrada!AK18+'Subvenção Permissionária'!AQ16)*$F$164/AA$164 ->  | AB175: =(Entrada!AL18+'Subvenção Permissionária'!AR16)*$F$164/AB$164 ->  | AC175: =(Entrada!AM18+'Subvenção Permissionária'!AS16)*$F$164/AC$164 ->  | AD175: =(Entrada!AN18+'Subvenção Permissionária'!AT16)*$F$164/AD$164 ->  | AE175: =(Entrada!AO18+'Subvenção Permissionária'!AU16)*$F$164/AE$164 ->  | AF175: =(Entrada!AP18+'Subvenção Permissionária'!AV16)*$F$164/AF$164 ->  | AG175: =(Entrada!AQ18+'Subvenção Permissionária'!AW16)*$F$164/AG$164 ->  | AH175: =(Entrada!AR18+'Subvenção Permissionária'!AX16)*$F$164/AH$164 ->  | AI175: =(Entrada!AS18+'Subvenção Permissionária'!AY16)*$F$164/AI$164 ->  | AJ175: =(Entrada!AT18+'Subvenção Permissionária'!AZ16)*$F$164/AJ$164 ->  | AK175: =(Entrada!AU18+'Subvenção Permissionária'!BA16)*$F$164/AK$164 ->  | AL175: =(Entrada!AV18+'Subvenção Permissionária'!BB16)*$F$164/AL$164 ->  | AM175: =(Entrada!AW18+'Subvenção Permissionária'!BC16)*$F$164/AM$164 ->  | AN175: =(Entrada!AX18+'Subvenção Permissionária'!BD16)*$F$164/AN$164 ->  | AO175: =(Entrada!AY18+'Subvenção Permissionária'!BE16)*$F$164/AO$164 ->  | AP175: =(Entrada!AZ18+'Subvenção Permissionária'!BF16)*$F$164/AP$164 -> 
B176: (3) subestações de energia; | E176: 0.6 | G176: =(Entrada!Q19+'Subvenção Permissionária'!W17)*$F$164/G$164 ->  | H176: =(Entrada!R19+'Subvenção Permissionária'!X17)*$F$164/H$164 ->  | I176: =(Entrada!S19+'Subvenção Permissionária'!Y17)*$F$164/I$164 ->  | J176: =(Entrada!T19+'Subvenção Permissionária'!Z17)*$F$164/J$164 ->  | K176: =(Entrada!U19+'Subvenção Permissionária'!AA17)*$F$164/K$164 ->  | L176: =(Entrada!V19+'Subvenção Permissionária'!AB17)*$F$164/L$164 ->  | M176: =(Entrada!W19+'Subvenção Permissionária'!AC17)*$F$164/M$164 ->  | N176: =(Entrada!X19+'Subvenção Permissionária'!AD17)*$F$164/N$164 ->  | O176: =(Entrada!Y19+'Subvenção Permissionária'!AE17)*$F$164/O$164 ->  | P176: =(Entrada!Z19+'Subvenção Permissionária'!AF17)*$F$164/P$164 ->  | Q176: =(Entrada!AA19+'Subvenção Permissionária'!AG17)*$F$164/Q$164 ->  | R176: =(Entrada!AB19+'Subvenção Permissionária'!AH17)*$F$164/R$164 ->  | S176: =(Entrada!AC19+'Subvenção Permissionária'!AI17)*$F$164/S$164 ->  | T176: =(Entrada!AD19+'Subvenção Permissionária'!AJ17)*$F$164/T$164 ->  | U176: =(Entrada!AE19+'Subvenção Permissionária'!AK17)*$F$164/U$164 ->  | V176: =(Entrada!AF19+'Subvenção Permissionária'!AL17)*$F$164/V$164 ->  | W176: =(Entrada!AG19+'Subvenção Permissionária'!AM17)*$F$164/W$164 ->  | X176: =(Entrada!AH19+'Subvenção Permissionária'!AN17)*$F$164/X$164 ->  | Y176: =(Entrada!AI19+'Subvenção Permissionária'!AO17)*$F$164/Y$164 ->  | Z176: =(Entrada!AJ19+'Subvenção Permissionária'!AP17)*$F$164/Z$164 ->  | AA176: =(Entrada!AK19+'Subvenção Permissionária'!AQ17)*$F$164/AA$164 ->  | AB176: =(Entrada!AL19+'Subvenção Permissionária'!AR17)*$F$164/AB$164 ->  | AC176: =(Entrada!AM19+'Subvenção Permissionária'!AS17)*$F$164/AC$164 ->  | AD176: =(Entrada!AN19+'Subvenção Permissionária'!AT17)*$F$164/AD$164 ->  | AE176: =(Entrada!AO19+'Subvenção Permissionária'!AU17)*$F$164/AE$164 ->  | AF176: =(Entrada!AP19+'Subvenção Permissionária'!AV17)*$F$164/AF$164 ->  | AG176: =(Entrada!AQ19+'Subvenção Permissionária'!AW17)*$F$164/AG$164 ->  | AH176: =(Entrada!AR19+'Subvenção Permissionária'!AX17)*$F$164/AH$164 ->  | AI176: =(Entrada!AS19+'Subvenção Permissionária'!AY17)*$F$164/AI$164 ->  | AJ176: =(Entrada!AT19+'Subvenção Permissionária'!AZ17)*$F$164/AJ$164 ->  | AK176: =(Entrada!AU19+'Subvenção Permissionária'!BA17)*$F$164/AK$164 ->  | AL176: =(Entrada!AV19+'Subvenção Permissionária'!BB17)*$F$164/AL$164 ->  | AM176: =(Entrada!AW19+'Subvenção Permissionária'!BC17)*$F$164/AM$164 ->  | AN176: =(Entrada!AX19+'Subvenção Permissionária'!BD17)*$F$164/AN$164 ->  | AO176: =(Entrada!AY19+'Subvenção Permissionária'!BE17)*$F$164/AO$164 ->  | AP176: =(Entrada!AZ19+'Subvenção Permissionária'!BF17)*$F$164/AP$164 -> 
